Workbook

Sheet Disclaimer
A1: Il presente modello software in formato Excel è stato sviluppato ed è di proprietà di Banca di Credito Cooperativo BCC Bergamo ed è stato realizzato ad esclusivo uso degli associati ANCE Bergamo come documento integrativo del Webinar svoltosi in data 08.05.2020 - La valutazione della sostenibilità finanziaria al tempo del Covid. Il modello presenta una struttura di analisi semplificata (tra il resto non include la dinamica Capex e capitale circolante) realizzata a mero scopo didattico e non per un utilizzo consulenziale in quanto parziale e non esaustivo, pertanto, non deve essere utilizzato a supporto delle decisioni aziendali e non sostituisce l'assistenza di un consulente. Il modello è ceduto in licenza d'uso 'as is', vale a dire, cosi com'è, e non viene fornita alcuna garanzia, assistenza, documentazione o supporto in relazione al suo funanzionamento e al suo utilizzo. Pur essendo stata posta tutta l’attenzione e la diligenza possibile nello sviluppo del presente software, non si assume alcuna responsabilità in relazione ad eventuali errori, omissioni o inesattezze che potessero essere presenti, così come non si assume alcuna responsabilité in relazione all'utilizzo del presente software, in particolare, con riferimento ad eventuali perdite o danni, costi o spese sofferti da chiunque abbia fatto affidamento sulle informazioni prodotte e sul suo utilizzo. Per i motivi dinanzi esposti, la Banca declina ogni responsabilità verso terzi che utilizzino per scopi diversi dall'integrazione didattica al Webinar il presente modello o che abbiano fatto affidamento sulle risultanze dello stesso che, in quanto elemento parziale e semplificato, non rappresenta alcun giudizio conclusivo sull'impresa. L'utilizzabilità del presente modello scade il 31.12.2020.
W6: Debiti operativi scaduti
W9: Debiti finanziari
W12: Richiesta finanziamento
W15: Analisi CE e cash flow
W18: Analisi sostenibilità debito
W21: Sintesi scenari
W24: Report
W27: Compilare i dati nei campi con i caratteri in colore blu
W35: Ctrl + m si ritorna alla presente pagina
A46: (programma sviluppato con la versione Microsoft Excel 365 aziende - L'utilizzo di versioni precedenti o di livello inferiore può determinare problemi nel funzionamento)

Sheet 0) Debiti operativi scaduti (hidden)
A1: Denominazione richiedente | D1: Rossi Mario SRl | F1: Debiti operativi scaduti
A2: Nag | D2: 12412
A3: Data compilazione | E3: 2020-04-20
A6: Debiti operativi scaduti
A7: Totale debiti scaduti non rateizzati | D7: 1500
A8: Tasso di interesse | D8: 0.025
A9: Stima durata media rimborso (mesi) | D9: 48
A10: Piano di rientro | C10: Debiti rateizzati | D10: Non rateizzati | E10: Cash -out
A11: Anno 1 | C11: =SUMIFS(C82:C1281,B82:B1281,">"&E3,B82:B1281,"<"&EDATE(E3,12)) -> 2850 | D11: =-IF(D9<12,PMT(D8/12,D9,D7)*D9,PMT(D8/12,D9,D7)*12) -> 394.4526125 | E11: =+D11+C11 -> 3244.452613 | G11: (inserire gli importi all'euro dal mese successivo alla data compilazione nella tabella sottostante )
A12: Anno 2 | C12: =SUMIFS(C82:C1281,B82:B1281,">"&EDATE(E3,12),B82:B1281,"<="&EDATE(E3,24)) -> 1200 | D12: =IF(D9<=12,0,-IF(AND(D9>12,D9<24),PMT(D8/12,D9,D7)*(D9-12),PMT(D8/12,D9,D7)*12)) -> 394.4526125 | E12: =+D12+C12 -> 1594.452613
A13: Anno 3 | C13: =SUMIFS(C82:C1281,B82:B1281,">"&EDATE(E3,24),B82:B1281,"<="&EDATE(E3,36)) -> 0 | D13: =IF(D9<=24,0,-IF(AND(D9>24,D9<36),PMT(D8/12,D9,D7)*(D9-24),PMT(D8/12,D9,D7)*12)) -> 394.4526125 | E13: =+D13+C13 -> 394.4526125
A14: Anno 4 | C14: =SUMIFS(C82:C1281,B82:B1281,">"&EDATE(E3,36),B82:B1281,"<="&EDATE(E3,48)) -> 0 | D14: =IF(D9<=36,0,-IF(AND(D9>36,D9<48),PMT(D8/12,D9,D7)*(D9-36),PMT(D8/12,D9,D7)*12)) -> 394.4526125 | E14: =+D14+C14 -> 394.4526125
A15: Anno 5 | C15: =SUMIFS(C82:C1281,B82:B1281,">"&EDATE(E3,48),B82:B1281,"<="&EDATE(E3,60)) -> 0 | D15: =IF(D9<=48,0,-IF(AND(D9>48,D9<60),PMT(D8/12,D9,D7)*(D9-48),PMT(D8/12,D9,D7)*12)) -> 0 | E15: =+D15+C15 -> 0
A16: (anni: intesi come 12 mesi dal mese successivo alla data compilazione)
B18: Data | C18: 1° rateazione | D18: Data | E18: 2° rateazione | F18: Data | G18: 3° rateazione | H18: Data | I18: 4° rateazione | J18: Data | K18: 5° rateazione | L18: Data | M18: 6° rateazione | N18: Data | O18: 7° rateazione | P18: Data | Q18: 8° rateazione | R18: Data | S18: 9° rateazione | T18: Data | U18: 10° rateazione | V18: Data | W18: 11° rateazione | X18: Data | Y18: 12° rateazione | Z18: Data | AA18: 13° rateazione | AB18: Data | AC18: 14° rateazione | AD18: Data | AE18: 15° rateazione | AF18: Data | AG18: 16° rateazione | AH18: Data | AI18: 17° rateazione | AJ18: Data | AK18: 18° rateazione | AL18: Data | AM18: 19° rateazione | AN18: Data | AO18: 20° rateazione
A19: 1 | B19: 2020-05-01 | C19: 150 | D19: 2020-06-01 | E19: 350
A20: =IF(B20="","",A19+1) -> 2 | B20: 2020-06-01 | C20: 150 | D20: 2020-09-01 | E20: 350
A21: 3 | B21: 2020-07-01 | C21: 150 | D21: 2020-12-01 | E21: 350
A22: 4 | B22: 2020-08-01 | C22: 150
A23: 5 | B23: 2020-09-01 | C23: 150
A24: 6 | B24: 2020-10-01 | C24: 150
A25: 7 | B25: 2020-11-01 | C25: 150
A26: 8 | B26: 2020-12-01 | C26: 150
A27: 9 | B27: 2021-01-01 | C27: 150
A28: 10 | B28: 2021-02-01 | C28: 150
A29: 11 | B29: 2021-03-01 | C29: 150
A30: 12 | B30: 2021-04-01 | C30: 150
A31: 13 | B31: 2021-05-01 | C31: 150
A32: 14 | B32: 2021-06-01 | C32: 150
A33: 15 | B33: 2021-07-01 | C33: 150
A34: 16 | B34: 2021-08-01 | C34: 150
A35: 17 | B35: 2021-09-01 | C35: 150
A36: 18 | B36: 2021-10-01 | C36: 150
A37: 19 | B37: 2021-11-01 | C37: 150
A38: 20 | B38: 2021-12-01 | C38: 150
A82: 1 | B82: =+B19 -> 2020-05-01 | C82: =+C19 -> 150
A83: =IF(A82=60,1,1+A82) -> 2 | B83: =+B20 -> 2020-06-01 | C83: 150
A84: =IF(A83=60,1,1+A83) -> 3 | B84: 2020-07-01 | C84: 150
A85: 4 | B85: 2020-08-01 | C85: 150
A86: 5 | B86: 2020-09-01 | C86: 150
A87: 6 | B87: 2020-10-01 | C87: 150
A88: 7 | B88: 2020-11-01 | C88: 150
A89: 8 | B89: 2020-12-01 | C89: 150
A90: 9 | B90: 2021-01-01 | C90: 150
A91: 10 | B91: 2021-02-01 | C91: 150
A92: 11 | B92: 2021-03-01 | C92: 150
A93: 12 | B93: 2021-04-01 | C93: 150
A94: 13 | B94: 2021-05-01 | C94: 150
A95: 14 | B95: 2021-06-01 | C95: 150
A96: 15 | B96: 2021-07-01 | C96: 150
A97: 16 | B97: 2021-08-01 | C97: 150
A98: 17 | B98: 2021-09-01 | C98: 150
A99: 18 | B99: =+B36 -> 2021-10-01 | C99: 150
A100: 19 | B100: 2021-11-01 | C100: 150
A101: 20 | B101: 2021-12-01 | C101: 150
A102: 21 | B102: 00:00:00 | C102: 0
A103: 22 | B103: 00:00:00 | C103: 0
A104: 23 | B104: 00:00:00 | C104: 0
A105: 24 | B105: 00:00:00 | C105: 0
A106: 25 | B106: 00:00:00 | C106: 0
A107: 26 | B107: 00:00:00 | C107: 0
A108: 27 | B108: 00:00:00 | C108: 0
A109: 28 | B109: 00:00:00 | C109: 0
A110: 29 | B110: 00:00:00 | C110: 0
A111: 30 | B111: 00:00:00 | C111: 0
A112: 31 | B112: 00:00:00 | C112: 0
A113: 32 | B113: 00:00:00 | C113: 0
A114: 33 | B114: 00:00:00 | C114: 0
A115: 34 | B115: =+B52 -> 00:00:00 | C115: 0
A116: 35 | B116: 00:00:00 | C116: 0
A117: 36 | B117: 00:00:00 | C117: 0
A118: 37 | B118: 00:00:00 | C118: 0
A119: 38 | B119: 00:00:00 | C119: 0
A120: 39 | B120: 00:00:00 | C120: 0
A121: 40 | B121: 00:00:00 | C121: 0
A122: 41 | B122: 00:00:00 | C122: 0
A123: 42 | B123: 00:00:00 | C123: 0
A124: 43 | B124: 00:00:00 | C124: 0
A125: 44 | B125: 00:00:00 | C125: 0
A126: 45 | B126: 00:00:00 | C126: 0
A127: 46 | B127: 00:00:00 | C127: 0
A128: 47 | B128: 00:00:00 | C128: 0
A129: 48 | B129: 00:00:00 | C129: 0
A130: 49 | B130: 00:00:00 | C130: 0
A131: 50 | B131: =+B68 -> 00:00:00 | C131: 0
A132: 51 | B132: 00:00:00 | C132: 0
A133: 52 | B133: 00:00:00 | C133: 0
A134: 53 | B134: 00:00:00 | C134: 0
A135: 54 | B135: 00:00:00 | C135: 0
A136: 55 | B136: 00:00:00 | C136: 0
A137: 56 | B137: 00:00:00 | C137: 0
A138: 57 | B138: 00:00:00 | C138: 0
A139: 58 | B139: 00:00:00 | C139: 0
A140: 59 | B140: 00:00:00 | C140: 0
A141: 60 | B141: 00:00:00 | C141: 0
A142: 1 | B142: =+D19 -> 2020-06-01 | C142: =+E19 -> 350 | D142: 2
A143: 2 | B143: =+D20 -> 2020-09-01 | C143: 350
A144: 3 | B144: 2020-12-01 | C144: 350
A145: 4 | B145: 00:00:00 | C145: 0
A146: 5 | B146: 00:00:00 | C146: 0
A147: 6 | B147: 00:00:00 | C147: 0
A148: =IF(A147=60,1,1+A147) -> 7 | B148: 00:00:00 | C148: 0
A149: 8 | B149: 00:00:00 | C149: 0
A150: 9 | B150: 00:00:00 | C150: 0
A151: 10 | B151: 00:00:00 | C151: 0
A152: 11 | B152: 00:00:00 | C152: 0
A153: 12 | B153: 00:00:00 | C153: 0
A154: 13 | B154: 00:00:00 | C154: 0
A155: 14 | B155: 00:00:00 | C155: 0
A156: 15 | B156: 00:00:00 | C156: 0
A157: 16 | B157: 00:00:00 | C157: 0
A158: 17 | B158: 00:00:00 | C158: 0
A159: 18 | B159: 00:00:00 | C159: 0
A160: 19 | B160: 00:00:00 | C160: 0
A161: 20 | B161: 00:00:00 | C161: 0
A162: 21 | B162: 00:00:00 | C162: 0
A163: 22 | B163: 00:00:00 | C163: 0
A164: 23 | B164: 00:00:00 | C164: 0
A165: 24 | B165: 00:00:00 | C165: 0
A166: 25 | B166: 00:00:00 | C166: 0
A167: 26 | B167: 00:00:00 | C167: 0
A168: 27 | B168: 00:00:00 | C168: 0
A169: 28 | B169: 00:00:00 | C169: 0
A170: 29 | B170: 00:00:00 | C170: 0
A171: 30 | B171: 00:00:00 | C171: 0
A172: 31 | B172: 00:00:00 | C172: 0
A173: 32 | B173: 00:00:00 | C173: 0
A174: 33 | B174: 00:00:00 | C174: 0
A175: 34 | B175: 00:00:00 | C175: 0
A176: 35 | B176: 00:00:00 | C176: 0
A177: 36 | B177: 00:00:00 | C177: 0
A178: 37 | B178: 00:00:00 | C178: 0
A179: 38 | B179: 00:00:00 | C179: 0
A180: 39 | B180: 00:00:00 | C180: 0
A181: 40 | B181: 00:00:00 | C181: 0
A182: 41 | B182: 00:00:00 | C182: 0
A183: 42 | B183: 00:00:00 | C183: 0
A184: 43 | B184: 00:00:00 | C184: 0
A185: 44 | B185: 00:00:00 | C185: 0
A186: 45 | B186: 00:00:00 | C186: 0
A187: 46 | B187: 00:00:00 | C187: 0
A188: 47 | B188: 00:00:00 | C188: 0
A189: 48 | B189: 00:00:00 | C189: 0
A190: 49 | B190: 00:00:00 | C190: 0
A191: 50 | B191: 00:00:00 | C191: 0
A192: 51 | B192: 00:00:00 | C192: 0
A193: 52 | B193: 00:00:00 | C193: 0
A194: 53 | B194: 00:00:00 | C194: 0
A195: 54 | B195: 00:00:00 | C195: 0
A196: 55 | B196: 00:00:00 | C196: 0
A197: 56 | B197: 00:00:00 | C197: 0
A198: 57 | B198: 00:00:00 | C198: 0
A199: 58 | B199: 00:00:00 | C199: 0
A200: 59 | B200: 00:00:00 | C200: 0
A201: 60 | B201: 00:00:00 | C201: 0
A202: 1 | B202: =+F19 -> 00:00:00 | C202: =+G19 -> 0 | D202: 3
A203: 2 | B203: =+F20 -> 00:00:00 | C203: 0
A204: 3 | B204: 00:00:00 | C204: 0
A205: 4 | B205: 00:00:00 | C205: 0
A206: 5 | B206: 00:00:00 | C206: 0
A207: 6 | B207: 00:00:00 | C207: 0
A208: 7 | B208: 00:00:00 | C208: 0
A209: 8 | B209: 00:00:00 | C209: 0
A210: 9 | B210: 00:00:00 | C210: 0
A211: 10 | B211: 00:00:00 | C211: 0
A212: =IF(A211=60,1,1+A211) -> 11 | B212: 00:00:00 | C212: 0
A213: 12 | B213: 00:00:00 | C213: 0
A214: 13 | B214: 00:00:00 | C214: 0
A215: 14 | B215: 00:00:00 | C215: 0
A216: 15 | B216: 00:00:00 | C216: 0
A217: 16 | B217: 00:00:00 | C217: 0
A218: 17 | B218: 00:00:00 | C218: 0
A219: 18 | B219: 00:00:00 | C219: 0
A220: 19 | B220: 00:00:00 | C220: 0
A221: 20 | B221: 00:00:00 | C221: 0
A222: 21 | B222: 00:00:00 | C222: 0
A223: 22 | B223: 00:00:00 | C223: 0
A224: 23 | B224: 00:00:00 | C224: 0
A225: 24 | B225: 00:00:00 | C225: 0
A226: 25 | B226: 00:00:00 | C226: 0
A227: 26 | B227: 00:00:00 | C227: 0
A228: 27 | B228: 00:00:00 | C228: 0
A229: 28 | B229: 00:00:00 | C229: 0
A230: 29 | B230: 00:00:00 | C230: 0
A231: 30 | B231: 00:00:00 | C231: 0
A232: 31 | B232: 00:00:00 | C232: 0
A233: 32 | B233: 00:00:00 | C233: 0
A234: 33 | B234: 00:00:00 | C234: 0
A235: 34 | B235: 00:00:00 | C235: 0
A236: 35 | B236: 00:00:00 | C236: 0
A237: 36 | B237: 00:00:00 | C237: 0
A238: 37 | B238: 00:00:00 | C238: 0
A239: 38 | B239: 00:00:00 | C239: 0
A240: 39 | B240: 00:00:00 | C240: 0
A241: 40 | B241: 00:00:00 | C241: 0
A242: 41 | B242: 00:00:00 | C242: 0
A243: 42 | B243: 00:00:00 | C243: 0
A244: 43 | B244: 00:00:00 | C244: 0
A245: 44 | B245: 00:00:00 | C245: 0
A246: 45 | B246: 00:00:00 | C246: 0
... 1035 more rows

Sheet 1) Debiti finanziari (hidden)
A1: Denominazione richiedente | C1: =+'0) Debiti operativi scaduti'!D1 -> Rossi Mario SRl | E1: Debiti finanziari banche e leasing
A2: Data compilazione | D2: =+'0) Debiti operativi scaduti'!E3 -> 2020-04-20
A5: Banca / Leasing | B5: Tipologia di mutuo / leasing | C5: Mutuo / Leasing in moratoria | D5: Tasso di interesse | E5: Periodicità della rata | F5: Data di pagamento dell'ultima rata piena (capitale + interessi) | G5: Data di pagamento della prossima rata piena (capitale + interessi) finita eventuale moratoria | H5: Data di pagamento dell'ultima rata del mutuo/leasing (fine rimborso) | I5: Debito residuo in linea capitale del mutuo/leasing alla data odierna | J5: Saldo da pagare a riscatto (in aggiunta al debito residuo colonna sx) (solo per leasing) | K5: Stima importo rata in moratoria | L5: Stima importo rata piena | O5: Tipologia del mutuo | P5: In moratoria | Q5: Periodicità rata | R5: Nr. mesi | S5: Nr. rate
A6: Banca X | B6: Chirografario | C6: No | D6: 0.035 | E6: Mensile | F6: 2020-04-01 | G6: 2020-05-01 | H6: 2020-12-01 | I6: 1540 | K6: =+Supporto!D4 -> 0 | L6: =+Supporto!D5 -> 195.0351472 | O6: Ipotecario | P6: No | Q6: Mensile | R6: 1 | S6: 12
A7: Banca Y | B7: Chirografario | C7: Sospeso capitale e interessi | D7: 0.0375 | E7: Trimestrale | F7: 2020-02-01 | G7: 2020-11-01 | H7: 2023-10-01 | I7: 3142 | K7: =+Supporto!L4 -> 0 | L7: =+Supporto!L5 -> 278.0617018 | O7: Garantito Fondo PMI | P7: Sospeso solo il capitale | Q7: Bimestrale | R7: 2 | S7: 6
A8: Banca Z | B8: Chirografario | C8: Sospeso solo il capitale | D8: 0.0185 | E8: Mensile | F8: 2020-03-01 | G8: 2020-10-01 | H8: 2022-09-01 | I8: 18415 | K8: =+Supporto!T4 -> 28.38979167 | L8: =+Supporto!T5 -> 782.1653304 | O8: Chirografario | P8: Sospeso capitale e interessi | Q8: Trimestrale | R8: 3 | S8: 4
A9: Leasing W | B9: Leasing strumentale | C9: Sospeso solo il capitale | D9: 0.0245 | E9: Mensile | F9: 2020-03-01 | G9: 2020-10-01 | H9: 2023-07-01 | I9: 15741 | J9: 3000 | K9: =+Supporto!AB4 -> 32.137875 | L9: =+Supporto!AB5 -> 479.6976852 | O9: Leasing strumentale | Q9: Quadrimestrale | R9: 4 | S9: 3
K10: =+Supporto!AJ4 -> 0 | L10: =+Supporto!AJ5 -> 0 | O10: Leasing immobiliare | Q10: Semestrale | R10: 6 | S10: 2
K11: =+Supporto!AR4 -> 0 | L11: =+Supporto!AR5 -> 0 | Q11: Annuale | R11: 12 | S11: 1
K12: =+Supporto!AZ4 -> 0 | L12: =+Supporto!AZ5 -> 0
F13: Inserire solo mese e anno nel formato mm/aaaa | I13: =SUM(I6:I12) -> 38838 | J13: =SUM(J6:J12) -> 3000 | K13: =SUM(K6:K12) -> 60.52766667 | L13: =SUM(L6:L12) -> 1734.959865
I14: (inserire gli importi arrotondati all'euro)
A17: Linee di credito a breve | B17: Totale accordato da tutte le banche | C17: Totale utilizzato su tutte le banche | D17: Tasso medio approssimativo | E17: Stima interessi annui | G17: Finanziamenti da consolidare | I17: Debito residuo | J17: Debito da consolidare | K17: Opzione di consolidamento
A18: Fidi di cassa | B18: 25000 | C18: 15000 | D18: 0.05 | E18: =+D18*C18 -> 750 | G18: =IF(+A6="","",+A6) -> Banca X | I18: =+I6+J6 -> 1540 | J18: =IF(Supporto!BN2=TRUE,I18,0) -> 0 | K18: =IF(Supporto!BN2=TRUE,"Consolidare","Non consolidare") -> Non consolidare
G19: Banca Y | I19: =+I7+J7 -> 3142 | J19: =IF(Supporto!BN3=TRUE,I19,0) -> 0 | K19: =IF(Supporto!BN3=TRUE,"Consolidare","Non consolidare") -> Non consolidare
A20: Fidi per anticipi commerciali | B20: 50000 | C20: 45000 | D20: 0.03 | E20: =+D20*C20 -> 1350 | G20: Banca Z | I20: 18415 | J20: =IF(Supporto!BN4=TRUE,I20,0) -> 0 | K20: =IF(Supporto!BN4=TRUE,"Consolidare","Non consolidare") -> Non consolidare
G21: Leasing W | I21: 18741 | J21: =IF(Supporto!BN5=TRUE,I21,0) -> 0 | K21: =IF(Supporto!BN5=TRUE,"Consolidare","Non consolidare") -> Non consolidare
A22: Altri affidamenti (finimport, anticipi contratti, etc.) | B22: 35000 | C22: 12000 | D22: 0.04 | E22: 480 | I22: 0 | J22: =IF(Supporto!BN6=TRUE,I22,0) -> 0 | K22: =IF(Supporto!BN6=TRUE,"Consolidare","Non consolidare") -> Non consolidare
I23: 0 | J23: =IF(Supporto!BN7=TRUE,I23,0) -> 0 | K23: =IF(Supporto!BN7=TRUE,"Consolidare","Non consolidare") -> Non consolidare
B24: =SUM(B18:B22) -> 110000 | C24: =SUM(C18:C22) -> 72000 | E24: =SUM(E18:E22) -> 2580 | I24: 0 | J24: =IF(Supporto!BN8=TRUE,I24,0) -> 0 | K24: =IF(Supporto!BN8=TRUE,"Consolidare","Non consolidare") -> Non consolidare
G25: Totale | I25: =SUM(I18:I24) -> 41838 | J25: =SUM(J18:J24) -> 0
B54: (inserire gli importi arrotondati all'euro)

Sheet 2) Richiesta finanziamento (hidden)
A1: =+'1) Debiti finanziari'!A1 -> Denominazione richiedente | B1: =+'1) Debiti finanziari'!C1 -> Rossi Mario SRl | E1: Finanziamento in richiesta
A2: Nag | D2: =+'0) Debiti operativi scaduti'!D2 -> 12412
A3: =+'1) Debiti finanziari'!A2 -> Data compilazione | D3: =+'1) Debiti finanziari'!D2 -> 2020-04-20
A7: Destinazione del finanziamento | D7: Fabbisogno finale | F7: Stima piano di ammortamento | H7: Base | I7: Adj | J7: Richiesta
A8: Liquidità di sicurezza | B8: Stima iniziale fabbisogno | D8: 2500 | F8: Capitale | H8: =+D21-D9 -> 17500 | I8: =+'4) Analisi sostenibilità debito'!D7 -> 0 | J8: =+D21 -> 17500 | L8: Rata di preammortamento | O8: =+J8*H12/12 -> 27.70833333
B9: Aggiustamento in simulazione | D9: =+'4) Analisi sostenibilità debito'!D7 -> 0 | F9: Preammortamento | H9: 12 | I9: =+'4) Analisi sostenibilità debito'!D8 -> 0 | J9: =+H9+I9 -> 12 | K9: mesi | L9: Rata di ammortamento | O9: =-PMT(H12/12,J10,J8) -> 305.9708265
A10: Buffer liquidità iniziale | D10: =+D9+D8 -> 2500 | F10: Ammortamento | H10: 60 | I10: =+I11-I9 -> 0 | J10: =+H10+I10 -> 60 | K10: mesi
A11: Consolido finanziamenti | D11: =+'1) Debiti finanziari'!J25 -> 0 | F11: Durata totale | H11: =+H10+H9 -> 72 | I11: =+'4) Analisi sostenibilità debito'!D10 -> 0 | J11: 72 | K11: mesi
A12: Consolido esposizioni bancarie a breve | D12: 0 | F12: Tasso di interesse | H12: 0.019 | L12: Data inizio finanziamento | O12: =+G16 -> 2020-04-20
A13: Crediti v/clienti per attese di ritardato incasso | D13: 0 | F13: Periodicità | H13: mensile | L13: Data fine finanziamento | O13: =EDATE(O12,J11) -> 2026-04-20
A14: Copertura costi fissi (locazione, utenze, canoni manutentivi/servizi, etc.) | D14: 5000
A15: Copertura costi del personale | D15: 10000 | F15: Rata | G15: Data | H15: Debito | I15: Capitale | J15: Interessi | K15: Rata | M15: Nr. rata | N15: Data | O15: Debito | P15: Capitale | Q15: Interessi | R15: Rata
A16: … [scrivere qui altre necessità] … | D16: 0 | F16: 0 | G16: =+D3 -> 2020-04-20 | H16: =+J8 -> 17500 | M16: =IF(OR(F52=0,F52>=$J$11),0,F52+1) -> 37 | N16: =IF(M16=0,0,EDATE(G52,1)) -> 2023-05-20 | O16: =IF(M16=0,0,+H52-P16) -> 10409.64447 | P16: =IF(M16=0,0,+R16-Q16) -> 289.0312566 | Q16: =IF(M16=0,0,+H52*$H$12/12) -> 16.9395699 | R16: =IF(M16=0,0,IF(M16<=$J$9,$O$8,$O$9)) -> 305.9708265
A17: … [scrivere qui altre necessità] … | D17: 0 | F17: =1+F16 -> 1 | G17: =IF(F17=0,0,EDATE(G16,1)) -> 2020-05-20 | H17: =IF(F17=0,0,+H16-I17) -> 17500 | I17: =IF(F17=0,0,+K17-J17) -> 0 | J17: =IF(F17=0,0,+H16*$H$12/12) -> 27.70833333 | K17: =IF(F17=0,0,IF(F17<=$J$9,$O$8,$O$9)) -> 27.70833333 | M17: =IF(OR(M16=0,M16>=$J$11),0,M16+1) -> 38 | N17: =IF(M17=0,0,EDATE(N16,1)) -> 2023-06-20 | O17: =IF(M17=0,0,+O16-P17) -> 10120.15558 | P17: 289.4888894 | Q17: =IF(M17=0,0,+O16*$H$12/12) -> 16.48193707 | R17: =IF(M17=0,0,IF(M17<=$J$9,$O$8,$O$9)) -> 305.9708265
A18: … [scrivere qui altre necessità] … | D18: 0 | F18: =IF(OR(F17=0,F17>=$J$11),0,F17+1) -> 2 | G18: =IF(F18=0,0,EDATE(G17,1)) -> 2020-06-20 | H18: 17500 | I18: 0 | J18: 27.70833333 | K18: =IF(F18=0,0,IF(F18<=$J$9,$O$8,$O$9)) -> 27.70833333 | M18: 39 | N18: 2023-07-20 | O18: 9830.208332 | P18: 289.9472468 | Q18: 16.02357967 | R18: 305.9708265
A19: … [scrivere qui altre necessità] … | D19: 0 | F19: 3 | G19: =IF(F19=0,0,EDATE(G18,1)) -> 2020-07-20 | H19: 17500 | I19: 0 | J19: 27.70833333 | K19: 27.70833333 | M19: 40 | N19: 2023-08-20 | O19: 9539.802002 | P19: 290.40633 | Q19: 15.56449652 | R19: 305.9708265
A20: … [scrivere qui altre necessità] … | D20: 0 | F20: 4 | G20: =IF(F20=0,0,EDATE(G19,1)) -> 2020-08-20 | H20: 17500 | I20: 0 | J20: 27.70833333 | K20: 27.70833333 | M20: 41 | N20: 2023-09-20 | O20: 9248.935862 | P20: 290.86614 | Q20: 15.1046865 | R20: 305.9708265
A21: Importo del finanziamento richiesto | D21: =SUM(D10:D20) -> 17500 | F21: 5 | G21: 2020-09-20 | H21: 17500 | I21: 0 | J21: 27.70833333 | K21: 27.70833333 | M21: 42 | N21: 2023-10-20 | O21: 8957.609184 | P21: 291.326678 | Q21: 14.64414845 | R21: 305.9708265
F22: 6 | G22: 2020-10-20 | H22: 17500 | I22: 0 | J22: 27.70833333 | K22: 27.70833333 | M22: 43 | N22: 2023-11-20 | O22: 8665.821238 | P22: 291.7879453 | Q22: 14.18288121 | R22: 305.9708265
F23: 7 | G23: 2020-11-20 | H23: 17500 | I23: 0 | J23: 27.70833333 | K23: 27.70833333 | M23: 44 | N23: 2023-12-20 | O23: 8373.571295 | P23: 292.2499429 | Q23: 13.72088363 | R23: 305.9708265
F24: 8 | G24: 2020-12-20 | H24: 17500 | I24: 0 | J24: 27.70833333 | K24: 27.70833333 | M24: 45 | N24: 2024-01-20 | O24: 8080.858623 | P24: 292.7126719 | Q24: 13.25815455 | R24: 305.9708265
F25: 9 | G25: 2021-01-20 | H25: 17500 | I25: 0 | J25: 27.70833333 | K25: 27.70833333 | M25: 46 | N25: 2024-02-20 | O25: 7787.68249 | P25: 293.1761337 | Q25: 12.79469282 | R25: 305.9708265
F26: 10 | G26: 2021-02-20 | H26: 17500 | I26: 0 | J26: 27.70833333 | K26: 27.70833333 | M26: 47 | N26: 2024-03-20 | O26: 7494.042161 | P26: 293.6403292 | Q26: 12.33049728 | R26: 305.9708265
F27: 11 | G27: 2021-03-20 | H27: 17500 | I27: 0 | J27: 27.70833333 | K27: 27.70833333 | M27: 48 | N27: 2024-04-20 | O27: 7199.936901 | P27: 294.1052597 | Q27: 11.86556675 | R27: 305.9708265
F28: 12 | G28: 2021-04-20 | H28: 17500 | I28: 0 | J28: 27.70833333 | K28: 27.70833333 | M28: 49 | N28: 2024-05-20 | O28: 6905.365975 | P28: 294.5709264 | Q28: 11.39990009 | R28: 305.9708265
F29: 13 | G29: 2021-05-20 | H29: 17221.73751 | I29: 278.2624931 | J29: 27.70833333 | K29: 305.9708265 | M29: 50 | N29: 2024-06-20 | O29: 6610.328644 | P29: 295.0373304 | Q29: 10.93349613 | R29: 305.9708265
F30: 14 | G30: 2021-06-20 | H30: 16943.03443 | I30: 278.7030754 | J30: 27.26775105 | K30: 305.9708265 | M30: 51 | N30: 2024-07-20 | O30: 6314.824171 | P30: 295.5044728 | Q30: 10.46635369 | R30: 305.9708265
F31: 15 | G31: 2021-07-20 | H31: 16663.89008 | I31: 279.1443553 | J31: 26.82647118 | K31: 305.9708265 | M31: 52 | N31: 2024-08-20 | O31: 6018.851816 | P31: 295.9723549 | Q31: 9.998471605 | R31: 305.9708265
F32: 16 | G32: 2021-08-20 | H32: 16384.30374 | I32: 279.5863339 | J32: 26.38449262 | K32: 305.9708265 | M32: 53 | N32: 2024-09-20 | O32: 5722.410839 | P32: 296.4409778 | Q32: 9.529848709 | R32: 305.9708265
F33: 17 | G33: 2021-09-20 | H33: 16104.27473 | I33: 280.0290122 | J33: 25.94181426 | K33: 305.9708265 | M33: 54 | N33: 2024-10-20 | O33: 5425.500496 | P33: 296.9103427 | Q33: 9.060483828 | R33: 305.9708265
F34: 18 | G34: 2021-10-20 | H34: 15823.80234 | I34: 280.4723915 | J34: 25.49843499 | K34: 305.9708265 | M34: 55 | N34: 2024-11-20 | O34: 5128.120045 | P34: 297.3804507 | Q34: 8.590375785 | R34: 305.9708265
F35: 19 | G35: 2021-11-20 | H35: 15542.88587 | I35: 280.9164728 | J35: 25.0543537 | K35: 305.9708265 | M35: 56 | N35: 2024-12-20 | O35: 4830.268742 | P35: 297.8513031 | Q35: 8.119523405 | R35: 305.9708265
F36: 20 | G36: 2021-12-20 | H36: 15261.52461 | I36: 281.3612572 | J36: 24.60956929 | K36: 305.9708265 | M36: 57 | N36: 2025-01-20 | O36: 4531.945841 | P36: 298.322901 | Q36: 7.647925509 | R36: 305.9708265
F37: 21 | G37: 2022-01-20 | H37: 14979.71786 | I37: 281.8067459 | J37: 24.16408063 | K37: 305.9708265 | M37: 58 | N37: 2025-02-20 | O37: 4233.150596 | P37: 298.7952456 | Q37: 7.175580915 | R37: 305.9708265
F38: 22 | G38: 2022-02-20 | H38: 14697.46492 | I38: 282.2529399 | J38: 23.71788662 | K38: 305.9708265 | M38: 59 | N38: 2025-03-20 | O38: 3933.882258 | P38: 299.268338 | Q38: 6.702488443 | R38: 305.9708265
F39: 23 | G39: 2022-03-20 | H39: 14414.76508 | I39: 282.6998404 | J39: 23.27098613 | K39: 305.9708265 | M39: 60 | N39: 2025-04-20 | O39: 3634.140078 | P39: 299.7421796 | Q39: 6.228646908 | R39: 305.9708265
F40: 24 | G40: 2022-04-20 | H40: 14131.61763 | I40: 283.1474484 | J40: 22.82337805 | K40: 305.9708265 | M40: 61 | N40: 2025-05-20 | O40: 3333.923307 | P40: 300.2167714 | Q40: 5.754055124 | R40: 305.9708265
F41: 25 | G41: 2022-05-20 | H41: 13848.02187 | I41: =IF(F41=0,0,+K41-J41) -> 283.5957652 | J41: 22.37506125 | K41: 305.9708265 | M41: 62 | N41: 2025-06-20 | O41: 3033.231192 | P41: 300.6921146 | Q41: 5.278711902 | R41: 305.9708265
F42: 26 | G42: 2022-06-20 | H42: 13563.97708 | I42: =IF(F42=0,0,+K42-J42) -> 284.0447919 | J42: =IF(F42=0,0,+H41*$H$12/12) -> 21.92603463 | K42: 305.9708265 | M42: 63 | N42: 2025-07-20 | O42: 2732.062982 | P42: 301.1682104 | Q42: 4.802616054 | R42: 305.9708265
F43: 27 | G43: 2022-07-20 | H43: 13279.48255 | I43: 284.4945294 | J43: 21.47629704 | K43: 305.9708265 | M43: 64 | N43: 2025-08-20 | O43: 2430.417922 | P43: 301.6450601 | Q43: 4.325766388 | R43: 305.9708265
F44: 28 | G44: 2022-08-20 | H44: 12994.53757 | I44: 284.9449791 | J44: 21.02584737 | K44: 305.9708265 | M44: 65 | N44: 2025-09-20 | O44: 2128.295257 | P44: 302.1226648 | Q44: 3.848161709 | R44: 305.9708265
F45: 29 | G45: 2022-09-20 | H45: 12709.14143 | I45: 285.396142 | J45: 20.57468448 | K45: 305.9708265 | M45: 66 | N45: 2025-10-20 | O45: 1825.694231 | P45: 302.6010257 | Q45: 3.369800823 | R45: 305.9708265
F46: 30 | G46: 2022-10-20 | H46: 12423.29341 | I46: 285.8480192 | J46: 20.12280726 | K46: 305.9708265 | M46: 67 | N46: 2025-11-20 | O46: 1522.614087 | P46: 303.0801439 | Q46: 2.890682533 | R46: 305.9708265
F47: 31 | G47: =IF(F47=0,0,EDATE(G46,1)) -> 2022-11-20 | H47: 12136.9928 | I47: =IF(F47=0,0,+K47-J47) -> 286.3006119 | J47: =IF(F47=0,0,+H46*$H$12/12) -> 19.67021456 | K47: 305.9708265 | M47: 68 | N47: 2025-12-20 | O47: 1219.054066 | P47: 303.5600208 | Q47: 2.410805638 | R47: 305.9708265
F48: 32 | G48: 2022-12-20 | H48: 11850.23887 | I48: 286.7539212 | J48: 19.21690526 | K48: 305.9708265 | M48: 69 | N48: 2026-01-20 | O48: 915.0134089 | P48: 304.0406575 | Q48: 1.930168939 | R48: 305.9708265
F49: 33 | G49: 2023-01-20 | H49: 11563.03093 | I49: 287.2079483 | J49: 18.76287822 | K49: 305.9708265 | M49: 70 | N49: 2026-02-20 | O49: 610.4913537 | P49: 304.5220552 | Q49: 1.448771231 | R49: 305.9708265
F50: 34 | G50: 2023-02-20 | H50: 11275.36823 | I50: 287.6626942 | J50: 18.3081323 | K50: 305.9708265 | M50: 71 | N50: 2026-03-20 | O50: 305.4871385 | P50: 305.0042152 | Q50: 0.96661131 | R50: 305.9708265
F51: 35 | G51: 2023-03-20 | H51: 10987.25007 | I51: 288.1181601 | J51: 17.85266637 | K51: 305.9708265 | M51: 72 | N51: 2026-04-20 | O51: -2.273736754e-13 | P51: 305.4871385 | Q51: 0.4836879693 | R51: 305.9708265
F52: 36 | G52: 2023-04-20 | H52: 10698.67572 | I52: 288.5743472 | J52: 17.39647928 | K52: 305.9708265

Sheet 3) Analisi flussi di cassa (hidden)
A1: =+'1) Debiti finanziari'!A1 -> Denominazione richiedente | B1: =+'1) Debiti finanziari'!C1 -> Rossi Mario SRl | D1: CE e cash flow operativo
A2: Nag | C2: =+'2) Richiesta finanziamento'!D2 -> 12412
A3: =+'1) Debiti finanziari'!A2 -> Data compilazione | B3: =+'1) Debiti finanziari'!D2 -> 2020-04-20
G4: anno 1 | H4: anno 2 | I4: anno 3 | J4: anno 4 | K4: anno 5
A5: Conto economico | C5: 2019 | E5: ="Inserire i tre scenari chiave" -> Inserire i tre scenari chiave | F5: Max | G5: 0.15 | H5: -0.05 | I5: 0 | J5: 0.01 | K5: 0.02
A6: Ricavi | C6: 127451 | E6: ="(la % è sempre rispetto al fatturato "&C5&")" -> (la % è sempre rispetto al fatturato 2019) | F6: Prob | G6: -0.2 | H6: -0.1 | I6: -0.05 | J6: 0 | K6: 0
F7: Min | G7: -0.3 | H7: -0.15 | I7: -0.1 | J7: -0.05 | K7: -0.02
A8: Costi variabili principali | C8: =SUM(B9:B12) -> -50401 | E8: Ricavi (scenario più probabile) | G8: =+$C$6*(1+G6) -> 101960.8 | H8: =+$C$6*(1+H6) -> 114705.9 | I8: 121078.45 | J8: 127451 | K8: 127451
A9: Rimanenze iniziali | B9: -701 | E9: Costi diretti | G9: =+G8*($C$8/$C$6)*(1+G10) -> -36288.72 | H9: =+H8*($C$8/$C$6)*(1+H10) -> -45360.9 | I9: -47880.95 | J9: -50401 | K9: -50401
A10: Acquisti | B10: -50000 | E10: (effetto prezzi: ∆ incidenza costi diretti sul fatturato) | G10: -0.1 | H10: 0 | I10: 0 | J10: 0 | K10: 0
A11: Rimanenze finali | B11: 300 | E11: Margine di contribuzione | G11: =+G9+G8 -> 65672.08 | H11: =+H9+H8 -> 69345 | I11: =+I9+I8 -> 73197.5 | J11: =+J9+J8 -> 77050 | K11: =+K9+K8 -> 77050
A12: Altri costi variabili (ad es. provv. agenti) | B12: 0 | E12: Costi fissi | G12: =+$C$14 -> -42050 | H12: =+$C$14 -> -42050 | I12: =+$C$14 -> -42050 | J12: =+$C$14 -> -42050 | K12: =+$C$14 -> -42050
E13: Aggiustamento manuale costi / ricavi | G13: 0 | H13: 0 | I13: 0 | J13: 0 | K13: 0
A14: Costi fissi | C14: -42050 | E14: Risultato operativo netto | G14: =+G13+G12+G11 -> 23622.08 | H14: 27295 | I14: 31147.5 | J14: 35000 | K14: 35000
A15: di cui TFR | B15: -2000 | E15: Imposte | F15: 0.2243 | G15: =IF(G14<0,0,G14*$F$15*-1) -> -5298.432544 | H15: =IF(H14<0,0,H14*$F$15*-1) -> -6122.2685 | I15: =IF(I14<0,0,I14*$F$15*-1) -> -6986.38425 | J15: =IF(J14<0,0,J14*$F$15*-1) -> -7850.5 | K15: =IF(K14<0,0,K14*$F$15*-1) -> -7850.5
A16: di cui ammortamenti e accantonamenti | B16: -1000 | E16: Risultato finale | G16: =+G15+G14 -> 18323.64746 | H16: 21172.7315 | I16: 24161.11575 | J16: 27149.5 | K16: 27149.5
A17: di canoni leasing | B17: -5760 | E17: Patrimonio netto: | F17: 25743 | G17: =+F17+G16 -> 44066.64746 | H17: =+G17+H16 -> 65239.37896 | I17: 89400.49471 | J17: 116549.9947 | K17: 143699.4947
A19: Risultato Operativo Netto | B19: =ROUND(ABS(+C19/C6)*100,2)&"% Ftt." -> 27,46% Ftt. | C19: =+C6+C8+C14 -> 35000 | E19: Scenari rendiconto finanziario
E20: Risultato operativo lordo ante leasing | G20: =+G14-$B$15-$B$16-$B$17 -> 32382.08 | H20: =+H14-$B$15-$B$16-$B$17 -> 36055 | I20: 39907.5 | J20: 43760 | K20: 43760
A21: Imposte sui redditi | B21: =ROUND(ABS(+C21/C19)*100,2)&"% RON" -> 22,43% RON | C21: -7850 | E21: Imposte | G21: =+G15 -> -5298.432544 | H21: -6122.2685 | I21: -6986.38425 | J21: -7850.5 | K21: -7850.5
E22: Cassa generata dalla gestione operativa | G22: =+G21+G20 -> 27083.64746 | H22: 29932.7315 | I22: 32921.11575 | J22: 35909.5 | K22: 35909.5
A23: Risultato finale | C23: =+C19+C21 -> 27150 | E23: Prelievo soci / titolare | F23: -12000 | G23: =+F23 -> -12000 | H23: =+$F$23 -> -12000 | I23: =+$F$23 -> -12000 | J23: =+$F$23 -> -12000 | K23: =+$F$23 -> -12000
A24: (esclusi oneri fin.ri e poste straordinarie) | E24: Cassa libera per pagare i debiti finanziari | G24: =+G23+G22 -> 15083.64746 | H24: 17932.7315 | I24: 20921.11575 | J24: 23909.5 | K24: 23909.5
A26: Se si è inserito un aggiustamento manuale costi / ricavi, si illustrino sotto i motivi
A27: …

Sheet 3.1) Analisi flussi dei cassa (hidden)
A1: =+'1) Debiti finanziari'!A1 -> Denominazione richiedente | B1: =+'1) Debiti finanziari'!C1 -> Rossi Mario SRl
A2: Nag | C2: =+'2) Richiesta finanziamento'!D2 -> 12412
A3: =+'1) Debiti finanziari'!A2 -> Data compilazione | B3: =+'1) Debiti finanziari'!D2 -> 2020-04-20
G4: anno 1 | H4: anno 2 | I4: anno 3 | J4: anno 4 | K4: anno 5
A5: Conto economico | C5: =+'3) Analisi flussi di cassa'!C5 -> 2019 | E5: ="Inserire i tre scenari chiave" -> Inserire i tre scenari chiave | F5: Max | G5: =+'3) Analisi flussi di cassa'!G5 -> 0.15 | H5: =+'3) Analisi flussi di cassa'!H5 -> -0.05 | I5: =+'3) Analisi flussi di cassa'!I5 -> 0 | J5: =+'3) Analisi flussi di cassa'!J5 -> 0.01 | K5: =+'3) Analisi flussi di cassa'!K5 -> 0.02
A6: Ricavi | C6: =+'3) Analisi flussi di cassa'!C6 -> 127451 | E6: ="(la % è sempre rispetto al fatturato "&C5&")" -> (la % è sempre rispetto al fatturato 2019) | F6: Prob | G6: =+'3) Analisi flussi di cassa'!G6 -> -0.2 | H6: =+'3) Analisi flussi di cassa'!H6 -> -0.1 | I6: =+'3) Analisi flussi di cassa'!I6 -> -0.05 | J6: =+'3) Analisi flussi di cassa'!J6 -> 0 | K6: =+'3) Analisi flussi di cassa'!K6 -> 0
F7: Min | G7: =+'3) Analisi flussi di cassa'!G7 -> -0.3 | H7: =+'3) Analisi flussi di cassa'!H7 -> -0.15 | I7: =+'3) Analisi flussi di cassa'!I7 -> -0.1 | J7: =+'3) Analisi flussi di cassa'!J7 -> -0.05 | K7: =+'3) Analisi flussi di cassa'!K7 -> -0.02
A8: Costi variabili principali | C8: =SUM(B9:B12) -> -50401 | E8: Ricavi (scenario migliore) | G8: =+$C$6*(1+G5) -> 146568.65 | H8: =+$C$6*(1+H5) -> 121078.45 | I8: 127451 | J8: 128725.51 | K8: 130000.02
A9: Rimanenze iniziali | B9: =+'3) Analisi flussi di cassa'!B9 -> -701 | E9: Costi diretti | G9: =+G8*($C$8/$C$6)*(1+G10) -> -52165.035 | H9: =+H8*($C$8/$C$6)*(1+H10) -> -47880.95 | I9: -50401 | J9: -50905.01 | K9: -51409.02
A10: Acquisti | B10: =+'3) Analisi flussi di cassa'!B10 -> -50000 | E10: (effetto prezzi: ∆ incidenza costi diretti sul fatturato) | G10: =+'3) Analisi flussi di cassa'!G10 -> -0.1 | H10: =+'3) Analisi flussi di cassa'!H10 -> 0 | I10: =+'3) Analisi flussi di cassa'!I10 -> 0 | J10: =+'3) Analisi flussi di cassa'!J10 -> 0 | K10: =+'3) Analisi flussi di cassa'!K10 -> 0
A11: Rimanenze finali | B11: =+'3) Analisi flussi di cassa'!B11 -> 300 | E11: Margine di contribuzione | G11: =+G9+G8 -> 94403.615 | H11: =+H9+H8 -> 73197.5 | I11: =+I9+I8 -> 77050 | J11: =+J9+J8 -> 77820.5 | K11: =+K9+K8 -> 78591
A12: Altri costi variabili (ad es. provv. agenti) | B12: =+'3) Analisi flussi di cassa'!B12 -> 0 | E12: Costi fissi | G12: =+$C$14 -> -42050 | H12: =+$C$14 -> -42050 | I12: =+$C$14 -> -42050 | J12: =+$C$14 -> -42050 | K12: =+$C$14 -> -42050
E13: Aggiustamento manuale costi / ricavi | G13: =+'3) Analisi flussi di cassa'!G13 -> 0 | H13: =+'3) Analisi flussi di cassa'!H13 -> 0 | I13: =+'3) Analisi flussi di cassa'!I13 -> 0 | J13: =+'3) Analisi flussi di cassa'!J13 -> 0 | K13: =+'3) Analisi flussi di cassa'!K13 -> 0
A14: Costi fissi | C14: =-(C6+C8-C19) -> -42050 | E14: Risultato operativo netto | G14: =+G13+G12+G11 -> 52353.615 | H14: 31147.5 | I14: 35000 | J14: 35770.5 | K14: 36541
A15: di cui TFR | B15: =+'3) Analisi flussi di cassa'!B15 -> -2000 | E15: Imposte | F15: =+'3) Analisi flussi di cassa'!F15 -> 0.2243 | G15: =IF(G14<0,0,G14*$F$15*-1) -> -11742.91584 | H15: =IF(H14<0,0,H14*$F$15*-1) -> -6986.38425 | I15: =IF(I14<0,0,I14*$F$15*-1) -> -7850.5 | J15: =IF(J14<0,0,J14*$F$15*-1) -> -8023.32315 | K15: =IF(K14<0,0,K14*$F$15*-1) -> -8196.1463
A16: di cui ammortamenti e accantonamenti | B16: =+'3) Analisi flussi di cassa'!B16 -> -1000 | E16: Risultato finale | G16: =+G15+G14 -> 40610.69916 | H16: 24161.11575 | I16: 27149.5 | J16: 27747.17685 | K16: 28344.8537
A17: di canoni leasing | B17: =+'3) Analisi flussi di cassa'!B17 -> -5760 | E17: Patrimonio netto: | F17: =+'3) Analisi flussi di cassa'!F17 -> 25743 | G17: =+F17+G16 -> 66353.69916 | H17: =+G17+H16 -> 90514.81491 | I17: 117664.3149 | J17: 145411.4918 | K17: 173756.3455
A19: Risultato Operativo Netto | B19: =ROUND(ABS(+C19/C6)*100,2)&"% Ftt." -> 27,46% Ftt. | C19: =+'3) Analisi flussi di cassa'!C19 -> 35000 | E19: Scenari rendiconto finanziario
E20: Risultato operativo lordo ante leasing | G20: =+G14-$B$15-$B$16-$B$17 -> 61113.615 | H20: =+H14-$B$15-$B$16-$B$17 -> 39907.5 | I20: 43760 | J20: 44530.5 | K20: 45301
A21: Imposte sui redditi | B21: =ROUND(ABS(+C21/C19)*100,2)&"% RON" -> 22,43% RON | C21: =+'3) Analisi flussi di cassa'!C21 -> -7850 | E21: Imposte | G21: =+G15 -> -11742.91584 | H21: -6986.38425 | I21: -7850.5 | J21: -8023.32315 | K21: -8196.1463
E22: Cassa generata dalla gestione operativa | G22: =+G21+G20 -> 49370.69916 | H22: 32921.11575 | I22: 35909.5 | J22: 36507.17685 | K22: 37104.8537
A23: Risultato finale | C23: =+C19+C21 -> 27150 | E23: Prelievo soci / titolare | F23: =+'3) Analisi flussi di cassa'!F23 -> -12000 | G23: =+F23 -> -12000 | H23: =+$F$23 -> -12000 | I23: =+$F$23 -> -12000 | J23: =+$F$23 -> -12000 | K23: =+$F$23 -> -12000
A24: (esclusi oneri fin.ri e poste straordinarie) | E24: Cassa libera per pagare i debiti finanziari | G24: =+G23+G22 -> 37370.69916 | H24: 20921.11575 | I24: 23909.5 | J24: 24507.17685 | K24: 25104.8537
A26: Se si è inserito un aggiustamento manuale costi / ricavi, si illustrino sotto i motivi
A27: …

Sheet 3.2) Analisi flussi di cassa (hidden)
A1: =+'1) Debiti finanziari'!A1 -> Denominazione richiedente | B1: =+'1) Debiti finanziari'!C1 -> Rossi Mario SRl
A2: Nag | C2: =+'2) Richiesta finanziamento'!D2 -> 12412
A3: =+'1) Debiti finanziari'!A2 -> Data compilazione | B3: =+'1) Debiti finanziari'!D2 -> 2020-04-20
G4: anno 1 | H4: anno 2 | I4: anno 3 | J4: anno 4 | K4: anno 5
A5: Conto economico | C5: =+'3) Analisi flussi di cassa'!C5 -> 2019 | E5: ="Inserire i tre scenari chiave" -> Inserire i tre scenari chiave | F5: Max | G5: =+'3) Analisi flussi di cassa'!G5 -> 0.15 | H5: =+'3) Analisi flussi di cassa'!H5 -> -0.05 | I5: =+'3) Analisi flussi di cassa'!I5 -> 0 | J5: =+'3) Analisi flussi di cassa'!J5 -> 0.01 | K5: =+'3) Analisi flussi di cassa'!K5 -> 0.02
A6: Ricavi | C6: =+'3) Analisi flussi di cassa'!C6 -> 127451 | E6: ="(la % è sempre rispetto al fatturato "&C5&")" -> (la % è sempre rispetto al fatturato 2019) | F6: Prob | G6: =+'3) Analisi flussi di cassa'!G6 -> -0.2 | H6: =+'3) Analisi flussi di cassa'!H6 -> -0.1 | I6: =+'3) Analisi flussi di cassa'!I6 -> -0.05 | J6: =+'3) Analisi flussi di cassa'!J6 -> 0 | K6: =+'3) Analisi flussi di cassa'!K6 -> 0
F7: Min | G7: =+'3) Analisi flussi di cassa'!G7 -> -0.3 | H7: =+'3) Analisi flussi di cassa'!H7 -> -0.15 | I7: =+'3) Analisi flussi di cassa'!I7 -> -0.1 | J7: =+'3) Analisi flussi di cassa'!J7 -> -0.05 | K7: =+'3) Analisi flussi di cassa'!K7 -> -0.02
A8: Costi variabili principali | C8: =SUM(B9:B12) -> -50401 | E8: Ricavi (scenario peggiore) | G8: =+$C$6*(1+G7) -> 89215.7 | H8: =+$C$6*(1+H7) -> 108333.35 | I8: 114705.9 | J8: 121078.45 | K8: 124901.98
A9: Rimanenze iniziali | B9: =+'3) Analisi flussi di cassa'!B9 -> -701 | E9: Costi diretti | G9: =+G8*($C$8/$C$6)*(1+G10) -> -31752.63 | H9: =+H8*($C$8/$C$6)*(1+H10) -> -42840.85 | I9: -45360.9 | J9: -47880.95 | K9: -49392.98
A10: Acquisti | B10: =+'3) Analisi flussi di cassa'!B10 -> -50000 | E10: (effetto prezzi: ∆ incidenza costi diretti sul fatturato) | G10: =+'3) Analisi flussi di cassa'!G10 -> -0.1 | H10: =+'3) Analisi flussi di cassa'!H10 -> 0 | I10: =+'3) Analisi flussi di cassa'!I10 -> 0 | J10: =+'3) Analisi flussi di cassa'!J10 -> 0 | K10: =+'3) Analisi flussi di cassa'!K10 -> 0
A11: Rimanenze finali | B11: =+'3) Analisi flussi di cassa'!B11 -> 300 | E11: Margine di contribuzione | G11: =+G9+G8 -> 57463.07 | H11: =+H9+H8 -> 65492.5 | I11: =+I9+I8 -> 69345 | J11: =+J9+J8 -> 73197.5 | K11: =+K9+K8 -> 75509
A12: Altri costi variabili (ad es. provv. agenti) | B12: =+'3) Analisi flussi di cassa'!B12 -> 0 | E12: Costi fissi | G12: =+$C$14 -> -42050 | H12: =+$C$14 -> -42050 | I12: =+$C$14 -> -42050 | J12: =+$C$14 -> -42050 | K12: =+$C$14 -> -42050
E13: Aggiustamento manuale costi / ricavi | G13: =+'3) Analisi flussi di cassa'!G13 -> 0 | H13: =+'3) Analisi flussi di cassa'!H13 -> 0 | I13: =+'3) Analisi flussi di cassa'!I13 -> 0 | J13: =+'3) Analisi flussi di cassa'!J13 -> 0 | K13: =+'3) Analisi flussi di cassa'!K13 -> 0
A14: Costi fissi | C14: =-(C6+C8-C19) -> -42050 | E14: Risultato operativo netto | G14: =+G13+G12+G11 -> 15413.07 | H14: 23442.5 | I14: 27295 | J14: 31147.5 | K14: 33459
A15: di cui TFR | B15: =+'3) Analisi flussi di cassa'!B15 -> -2000 | E15: Imposte | F15: =+'3) Analisi flussi di cassa'!F15 -> 0.2243 | G15: =IF(G14<0,0,G14*$F$15*-1) -> -3457.151601 | H15: =IF(H14<0,0,H14*$F$15*-1) -> -5258.15275 | I15: =IF(I14<0,0,I14*$F$15*-1) -> -6122.2685 | J15: =IF(J14<0,0,J14*$F$15*-1) -> -6986.38425 | K15: =IF(K14<0,0,K14*$F$15*-1) -> -7504.8537
A16: di cui ammortamenti e accantonamenti | B16: =+'3) Analisi flussi di cassa'!B16 -> -1000 | E16: Risultato finale | G16: =+G15+G14 -> 11955.9184 | H16: 18184.34725 | I16: 21172.7315 | J16: 24161.11575 | K16: 25954.1463
A17: di canoni leasing | B17: =+'3) Analisi flussi di cassa'!B17 -> -5760 | E17: Patrimonio netto: | F17: =+'3) Analisi flussi di cassa'!F17 -> 25743 | G17: =+F17+G16 -> 37698.9184 | H17: =+G17+H16 -> 55883.26565 | I17: 77055.99715 | J17: 101217.1129 | K17: 127171.2592
A19: Risultato Operativo Netto | B19: =ROUND(ABS(+C19/C6)*100,2)&"% Ftt." -> 27,46% Ftt. | C19: =+'3) Analisi flussi di cassa'!C19 -> 35000 | E19: Scenari rendiconto finanziario
E20: Risultato operativo lordo ante leasing | G20: =+G14-$B$15-$B$16-$B$17 -> 24173.07 | H20: =+H14-$B$15-$B$16-$B$17 -> 32202.5 | I20: 36055 | J20: 39907.5 | K20: 42219
A21: Imposte sui redditi | B21: =ROUND(ABS(+C21/C19)*100,2)&"% RON" -> 22,43% RON | C21: =+'3) Analisi flussi di cassa'!C21 -> -7850 | E21: Imposte | G21: =+G15 -> -3457.151601 | H21: -5258.15275 | I21: -6122.2685 | J21: -6986.38425 | K21: -7504.8537
E22: Cassa generata dalla gestione operativa | G22: =+G21+G20 -> 20715.9184 | H22: 26944.34725 | I22: 29932.7315 | J22: 32921.11575 | K22: 34714.1463
A23: Risultato finale | C23: =+C19+C21 -> 27150 | E23: Prelievo soci / titolare | F23: =+'3) Analisi flussi di cassa'!F23 -> -12000 | G23: =+F23 -> -12000 | H23: =+$F$23 -> -12000 | I23: =+$F$23 -> -12000 | J23: =+$F$23 -> -12000 | K23: =+$F$23 -> -12000
A24: (esclusi oneri fin.ri e poste straordinarie) | E24: Cassa libera per pagare i debiti finanziari | G24: =+G23+G22 -> 8715.918399 | H24: 14944.34725 | I24: 17932.7315 | J24: 20921.11575 | K24: 22714.1463
A26: Se si è inserito un aggiustamento manuale costi / ricavi, si illustrino sotto i motivi
A27: …

Sheet 4) Analisi sostenibilità debito (hidden)
A1: =+'1) Debiti finanziari'!A1 -> Denominazione richiedente | C1: =+'1) Debiti finanziari'!C1 -> Rossi Mario SRl | E1: Area simulazione
A2: Nag | D2: =+'3) Analisi flussi di cassa'!C2 -> 12412
A3: =+'1) Debiti finanziari'!A2 -> Data compilazione | C3: =+'1) Debiti finanziari'!D2 -> 2020-04-20
A6: Finanziamento | B6: Base | C6: Varazione | E6: Adjusted | G6: Ipotesi consolido | H6: Debito residuo | I6: Scadenza | J6: Consolido
A7: Importo | B7: =+'2) Richiesta finanziamento'!H8 -> 17500 | C7: (buffer liquidità) | D7: 0 | E7: =+B7+D7 -> 17500 | G7: =+'1) Debiti finanziari'!G18 -> Banca X | H7: =+'1) Debiti finanziari'!I18 -> 1540 | I7: =IF(G7="","",+'1) Debiti finanziari'!H6) -> 2020-12-01
A8: Preamm.to | B8: =+'2) Richiesta finanziamento'!H9 -> 12 | C8: (preamm.to) | D8: 0 | E8: =+D8+B8 -> 12 | G8: =+'1) Debiti finanziari'!G19 -> Banca Y | H8: =+'1) Debiti finanziari'!I19 -> 3142 | I8: =IF(G8="","",+'1) Debiti finanziari'!H7) -> 2023-10-01
A9: Ammortamento | B9: =+'2) Richiesta finanziamento'!H10 -> 60 | C9: (ammortamento) | D9: 0 | E9: =+D9+B9 -> 60 | G9: =+'1) Debiti finanziari'!G20 -> Banca Z | H9: =+'1) Debiti finanziari'!I20 -> 18415 | I9: =IF(G9="","",+'1) Debiti finanziari'!H8) -> 2022-09-01
A10: Durata totale | B10: =+'2) Richiesta finanziamento'!H11 -> 72 | C10: (durata totale) | D10: =+D9+D8 -> 0 | E10: =+E8+E9 -> 72 | G10: =+'1) Debiti finanziari'!G21 -> Leasing W | H10: =+'1) Debiti finanziari'!I21 -> 18741 | I10: =IF(G10="","",+'1) Debiti finanziari'!H9) -> 2023-07-01
G11: =+'1) Debiti finanziari'!G22 ->  | H11: =+'1) Debiti finanziari'!I22 -> 0 | I11: =IF(G11="","",+'1) Debiti finanziari'!H10) -> 
G12: =+'1) Debiti finanziari'!G23 ->  | H12: =+'1) Debiti finanziari'!I23 -> 0 | I12: =IF(G12="","",+'1) Debiti finanziari'!H11) -> 
G13: =+'1) Debiti finanziari'!G24 ->  | H13: =+'1) Debiti finanziari'!I24 -> 0 | I13: =IF(G13="","",+'1) Debiti finanziari'!H12) -> 
A15: Scenario: | C15: Peggiore | D15: 1 | E15: =1+D15 -> 2 | F15: =1+E15 -> 3 | G15: =1+F15 -> 4 | H15: =1+G15 -> 5
A16: Variazione fatturato v/ | C16: =+'3.2) Analisi flussi di cassa'!C5 -> 2019 | D16: =IF($C$15="Migliore",'3) Analisi flussi di cassa'!G5,IF($C$15="Probabile",'3) Analisi flussi di cassa'!G6,'3) Analisi flussi di cassa'!G7)) -> -0.3 | E16: =IF($C$15="Migliore",'3) Analisi flussi di cassa'!H5,IF($C$15="Probabile",'3) Analisi flussi di cassa'!H6,'3) Analisi flussi di cassa'!H7)) -> -0.15 | F16: =IF($C$15="Migliore",'3) Analisi flussi di cassa'!I5,IF($C$15="Probabile",'3) Analisi flussi di cassa'!I6,'3) Analisi flussi di cassa'!I7)) -> -0.1 | G16: =IF($C$15="Migliore",'3) Analisi flussi di cassa'!J5,IF($C$15="Probabile",'3) Analisi flussi di cassa'!J6,'3) Analisi flussi di cassa'!J7)) -> -0.05 | H16: =IF($C$15="Migliore",'3) Analisi flussi di cassa'!K5,IF($C$15="Probabile",'3) Analisi flussi di cassa'!K6,'3) Analisi flussi di cassa'!K7)) -> -0.02
A17: Flusso di cassa operativa aziendale | D17: =IF($C$15="Migliore",'3.1) Analisi flussi dei cassa'!G22,IF($C$15="Probabile",'3) Analisi flussi di cassa'!G22,'3.2) Analisi flussi di cassa'!G22)) -> 20715.9184 | E17: =IF($C$15="Migliore",'3.1) Analisi flussi dei cassa'!H22,IF($C$15="Probabile",'3) Analisi flussi di cassa'!H22,'3.2) Analisi flussi di cassa'!H22)) -> 26944.34725 | F17: =IF($C$15="Migliore",'3.1) Analisi flussi dei cassa'!I22,IF($C$15="Probabile",'3) Analisi flussi di cassa'!I22,'3.2) Analisi flussi di cassa'!I22)) -> 29932.7315 | G17: =IF($C$15="Migliore",'3.1) Analisi flussi dei cassa'!J22,IF($C$15="Probabile",'3) Analisi flussi di cassa'!J22,'3.2) Analisi flussi di cassa'!J22)) -> 32921.11575 | H17: =IF($C$15="Migliore",'3.1) Analisi flussi dei cassa'!K22,IF($C$15="Probabile",'3) Analisi flussi di cassa'!K22,'3.2) Analisi flussi di cassa'!K22)) -> 34714.1463
A18: Prelievo soci / titolare | D18: =+'3) Analisi flussi di cassa'!G23 -> -12000 | E18: =+'3) Analisi flussi di cassa'!H23 -> -12000 | F18: =+'3) Analisi flussi di cassa'!I23 -> -12000 | G18: =+'3) Analisi flussi di cassa'!J23 -> -12000 | H18: =+'3) Analisi flussi di cassa'!K23 -> -12000
A19: Flusso di cassa operativa libera | D19: =+D18+D17 -> 8715.918399 | E19: =+E18+E17 -> 14944.34725 | F19: 17932.7315 | G19: 20921.11575 | H19: 22714.1463
A20: Servizio del debito finanziario | D20: =+'Supporto distribuzione'!C10 -> 14247.90277 | E20: =+'Supporto distribuzione'!D10 -> 22599.39041 | F20: =+'Supporto distribuzione'!E10 -> 17124.2331 | G20: =+'Supporto distribuzione'!F10 -> 8275.060127 | H20: =+'Supporto distribuzione'!G10 -> 6251.649918
A21: Servizio del debito scaduto | D21: =TRANSPOSE('0) Debiti operativi scaduti'!E11:E15) -> 3244.452613 | E21: 1594.452613 | F21: 394.4526125 | G21: 394.4526125 | H21: 0
A22: Sbilancio | D22: =+D19-D20-D21 -> -8776.436987 | E22: =+E19-E20-E21 -> -9249.495775 | F22: 414.0457885 | G22: 12251.60301 | H22: 16462.49638
A23: Sbilancio cumulato | B23: ="(Buffer liquidità iniziale: "&TEXT(+'2) Richiesta finanziamento'!D10,"#.##0")&")" -> (Buffer liquidità iniziale: 2.500) | D23: =+'2) Richiesta finanziamento'!D10+D22 -> -6276.436987 | E23: =+D23+E22 -> -15525.93276 | F23: =+E23+F22 -> -15111.88697 | G23: -2860.283963 | H23: 13602.21242
A24: DSCR - Index | D24: =+D19/(D20+D21) -> 0.4982701418 | E24: =+E19/(E20+E21) -> 0.6176921639 | F24: 1.023634523 | G24: 2.413182422 | H24: 3.633304263
A25: Giudizio di solvibilità di periodo | D25: =IF(D24>=$B$33,$C$33,IF(D24>=$B$34,$C$34,IF(D24>=$B$35,$C$35,$C$36))) -> Deficit grave | E25: =IF(E24>=$B$33,$C$33,IF(E24>=$B$34,$C$34,IF(E24>=$B$35,$C$35,$C$36))) -> Deficit grave | F25: =IF(F24>=$B$33,$C$33,IF(F24>=$B$34,$C$34,IF(F24>=$B$35,$C$35,$C$36))) -> Positiva ma debole | G25: =IF(G24>=$B$33,$C$33,IF(G24>=$B$34,$C$34,IF(G24>=$B$35,$C$35,$C$36))) -> Buona | H25: =IF(H24>=$B$33,$C$33,IF(H24>=$B$34,$C$34,IF(H24>=$B$35,$C$35,$C$36))) -> Buona
A26: ADSCR - Index | F26: =AVERAGE(D24:F24) -> 0.713198943 | H26: =AVERAGE(D24:H24) -> 1.637216703
A27: Giudizio di solvibilità di sintesi | F27: =IF(F26>=$B$33,$C$33,IF(F26>=$B$34,$C$34,IF(F26>=$B$35,$C$35,$C$36))) -> Deficit grave | H27: =IF(H26>=$B$33,$C$33,IF(H26>=$B$34,$C$34,IF(H26>=$B$35,$C$35,$C$36))) -> Buona
A28: ADSCR - Index con buffer liquidità | F28: =(SUM(D19:F19)+'2) Richiesta finanziamento'!D10)/SUM(D20:F21) -> 0.7447526974 | H28: =(SUM(D19:H19)+'2) Richiesta finanziamento'!D10)/SUM(D20:H21) -> 1.183501117
A29: Giudizio di solvibilità di sintesi | F29: =IF(F28>=$B$33,$C$33,IF(F28>=$B$34,$C$34,IF(F28>=$B$35,$C$35,$C$36))) -> Deficit grave | H29: =IF(H28>=$B$33,$C$33,IF(H28>=$B$34,$C$34,IF(H28>=$B$35,$C$35,$C$36))) -> Positiva ma debole
A32: Legenda | C32: Solvibilità
A33: DSCR ≥ di | B33: 1.2 | C33: Buona | D33: Per ogni euro di uscite per il debito le entrate sono superiori a 1,20 euro (margine oltre il 20%)
A34: DSCR ≥ di | B34: 1 | C34: Positiva ma debole | D34: Per ogni euro di uscite per il debito le entrate sono pari o superiori a 1,0 euro (margine sotto il 20% ma comunque in grado di dare copertura)
A35: DSCR ≥ di | B35: 0.8 | C35: Carente | D35: Per ogni euro di uscite per il debito le entrate sono inferiori a 1 euro ma pari o superiori a 0,80 euro (esiste un deficit tra 1% e 20% delle rate da pagare)
A36: DSCR < a | B36: 0.8 | C36: Deficit grave | D36: Per ogni euro di uscite per il debito le entrate sono inferiori a 0,80 euro (esiste un deficit pari o superiore al 20% delle rate da pagare)

Sheet 4.1) Analisi sostenibilità deb (hidden)
A1: =+'1) Debiti finanziari'!A1 -> Denominazione richiedente | C1: =+'1) Debiti finanziari'!C1 -> Rossi Mario SRl
A2: Nag | D2: =+'3) Analisi flussi di cassa'!C2 -> 12412
A3: =+'1) Debiti finanziari'!A2 -> Data compilazione | C3: =+'1) Debiti finanziari'!D2 -> 2020-04-20
A5: ="Fatturato "&'3) Analisi flussi di cassa'!C5 -> Fatturato 2019 | C5: =+'3) Analisi flussi di cassa'!C6 -> 127451
A6: Debiti finanziari | C6: =+'1) Debiti finanziari'!I13+'2) Richiesta finanziamento'!J8 -> 56338
A7: Incidenza sul fatturato | C7: =+C6/C5 -> 0.4420365474
A10: Scenario: | B10: Migliore | C10: 0 | D10: 1 | E10: =1+D10 -> 2 | F10: =1+E10 -> 3 | G10: =1+F10 -> 4 | H10: =1+G10 -> 5
A11: Variazione fatturato v/ | B11: =+'3.2) Analisi flussi di cassa'!C5 -> 2019 | D11: =IF($B$10="Migliore",'3) Analisi flussi di cassa'!G5,IF($B$10="Probabile",'3) Analisi flussi di cassa'!G6,'3) Analisi flussi di cassa'!G7)) -> 0.15 | E11: =IF($B$10="Migliore",'3) Analisi flussi di cassa'!H5,IF($B$10="Probabile",'3) Analisi flussi di cassa'!H6,'3) Analisi flussi di cassa'!H7)) -> -0.05 | F11: =IF($B$10="Migliore",'3) Analisi flussi di cassa'!I5,IF($B$10="Probabile",'3) Analisi flussi di cassa'!I6,'3) Analisi flussi di cassa'!I7)) -> 0 | G11: =IF($B$10="Migliore",'3) Analisi flussi di cassa'!J5,IF($B$10="Probabile",'3) Analisi flussi di cassa'!J6,'3) Analisi flussi di cassa'!J7)) -> 0.01 | H11: =IF($B$10="Migliore",'3) Analisi flussi di cassa'!K5,IF($B$10="Probabile",'3) Analisi flussi di cassa'!K6,'3) Analisi flussi di cassa'!K7)) -> 0.02
A12: Flusso di cassa operativa aziendale | D12: =IF($B$10="Migliore",'3.1) Analisi flussi dei cassa'!G22,IF($B$10="Probabile",'3) Analisi flussi di cassa'!G22,'3.2) Analisi flussi di cassa'!G22)) -> 49370.69916 | E12: =IF($B$10="Migliore",'3.1) Analisi flussi dei cassa'!H22,IF($B$10="Probabile",'3) Analisi flussi di cassa'!H22,'3.2) Analisi flussi di cassa'!H22)) -> 32921.11575 | F12: =IF($B$10="Migliore",'3.1) Analisi flussi dei cassa'!I22,IF($B$10="Probabile",'3) Analisi flussi di cassa'!I22,'3.2) Analisi flussi di cassa'!I22)) -> 35909.5 | G12: =IF($B$10="Migliore",'3.1) Analisi flussi dei cassa'!J22,IF($B$10="Probabile",'3) Analisi flussi di cassa'!J22,'3.2) Analisi flussi di cassa'!J22)) -> 36507.17685 | H12: =IF($B$10="Migliore",'3.1) Analisi flussi dei cassa'!K22,IF($B$10="Probabile",'3) Analisi flussi di cassa'!K22,'3.2) Analisi flussi di cassa'!K22)) -> 37104.8537
A13: Prelievo soci / titolare | D13: =+'3) Analisi flussi di cassa'!G23 -> -12000 | E13: =+'3) Analisi flussi di cassa'!H23 -> -12000 | F13: =+'3) Analisi flussi di cassa'!I23 -> -12000 | G13: =+'3) Analisi flussi di cassa'!J23 -> -12000 | H13: =+'3) Analisi flussi di cassa'!K23 -> -12000
A14: Flusso di cassa operativa libera | D14: =+D13+D12 -> 37370.69916 | E14: =+E13+E12 -> 20921.11575 | F14: 23909.5 | G14: 24507.17685 | H14: 25104.8537
A15: Servizio del debito finanziario | D15: =+'Supporto distribuzione'!C10 -> 14247.90277 | E15: =+'Supporto distribuzione'!D10 -> 22599.39041 | F15: =+'Supporto distribuzione'!E10 -> 17124.2331 | G15: =+'Supporto distribuzione'!F10 -> 8275.060127 | H15: =+'Supporto distribuzione'!G10 -> 6251.649918
A16: Servizio del debito scaduto | D16: =TRANSPOSE('0) Debiti operativi scaduti'!E11:E15) -> 3244.452613 | E16: 1594.452613 | F16: 394.4526125 | G16: 394.4526125 | H16: 0
A17: Sbilancio | D17: =+D14-D15-D16 -> 19878.34377 | E17: =+E14-E15-E16 -> -3272.727275 | F17: 6390.814288 | G17: 15837.66411 | H17: 18853.20378
A18: Sbilancio cumulato | C18: =+'2) Richiesta finanziamento'!D10 -> 2500 | D18: =+C18+D17 -> 22378.34377 | E18: =+D18+E17 -> 19105.61649 | F18: =+E18+F17 -> 25496.43078 | G18: 41334.09489 | H18: 60187.29868
A19: DSCR - Index | D19: =+D14/(D15+D16) -> 2.136401778 | E19: =+E14/(E15+E16) -> 0.86472892 | F19: 1.364799871 | G19: 2.826822866 | H19: 4.015716496
A20: Giudizio di solvibilità di periodo | D20: =IF(D19>=$B$28,$C$28,IF(D19>=$B$29,$C$29,IF(D19>=$B$30,$C$30,$C$31))) -> Buona | E20: =IF(E19>=$B$28,$C$28,IF(E19>=$B$29,$C$29,IF(E19>=$B$30,$C$30,$C$31))) -> Carente | F20: =IF(F19>=$B$28,$C$28,IF(F19>=$B$29,$C$29,IF(F19>=$B$30,$C$30,$C$31))) -> Buona | G20: =IF(G19>=$B$28,$C$28,IF(G19>=$B$29,$C$29,IF(G19>=$B$30,$C$30,$C$31))) -> Buona | H20: =IF(H19>=$B$28,$C$28,IF(H19>=$B$29,$C$29,IF(H19>=$B$30,$C$30,$C$31))) -> Buona
A21: ADSCR - Index | H21: =AVERAGE(D19:H19) -> 2.241693986
A22: Giudizio di solvibilità di sintesi | H22: =IF(H21>=$B$28,$C$28,IF(H21>=$B$29,$C$29,IF(H21>=$B$30,$C$30,$C$31))) -> Buona
A23: ADSCR - Index con buffer liquidità | F23: =(SUM(D14:F14)+C18)/SUM(D15:F16) -> 1.430647423 | H23: =(SUM(D14:H14)+C18)/SUM(D15:H16) -> 1.811958836
A24: Giudizio di solvibilità di sintesi | F24: =IF(F23>=$B$28,$C$28,IF(F23>=$B$29,$C$29,IF(F23>=$B$30,$C$30,$C$31))) -> Buona | H24: =IF(H23>=$B$28,$C$28,IF(H23>=$B$29,$C$29,IF(H23>=$B$30,$C$30,$C$31))) -> Buona
A27: Legenda | C27: Solvibilità
A28: DSCR ≥ di | B28: =+'4) Analisi sostenibilità debito'!B33 -> 1.2 | C28: Buona | D28: Per ogni euro di uscite per il debito le entrate sono superiori a 1,20 euro (margine oltre il 20%)
A29: DSCR ≥ di | B29: =+'4) Analisi sostenibilità debito'!B34 -> 1 | C29: Positiva ma debole | D29: Per ogni euro di uscite per il debito le entrate sono pari o superiori a 1,0 euro (margine sotto il 20% ma comunque in grado di dare copertura)
A30: DSCR ≥ di | B30: =+'4) Analisi sostenibilità debito'!B35 -> 0.8 | C30: Carente | D30: Per ogni euro di uscite per il debito le entrate sono inferiori a 1 euro ma pari o superiori a 0,80 euro (esiste un deficit tra 1% e 20% delle rate da pagare)
A31: DSCR < a | B31: =+'4) Analisi sostenibilità debito'!B36 -> 0.8 | C31: Deficit grave | D31: Per ogni euro di uscite per il debito le entrate sono inferiori a 0,80 euro (esiste un deficit pari o superiore al 20% delle rate da pagare)

Sheet 4.2) Analisi sostenibilità deb (hidden)
A1: =+'1) Debiti finanziari'!A1 -> Denominazione richiedente | C1: =+'1) Debiti finanziari'!C1 -> Rossi Mario SRl
A2: Nag | D2: =+'3) Analisi flussi di cassa'!C2 -> 12412
A3: =+'1) Debiti finanziari'!A2 -> Data compilazione | C3: =+'1) Debiti finanziari'!D2 -> 2020-04-20
A5: ="Fatturato "&'3) Analisi flussi di cassa'!C5 -> Fatturato 2019 | C5: =+'3) Analisi flussi di cassa'!C6 -> 127451
A6: Debiti finanziari | C6: =+'1) Debiti finanziari'!I13+'2) Richiesta finanziamento'!J8 -> 56338
A7: Incidenza sul fatturato | C7: =+C6/C5 -> 0.4420365474
A10: Scenario: | B10: Probabile | C10: 0 | D10: 1 | E10: =1+D10 -> 2 | F10: =1+E10 -> 3 | G10: =1+F10 -> 4 | H10: =1+G10 -> 5
A11: Variazione fatturato v/ | B11: =+'3.2) Analisi flussi di cassa'!C5 -> 2019 | D11: =IF($B$10="Migliore",'3) Analisi flussi di cassa'!G5,IF($B$10="Probabile",'3) Analisi flussi di cassa'!G6,'3) Analisi flussi di cassa'!G7)) -> -0.2 | E11: =IF($B$10="Migliore",'3) Analisi flussi di cassa'!H5,IF($B$10="Probabile",'3) Analisi flussi di cassa'!H6,'3) Analisi flussi di cassa'!H7)) -> -0.1 | F11: =IF($B$10="Migliore",'3) Analisi flussi di cassa'!I5,IF($B$10="Probabile",'3) Analisi flussi di cassa'!I6,'3) Analisi flussi di cassa'!I7)) -> -0.05 | G11: =IF($B$10="Migliore",'3) Analisi flussi di cassa'!J5,IF($B$10="Probabile",'3) Analisi flussi di cassa'!J6,'3) Analisi flussi di cassa'!J7)) -> 0 | H11: =IF($B$10="Migliore",'3) Analisi flussi di cassa'!K5,IF($B$10="Probabile",'3) Analisi flussi di cassa'!K6,'3) Analisi flussi di cassa'!K7)) -> 0
A12: Flusso di cassa operativa aziendale | D12: =IF($B$10="Migliore",'3.1) Analisi flussi dei cassa'!G22,IF($B$10="Probabile",'3) Analisi flussi di cassa'!G22,'3.2) Analisi flussi di cassa'!G22)) -> 27083.64746 | E12: =IF($B$10="Migliore",'3.1) Analisi flussi dei cassa'!H22,IF($B$10="Probabile",'3) Analisi flussi di cassa'!H22,'3.2) Analisi flussi di cassa'!H22)) -> 29932.7315 | F12: =IF($B$10="Migliore",'3.1) Analisi flussi dei cassa'!I22,IF($B$10="Probabile",'3) Analisi flussi di cassa'!I22,'3.2) Analisi flussi di cassa'!I22)) -> 32921.11575 | G12: =IF($B$10="Migliore",'3.1) Analisi flussi dei cassa'!J22,IF($B$10="Probabile",'3) Analisi flussi di cassa'!J22,'3.2) Analisi flussi di cassa'!J22)) -> 35909.5 | H12: =IF($B$10="Migliore",'3.1) Analisi flussi dei cassa'!K22,IF($B$10="Probabile",'3) Analisi flussi di cassa'!K22,'3.2) Analisi flussi di cassa'!K22)) -> 35909.5
A13: Prelievo soci / titolare | D13: =+'3) Analisi flussi di cassa'!G23 -> -12000 | E13: =+'3) Analisi flussi di cassa'!H23 -> -12000 | F13: =+'3) Analisi flussi di cassa'!I23 -> -12000 | G13: =+'3) Analisi flussi di cassa'!J23 -> -12000 | H13: =+'3) Analisi flussi di cassa'!K23 -> -12000
A14: Flusso di cassa operativa libera | D14: =+D13+D12 -> 15083.64746 | E14: =+E13+E12 -> 17932.7315 | F14: 20921.11575 | G14: 23909.5 | H14: 23909.5
A15: Servizio del debito finanziario | D15: =+'Supporto distribuzione'!C10 -> 14247.90277 | E15: =+'Supporto distribuzione'!D10 -> 22599.39041 | F15: =+'Supporto distribuzione'!E10 -> 17124.2331 | G15: =+'Supporto distribuzione'!F10 -> 8275.060127 | H15: =+'Supporto distribuzione'!G10 -> 6251.649918
A16: Servizio del debito scaduto | D16: =TRANSPOSE('0) Debiti operativi scaduti'!E11:E15) -> 3244.452613 | E16: 1594.452613 | F16: 394.4526125 | G16: 394.4526125 | H16: 0
A17: Sbilancio | D17: =+D14-D15-D16 -> -2408.70793 | E17: =+E14-E15-E16 -> -6261.111525 | F17: 3402.430038 | G17: 15239.98726 | H17: 17657.85008
A18: Sbilancio cumulato | C18: =+'4.1) Analisi sostenibilità deb'!C18 -> 2500 | D18: =+C18+D17 -> 91.29206952 | E18: =+D18+E17 -> -6169.819455 | F18: =+E18+F17 -> -2767.389417 | G18: 12472.59784 | H18: 30130.44793
A19: DSCR - Index | D19: =+D14/(D15+D16) -> 0.8622993944 | E19: =+E14/(E15+E16) -> 0.7412105419 | F19: 1.194217197 | G19: 2.757882792 | H19: 3.82451038
A20: Giudizio di solvibilità di periodo | D20: =IF(D19>=$B$28,$C$28,IF(D19>=$B$29,$C$29,IF(D19>=$B$30,$C$30,$C$31))) -> Carente | E20: =IF(E19>=$B$28,$C$28,IF(E19>=$B$29,$C$29,IF(E19>=$B$30,$C$30,$C$31))) -> Deficit grave | F20: =IF(F19>=$B$28,$C$28,IF(F19>=$B$29,$C$29,IF(F19>=$B$30,$C$30,$C$31))) -> Positiva ma debole | G20: =IF(G19>=$B$28,$C$28,IF(G19>=$B$29,$C$29,IF(G19>=$B$30,$C$30,$C$31))) -> Buona | H20: =IF(H19>=$B$28,$C$28,IF(H19>=$B$29,$C$29,IF(H19>=$B$30,$C$30,$C$31))) -> Buona
A21: ADSCR - Index | H21: =AVERAGE(D19:H19) -> 1.876024061
A22: Giudizio di solvibilità di sintesi | H22: =IF(H21>=$B$28,$C$28,IF(H21>=$B$29,$C$29,IF(H21>=$B$30,$C$30,$C$31))) -> Buona
A23: ADSCR - Index con buffer liquidità | F23: =(SUM(D14:F14)+C18)/SUM(D15:F16) -> 0.9532574135 | H23: =(SUM(D14:H14)+C18)/SUM(D15:H16) -> 1.406475851
A24: Giudizio di solvibilità di sintesi | F24: =IF(F23>=$B$28,$C$28,IF(F23>=$B$29,$C$29,IF(F23>=$B$30,$C$30,$C$31))) -> Carente | H24: =IF(H23>=$B$28,$C$28,IF(H23>=$B$29,$C$29,IF(H23>=$B$30,$C$30,$C$31))) -> Buona
A27: Legenda | C27: Solvibilità
A28: DSCR ≥ di | B28: =+'4.1) Analisi sostenibilità deb'!B28 -> 1.2 | C28: Buona | D28: Per ogni euro di uscite per il debito le entrate sono superiori a 1,20 euro (margine oltre il 20%)
A29: DSCR ≥ di | B29: =+'4.1) Analisi sostenibilità deb'!B29 -> 1 | C29: Positiva ma debole | D29: Per ogni euro di uscite per il debito le entrate sono pari o superiori a 1,0 euro (margine sotto il 20% ma comunque in grado di dare copertura)
A30: DSCR ≥ di | B30: =+'4.1) Analisi sostenibilità deb'!B30 -> 0.8 | C30: Carente | D30: Per ogni euro di uscite per il debito le entrate sono inferiori a 1 euro ma pari o superiori a 0,80 euro (esiste un deficit tra 1% e 20% delle rate da pagare)
A31: DSCR < a | B31: =+'4.1) Analisi sostenibilità deb'!B31 -> 0.8 | C31: Deficit grave | D31: Per ogni euro di uscite per il debito le entrate sono inferiori a 0,80 euro (esiste un deficit pari o superiore al 20% delle rate da pagare)

Sheet 4.3) Analisi sostenibilità deb (hidden)
A1: =+'1) Debiti finanziari'!A1 -> Denominazione richiedente | C1: =+'1) Debiti finanziari'!C1 -> Rossi Mario SRl
A2: Nag | D2: =+'3) Analisi flussi di cassa'!C2 -> 12412
A3: =+'1) Debiti finanziari'!A2 -> Data compilazione | C3: =+'1) Debiti finanziari'!D2 -> 2020-04-20
A5: ="Fatturato "&'3) Analisi flussi di cassa'!C5 -> Fatturato 2019 | C5: =+'3) Analisi flussi di cassa'!C6 -> 127451
A6: Debiti finanziari | C6: =+'1) Debiti finanziari'!I13+'2) Richiesta finanziamento'!J8 -> 56338
A7: Incidenza sul fatturato | C7: =+C6/C5 -> 0.4420365474
A10: Scenario: | B10: Peggiore | C10: 0 | D10: 1 | E10: =1+D10 -> 2 | F10: =1+E10 -> 3 | G10: =1+F10 -> 4 | H10: =1+G10 -> 5
A11: Variazione fatturato v/ | B11: =+'3.2) Analisi flussi di cassa'!C5 -> 2019 | D11: =IF($B$10="Migliore",'3) Analisi flussi di cassa'!G5,IF($B$10="Probabile",'3) Analisi flussi di cassa'!G6,'3) Analisi flussi di cassa'!G7)) -> -0.3 | E11: =IF($B$10="Migliore",'3) Analisi flussi di cassa'!H5,IF($B$10="Probabile",'3) Analisi flussi di cassa'!H6,'3) Analisi flussi di cassa'!H7)) -> -0.15 | F11: =IF($B$10="Migliore",'3) Analisi flussi di cassa'!I5,IF($B$10="Probabile",'3) Analisi flussi di cassa'!I6,'3) Analisi flussi di cassa'!I7)) -> -0.1 | G11: =IF($B$10="Migliore",'3) Analisi flussi di cassa'!J5,IF($B$10="Probabile",'3) Analisi flussi di cassa'!J6,'3) Analisi flussi di cassa'!J7)) -> -0.05 | H11: =IF($B$10="Migliore",'3) Analisi flussi di cassa'!K5,IF($B$10="Probabile",'3) Analisi flussi di cassa'!K6,'3) Analisi flussi di cassa'!K7)) -> -0.02
A12: Flusso di cassa operativa aziendale | D12: =IF($B$10="Migliore",'3.1) Analisi flussi dei cassa'!G22,IF($B$10="Probabile",'3) Analisi flussi di cassa'!G22,'3.2) Analisi flussi di cassa'!G22)) -> 20715.9184 | E12: =IF($B$10="Migliore",'3.1) Analisi flussi dei cassa'!H22,IF($B$10="Probabile",'3) Analisi flussi di cassa'!H22,'3.2) Analisi flussi di cassa'!H22)) -> 26944.34725 | F12: =IF($B$10="Migliore",'3.1) Analisi flussi dei cassa'!I22,IF($B$10="Probabile",'3) Analisi flussi di cassa'!I22,'3.2) Analisi flussi di cassa'!I22)) -> 29932.7315 | G12: =IF($B$10="Migliore",'3.1) Analisi flussi dei cassa'!J22,IF($B$10="Probabile",'3) Analisi flussi di cassa'!J22,'3.2) Analisi flussi di cassa'!J22)) -> 32921.11575 | H12: =IF($B$10="Migliore",'3.1) Analisi flussi dei cassa'!K22,IF($B$10="Probabile",'3) Analisi flussi di cassa'!K22,'3.2) Analisi flussi di cassa'!K22)) -> 34714.1463
A13: Prelievo soci / titolare | D13: =+'3) Analisi flussi di cassa'!G23 -> -12000 | E13: =+'3) Analisi flussi di cassa'!H23 -> -12000 | F13: =+'3) Analisi flussi di cassa'!I23 -> -12000 | G13: =+'3) Analisi flussi di cassa'!J23 -> -12000 | H13: =+'3) Analisi flussi di cassa'!K23 -> -12000
A14: Flusso di cassa operativa libera | D14: =+D13+D12 -> 8715.918399 | E14: =+E13+E12 -> 14944.34725 | F14: 17932.7315 | G14: 20921.11575 | H14: 22714.1463
A15: Servizio del debito finanziario | D15: =+'Supporto distribuzione'!C10 -> 14247.90277 | E15: =+'Supporto distribuzione'!D10 -> 22599.39041 | F15: =+'Supporto distribuzione'!E10 -> 17124.2331 | G15: =+'Supporto distribuzione'!F10 -> 8275.060127 | H15: =+'Supporto distribuzione'!G10 -> 6251.649918
A16: Servizio del debito scaduto | D16: =TRANSPOSE('0) Debiti operativi scaduti'!E11:E15) -> 3244.452613 | E16: 1594.452613 | F16: 394.4526125 | G16: 394.4526125 | H16: 0
A17: Sbilancio | D17: =+D14-D15-D16 -> -8776.436987 | E17: =+E14-E15-E16 -> -9249.495775 | F17: 414.0457885 | G17: 12251.60301 | H17: 16462.49638
A18: Sbilancio cumulato | C18: =+'4.2) Analisi sostenibilità deb'!C18 -> 2500 | D18: =+C18+D17 -> -6276.436987 | E18: =+D18+E17 -> -15525.93276 | F18: =+E18+F17 -> -15111.88697 | G18: -2860.283963 | H18: 13602.21242
A19: DSCR - Index | D19: =+D14/(D15+D16) -> 0.4982701418 | E19: =+E14/(E15+E16) -> 0.6176921639 | F19: 1.023634523 | G19: 2.413182422 | H19: 3.633304263
A20: Giudizio di solvibilità di periodo | D20: =IF(D19>=$B$28,$C$28,IF(D19>=$B$29,$C$29,IF(D19>=$B$30,$C$30,$C$31))) -> Deficit grave | E20: =IF(E19>=$B$28,$C$28,IF(E19>=$B$29,$C$29,IF(E19>=$B$30,$C$30,$C$31))) -> Deficit grave | F20: =IF(F19>=$B$28,$C$28,IF(F19>=$B$29,$C$29,IF(F19>=$B$30,$C$30,$C$31))) -> Positiva ma debole | G20: =IF(G19>=$B$28,$C$28,IF(G19>=$B$29,$C$29,IF(G19>=$B$30,$C$30,$C$31))) -> Buona | H20: =IF(H19>=$B$28,$C$28,IF(H19>=$B$29,$C$29,IF(H19>=$B$30,$C$30,$C$31))) -> Buona
A21: ADSCR - Index | H21: =AVERAGE(D19:H19) -> 1.637216703
A22: Giudizio di solvibilità di sintesi | H22: =IF(H21>=$B$28,$C$28,IF(H21>=$B$29,$C$29,IF(H21>=$B$30,$C$30,$C$31))) -> Buona
A23: ADSCR - Index con buffer liquidità | F23: =(SUM(D14:F14)+C18)/SUM(D15:F16) -> 0.7447526974 | H23: =(SUM(D14:H14)+C18)/SUM(D15:H16) -> 1.183501117
A24: Giudizio di solvibilità di sintesi | F24: =IF(F23>=$B$28,$C$28,IF(F23>=$B$29,$C$29,IF(F23>=$B$30,$C$30,$C$31))) -> Deficit grave | H24: =IF(H23>=$B$28,$C$28,IF(H23>=$B$29,$C$29,IF(H23>=$B$30,$C$30,$C$31))) -> Positiva ma debole
A27: Legenda | C27: Solvibilità
A28: DSCR ≥ di | B28: =+'4.2) Analisi sostenibilità deb'!B28 -> 1.2 | C28: Buona | D28: Per ogni euro di uscite per il debito le entrate sono superiori a 1,20 euro (margine oltre il 20%)
A29: DSCR ≥ di | B29: =+'4.2) Analisi sostenibilità deb'!B29 -> 1 | C29: Positiva ma debole | D29: Per ogni euro di uscite per il debito le entrate sono pari o superiori a 1,0 euro (margine sotto il 20% ma comunque in grado di dare copertura)
A30: DSCR ≥ di | B30: =+'4.2) Analisi sostenibilità deb'!B30 -> 0.8 | C30: Carente | D30: Per ogni euro di uscite per il debito le entrate sono inferiori a 1 euro ma pari o superiori a 0,80 euro (esiste un deficit tra 1% e 20% delle rate da pagare)
A31: DSCR < a | B31: =+'4.2) Analisi sostenibilità deb'!B31 -> 0.8 | C31: Deficit grave | D31: Per ogni euro di uscite per il debito le entrate sono inferiori a 0,80 euro (esiste un deficit pari o superiore al 20% delle rate da pagare)

Sheet 5) Sintesi (hidden)
A1: =+'1) Debiti finanziari'!A1 -> Denominazione richiedente | B1: =+'1) Debiti finanziari'!C1 -> Rossi Mario SRl | D1: SINTESI
A2: Nag | C2: =+'4) Analisi sostenibilità debito'!D2 -> 12412
A3: =+'1) Debiti finanziari'!A2 -> Data compilazione | B3: =+'1) Debiti finanziari'!D2 -> 2020-04-20
C6: 0 | D6: 1 | E6: 2 | F6: 3 | G6: 4 | H6: 5
A7: Scenario migliore | B7: Saldo periodale | D7: =+'4.1) Analisi sostenibilità deb'!D17 -> 19878.34377 | E7: =+'4.1) Analisi sostenibilità deb'!E17 -> -3272.727275 | F7: =+'4.1) Analisi sostenibilità deb'!F17 -> 6390.814288 | G7: =+'4.1) Analisi sostenibilità deb'!G17 -> 15837.66411 | H7: =+'4.1) Analisi sostenibilità deb'!H17 -> 18853.20378
B8: Saldo cumulato | C8: =+'2) Richiesta finanziamento'!D10 -> 2500 | D8: =+'4.1) Analisi sostenibilità deb'!D18 -> 22378.34377 | E8: =+'4.1) Analisi sostenibilità deb'!E18 -> 19105.61649 | F8: =+'4.1) Analisi sostenibilità deb'!F18 -> 25496.43078 | G8: =+'4.1) Analisi sostenibilità deb'!G18 -> 41334.09489 | H8: =+'4.1) Analisi sostenibilità deb'!H18 -> 60187.29868
B9: DSCR - Index | D9: =+'4.1) Analisi sostenibilità deb'!D19 -> 2.136401778 | E9: =+'4.1) Analisi sostenibilità deb'!E19 -> 0.86472892 | F9: =+'4.1) Analisi sostenibilità deb'!F19 -> 1.364799871 | G9: =+'4.1) Analisi sostenibilità deb'!G19 -> 2.826822866 | H9: =+'4.1) Analisi sostenibilità deb'!H19 -> 4.015716496
B10: Solvibilità | D10: =+'4.1) Analisi sostenibilità deb'!D20 -> Buona | E10: =+'4.1) Analisi sostenibilità deb'!E20 -> Carente | F10: =+'4.1) Analisi sostenibilità deb'!F20 -> Buona | G10: =+'4.1) Analisi sostenibilità deb'!G20 -> Buona | H10: =+'4.1) Analisi sostenibilità deb'!H20 -> Buona
B11: ADSCR a 3 anni | D11: =AVERAGE('4.1) Analisi sostenibilità deb'!D19:F19) -> 1.45531019 | E11: =IF(D11>=$B$34,$C$34,IF(D11>=$B$35,$C$35,IF(D11>=$B$36,$C$36,$C$37))) -> Buona
B12: ADSCR a 5 anni | D12: =+'4.1) Analisi sostenibilità deb'!H21 -> 2.241693986 | E12: =+'6) Sostenibilità ante Covid19'!G24 -> Buona
B13: ADSCR a 3 anni con buffer liquidità | D13: =+'4.1) Analisi sostenibilità deb'!F23 -> 1.430647423 | E13: =+'4.1) Analisi sostenibilità deb'!F24 -> Buona
B14: ADSCR a 5 anni con buffer liquidità | D14: =+'4.1) Analisi sostenibilità deb'!H23 -> 1.811958836 | E14: =+'4.1) Analisi sostenibilità deb'!H24 -> Buona
A15: Scenario probabile | B15: Saldo periodale | D15: =+'4.2) Analisi sostenibilità deb'!D17 -> -2408.70793 | E15: =+'4.2) Analisi sostenibilità deb'!E17 -> -6261.111525 | F15: =+'4.2) Analisi sostenibilità deb'!F17 -> 3402.430038 | G15: =+'4.2) Analisi sostenibilità deb'!G17 -> 15239.98726 | H15: =+'4.2) Analisi sostenibilità deb'!H17 -> 17657.85008
B16: Saldo cumulato | C16: =+C8 -> 2500 | D16: =+'4.2) Analisi sostenibilità deb'!D18 -> 91.29206952 | E16: =+'4.2) Analisi sostenibilità deb'!E18 -> -6169.819455 | F16: =+'4.2) Analisi sostenibilità deb'!F18 -> -2767.389417 | G16: =+'4.2) Analisi sostenibilità deb'!G18 -> 12472.59784 | H16: =+'4.2) Analisi sostenibilità deb'!H18 -> 30130.44793
B17: DSCR - Index | D17: =+'4.2) Analisi sostenibilità deb'!D19 -> 0.8622993944 | E17: =+'4.2) Analisi sostenibilità deb'!E19 -> 0.7412105419 | F17: =+'4.2) Analisi sostenibilità deb'!F19 -> 1.194217197 | G17: =+'4.2) Analisi sostenibilità deb'!G19 -> 2.757882792 | H17: =+'4.2) Analisi sostenibilità deb'!H19 -> 3.82451038
B18: Solvibilità | D18: =+'4.2) Analisi sostenibilità deb'!D20 -> Carente | E18: =+'4.2) Analisi sostenibilità deb'!E20 -> Deficit grave | F18: =+'4.2) Analisi sostenibilità deb'!F20 -> Positiva ma debole | G18: =+'4.2) Analisi sostenibilità deb'!G20 -> Buona | H18: =+'4.2) Analisi sostenibilità deb'!H20 -> Buona
B19: ADSCR a 3 anni | D19: =AVERAGE('4.2) Analisi sostenibilità deb'!D19:F19) -> 0.9325757112 | E19: =IF(D19>=$B$34,$C$34,IF(D19>=$B$35,$C$35,IF(D19>=$B$36,$C$36,$C$37))) -> Carente
B20: ADSCR a 5 anni | D20: =+'4.2) Analisi sostenibilità deb'!H21 -> 1.876024061 | E20: =+'4.2) Analisi sostenibilità deb'!H22 -> Buona
B21: ADSCR a 3 anni con buffer liquidità | D21: =+'4.2) Analisi sostenibilità deb'!F23 -> 0.9532574135 | E21: =+'4.2) Analisi sostenibilità deb'!F24 -> Carente
B22: ADSCR a 5 anni con buffer liquidità | D22: =+'4.2) Analisi sostenibilità deb'!H23 -> 1.406475851 | E22: =+'4.2) Analisi sostenibilità deb'!H24 -> Buona
A23: Scenario peggiore | B23: Saldo periodale | D23: =+'4.3) Analisi sostenibilità deb'!D17 -> -8776.436987 | E23: =+'4.3) Analisi sostenibilità deb'!E17 -> -9249.495775 | F23: =+'4.3) Analisi sostenibilità deb'!F17 -> 414.0457885 | G23: =+'4.3) Analisi sostenibilità deb'!G17 -> 12251.60301 | H23: =+'4.3) Analisi sostenibilità deb'!H17 -> 16462.49638
B24: Saldo cumulato | C24: =+C16 -> 2500 | D24: =+'4.3) Analisi sostenibilità deb'!D18 -> -6276.436987 | E24: =+'4.3) Analisi sostenibilità deb'!E18 -> -15525.93276 | F24: =+'4.3) Analisi sostenibilità deb'!F18 -> -15111.88697 | G24: =+'4.3) Analisi sostenibilità deb'!G18 -> -2860.283963 | H24: =+'4.3) Analisi sostenibilità deb'!H18 -> 13602.21242
B25: DSCR - Index | D25: =+'4.3) Analisi sostenibilità deb'!D19 -> 0.4982701418 | E25: =+'4.3) Analisi sostenibilità deb'!E19 -> 0.6176921639 | F25: =+'4.3) Analisi sostenibilità deb'!F19 -> 1.023634523 | G25: =+'4.3) Analisi sostenibilità deb'!G19 -> 2.413182422 | H25: =+'4.3) Analisi sostenibilità deb'!H19 -> 3.633304263
B26: Solvibilità | D26: =+'4.3) Analisi sostenibilità deb'!D20 -> Deficit grave | E26: =+'4.3) Analisi sostenibilità deb'!E20 -> Deficit grave | F26: =+'4.3) Analisi sostenibilità deb'!F20 -> Positiva ma debole | G26: =+'4.3) Analisi sostenibilità deb'!G20 -> Buona | H26: =+'4.3) Analisi sostenibilità deb'!H20 -> Buona
B27: ADSCR a 3 anni | D27: =AVERAGE('4.3) Analisi sostenibilità deb'!D19:F19) -> 0.713198943 | E27: =IF(D27>=$B$34,$C$34,IF(D27>=$B$35,$C$35,IF(D27>=$B$36,$C$36,$C$37))) -> Deficit grave
B28: ADSCR a 5 anni | D28: =+'4.3) Analisi sostenibilità deb'!H21 -> 1.637216703 | E28: =+'4.3) Analisi sostenibilità deb'!H22 -> Buona
B29: ADSCR a 3 anni con buffer liquidità | D29: =+'4.3) Analisi sostenibilità deb'!F23 -> 0.7447526974 | E29: =+'4.3) Analisi sostenibilità deb'!F24 -> Deficit grave
B30: ADSCR a 5 anni con buffer liquidità | D30: =+'4.3) Analisi sostenibilità deb'!H23 -> 1.183501117 | E30: =+'4.3) Analisi sostenibilità deb'!H24 -> Positiva ma debole
A33: Legenda | C33: Solvibilità
A34: DSCR ≥ di | B34: =+'6) Sostenibilità ante Covid19'!B28 -> 1.2 | C34: Buona | D34: Per ogni euro di uscite per il debito le entrate sono superiori a 1,20 euro (margine oltre il 20%)
A35: DSCR ≥ di | B35: =+'6) Sostenibilità ante Covid19'!B29 -> 1 | C35: Positiva ma debole | D35: Per ogni euro di uscite per il debito le entrate sono pari o superiori a 1,0 euro (margine sotto il 20% ma comunque in grado di dare copertura)
A36: DSCR ≥ di | B36: =+'6) Sostenibilità ante Covid19'!B30 -> 0.8 | C36: Carente | D36: Per ogni euro di uscite per il debito le entrate sono inferiori a 1 euro ma pari o superiori a 0,80 euro (esiste un deficit tra 1% e 20% delle rate da pagare)
A37: DSCR < a | B37: =+'6) Sostenibilità ante Covid19'!B31 -> 0.8 | C37: Deficit grave | D37: Per ogni euro di uscite per il debito le entrate sono inferiori a 0,80 euro (esiste un deficit pari o superiore al 20% delle rate da pagare)

Sheet 6) Sostenibilità ante Covid19 (hidden)
A1: =+'1) Debiti finanziari'!A1 -> Denominazione richiedente | C1: =+'1) Debiti finanziari'!C1 -> Rossi Mario SRl
A2: Nag | D2: =+'4) Analisi sostenibilità debito'!D2 -> 12412
A3: =+'1) Debiti finanziari'!A2 -> Data compilazione | C3: =+'1) Debiti finanziari'!D2 -> 2020-04-20
A5: ="Fatturato "&'3) Analisi flussi di cassa'!C5 -> Fatturato 2019 | C5: =+'3) Analisi flussi di cassa'!C6 -> 127451
A6: Debiti finanziari | C6: =+'1) Debiti finanziari'!I13+'2) Richiesta finanziamento'!J8 -> 56338
A7: Incidenza sul fatturato | C7: =+C6/C5 -> 0.4420365474
A8: Patrimonio netto | C8: =+'3) Analisi flussi di cassa'!F17 -> 25743
A9: Leva finanziaria | C9: =+C6/C8 -> 2.188478421
A12: Anno (dal mese successivo alla domanda) | C12: 1 | D12: =1+C12 -> 2 | E12: =1+D12 -> 3 | F12: =1+E12 -> 4 | G12: =1+F12 -> 5
A13: ="Analisi sostenibilità su dati "&'3.2) Analisi flussi di cassa'!C5 -> Analisi sostenibilità su dati 2019 | C13: =+'Supporto analisi ante Covid'!G5 -> 0 | D13: =+'Supporto analisi ante Covid'!H5 -> 0 | E13: =+'Supporto analisi ante Covid'!I5 -> 0 | F13: =+'Supporto analisi ante Covid'!J5 -> 0 | G13: =+'Supporto analisi ante Covid'!K5 -> 0
A14: Flusso di cassa operativa aziendale | C14: =+'Supporto analisi ante Covid'!G19 -> 35910 | D14: =+'Supporto analisi ante Covid'!H19 -> 35910 | E14: =+'Supporto analisi ante Covid'!I19 -> 35910 | F14: =+'Supporto analisi ante Covid'!J19 -> 35910 | G14: =+'Supporto analisi ante Covid'!K19 -> 35910
A15: Prelievo soci / titolare | C15: =+'Supporto analisi ante Covid'!G20 -> -12000 | D15: =+'Supporto analisi ante Covid'!H20 -> -12000 | E15: =+'Supporto analisi ante Covid'!I20 -> -12000 | F15: =+'Supporto analisi ante Covid'!J20 -> -12000 | G15: =+'Supporto analisi ante Covid'!K20 -> -12000
A16: Flusso di cassa operativa libera | C16: =+'Supporto analisi ante Covid'!G21 -> 23910 | D16: =+'Supporto analisi ante Covid'!H21 -> 23910 | E16: =+'Supporto analisi ante Covid'!I21 -> 23910 | F16: =+'Supporto analisi ante Covid'!J21 -> 23910 | G16: =+'Supporto analisi ante Covid'!K21 -> 23910
A17: Servizio del debito | C17: =+'4) Analisi sostenibilità debito'!D20 -> 14247.90277 | D17: =+'4) Analisi sostenibilità debito'!E20 -> 22599.39041 | E17: =+'4) Analisi sostenibilità debito'!F20 -> 17124.2331 | F17: =+'4) Analisi sostenibilità debito'!G20 -> 8275.060127 | G17: =+'4) Analisi sostenibilità debito'!H20 -> 6251.649918
A18: Servizio del debito scaduto | C18: =TRANSPOSE('0) Debiti operativi scaduti'!E11:E15) -> 3244.452613 | D18: 1594.452613 | E18: 394.4526125 | F18: 394.4526125 | G18: 0
A19: Sbilancio | C19: =+C16-C17-C18 -> 6417.644614 | D19: =+D16-D17-D18 -> -283.8430245 | E19: 6391.314288 | F19: 15240.48726 | G19: 17658.35008
A20: Sbilancio cumulato | C20: =+C19 -> 6417.644614 | D20: =+C20+D19 -> 6133.801589 | E20: =+D20+E19 -> 12525.11588 | F20: 27765.60314 | G20: 45423.95322
A21: DSCR - Index | C21: =+C16/C17 -> 1.678141715 | D21: =+D16/D17 -> 1.057993139 | E21: =+E16/E17 -> 1.396266908 | F21: =+F16/F17 -> 2.889404987 | G21: =+G16/G17 -> 3.824590358
A22: Giudizio di solvibilità di periodo | C22: =IF(C21>=$B$28,$C$28,IF(C21>=$B$29,$C$29,IF(C21>=$B$30,$C$30,$C$31))) -> Buona | D22: =IF(D21>=$B$28,$C$28,IF(D21>=$B$29,$C$29,IF(D21>=$B$30,$C$30,$C$31))) -> Positiva ma debole | E22: =IF(E21>=$B$28,$C$28,IF(E21>=$B$29,$C$29,IF(E21>=$B$30,$C$30,$C$31))) -> Buona | F22: =IF(F21>=$B$28,$C$28,IF(F21>=$B$29,$C$29,IF(F21>=$B$30,$C$30,$C$31))) -> Buona | G22: =IF(G21>=$B$28,$C$28,IF(G21>=$B$29,$C$29,IF(G21>=$B$30,$C$30,$C$31))) -> Buona
A23: ADSCR - Index | E23: =AVERAGE(C21:E21) -> 1.377467254 | G23: =AVERAGE(C21:G21) -> 2.169279422
A24: Giudizio di solvibilità di sintesi | E24: =IF(E23>=$B$28,$C$28,IF(E23>=$B$29,$C$29,IF(E23>=$B$30,$C$30,$C$31))) -> Buona | G24: =IF(G23>=$B$28,$C$28,IF(G23>=$B$29,$C$29,IF(G23>=$B$30,$C$30,$C$31))) -> Buona
A27: Legenda | C27: Solvibilità
A28: DSCR ≥ di | B28: =+'4.3) Analisi sostenibilità deb'!B28 -> 1.2 | C28: Buona | D28: Per ogni euro di uscite per il debito le entrate sono superiori a 1,20 euro (margine oltre il 20%)
A29: DSCR ≥ di | B29: =+'4.3) Analisi sostenibilità deb'!B29 -> 1 | C29: Positiva ma debole | D29: Per ogni euro di uscite per il debito le entrate sono pari o superiori a 1,0 euro (margine sotto il 20% ma comunque in grado di dare copertura)
A30: DSCR ≥ di | B30: =+'4.3) Analisi sostenibilità deb'!B30 -> 0.8 | C30: Carente | D30: Per ogni euro di uscite per il debito le entrate sono inferiori a 1 euro ma pari o superiori a 0,80 euro (esiste un deficit tra 1% e 20% delle rate da pagare)
A31: DSCR < a | B31: =+'4.3) Analisi sostenibilità deb'!B31 -> 0.8 | C31: Deficit grave | D31: Per ogni euro di uscite per il debito le entrate sono inferiori a 0,80 euro (esiste un deficit pari o superiore al 20% delle rate da pagare)

Sheet Supporto analisi ante Covid (hidden)
A1: =+'1) Debiti finanziari'!A1 -> Denominazione richiedente | B1: =+'1) Debiti finanziari'!C1 -> Rossi Mario SRl
A2: =+'1) Debiti finanziari'!A2 -> Data compilazione | B2: =+'1) Debiti finanziari'!D2 -> 2020-04-20
A5: Conto economico | C5: 2019 | E5: Scenari variazione ricavi | G5: 0 | H5: 0 | I5: 0 | J5: 0 | K5: 0
A6: Ricavi | C6: =+'3) Analisi flussi di cassa'!C6 -> 127451 | E6: Anno dal mese successivo alla compilazione | G6: anno 1 | H6: anno 2 | I6: anno 3 | J6: anno 4 | K6: anno 5
E7: Ricavi | G7: =+$C$6*(1+G5) -> 127451 | H7: 127451 | I7: 127451 | J7: 127451 | K7: 127451
A8: Costi diretti | C8: =SUM(B9:B12) -> -50401 | E8: Costi diretti | G8: =+G7*($C$8/$C$6) -> -50401 | H8: =+H7*($C$8/$C$6) -> -50401 | I8: =+I7*($C$8/$C$6) -> -50401 | J8: =+J7*($C$8/$C$6) -> -50401 | K8: =+K7*($C$8/$C$6) -> -50401
A9: Rimanenze iniziali | B9: =+'3) Analisi flussi di cassa'!B9 -> -701 | E9: Margine di contribuzione | G9: =+G8+G7 -> 77050 | H9: 77050 | I9: 77050 | J9: 77050 | K9: 77050
A10: Acquisti | B10: =+'3) Analisi flussi di cassa'!B10 -> -50000 | E10: Costi fissi | G10: =+$C$13 -> -42050 | H10: =+$C$13 -> -42050 | I10: =+$C$13 -> -42050 | J10: =+$C$13 -> -42050 | K10: =+$C$13 -> -42050
A11: Rimanenze finali | B11: =+'3) Analisi flussi di cassa'!B11 -> 300 | E11: Risultato operativo netto | G11: =+G10+G9 -> 35000 | H11: =+H10+H9 -> 35000 | I11: 35000 | J11: 35000 | K11: 35000
A12: Provvigioni agenti | B12: =+'3) Analisi flussi di cassa'!B12 -> 0 | E12: Imposte | G12: =+C19 -> -7850 | H12: =+G12 -> -7850 | I12: =+H12 -> -7850 | J12: -7850 | K12: -7850
A13: Costi fissi (escludere i canoni leasing) | C13: =+'3) Analisi flussi di cassa'!C14 -> -42050 | E13: Risultato finale | G13: =+G12+G11 -> 27150 | H13: 27150 | I13: 27150 | J13: 27150 | K13: 27150
A14: di cui TFR | B14: =+'3) Analisi flussi di cassa'!B15 -> -2000
A15: di cui ammortamenti | B15: =+'3) Analisi flussi di cassa'!B16 -> -1000
A16: di cui canoni leasing | B16: =+'3) Analisi flussi di cassa'!B17 -> -5760 | E16: Scenari rendiconto finanziario
E17: Risultato operativo lordo ante leasing | G17: =+G11-$B$14-$B$15-$B$16 -> 43760 | H17: =+H11-$B$14-$B$15-$B$16 -> 43760 | I17: 43760 | J17: 43760 | K17: 43760
A18: Risultato operativo netto | B18: =ROUND(ABS(+C18/SUM(C4:C15))*100,2)&"% Ftt." -> 94,55% Ftt. | C18: =+'3) Analisi flussi di cassa'!C19 -> 35000 | E18: Imposte | G18: =+G12 -> -7850 | H18: =+H12 -> -7850 | I18: =+I12 -> -7850 | J18: =+J12 -> -7850 | K18: =+K12 -> -7850
A19: Imposte sui redditi e IRAP | B19: =ROUND(ABS(+C19/SUM(C6:C11))*100,2)&"% RON" -> 10,19% RON | C19: =+'3) Analisi flussi di cassa'!C21 -> -7850 | E19: Cassa generata dalla gestione operativa | G19: =+G18+G17 -> 35910 | H19: 35910 | I19: 35910 | J19: 35910 | K19: 35910
A20: Risultato finale | C20: =+C18+C19 -> 27150 | E20: Prelievo soci / titolare | G20: =+'3) Analisi flussi di cassa'!F23 -> -12000 | H20: =+G20 -> -12000 | I20: =+H20 -> -12000 | J20: -12000 | K20: -12000
A21: (lordo leasing, oneri fin.ri e poste straordinarie) | E21: Cassa libera per pagare i debiti finanziari | G21: =+G20+G19 -> 23910 | H21: 23910 | I21: 23910 | J21: 23910 | K21: 23910

Sheet Check start (hidden)
A1: =TODAY() -> 2020-05-10 | B1: 2020-09-30

Sheet Supporto mutui (hidden)
A1: Rate | B1: Totale | C1: 1 | D1: =1+C1 -> 2 | E1: =1+D1 -> 3 | F1: 4 | G1: 5 | H1: 6 | I1: 7 | J1: 8 | K1: 9 | L1: 10 | M1: 11 | N1: 12 | O1: 13 | P1: 14 | Q1: 15 | R1: 16 | S1: 17 | T1: 18 | U1: 19 | V1: 20 | W1: 21 | X1: 22 | Y1: 23 | Z1: 24 | AA1: 25 | AB1: 26 | AC1: 27 | AD1: 28 | AE1: 29 | AF1: 30 | AG1: 31 | AH1: 32 | AI1: 33 | AJ1: 34 | AK1: 35 | AL1: 36 | AM1: 37 | AN1: 38 | AO1: 39 | AP1: 40 | AQ1: 41 | AR1: 42 | AS1: 43 | AT1: 44 | AU1: 45 | AV1: 46 | AW1: 47 | AX1: 48 | AY1: 49 | AZ1: 50 | BA1: 51 | BB1: 52 | BC1: 53 | BD1: 54 | BE1: 55 | BF1: 56 | BG1: 57 | BH1: 58 | BI1: 59 | BJ1: 60 | BK1: 61 | BL1: 62 | BM1: 63 | BN1: 64 | BO1: 65 | BP1: 66 | BQ1: =1+BP1 -> 67 | BR1: 68 | BS1: 69 | BT1: 70 | BU1: 71 | BV1: 72 | BW1: 73 | BX1: 74 | BY1: 75 | BZ1: 76 | CA1: 77 | CB1: 78 | CC1: 79 | CD1: 80 | CE1: 81 | CF1: 82 | CG1: 83 | CH1: 84 | CI1: 85 | CJ1: 86 | CK1: 87 | CL1: 88 | CM1: 89 | CN1: 90 | CO1: 91 | CP1: 92 | CQ1: 93 | CR1: 94 | CS1: 95 | CT1: 96 | CU1: 97 | CV1: 98 | CW1: 99 | CX1: 100 | CY1: 101 | CZ1: 102 | DA1: 103 | DB1: 104 | DC1: 105 | DD1: 106 | DE1: 107 | DF1: 108 | DG1: 109 | DH1: 110 | DI1: 111 | DJ1: 112 | DK1: 113 | DL1: 114 | DM1: 115 | DN1: 116 | DO1: 117 | DP1: 118 | DQ1: 119 | DR1: 120 | DS1: 121 | DT1: 122 | DU1: 123 | DV1: 124 | DW1: 125 | DX1: 126 | DY1: 127 | DZ1: 128 | EA1: 129 | EB1: 130 | EC1: =1+EB1 -> 131 | ED1: 132 | EE1: 133 | EF1: 134 | EG1: 135 | EH1: 136 | EI1: 137 | EJ1: 138 | EK1: 139 | EL1: 140 | EM1: 141 | EN1: 142 | EO1: 143 | EP1: 144 | EQ1: 145 | ER1: 146 | ES1: 147 | ET1: 148 | EU1: 149 | EV1: 150 | EW1: 151 | EX1: 152 | EY1: 153 | EZ1: 154 | FA1: 155 | FB1: 156 | FC1: 157 | FD1: 158 | FE1: 159 | FF1: 160 | FG1: 161 | FH1: 162 | FI1: 163 | FJ1: 164 | FK1: 165 | FL1: 166 | FM1: 167 | FN1: 168 | FO1: 169 | FP1: 170 | FQ1: 171 | FR1: 172 | FS1: 173 | FT1: 174 | FU1: 175 | FV1: 176 | FW1: 177 | FX1: 178 | FY1: 179 | FZ1: 180 | GA1: 181 | GB1: 182 | GC1: 183 | GD1: 184 | GE1: 185 | GF1: 186 | GG1: 187 | GH1: 188 | GI1: 189 | GJ1: 190 | GK1: 191 | GL1: 192 | GM1: 193 | GN1: 194 | GO1: =1+GN1 -> 195 | GP1: 196 | GQ1: 197 | GR1: 198 | GS1: 199 | GT1: 200 | GU1: 201 | GV1: 202 | GW1: 203 | GX1: 204 | GY1: 205 | GZ1: 206 | HA1: 207 | HB1: 208 | HC1: 209 | HD1: 210 | HE1: 211 | HF1: 212 | HG1: 213 | HH1: 214 | HI1: 215 | HJ1: 216 | HK1: 217 | HL1: 218 | HM1: 219 | HN1: 220 | HO1: 221 | HP1: 222 | HQ1: 223 | HR1: 224 | HS1: 225 | HT1: 226 | HU1: 227 | HV1: 228 | HW1: 229 | HX1: 230 | HY1: 231 | HZ1: 232 | IA1: 233 | IB1: 234 | IC1: 235 | ID1: 236 | IE1: 237 | IF1: 238 | IG1: 239 | IH1: 240 | II1: 241 | IJ1: 242 | IK1: 243 | IL1: 244 | IM1: 245 | IN1: 246 | IO1: 247 | IP1: 248 | IQ1: 249 | IR1: 250 | IS1: 251 | IT1: 252 | IU1: 253 | IV1: 254 | IW1: 255 | IX1: 256 | IY1: 257 | IZ1: 258 | JA1: =1+IZ1 -> 259 | JB1: 260 | JC1: 261 | JD1: 262 | JE1: 263 | JF1: 264 | JG1: 265 | JH1: 266 | JI1: 267 | JJ1: 268 | JK1: 269 | JL1: 270 | JM1: 271 | JN1: 272 | JO1: 273 | JP1: 274 | JQ1: 275 | JR1: 276 | JS1: 277 | JT1: 278 | JU1: 279 | JV1: 280 | JW1: 281 | JX1: 282 | JY1: 283 | JZ1: 284 | KA1: 285 | KB1: 286 | KC1: 287 | KD1: 288 | KE1: 289 | KF1: 290 | KG1: 291 | KH1: 292 | KI1: 293 | KJ1: 294 | KK1: 295 | KL1: 296 | KM1: 297 | KN1: 298 | KO1: 299 | KP1: 300 | KQ1: 301 | KR1: 302 | KS1: 303 | KT1: 304 | KU1: 305 | KV1: 306 | KW1: 307 | KX1: 308 | KY1: 309 | KZ1: 310 | LA1: 311 | LB1: 312 | LC1: 313 | LD1: 314 | LE1: 315 | LF1: 316 | LG1: 317 | LH1: 318 | LI1: 319 | LJ1: 320 | LK1: 321 | LL1: 322 | LM1: =1+LL1 -> 323 | LN1: =1+LM1 -> 324 | LO1: 325 | LP1: 326 | LQ1: 327 | LR1: 328 | LS1: 329 | LT1: 330 | LU1: 331 | LV1: 332 | LW1: 333 | LX1: 334 | LY1: 335 | LZ1: 336 | MA1: 337 | MB1: 338 | MC1: 339 | MD1: 340 | ME1: 341 | MF1: 342 | MG1: 343 | MH1: 344 | MI1: 345 | MJ1: 346 | MK1: 347 | ML1: 348 | MM1: 349 | MN1: 350 | MO1: 351 | MP1: 352 | MQ1: 353 | MR1: 354 | MS1: 355 | MT1: 356 | MU1: 357 | MV1: 358 | MW1: 359 | MX1: 360
A2: Mutuo1
A3: Date | C3: =TRANSPOSE(Supporto!B23:B383) -> 2020-05-01 | D3: 2020-06-01 | E3: 2020-07-01 | F3: 2020-08-01 | G3: 2020-09-01 | H3: 2020-10-01 | I3: 2020-11-01 | J3: 2020-12-01 | K3: 00:00:00 | L3: 00:00:00 | M3: 00:00:00 | N3: 00:00:00 | O3: 00:00:00 | P3: 00:00:00 | Q3: 00:00:00 | R3: 00:00:00 | S3: 00:00:00 | T3: 00:00:00 | U3: 00:00:00 | V3: 00:00:00 | W3: 00:00:00 | X3: 00:00:00 | Y3: 00:00:00 | Z3: 00:00:00 | AA3: 00:00:00 | AB3: 00:00:00 | AC3: 00:00:00 | AD3: 00:00:00 | AE3: 00:00:00 | AF3: 00:00:00 | AG3: 00:00:00 | AH3: 00:00:00 | AI3: 00:00:00 | AJ3: 00:00:00 | AK3: 00:00:00 | AL3: 00:00:00 | AM3: 00:00:00 | AN3: 00:00:00 | AO3: 00:00:00 | AP3: 00:00:00 | AQ3: 00:00:00 | AR3: 00:00:00 | AS3: 00:00:00 | AT3: 00:00:00 | AU3: 00:00:00 | AV3: 00:00:00 | AW3: 00:00:00 | AX3: 00:00:00 | AY3: 00:00:00 | AZ3: 00:00:00 | BA3: 00:00:00 | BB3: 00:00:00 | BC3: 00:00:00 | BD3: 00:00:00 | BE3: 00:00:00 | BF3: 00:00:00 | BG3: 00:00:00 | BH3: 00:00:00 | BI3: 00:00:00 | BJ3: 00:00:00 | BK3: 00:00:00 | BL3: 00:00:00 | BM3: 00:00:00 | BN3: 00:00:00 | BO3: 00:00:00 | BP3: 00:00:00 | BQ3: 00:00:00 | BR3: 00:00:00 | BS3: 00:00:00 | BT3: 00:00:00 | BU3: 00:00:00 | BV3: 00:00:00 | BW3: 00:00:00 | BX3: 00:00:00 | BY3: 00:00:00 | BZ3: 00:00:00 | CA3: 00:00:00 | CB3: 00:00:00 | CC3: 00:00:00 | CD3: 00:00:00 | CE3: 00:00:00 | CF3: 00:00:00 | CG3: 00:00:00 | CH3: 00:00:00 | CI3: 00:00:00 | CJ3: 00:00:00 | CK3: 00:00:00 | CL3: 00:00:00 | CM3: 00:00:00 | CN3: 00:00:00 | CO3: 00:00:00 | CP3: 00:00:00 | CQ3: 00:00:00 | CR3: 00:00:00 | CS3: 00:00:00 | CT3: 00:00:00 | CU3: 00:00:00 | CV3: 00:00:00 | CW3: 00:00:00 | CX3: 00:00:00 | CY3: 00:00:00 | CZ3: 00:00:00 | DA3: 00:00:00 | DB3: 00:00:00 | DC3: 00:00:00 | DD3: 00:00:00 | DE3: 00:00:00 | DF3: 00:00:00 | DG3: 00:00:00 | DH3: 00:00:00 | DI3: 00:00:00 | DJ3: 00:00:00 | DK3: 00:00:00 | DL3: 00:00:00 | DM3: 00:00:00 | DN3: 00:00:00 | DO3: 00:00:00 | DP3: 00:00:00 | DQ3: 00:00:00 | DR3: 00:00:00 | DS3: 00:00:00 | DT3: 00:00:00 | DU3: 00:00:00 | DV3: 00:00:00 | DW3: 00:00:00 | DX3: 00:00:00 | DY3: 00:00:00 | DZ3: 00:00:00 | EA3: 00:00:00 | EB3: 00:00:00 | EC3: 00:00:00 | ED3: 00:00:00 | EE3: 00:00:00 | EF3: 00:00:00 | EG3: 00:00:00 | EH3: 00:00:00 | EI3: 00:00:00 | EJ3: 00:00:00 | EK3: 00:00:00 | EL3: 00:00:00 | EM3: 00:00:00 | EN3: 00:00:00 | EO3: 00:00:00 | EP3: 00:00:00 | EQ3: 00:00:00 | ER3: 00:00:00 | ES3: 00:00:00 | ET3: 00:00:00 | EU3: 00:00:00 | EV3: 00:00:00 | EW3: 00:00:00 | EX3: 00:00:00 | EY3: 00:00:00 | EZ3: 00:00:00 | FA3: 00:00:00 | FB3: 00:00:00 | FC3: 00:00:00 | FD3: 00:00:00 | FE3: 00:00:00 | FF3: 00:00:00 | FG3: 00:00:00 | FH3: 00:00:00 | FI3: 00:00:00 | FJ3: 00:00:00 | FK3: 00:00:00 | FL3: 00:00:00 | FM3: 00:00:00 | FN3: 00:00:00 | FO3: 00:00:00 | FP3: 00:00:00 | FQ3: 00:00:00 | FR3: 00:00:00 | FS3: 00:00:00 | FT3: 00:00:00 | FU3: 00:00:00 | FV3: 00:00:00 | FW3: 00:00:00 | FX3: 00:00:00 | FY3: 00:00:00 | FZ3: 00:00:00 | GA3: 00:00:00 | GB3: 00:00:00 | GC3: 00:00:00 | GD3: 00:00:00 | GE3: 00:00:00 | GF3: 00:00:00 | GG3: 00:00:00 | GH3: 00:00:00 | GI3: 00:00:00 | GJ3: 00:00:00 | GK3: 00:00:00 | GL3: 00:00:00 | GM3: 00:00:00 | GN3: 00:00:00 | GO3: 00:00:00 | GP3: 00:00:00 | GQ3: 00:00:00 | GR3: 00:00:00 | GS3: 00:00:00 | GT3: 00:00:00 | GU3: 00:00:00 | GV3: 00:00:00 | GW3: 00:00:00 | GX3: 00:00:00 | GY3: 00:00:00 | GZ3: 00:00:00 | HA3: 00:00:00 | HB3: 00:00:00 | HC3: 00:00:00 | HD3: 00:00:00 | HE3: 00:00:00 | HF3: 00:00:00 | HG3: 00:00:00 | HH3: 00:00:00 | HI3: 00:00:00 | HJ3: 00:00:00 | HK3: 00:00:00 | HL3: 00:00:00 | HM3: 00:00:00 | HN3: 00:00:00 | HO3: 00:00:00 | HP3: 00:00:00 | HQ3: 00:00:00 | HR3: 00:00:00 | HS3: 00:00:00 | HT3: 00:00:00 | HU3: 00:00:00 | HV3: 00:00:00 | HW3: 00:00:00 | HX3: 00:00:00 | HY3: 00:00:00 | HZ3: 00:00:00 | IA3: 00:00:00 | IB3: 00:00:00 | IC3: 00:00:00 | ID3: 00:00:00 | IE3: 00:00:00 | IF3: 00:00:00 | IG3: 00:00:00 | IH3: 00:00:00 | II3: 00:00:00 | IJ3: 00:00:00 | IK3: 00:00:00 | IL3: 00:00:00 | IM3: 00:00:00 | IN3: 00:00:00 | IO3: 00:00:00 | IP3: 00:00:00 | IQ3: 00:00:00 | IR3: 00:00:00 | IS3: 00:00:00 | IT3: 00:00:00 | IU3: 00:00:00 | IV3: 00:00:00 | IW3: 00:00:00 | IX3: 00:00:00 | IY3: 00:00:00 | IZ3: 00:00:00 | JA3: 00:00:00 | JB3: 00:00:00 | JC3: 00:00:00 | JD3: 00:00:00 | JE3: 00:00:00 | JF3: 00:00:00 | JG3: 00:00:00 | JH3: 00:00:00 | JI3: 00:00:00 | JJ3: 00:00:00 | JK3: 00:00:00 | JL3: 00:00:00 | JM3: 00:00:00 | JN3: 00:00:00 | JO3: 00:00:00 | JP3: 00:00:00 | JQ3: 00:00:00 | JR3: 00:00:00 | JS3: 00:00:00 | JT3: 00:00:00 | JU3: 00:00:00 | JV3: 00:00:00 | JW3: 00:00:00 | JX3: 00:00:00 | JY3: 00:00:00 | JZ3: 00:00:00 | KA3: 00:00:00 | KB3: 00:00:00 | KC3: 00:00:00 | KD3: 00:00:00 | KE3: 00:00:00 | KF3: 00:00:00 | KG3: 00:00:00 | KH3: 00:00:00 | KI3: 00:00:00 | KJ3: 00:00:00 | KK3: 00:00:00 | KL3: 00:00:00 | KM3: 00:00:00 | KN3: 00:00:00 | KO3: 00:00:00 | KP3: 00:00:00 | KQ3: 00:00:00 | KR3: 00:00:00 | KS3: 00:00:00 | KT3: 00:00:00 | KU3: 00:00:00 | KV3: 00:00:00 | KW3: 00:00:00 | KX3: 00:00:00 | KY3: 00:00:00 | KZ3: 00:00:00 | LA3: 00:00:00 | LB3: 00:00:00 | LC3: 00:00:00 | LD3: 00:00:00 | LE3: 00:00:00 | LF3: 00:00:00 | LG3: 00:00:00 | LH3: 00:00:00 | LI3: 00:00:00 | LJ3: 00:00:00 | LK3: 00:00:00 | LL3: 00:00:00 | LM3: 00:00:00 | LN3: 00:00:00 | LO3: 00:00:00 | LP3: 00:00:00 | LQ3: 00:00:00 | LR3: 00:00:00 | LS3: 00:00:00 | LT3: 00:00:00 | LU3: 00:00:00 | LV3: 00:00:00 | LW3: 00:00:00 | LX3: 00:00:00 | LY3: 00:00:00 | LZ3: 00:00:00 | MA3: 00:00:00 | MB3: 00:00:00 | MC3: 00:00:00 | MD3: 00:00:00 | ME3: 00:00:00 | MF3: 00:00:00 | MG3: 00:00:00 | MH3: 00:00:00 | MI3: 00:00:00 | MJ3: 00:00:00 | MK3: 00:00:00 | ML3: 00:00:00 | MM3: 00:00:00 | MN3: 00:00:00 | MO3: 00:00:00 | MP3: 00:00:00 | MQ3: 00:00:00 | MR3: 00:00:00 | MS3: 00:00:00 | MT3: 00:00:00 | MU3: 00:00:00 | MV3: 00:00:00 | MW3: 00:00:00 | MX3: 00:00:00
A4: Rate | B4: =SUM(C4:MX4) -> 1560.281178 | C4: =TRANSPOSE(Supporto!G23:G383) -> 195.0351472 | D4: 195.0351472 | E4: 195.0351472 | F4: 195.0351472 | G4: 195.0351472 | H4: 195.0351472 | I4: 195.0351472 | J4: 195.0351472 | K4: 0 | L4: 0 | M4: 0 | N4: 0 | O4: 0 | P4: 0 | Q4: 0 | R4: 0 | S4: 0 | T4: 0 | U4: 0 | V4: 0 | W4: 0 | X4: 0 | Y4: 0 | Z4: 0 | AA4: 0 | AB4: 0 | AC4: 0 | AD4: 0 | AE4: 0 | AF4: 0 | AG4: 0 | AH4: 0 | AI4: 0 | AJ4: 0 | AK4: 0 | AL4: 0 | AM4: 0 | AN4: 0 | AO4: 0 | AP4: 0 | AQ4: 0 | AR4: 0 | AS4: 0 | AT4: 0 | AU4: 0 | AV4: 0 | AW4: 0 | AX4: 0 | AY4: 0 | AZ4: 0 | BA4: 0 | BB4: 0 | BC4: 0 | BD4: 0 | BE4: 0 | BF4: 0 | BG4: 0 | BH4: 0 | BI4: 0 | BJ4: 0 | BK4: 0 | BL4: 0 | BM4: 0 | BN4: 0 | BO4: 0 | BP4: 0 | BQ4: 0 | BR4: 0 | BS4: 0 | BT4: 0 | BU4: 0 | BV4: 0 | BW4: 0 | BX4: 0 | BY4: 0 | BZ4: 0 | CA4: 0 | CB4: 0 | CC4: 0 | CD4: 0 | CE4: 0 | CF4: 0 | CG4: 0 | CH4: 0 | CI4: 0 | CJ4: 0 | CK4: 0 | CL4: 0 | CM4: 0 | CN4: 0 | CO4: 0 | CP4: 0 | CQ4: 0 | CR4: 0 | CS4: 0 | CT4: 0 | CU4: 0 | CV4: 0 | CW4: 0 | CX4: 0 | CY4: 0 | CZ4: 0 | DA4: 0 | DB4: 0 | DC4: 0 | DD4: 0 | DE4: 0 | DF4: 0 | DG4: 0 | DH4: 0 | DI4: 0 | DJ4: 0 | DK4: 0 | DL4: 0 | DM4: 0 | DN4: 0 | DO4: 0 | DP4: 0 | DQ4: 0 | DR4: 0 | DS4: 0 | DT4: 0 | DU4: 0 | DV4: 0 | DW4: 0 | DX4: 0 | DY4: 0 | DZ4: 0 | EA4: 0 | EB4: 0 | EC4: 0 | ED4: 0 | EE4: 0 | EF4: 0 | EG4: 0 | EH4: 0 | EI4: 0 | EJ4: 0 | EK4: 0 | EL4: 0 | EM4: 0 | EN4: 0 | EO4: 0 | EP4: 0 | EQ4: 0 | ER4: 0 | ES4: 0 | ET4: 0 | EU4: 0 | EV4: 0 | EW4: 0 | EX4: 0 | EY4: 0 | EZ4: 0 | FA4: 0 | FB4: 0 | FC4: 0 | FD4: 0 | FE4: 0 | FF4: 0 | FG4: 0 | FH4: 0 | FI4: 0 | FJ4: 0 | FK4: 0 | FL4: 0 | FM4: 0 | FN4: 0 | FO4: 0 | FP4: 0 | FQ4: 0 | FR4: 0 | FS4: 0 | FT4: 0 | FU4: 0 | FV4: 0 | FW4: 0 | FX4: 0 | FY4: 0 | FZ4: 0 | GA4: 0 | GB4: 0 | GC4: 0 | GD4: 0 | GE4: 0 | GF4: 0 | GG4: 0 | GH4: 0 | GI4: 0 | GJ4: 0 | GK4: 0 | GL4: 0 | GM4: 0 | GN4: 0 | GO4: 0 | GP4: 0 | GQ4: 0 | GR4: 0 | GS4: 0 | GT4: 0 | GU4: 0 | GV4: 0 | GW4: 0 | GX4: 0 | GY4: 0 | GZ4: 0 | HA4: 0 | HB4: 0 | HC4: 0 | HD4: 0 | HE4: 0 | HF4: 0 | HG4: 0 | HH4: 0 | HI4: 0 | HJ4: 0 | HK4: 0 | HL4: 0 | HM4: 0 | HN4: 0 | HO4: 0 | HP4: 0 | HQ4: 0 | HR4: 0 | HS4: 0 | HT4: 0 | HU4: 0 | HV4: 0 | HW4: 0 | HX4: 0 | HY4: 0 | HZ4: 0 | IA4: 0 | IB4: 0 | IC4: 0 | ID4: 0 | IE4: 0 | IF4: 0 | IG4: 0 | IH4: 0 | II4: 0 | IJ4: 0 | IK4: 0 | IL4: 0 | IM4: 0 | IN4: 0 | IO4: 0 | IP4: 0 | IQ4: 0 | IR4: 0 | IS4: 0 | IT4: 0 | IU4: 0 | IV4: 0 | IW4: 0 | IX4: 0 | IY4: 0 | IZ4: 0 | JA4: 0 | JB4: 0 | JC4: 0 | JD4: 0 | JE4: 0 | JF4: 0 | JG4: 0 | JH4: 0 | JI4: 0 | JJ4: 0 | JK4: 0 | JL4: 0 | JM4: 0 | JN4: 0 | JO4: 0 | JP4: 0 | JQ4: 0 | JR4: 0 | JS4: 0 | JT4: 0 | JU4: 0 | JV4: 0 | JW4: 0 | JX4: 0 | JY4: 0 | JZ4: 0 | KA4: 0 | KB4: 0 | KC4: 0 | KD4: 0 | KE4: 0 | KF4: 0 | KG4: 0 | KH4: 0 | KI4: 0 | KJ4: 0 | KK4: 0 | KL4: 0 | KM4: 0 | KN4: 0 | KO4: 0 | KP4: 0 | KQ4: 0 | KR4: 0 | KS4: 0 | KT4: 0 | KU4: 0 | KV4: 0 | KW4: 0 | KX4: 0 | KY4: 0 | KZ4: 0 | LA4: 0 | LB4: 0 | LC4: 0 | LD4: 0 | LE4: 0 | LF4: 0 | LG4: 0 | LH4: 0 | LI4: 0 | LJ4: 0 | LK4: 0 | LL4: 0 | LM4: 0 | LN4: 0 | LO4: 0 | LP4: 0 | LQ4: 0 | LR4: 0 | LS4: 0 | LT4: 0 | LU4: 0 | LV4: 0 | LW4: 0 | LX4: 0 | LY4: 0 | LZ4: 0 | MA4: 0 | MB4: 0 | MC4: 0 | MD4: 0 | ME4: 0 | MF4: 0 | MG4: 0 | MH4: 0 | MI4: 0 | MJ4: 0 | MK4: 0 | ML4: 0 | MM4: 0 | MN4: 0 | MO4: 0 | MP4: 0 | MQ4: 0 | MR4: 0 | MS4: 0 | MT4: 0 | MU4: 0 | MV4: 0 | MW4: 0 | MX4: 0
A5: Mutuo 2
A6: Date | C6: =TRANSPOSE(Supporto!J23:J383) -> 2020-11-01 | D6: 2021-02-01 | E6: 2021-05-01 | F6: 2021-08-01 | G6: 2021-11-01 | H6: 2022-02-01 | I6: 2022-05-01 | J6: 2022-08-01 | K6: 2022-11-01 | L6: 2023-02-01 | M6: 2023-05-01 | N6: 2023-08-01 | O6: 00:00:00 | P6: 00:00:00 | Q6: 00:00:00 | R6: 00:00:00 | S6: 00:00:00 | T6: 00:00:00 | U6: 00:00:00 | V6: 00:00:00 | W6: 00:00:00 | X6: 00:00:00 | Y6: 00:00:00 | Z6: 00:00:00 | AA6: 00:00:00 | AB6: 00:00:00 | AC6: 00:00:00 | AD6: 00:00:00 | AE6: 00:00:00 | AF6: 00:00:00 | AG6: 00:00:00 | AH6: 00:00:00 | AI6: 00:00:00 | AJ6: 00:00:00 | AK6: 00:00:00 | AL6: 00:00:00 | AM6: 00:00:00 | AN6: 00:00:00 | AO6: 00:00:00 | AP6: 00:00:00 | AQ6: 00:00:00 | AR6: 00:00:00 | AS6: 00:00:00 | AT6: 00:00:00 | AU6: 00:00:00 | AV6: 00:00:00 | AW6: 00:00:00 | AX6: 00:00:00 | AY6: 00:00:00 | AZ6: 00:00:00 | BA6: 00:00:00 | BB6: 00:00:00 | BC6: 00:00:00 | BD6: 00:00:00 | BE6: 00:00:00 | BF6: 00:00:00 | BG6: 00:00:00 | BH6: 00:00:00 | BI6: 00:00:00 | BJ6: 00:00:00 | BK6: 00:00:00 | BL6: 00:00:00 | BM6: 00:00:00 | BN6: 00:00:00 | BO6: 00:00:00 | BP6: 00:00:00 | BQ6: 00:00:00 | BR6: 00:00:00 | BS6: 00:00:00 | BT6: 00:00:00 | BU6: 00:00:00 | BV6: 00:00:00 | BW6: 00:00:00 | BX6: 00:00:00 | BY6: 00:00:00 | BZ6: 00:00:00 | CA6: 00:00:00 | CB6: 00:00:00 | CC6: 00:00:00 | CD6: 00:00:00 | CE6: 00:00:00 | CF6: 00:00:00 | CG6: 00:00:00 | CH6: 00:00:00 | CI6: 00:00:00 | CJ6: 00:00:00 | CK6: 00:00:00 | CL6: 00:00:00 | CM6: 00:00:00 | CN6: 00:00:00 | CO6: 00:00:00 | CP6: 00:00:00 | CQ6: 00:00:00 | CR6: 00:00:00 | CS6: 00:00:00 | CT6: 00:00:00 | CU6: 00:00:00 | CV6: 00:00:00 | CW6: 00:00:00 | CX6: 00:00:00 | CY6: 00:00:00 | CZ6: 00:00:00 | DA6: 00:00:00 | DB6: 00:00:00 | DC6: 00:00:00 | DD6: 00:00:00 | DE6: 00:00:00 | DF6: 00:00:00 | DG6: 00:00:00 | DH6: 00:00:00 | DI6: 00:00:00 | DJ6: 00:00:00 | DK6: 00:00:00 | DL6: 00:00:00 | DM6: 00:00:00 | DN6: 00:00:00 | DO6: 00:00:00 | DP6: 00:00:00 | DQ6: 00:00:00 | DR6: 00:00:00 | DS6: 00:00:00 | DT6: 00:00:00 | DU6: 00:00:00 | DV6: 00:00:00 | DW6: 00:00:00 | DX6: 00:00:00 | DY6: 00:00:00 | DZ6: 00:00:00 | EA6: 00:00:00 | EB6: 00:00:00 | EC6: 00:00:00 | ED6: 00:00:00 | EE6: 00:00:00 | EF6: 00:00:00 | EG6: 00:00:00 | EH6: 00:00:00 | EI6: 00:00:00 | EJ6: 00:00:00 | EK6: 00:00:00 | EL6: 00:00:00 | EM6: 00:00:00 | EN6: 00:00:00 | EO6: 00:00:00 | EP6: 00:00:00 | EQ6: 00:00:00 | ER6: 00:00:00 | ES6: 00:00:00 | ET6: 00:00:00 | EU6: 00:00:00 | EV6: 00:00:00 | EW6: 00:00:00 | EX6: 00:00:00 | EY6: 00:00:00 | EZ6: 00:00:00 | FA6: 00:00:00 | FB6: 00:00:00 | FC6: 00:00:00 | FD6: 00:00:00 | FE6: 00:00:00 | FF6: 00:00:00 | FG6: 00:00:00 | FH6: 00:00:00 | FI6: 00:00:00 | FJ6: 00:00:00 | FK6: 00:00:00 | FL6: 00:00:00 | FM6: 00:00:00 | FN6: 00:00:00 | FO6: 00:00:00 | FP6: 00:00:00 | FQ6: 00:00:00 | FR6: 00:00:00 | FS6: 00:00:00 | FT6: 00:00:00 | FU6: 00:00:00 | FV6: 00:00:00 | FW6: 00:00:00 | FX6: 00:00:00 | FY6: 00:00:00 | FZ6: 00:00:00 | GA6: 00:00:00 | GB6: 00:00:00 | GC6: 00:00:00 | GD6: 00:00:00 | GE6: 00:00:00 | GF6: 00:00:00 | GG6: 00:00:00 | GH6: 00:00:00 | GI6: 00:00:00 | GJ6: 00:00:00 | GK6: 00:00:00 | GL6: 00:00:00 | GM6: 00:00:00 | GN6: 00:00:00 | GO6: 00:00:00 | GP6: 00:00:00 | GQ6: 00:00:00 | GR6: 00:00:00 | GS6: 00:00:00 | GT6: 00:00:00 | GU6: 00:00:00 | GV6: 00:00:00 | GW6: 00:00:00 | GX6: 00:00:00 | GY6: 00:00:00 | GZ6: 00:00:00 | HA6: 00:00:00 | HB6: 00:00:00 | HC6: 00:00:00 | HD6: 00:00:00 | HE6: 00:00:00 | HF6: 00:00:00 | HG6: 00:00:00 | HH6: 00:00:00 | HI6: 00:00:00 | HJ6: 00:00:00 | HK6: 00:00:00 | HL6: 00:00:00 | HM6: 00:00:00 | HN6: 00:00:00 | HO6: 00:00:00 | HP6: 00:00:00 | HQ6: 00:00:00 | HR6: 00:00:00 | HS6: 00:00:00 | HT6: 00:00:00 | HU6: 00:00:00 | HV6: 00:00:00 | HW6: 00:00:00 | HX6: 00:00:00 | HY6: 00:00:00 | HZ6: 00:00:00 | IA6: 00:00:00 | IB6: 00:00:00 | IC6: 00:00:00 | ID6: 00:00:00 | IE6: 00:00:00 | IF6: 00:00:00 | IG6: 00:00:00 | IH6: 00:00:00 | II6: 00:00:00 | IJ6: 00:00:00 | IK6: 00:00:00 | IL6: 00:00:00 | IM6: 00:00:00 | IN6: 00:00:00 | IO6: 00:00:00 | IP6: 00:00:00 | IQ6: 00:00:00 | IR6: 00:00:00 | IS6: 00:00:00 | IT6: 00:00:00 | IU6: 00:00:00 | IV6: 00:00:00 | IW6: 00:00:00 | IX6: 00:00:00 | IY6: 00:00:00 | IZ6: 00:00:00 | JA6: 00:00:00 | JB6: 00:00:00 | JC6: 00:00:00 | JD6: 00:00:00 | JE6: 00:00:00 | JF6: 00:00:00 | JG6: 00:00:00 | JH6: 00:00:00 | JI6: 00:00:00 | JJ6: 00:00:00 | JK6: 00:00:00 | JL6: 00:00:00 | JM6: 00:00:00 | JN6: 00:00:00 | JO6: 00:00:00 | JP6: 00:00:00 | JQ6: 00:00:00 | JR6: 00:00:00 | JS6: 00:00:00 | JT6: 00:00:00 | JU6: 00:00:00 | JV6: 00:00:00 | JW6: 00:00:00 | JX6: 00:00:00 | JY6: 00:00:00 | JZ6: 00:00:00 | KA6: 00:00:00 | KB6: 00:00:00 | KC6: 00:00:00 | KD6: 00:00:00 | KE6: 00:00:00 | KF6: 00:00:00 | KG6: 00:00:00 | KH6: 00:00:00 | KI6: 00:00:00 | KJ6: 00:00:00 | KK6: 00:00:00 | KL6: 00:00:00 | KM6: 00:00:00 | KN6: 00:00:00 | KO6: 00:00:00 | KP6: 00:00:00 | KQ6: 00:00:00 | KR6: 00:00:00 | KS6: 00:00:00 | KT6: 00:00:00 | KU6: 00:00:00 | KV6: 00:00:00 | KW6: 00:00:00 | KX6: 00:00:00 | KY6: 00:00:00 | KZ6: 00:00:00 | LA6: 00:00:00 | LB6: 00:00:00 | LC6: 00:00:00 | LD6: 00:00:00 | LE6: 00:00:00 | LF6: 00:00:00 | LG6: 00:00:00 | LH6: 00:00:00 | LI6: 00:00:00 | LJ6: 00:00:00 | LK6: 00:00:00 | LL6: 00:00:00 | LM6: 00:00:00 | LN6: 00:00:00 | LO6: 00:00:00 | LP6: 00:00:00 | LQ6: 00:00:00 | LR6: 00:00:00 | LS6: 00:00:00 | LT6: 00:00:00 | LU6: 00:00:00 | LV6: 00:00:00 | LW6: 00:00:00 | LX6: 00:00:00 | LY6: 00:00:00 | LZ6: 00:00:00 | MA6: 00:00:00 | MB6: 00:00:00 | MC6: 00:00:00 | MD6: 00:00:00 | ME6: 00:00:00 | MF6: 00:00:00 | MG6: 00:00:00 | MH6: 00:00:00 | MI6: 00:00:00 | MJ6: 00:00:00 | MK6: 00:00:00 | ML6: 00:00:00 | MM6: 00:00:00 | MN6: 00:00:00 | MO6: 00:00:00 | MP6: 00:00:00 | MQ6: 00:00:00 | MR6: 00:00:00 | MS6: 00:00:00 | MT6: 00:00:00 | MU6: 00:00:00 | MV6: 00:00:00 | MW6: 00:00:00 | MX6: 00:00:00
A7: Rate | B7: =SUM(C7:MX7) -> 3395.652921 | C7: =TRANSPOSE(Supporto!O23:O383) -> 282.9710768 | D7: 282.9710768 | E7: 282.9710768 | F7: 282.9710768 | G7: 282.9710768 | H7: 282.9710768 | I7: 282.9710768 | J7: 282.9710768 | K7: 282.9710768 | L7: 282.9710768 | M7: 282.9710768 | N7: 282.9710768 | O7: 0 | P7: 0 | Q7: 0 | R7: 0 | S7: 0 | T7: 0 | U7: 0 | V7: 0 | W7: 0 | X7: 0 | Y7: 0 | Z7: 0 | AA7: 0 | AB7: 0 | AC7: 0 | AD7: 0 | AE7: 0 | AF7: 0 | AG7: 0 | AH7: 0 | AI7: 0 | AJ7: 0 | AK7: 0 | AL7: 0 | AM7: 0 | AN7: 0 | AO7: 0 | AP7: 0 | AQ7: 0 | AR7: 0 | AS7: 0 | AT7: 0 | AU7: 0 | AV7: 0 | AW7: 0 | AX7: 0 | AY7: 0 | AZ7: 0 | BA7: 0 | BB7: 0 | BC7: 0 | BD7: 0 | BE7: 0 | BF7: 0 | BG7: 0 | BH7: 0 | BI7: 0 | BJ7: 0 | BK7: 0 | BL7: 0 | BM7: 0 | BN7: 0 | BO7: 0 | BP7: 0 | BQ7: 0 | BR7: 0 | BS7: 0 | BT7: 0 | BU7: 0 | BV7: 0 | BW7: 0 | BX7: 0 | BY7: 0 | BZ7: 0 | CA7: 0 | CB7: 0 | CC7: 0 | CD7: 0 | CE7: 0 | CF7: 0 | CG7: 0 | CH7: 0 | CI7: 0 | CJ7: 0 | CK7: 0 | CL7: 0 | CM7: 0 | CN7: 0 | CO7: 0 | CP7: 0 | CQ7: 0 | CR7: 0 | CS7: 0 | CT7: 0 | CU7: 0 | CV7: 0 | CW7: 0 | CX7: 0 | CY7: 0 | CZ7: 0 | DA7: 0 | DB7: 0 | DC7: 0 | DD7: 0 | DE7: 0 | DF7: 0 | DG7: 0 | DH7: 0 | DI7: 0 | DJ7: 0 | DK7: 0 | DL7: 0 | DM7: 0 | DN7: 0 | DO7: 0 | DP7: 0 | DQ7: 0 | DR7: 0 | DS7: 0 | DT7: 0 | DU7: 0 | DV7: 0 | DW7: 0 | DX7: 0 | DY7: 0 | DZ7: 0 | EA7: 0 | EB7: 0 | EC7: 0 | ED7: 0 | EE7: 0 | EF7: 0 | EG7: 0 | EH7: 0 | EI7: 0 | EJ7: 0 | EK7: 0 | EL7: 0 | EM7: 0 | EN7: 0 | EO7: 0 | EP7: 0 | EQ7: 0 | ER7: 0 | ES7: 0 | ET7: 0 | EU7: 0 | EV7: 0 | EW7: 0 | EX7: 0 | EY7: 0 | EZ7: 0 | FA7: 0 | FB7: 0 | FC7: 0 | FD7: 0 | FE7: 0 | FF7: 0 | FG7: 0 | FH7: 0 | FI7: 0 | FJ7: 0 | FK7: 0 | FL7: 0 | FM7: 0 | FN7: 0 | FO7: 0 | FP7: 0 | FQ7: 0 | FR7: 0 | FS7: 0 | FT7: 0 | FU7: 0 | FV7: 0 | FW7: 0 | FX7: 0 | FY7: 0 | FZ7: 0 | GA7: 0 | GB7: 0 | GC7: 0 | GD7: 0 | GE7: 0 | GF7: 0 | GG7: 0 | GH7: 0 | GI7: 0 | GJ7: 0 | GK7: 0 | GL7: 0 | GM7: 0 | GN7: 0 | GO7: 0 | GP7: 0 | GQ7: 0 | GR7: 0 | GS7: 0 | GT7: 0 | GU7: 0 | GV7: 0 | GW7: 0 | GX7: 0 | GY7: 0 | GZ7: 0 | HA7: 0 | HB7: 0 | HC7: 0 | HD7: 0 | HE7: 0 | HF7: 0 | HG7: 0 | HH7: 0 | HI7: 0 | HJ7: 0 | HK7: 0 | HL7: 0 | HM7: 0 | HN7: 0 | HO7: 0 | HP7: 0 | HQ7: 0 | HR7: 0 | HS7: 0 | HT7: 0 | HU7: 0 | HV7: 0 | HW7: 0 | HX7: 0 | HY7: 0 | HZ7: 0 | IA7: 0 | IB7: 0 | IC7: 0 | ID7: 0 | IE7: 0 | IF7: 0 | IG7: 0 | IH7: 0 | II7: 0 | IJ7: 0 | IK7: 0 | IL7: 0 | IM7: 0 | IN7: 0 | IO7: 0 | IP7: 0 | IQ7: 0 | IR7: 0 | IS7: 0 | IT7: 0 | IU7: 0 | IV7: 0 | IW7: 0 | IX7: 0 | IY7: 0 | IZ7: 0 | JA7: 0 | JB7: 0 | JC7: 0 | JD7: 0 | JE7: 0 | JF7: 0 | JG7: 0 | JH7: 0 | JI7: 0 | JJ7: 0 | JK7: 0 | JL7: 0 | JM7: 0 | JN7: 0 | JO7: 0 | JP7: 0 | JQ7: 0 | JR7: 0 | JS7: 0 | JT7: 0 | JU7: 0 | JV7: 0 | JW7: 0 | JX7: 0 | JY7: 0 | JZ7: 0 | KA7: 0 | KB7: 0 | KC7: 0 | KD7: 0 | KE7: 0 | KF7: 0 | KG7: 0 | KH7: 0 | KI7: 0 | KJ7: 0 | KK7: 0 | KL7: 0 | KM7: 0 | KN7: 0 | KO7: 0 | KP7: 0 | KQ7: 0 | KR7: 0 | KS7: 0 | KT7: 0 | KU7: 0 | KV7: 0 | KW7: 0 | KX7: 0 | KY7: 0 | KZ7: 0 | LA7: 0 | LB7: 0 | LC7: 0 | LD7: 0 | LE7: 0 | LF7: 0 | LG7: 0 | LH7: 0 | LI7: 0 | LJ7: 0 | LK7: 0 | LL7: 0 | LM7: 0 | LN7: 0 | LO7: 0 | LP7: 0 | LQ7: 0 | LR7: 0 | LS7: 0 | LT7: 0 | LU7: 0 | LV7: 0 | LW7: 0 | LX7: 0 | LY7: 0 | LZ7: 0 | MA7: 0 | MB7: 0 | MC7: 0 | MD7: 0 | ME7: 0 | MF7: 0 | MG7: 0 | MH7: 0 | MI7: 0 | MJ7: 0 | MK7: 0 | ML7: 0 | MM7: 0 | MN7: 0 | MO7: 0 | MP7: 0 | MQ7: 0 | MR7: 0 | MS7: 0 | MT7: 0 | MU7: 0 | MV7: 0 | MW7: 0 | MX7: 0
A8: Mutuo 3
A9: Date | C9: =TRANSPOSE(Supporto!R23:R383) -> 2020-04-01 | D9: 2020-05-01 | E9: 2020-06-01 | F9: 2020-07-01 | G9: 2020-08-01 | H9: 2020-09-01 | I9: 2020-10-01 | J9: 2020-11-01 | K9: 2020-12-01 | L9: 2021-01-01 | M9: 2021-02-01 | N9: 2021-03-01 | O9: 2021-04-01 | P9: 2021-05-01 | Q9: 2021-06-01 | R9: 2021-07-01 | S9: 2021-08-01 | T9: 2021-09-01 | U9: 2021-10-01 | V9: 2021-11-01 | W9: 2021-12-01 | X9: 2022-01-01 | Y9: 2022-02-01 | Z9: 2022-03-01 | AA9: 2022-04-01 | AB9: 2022-05-01 | AC9: 2022-06-01 | AD9: 2022-07-01 | AE9: 2022-08-01 | AF9: 2022-09-01 | AG9: 00:00:00 | AH9: 00:00:00 | AI9: 00:00:00 | AJ9: 00:00:00 | AK9: 00:00:00 | AL9: 00:00:00 | AM9: 00:00:00 | AN9: 00:00:00 | AO9: 00:00:00 | AP9: 00:00:00 | AQ9: 00:00:00 | AR9: 00:00:00 | AS9: 00:00:00 | AT9: 00:00:00 | AU9: 00:00:00 | AV9: 00:00:00 | AW9: 00:00:00 | AX9: 00:00:00 | AY9: 00:00:00 | AZ9: 00:00:00 | BA9: 00:00:00 | BB9: 00:00:00 | BC9: 00:00:00 | BD9: 00:00:00 | BE9: 00:00:00 | BF9: 00:00:00 | BG9: 00:00:00 | BH9: 00:00:00 | BI9: 00:00:00 | BJ9: 00:00:00 | BK9: 00:00:00 | BL9: 00:00:00 | BM9: 00:00:00 | BN9: 00:00:00 | BO9: 00:00:00 | BP9: 00:00:00 | BQ9: 00:00:00 | BR9: 00:00:00 | BS9: 00:00:00 | BT9: 00:00:00 | BU9: 00:00:00 | BV9: 00:00:00 | BW9: 00:00:00 | BX9: 00:00:00 | BY9: 00:00:00 | BZ9: 00:00:00 | CA9: 00:00:00 | CB9: 00:00:00 | CC9: 00:00:00 | CD9: 00:00:00 | CE9: 00:00:00 | CF9: 00:00:00 | CG9: 00:00:00 | CH9: 00:00:00 | CI9: 00:00:00 | CJ9: 00:00:00 | CK9: 00:00:00 | CL9: 00:00:00 | CM9: 00:00:00 | CN9: 00:00:00 | CO9: 00:00:00 | CP9: 00:00:00 | CQ9: 00:00:00 | CR9: 00:00:00 | CS9: 00:00:00 | CT9: 00:00:00 | CU9: 00:00:00 | CV9: 00:00:00 | CW9: 00:00:00 | CX9: 00:00:00 | CY9: 00:00:00 | CZ9: 00:00:00 | DA9: 00:00:00 | DB9: 00:00:00 | DC9: 00:00:00 | DD9: 00:00:00 | DE9: 00:00:00 | DF9: 00:00:00 | DG9: 00:00:00 | DH9: 00:00:00 | DI9: 00:00:00 | DJ9: 00:00:00 | DK9: 00:00:00 | DL9: 00:00:00 | DM9: 00:00:00 | DN9: 00:00:00 | DO9: 00:00:00 | DP9: 00:00:00 | DQ9: 00:00:00 | DR9: 00:00:00 | DS9: 00:00:00 | DT9: 00:00:00 | DU9: 00:00:00 | DV9: 00:00:00 | DW9: 00:00:00 | DX9: 00:00:00 | DY9: 00:00:00 | DZ9: 00:00:00 | EA9: 00:00:00 | EB9: 00:00:00 | EC9: 00:00:00 | ED9: 00:00:00 | EE9: 00:00:00 | EF9: 00:00:00 | EG9: 00:00:00 | EH9: 00:00:00 | EI9: 00:00:00 | EJ9: 00:00:00 | EK9: 00:00:00 | EL9: 00:00:00 | EM9: 00:00:00 | EN9: 00:00:00 | EO9: 00:00:00 | EP9: 00:00:00 | EQ9: 00:00:00 | ER9: 00:00:00 | ES9: 00:00:00 | ET9: 00:00:00 | EU9: 00:00:00 | EV9: 00:00:00 | EW9: 00:00:00 | EX9: 00:00:00 | EY9: 00:00:00 | EZ9: 00:00:00 | FA9: 00:00:00 | FB9: 00:00:00 | FC9: 00:00:00 | FD9: 00:00:00 | FE9: 00:00:00 | FF9: 00:00:00 | FG9: 00:00:00 | FH9: 00:00:00 | FI9: 00:00:00 | FJ9: 00:00:00 | FK9: 00:00:00 | FL9: 00:00:00 | FM9: 00:00:00 | FN9: 00:00:00 | FO9: 00:00:00 | FP9: 00:00:00 | FQ9: 00:00:00 | FR9: 00:00:00 | FS9: 00:00:00 | FT9: 00:00:00 | FU9: 00:00:00 | FV9: 00:00:00 | FW9: 00:00:00 | FX9: 00:00:00 | FY9: 00:00:00 | FZ9: 00:00:00 | GA9: 00:00:00 | GB9: 00:00:00 | GC9: 00:00:00 | GD9: 00:00:00 | GE9: 00:00:00 | GF9: 00:00:00 | GG9: 00:00:00 | GH9: 00:00:00 | GI9: 00:00:00 | GJ9: 00:00:00 | GK9: 00:00:00 | GL9: 00:00:00 | GM9: 00:00:00 | GN9: 00:00:00 | GO9: 00:00:00 | GP9: 00:00:00 | GQ9: 00:00:00 | GR9: 00:00:00 | GS9: 00:00:00 | GT9: 00:00:00 | GU9: 00:00:00 | GV9: 00:00:00 | GW9: 00:00:00 | GX9: 00:00:00 | GY9: 00:00:00 | GZ9: 00:00:00 | HA9: 00:00:00 | HB9: 00:00:00 | HC9: 00:00:00 | HD9: 00:00:00 | HE9: 00:00:00 | HF9: 00:00:00 | HG9: 00:00:00 | HH9: 00:00:00 | HI9: 00:00:00 | HJ9: 00:00:00 | HK9: 00:00:00 | HL9: 00:00:00 | HM9: 00:00:00 | HN9: 00:00:00 | HO9: 00:00:00 | HP9: 00:00:00 | HQ9: 00:00:00 | HR9: 00:00:00 | HS9: 00:00:00 | HT9: 00:00:00 | HU9: 00:00:00 | HV9: 00:00:00 | HW9: 00:00:00 | HX9: 00:00:00 | HY9: 00:00:00 | HZ9: 00:00:00 | IA9: 00:00:00 | IB9: 00:00:00 | IC9: 00:00:00 | ID9: 00:00:00 | IE9: 00:00:00 | IF9: 00:00:00 | IG9: 00:00:00 | IH9: 00:00:00 | II9: 00:00:00 | IJ9: 00:00:00 | IK9: 00:00:00 | IL9: 00:00:00 | IM9: 00:00:00 | IN9: 00:00:00 | IO9: 00:00:00 | IP9: 00:00:00 | IQ9: 00:00:00 | IR9: 00:00:00 | IS9: 00:00:00 | IT9: 00:00:00 | IU9: 00:00:00 | IV9: 00:00:00 | IW9: 00:00:00 | IX9: 00:00:00 | IY9: 00:00:00 | IZ9: 00:00:00 | JA9: 00:00:00 | JB9: 00:00:00 | JC9: 00:00:00 | JD9: 00:00:00 | JE9: 00:00:00 | JF9: 00:00:00 | JG9: 00:00:00 | JH9: 00:00:00 | JI9: 00:00:00 | JJ9: 00:00:00 | JK9: 00:00:00 | JL9: 00:00:00 | JM9: 00:00:00 | JN9: 00:00:00 | JO9: 00:00:00 | JP9: 00:00:00 | JQ9: 00:00:00 | JR9: 00:00:00 | JS9: 00:00:00 | JT9: 00:00:00 | JU9: 00:00:00 | JV9: 00:00:00 | JW9: 00:00:00 | JX9: 00:00:00 | JY9: 00:00:00 | JZ9: 00:00:00 | KA9: 00:00:00 | KB9: 00:00:00 | KC9: 00:00:00 | KD9: 00:00:00 | KE9: 00:00:00 | KF9: 00:00:00 | KG9: 00:00:00 | KH9: 00:00:00 | KI9: 00:00:00 | KJ9: 00:00:00 | KK9: 00:00:00 | KL9: 00:00:00 | KM9: 00:00:00 | KN9: 00:00:00 | KO9: 00:00:00 | KP9: 00:00:00 | KQ9: 00:00:00 | KR9: 00:00:00 | KS9: 00:00:00 | KT9: 00:00:00 | KU9: 00:00:00 | KV9: 00:00:00 | KW9: 00:00:00 | KX9: 00:00:00 | KY9: 00:00:00 | KZ9: 00:00:00 | LA9: 00:00:00 | LB9: 00:00:00 | LC9: 00:00:00 | LD9: 00:00:00 | LE9: 00:00:00 | LF9: 00:00:00 | LG9: 00:00:00 | LH9: 00:00:00 | LI9: 00:00:00 | LJ9: 00:00:00 | LK9: 00:00:00 | LL9: 00:00:00 | LM9: 00:00:00 | LN9: 00:00:00 | LO9: 00:00:00 | LP9: 00:00:00 | LQ9: 00:00:00 | LR9: 00:00:00 | LS9: 00:00:00 | LT9: 00:00:00 | LU9: 00:00:00 | LV9: 00:00:00 | LW9: 00:00:00 | LX9: 00:00:00 | LY9: 00:00:00 | LZ9: 00:00:00 | MA9: 00:00:00 | MB9: 00:00:00 | MC9: 00:00:00 | MD9: 00:00:00 | ME9: 00:00:00 | MF9: 00:00:00 | MG9: 00:00:00 | MH9: 00:00:00 | MI9: 00:00:00 | MJ9: 00:00:00 | MK9: 00:00:00 | ML9: 00:00:00 | MM9: 00:00:00 | MN9: 00:00:00 | MO9: 00:00:00 | MP9: 00:00:00 | MQ9: 00:00:00 | MR9: 00:00:00 | MS9: 00:00:00 | MT9: 00:00:00 | MU9: 00:00:00 | MV9: 00:00:00 | MW9: 00:00:00 | MX9: 00:00:00
A10: Rate | B10: =SUM(C10:MX10) -> 18942.30668 | C10: =TRANSPOSE(Supporto!W23:W383) -> 28.38979167 | D10: 28.38979167 | E10: 28.38979167 | F10: 28.38979167 | G10: 28.38979167 | H10: 28.38979167 | I10: 782.1653304 | J10: 782.1653304 | K10: 782.1653304 | L10: 782.1653304 | M10: 782.1653304 | N10: 782.1653304 | O10: 782.1653304 | P10: 782.1653304 | Q10: 782.1653304 | R10: 782.1653304 | S10: 782.1653304 | T10: 782.1653304 | U10: 782.1653304 | V10: 782.1653304 | W10: 782.1653304 | X10: 782.1653304 | Y10: 782.1653304 | Z10: 782.1653304 | AA10: 782.1653304 | AB10: 782.1653304 | AC10: 782.1653304 | AD10: 782.1653304 | AE10: 782.1653304 | AF10: 782.1653304 | AG10: 0 | AH10: 0 | AI10: 0 | AJ10: 0 | AK10: 0 | AL10: 0 | AM10: 0 | AN10: 0 | AO10: 0 | AP10: 0 | AQ10: 0 | AR10: 0 | AS10: 0 | AT10: 0 | AU10: 0 | AV10: 0 | AW10: 0 | AX10: 0 | AY10: 0 | AZ10: 0 | BA10: 0 | BB10: 0 | BC10: 0 | BD10: 0 | BE10: 0 | BF10: 0 | BG10: 0 | BH10: 0 | BI10: 0 | BJ10: 0 | BK10: 0 | BL10: 0 | BM10: 0 | BN10: 0 | BO10: 0 | BP10: 0 | BQ10: 0 | BR10: 0 | BS10: 0 | BT10: 0 | BU10: 0 | BV10: 0 | BW10: 0 | BX10: 0 | BY10: 0 | BZ10: 0 | CA10: 0 | CB10: 0 | CC10: 0 | CD10: 0 | CE10: 0 | CF10: 0 | CG10: 0 | CH10: 0 | CI10: 0 | CJ10: 0 | CK10: 0 | CL10: 0 | CM10: 0 | CN10: 0 | CO10: 0 | CP10: 0 | CQ10: 0 | CR10: 0 | CS10: 0 | CT10: 0 | CU10: 0 | CV10: 0 | CW10: 0 | CX10: 0 | CY10: 0 | CZ10: 0 | DA10: 0 | DB10: 0 | DC10: 0 | DD10: 0 | DE10: 0 | DF10: 0 | DG10: 0 | DH10: 0 | DI10: 0 | DJ10: 0 | DK10: 0 | DL10: 0 | DM10: 0 | DN10: 0 | DO10: 0 | DP10: 0 | DQ10: 0 | DR10: 0 | DS10: 0 | DT10: 0 | DU10: 0 | DV10: 0 | DW10: 0 | DX10: 0 | DY10: 0 | DZ10: 0 | EA10: 0 | EB10: 0 | EC10: 0 | ED10: 0 | EE10: 0 | EF10: 0 | EG10: 0 | EH10: 0 | EI10: 0 | EJ10: 0 | EK10: 0 | EL10: 0 | EM10: 0 | EN10: 0 | EO10: 0 | EP10: 0 | EQ10: 0 | ER10: 0 | ES10: 0 | ET10: 0 | EU10: 0 | EV10: 0 | EW10: 0 | EX10: 0 | EY10: 0 | EZ10: 0 | FA10: 0 | FB10: 0 | FC10: 0 | FD10: 0 | FE10: 0 | FF10: 0 | FG10: 0 | FH10: 0 | FI10: 0 | FJ10: 0 | FK10: 0 | FL10: 0 | FM10: 0 | FN10: 0 | FO10: 0 | FP10: 0 | FQ10: 0 | FR10: 0 | FS10: 0 | FT10: 0 | FU10: 0 | FV10: 0 | FW10: 0 | FX10: 0 | FY10: 0 | FZ10: 0 | GA10: 0 | GB10: 0 | GC10: 0 | GD10: 0 | GE10: 0 | GF10: 0 | GG10: 0 | GH10: 0 | GI10: 0 | GJ10: 0 | GK10: 0 | GL10: 0 | GM10: 0 | GN10: 0 | GO10: 0 | GP10: 0 | GQ10: 0 | GR10: 0 | GS10: 0 | GT10: 0 | GU10: 0 | GV10: 0 | GW10: 0 | GX10: 0 | GY10: 0 | GZ10: 0 | HA10: 0 | HB10: 0 | HC10: 0 | HD10: 0 | HE10: 0 | HF10: 0 | HG10: 0 | HH10: 0 | HI10: 0 | HJ10: 0 | HK10: 0 | HL10: 0 | HM10: 0 | HN10: 0 | HO10: 0 | HP10: 0 | HQ10: 0 | HR10: 0 | HS10: 0 | HT10: 0 | HU10: 0 | HV10: 0 | HW10: 0 | HX10: 0 | HY10: 0 | HZ10: 0 | IA10: 0 | IB10: 0 | IC10: 0 | ID10: 0 | IE10: 0 | IF10: 0 | IG10: 0 | IH10: 0 | II10: 0 | IJ10: 0 | IK10: 0 | IL10: 0 | IM10: 0 | IN10: 0 | IO10: 0 | IP10: 0 | IQ10: 0 | IR10: 0 | IS10: 0 | IT10: 0 | IU10: 0 | IV10: 0 | IW10: 0 | IX10: 0 | IY10: 0 | IZ10: 0 | JA10: 0 | JB10: 0 | JC10: 0 | JD10: 0 | JE10: 0 | JF10: 0 | JG10: 0 | JH10: 0 | JI10: 0 | JJ10: 0 | JK10: 0 | JL10: 0 | JM10: 0 | JN10: 0 | JO10: 0 | JP10: 0 | JQ10: 0 | JR10: 0 | JS10: 0 | JT10: 0 | JU10: 0 | JV10: 0 | JW10: 0 | JX10: 0 | JY10: 0 | JZ10: 0 | KA10: 0 | KB10: 0 | KC10: 0 | KD10: 0 | KE10: 0 | KF10: 0 | KG10: 0 | KH10: 0 | KI10: 0 | KJ10: 0 | KK10: 0 | KL10: 0 | KM10: 0 | KN10: 0 | KO10: 0 | KP10: 0 | KQ10: 0 | KR10: 0 | KS10: 0 | KT10: 0 | KU10: 0 | KV10: 0 | KW10: 0 | KX10: 0 | KY10: 0 | KZ10: 0 | LA10: 0 | LB10: 0 | LC10: 0 | LD10: 0 | LE10: 0 | LF10: 0 | LG10: 0 | LH10: 0 | LI10: 0 | LJ10: 0 | LK10: 0 | LL10: 0 | LM10: 0 | LN10: 0 | LO10: 0 | LP10: 0 | LQ10: 0 | LR10: 0 | LS10: 0 | LT10: 0 | LU10: 0 | LV10: 0 | LW10: 0 | LX10: 0 | LY10: 0 | LZ10: 0 | MA10: 0 | MB10: 0 | MC10: 0 | MD10: 0 | ME10: 0 | MF10: 0 | MG10: 0 | MH10: 0 | MI10: 0 | MJ10: 0 | MK10: 0 | ML10: 0 | MM10: 0 | MN10: 0 | MO10: 0 | MP10: 0 | MQ10: 0 | MR10: 0 | MS10: 0 | MT10: 0 | MU10: 0 | MV10: 0 | MW10: 0 | MX10: 0
A11: Mutuo 4
A12: Date | C12: =TRANSPOSE(Supporto!Z23:Z383) -> 2020-04-01 | D12: 2020-05-01 | E12: 2020-06-01 | F12: 2020-07-01 | G12: 2020-08-01 | H12: 2020-09-01 | I12: 2020-10-01 | J12: 2020-11-01 | K12: 2020-12-01 | L12: 2021-01-01 | M12: 2021-02-01 | N12: 2021-03-01 | O12: 2021-04-01 | P12: 2021-05-01 | Q12: 2021-06-01 | R12: 2021-07-01 | S12: 2021-08-01 | T12: 2021-09-01 | U12: 2021-10-01 | V12: 2021-11-01 | W12: 2021-12-01 | X12: 2022-01-01 | Y12: 2022-02-01 | Z12: 2022-03-01 | AA12: 2022-04-01 | AB12: 2022-05-01 | AC12: 2022-06-01 | AD12: 2022-07-01 | AE12: 2022-08-01 | AF12: 2022-09-01 | AG12: 2022-10-01 | AH12: 2022-11-01 | AI12: 2022-12-01 | AJ12: 2023-01-01 | AK12: 2023-02-01 | AL12: 2023-03-01 | AM12: 2023-04-01 | AN12: 2023-05-01 | AO12: 2023-06-01 | AP12: 2023-07-01 | AQ12: 00:00:00 | AR12: 00:00:00 | AS12: 00:00:00 | AT12: 00:00:00 | AU12: 00:00:00 | AV12: 00:00:00 | AW12: 00:00:00 | AX12: 00:00:00 | AY12: 00:00:00 | AZ12: 00:00:00 | BA12: 00:00:00 | BB12: 00:00:00 | BC12: 00:00:00 | BD12: 00:00:00 | BE12: 00:00:00 | BF12: 00:00:00 | BG12: 00:00:00 | BH12: 00:00:00 | BI12: 00:00:00 | BJ12: 00:00:00 | BK12: 00:00:00 | BL12: 00:00:00 | BM12: 00:00:00 | BN12: 00:00:00 | BO12: 00:00:00 | BP12: 00:00:00 | BQ12: 00:00:00 | BR12: 00:00:00 | BS12: 00:00:00 | BT12: 00:00:00 | BU12: 00:00:00 | BV12: 00:00:00 | BW12: 00:00:00 | BX12: 00:00:00 | BY12: 00:00:00 | BZ12: 00:00:00 | CA12: 00:00:00 | CB12: 00:00:00 | CC12: 00:00:00 | CD12: 00:00:00 | CE12: 00:00:00 | CF12: 00:00:00 | CG12: 00:00:00 | CH12: 00:00:00 | CI12: 00:00:00 | CJ12: 00:00:00 | CK12: 00:00:00 | CL12: 00:00:00 | CM12: 00:00:00 | CN12: 00:00:00 | CO12: 00:00:00 | CP12: 00:00:00 | CQ12: 00:00:00 | CR12: 00:00:00 | CS12: 00:00:00 | CT12: 00:00:00 | CU12: 00:00:00 | CV12: 00:00:00 | CW12: 00:00:00 | CX12: 00:00:00 | CY12: 00:00:00 | CZ12: 00:00:00 | DA12: 00:00:00 | DB12: 00:00:00 | DC12: 00:00:00 | DD12: 00:00:00 | DE12: 00:00:00 | DF12: 00:00:00 | DG12: 00:00:00 | DH12: 00:00:00 | DI12: 00:00:00 | DJ12: 00:00:00 | DK12: 00:00:00 | DL12: 00:00:00 | DM12: 00:00:00 | DN12: 00:00:00 | DO12: 00:00:00 | DP12: 00:00:00 | DQ12: 00:00:00 | DR12: 00:00:00 | DS12: 00:00:00 | DT12: 00:00:00 | DU12: 00:00:00 | DV12: 00:00:00 | DW12: 00:00:00 | DX12: 00:00:00 | DY12: 00:00:00 | DZ12: 00:00:00 | EA12: 00:00:00 | EB12: 00:00:00 | EC12: 00:00:00 | ED12: 00:00:00 | EE12: 00:00:00 | EF12: 00:00:00 | EG12: 00:00:00 | EH12: 00:00:00 | EI12: 00:00:00 | EJ12: 00:00:00 | EK12: 00:00:00 | EL12: 00:00:00 | EM12: 00:00:00 | EN12: 00:00:00 | EO12: 00:00:00 | EP12: 00:00:00 | EQ12: 00:00:00 | ER12: 00:00:00 | ES12: 00:00:00 | ET12: 00:00:00 | EU12: 00:00:00 | EV12: 00:00:00 | EW12: 00:00:00 | EX12: 00:00:00 | EY12: 00:00:00 | EZ12: 00:00:00 | FA12: 00:00:00 | FB12: 00:00:00 | FC12: 00:00:00 | FD12: 00:00:00 | FE12: 00:00:00 | FF12: 00:00:00 | FG12: 00:00:00 | FH12: 00:00:00 | FI12: 00:00:00 | FJ12: 00:00:00 | FK12: 00:00:00 | FL12: 00:00:00 | FM12: 00:00:00 | FN12: 00:00:00 | FO12: 00:00:00 | FP12: 00:00:00 | FQ12: 00:00:00 | FR12: 00:00:00 | FS12: 00:00:00 | FT12: 00:00:00 | FU12: 00:00:00 | FV12: 00:00:00 | FW12: 00:00:00 | FX12: 00:00:00 | FY12: 00:00:00 | FZ12: 00:00:00 | GA12: 00:00:00 | GB12: 00:00:00 | GC12: 00:00:00 | GD12: 00:00:00 | GE12: 00:00:00 | GF12: 00:00:00 | GG12: 00:00:00 | GH12: 00:00:00 | GI12: 00:00:00 | GJ12: 00:00:00 | GK12: 00:00:00 | GL12: 00:00:00 | GM12: 00:00:00 | GN12: 00:00:00 | GO12: 00:00:00 | GP12: 00:00:00 | GQ12: 00:00:00 | GR12: 00:00:00 | GS12: 00:00:00 | GT12: 00:00:00 | GU12: 00:00:00 | GV12: 00:00:00 | GW12: 00:00:00 | GX12: 00:00:00 | GY12: 00:00:00 | GZ12: 00:00:00 | HA12: 00:00:00 | HB12: 00:00:00 | HC12: 00:00:00 | HD12: 00:00:00 | HE12: 00:00:00 | HF12: 00:00:00 | HG12: 00:00:00 | HH12: 00:00:00 | HI12: 00:00:00 | HJ12: 00:00:00 | HK12: 00:00:00 | HL12: 00:00:00 | HM12: 00:00:00 | HN12: 00:00:00 | HO12: 00:00:00 | HP12: 00:00:00 | HQ12: 00:00:00 | HR12: 00:00:00 | HS12: 00:00:00 | HT12: 00:00:00 | HU12: 00:00:00 | HV12: 00:00:00 | HW12: 00:00:00 | HX12: 00:00:00 | HY12: 00:00:00 | HZ12: 00:00:00 | IA12: 00:00:00 | IB12: 00:00:00 | IC12: 00:00:00 | ID12: 00:00:00 | IE12: 00:00:00 | IF12: 00:00:00 | IG12: 00:00:00 | IH12: 00:00:00 | II12: 00:00:00 | IJ12: 00:00:00 | IK12: 00:00:00 | IL12: 00:00:00 | IM12: 00:00:00 | IN12: 00:00:00 | IO12: 00:00:00 | IP12: 00:00:00 | IQ12: 00:00:00 | IR12: 00:00:00 | IS12: 00:00:00 | IT12: 00:00:00 | IU12: 00:00:00 | IV12: 00:00:00 | IW12: 00:00:00 | IX12: 00:00:00 | IY12: 00:00:00 | IZ12: 00:00:00 | JA12: 00:00:00 | JB12: 00:00:00 | JC12: 00:00:00 | JD12: 00:00:00 | JE12: 00:00:00 | JF12: 00:00:00 | JG12: 00:00:00 | JH12: 00:00:00 | JI12: 00:00:00 | JJ12: 00:00:00 | JK12: 00:00:00 | JL12: 00:00:00 | JM12: 00:00:00 | JN12: 00:00:00 | JO12: 00:00:00 | JP12: 00:00:00 | JQ12: 00:00:00 | JR12: 00:00:00 | JS12: 00:00:00 | JT12: 00:00:00 | JU12: 00:00:00 | JV12: 00:00:00 | JW12: 00:00:00 | JX12: 00:00:00 | JY12: 00:00:00 | JZ12: 00:00:00 | KA12: 00:00:00 | KB12: 00:00:00 | KC12: 00:00:00 | KD12: 00:00:00 | KE12: 00:00:00 | KF12: 00:00:00 | KG12: 00:00:00 | KH12: 00:00:00 | KI12: 00:00:00 | KJ12: 00:00:00 | KK12: 00:00:00 | KL12: 00:00:00 | KM12: 00:00:00 | KN12: 00:00:00 | KO12: 00:00:00 | KP12: 00:00:00 | KQ12: 00:00:00 | KR12: 00:00:00 | KS12: 00:00:00 | KT12: 00:00:00 | KU12: 00:00:00 | KV12: 00:00:00 | KW12: 00:00:00 | KX12: 00:00:00 | KY12: 00:00:00 | KZ12: 00:00:00 | LA12: 00:00:00 | LB12: 00:00:00 | LC12: 00:00:00 | LD12: 00:00:00 | LE12: 00:00:00 | LF12: 00:00:00 | LG12: 00:00:00 | LH12: 00:00:00 | LI12: 00:00:00 | LJ12: 00:00:00 | LK12: 00:00:00 | LL12: 00:00:00 | LM12: 00:00:00 | LN12: 00:00:00 | LO12: 00:00:00 | LP12: 00:00:00 | LQ12: 00:00:00 | LR12: 00:00:00 | LS12: 00:00:00 | LT12: 00:00:00 | LU12: 00:00:00 | LV12: 00:00:00 | LW12: 00:00:00 | LX12: 00:00:00 | LY12: 00:00:00 | LZ12: 00:00:00 | MA12: 00:00:00 | MB12: 00:00:00 | MC12: 00:00:00 | MD12: 00:00:00 | ME12: 00:00:00 | MF12: 00:00:00 | MG12: 00:00:00 | MH12: 00:00:00 | MI12: 00:00:00 | MJ12: 00:00:00 | MK12: 00:00:00 | ML12: 00:00:00 | MM12: 00:00:00 | MN12: 00:00:00 | MO12: 00:00:00 | MP12: 00:00:00 | MQ12: 00:00:00 | MR12: 00:00:00 | MS12: 00:00:00 | MT12: 00:00:00 | MU12: 00:00:00 | MV12: 00:00:00 | MW12: 00:00:00 | MX12: 00:00:00
A13: Rate | B13: =SUM(C13:MX13) -> 19747.54855 | C13: =TRANSPOSE(Supporto!AE23:AE383) -> 38.262875 | D13: 38.262875 | E13: 38.262875 | F13: 38.262875 | G13: 38.262875 | H13: 38.262875 | I13: 485.8226852 | J13: 485.8226852 | K13: 485.8226852 | L13: 485.8226852 | M13: 485.8226852 | N13: 485.8226852 | O13: 485.8226852 | P13: 485.8226852 | Q13: 485.8226852 | R13: 485.8226852 | S13: 485.8226852 | T13: 485.8226852 | U13: 485.8226852 | V13: 485.8226852 | W13: 485.8226852 | X13: 485.8226852 | Y13: 485.8226852 | Z13: 485.8226852 | AA13: 485.8226852 | AB13: 485.8226852 | AC13: 485.8226852 | AD13: 485.8226852 | AE13: 485.8226852 | AF13: 485.8226852 | AG13: 485.8226852 | AH13: 485.8226852 | AI13: 485.8226852 | AJ13: 485.8226852 | AK13: 485.8226852 | AL13: 485.8226852 | AM13: 485.8226852 | AN13: 485.8226852 | AO13: 485.8226852 | AP13: 485.8226852 | AQ13: 3000 | AR13: 0 | AS13: 0 | AT13: 0 | AU13: 0 | AV13: 0 | AW13: 0 | AX13: 0 | AY13: 0 | AZ13: 0 | BA13: 0 | BB13: 0 | BC13: 0 | BD13: 0 | BE13: 0 | BF13: 0 | BG13: 0 | BH13: 0 | BI13: 0 | BJ13: 0 | BK13: 0 | BL13: 0 | BM13: 0 | BN13: 0 | BO13: 0 | BP13: 0 | BQ13: 0 | BR13: 0 | BS13: 0 | BT13: 0 | BU13: 0 | BV13: 0 | BW13: 0 | BX13: 0 | BY13: 0 | BZ13: 0 | CA13: 0 | CB13: 0 | CC13: 0 | CD13: 0 | CE13: 0 | CF13: 0 | CG13: 0 | CH13: 0 | CI13: 0 | CJ13: 0 | CK13: 0 | CL13: 0 | CM13: 0 | CN13: 0 | CO13: 0 | CP13: 0 | CQ13: 0 | CR13: 0 | CS13: 0 | CT13: 0 | CU13: 0 | CV13: 0 | CW13: 0 | CX13: 0 | CY13: 0 | CZ13: 0 | DA13: 0 | DB13: 0 | DC13: 0 | DD13: 0 | DE13: 0 | DF13: 0 | DG13: 0 | DH13: 0 | DI13: 0 | DJ13: 0 | DK13: 0 | DL13: 0 | DM13: 0 | DN13: 0 | DO13: 0 | DP13: 0 | DQ13: 0 | DR13: 0 | DS13: 0 | DT13: 0 | DU13: 0 | DV13: 0 | DW13: 0 | DX13: 0 | DY13: 0 | DZ13: 0 | EA13: 0 | EB13: 0 | EC13: 0 | ED13: 0 | EE13: 0 | EF13: 0 | EG13: 0 | EH13: 0 | EI13: 0 | EJ13: 0 | EK13: 0 | EL13: 0 | EM13: 0 | EN13: 0 | EO13: 0 | EP13: 0 | EQ13: 0 | ER13: 0 | ES13: 0 | ET13: 0 | EU13: 0 | EV13: 0 | EW13: 0 | EX13: 0 | EY13: 0 | EZ13: 0 | FA13: 0 | FB13: 0 | FC13: 0 | FD13: 0 | FE13: 0 | FF13: 0 | FG13: 0 | FH13: 0 | FI13: 0 | FJ13: 0 | FK13: 0 | FL13: 0 | FM13: 0 | FN13: 0 | FO13: 0 | FP13: 0 | FQ13: 0 | FR13: 0 | FS13: 0 | FT13: 0 | FU13: 0 | FV13: 0 | FW13: 0 | FX13: 0 | FY13: 0 | FZ13: 0 | GA13: 0 | GB13: 0 | GC13: 0 | GD13: 0 | GE13: 0 | GF13: 0 | GG13: 0 | GH13: 0 | GI13: 0 | GJ13: 0 | GK13: 0 | GL13: 0 | GM13: 0 | GN13: 0 | GO13: 0 | GP13: 0 | GQ13: 0 | GR13: 0 | GS13: 0 | GT13: 0 | GU13: 0 | GV13: 0 | GW13: 0 | GX13: 0 | GY13: 0 | GZ13: 0 | HA13: 0 | HB13: 0 | HC13: 0 | HD13: 0 | HE13: 0 | HF13: 0 | HG13: 0 | HH13: 0 | HI13: 0 | HJ13: 0 | HK13: 0 | HL13: 0 | HM13: 0 | HN13: 0 | HO13: 0 | HP13: 0 | HQ13: 0 | HR13: 0 | HS13: 0 | HT13: 0 | HU13: 0 | HV13: 0 | HW13: 0 | HX13: 0 | HY13: 0 | HZ13: 0 | IA13: 0 | IB13: 0 | IC13: 0 | ID13: 0 | IE13: 0 | IF13: 0 | IG13: 0 | IH13: 0 | II13: 0 | IJ13: 0 | IK13: 0 | IL13: 0 | IM13: 0 | IN13: 0 | IO13: 0 | IP13: 0 | IQ13: 0 | IR13: 0 | IS13: 0 | IT13: 0 | IU13: 0 | IV13: 0 | IW13: 0 | IX13: 0 | IY13: 0 | IZ13: 0 | JA13: 0 | JB13: 0 | JC13: 0 | JD13: 0 | JE13: 0 | JF13: 0 | JG13: 0 | JH13: 0 | JI13: 0 | JJ13: 0 | JK13: 0 | JL13: 0 | JM13: 0 | JN13: 0 | JO13: 0 | JP13: 0 | JQ13: 0 | JR13: 0 | JS13: 0 | JT13: 0 | JU13: 0 | JV13: 0 | JW13: 0 | JX13: 0 | JY13: 0 | JZ13: 0 | KA13: 0 | KB13: 0 | KC13: 0 | KD13: 0 | KE13: 0 | KF13: 0 | KG13: 0 | KH13: 0 | KI13: 0 | KJ13: 0 | KK13: 0 | KL13: 0 | KM13: 0 | KN13: 0 | KO13: 0 | KP13: 0 | KQ13: 0 | KR13: 0 | KS13: 0 | KT13: 0 | KU13: 0 | KV13: 0 | KW13: 0 | KX13: 0 | KY13: 0 | KZ13: 0 | LA13: 0 | LB13: 0 | LC13: 0 | LD13: 0 | LE13: 0 | LF13: 0 | LG13: 0 | LH13: 0 | LI13: 0 | LJ13: 0 | LK13: 0 | LL13: 0 | LM13: 0 | LN13: 0 | LO13: 0 | LP13: 0 | LQ13: 0 | LR13: 0 | LS13: 0 | LT13: 0 | LU13: 0 | LV13: 0 | LW13: 0 | LX13: 0 | LY13: 0 | LZ13: 0 | MA13: 0 | MB13: 0 | MC13: 0 | MD13: 0 | ME13: 0 | MF13: 0 | MG13: 0 | MH13: 0 | MI13: 0 | MJ13: 0 | MK13: 0 | ML13: 0 | MM13: 0 | MN13: 0 | MO13: 0 | MP13: 0 | MQ13: 0 | MR13: 0 | MS13: 0 | MT13: 0 | MU13: 0 | MV13: 0 | MW13: 0 | MX13: 0
A14: Mutuo 5
A15: Date | C15: =TRANSPOSE(Supporto!AH23:AH383) -> 00:00:00 | D15: 00:00:00 | E15: 00:00:00 | F15: 00:00:00 | G15: 00:00:00 | H15: 00:00:00 | I15: 00:00:00 | J15: 00:00:00 | K15: 00:00:00 | L15: 00:00:00 | M15: 00:00:00 | N15: 00:00:00 | O15: 00:00:00 | P15: 00:00:00 | Q15: 00:00:00 | R15: 00:00:00 | S15: 00:00:00 | T15: 00:00:00 | U15: 00:00:00 | V15: 00:00:00 | W15: 00:00:00 | X15: 00:00:00 | Y15: 00:00:00 | Z15: 00:00:00 | AA15: 00:00:00 | AB15: 00:00:00 | AC15: 00:00:00 | AD15: 00:00:00 | AE15: 00:00:00 | AF15: 00:00:00 | AG15: 00:00:00 | AH15: 00:00:00 | AI15: 00:00:00 | AJ15: 00:00:00 | AK15: 00:00:00 | AL15: 00:00:00 | AM15: 00:00:00 | AN15: 00:00:00 | AO15: 00:00:00 | AP15: 00:00:00 | AQ15: 00:00:00 | AR15: 00:00:00 | AS15: 00:00:00 | AT15: 00:00:00 | AU15: 00:00:00 | AV15: 00:00:00 | AW15: 00:00:00 | AX15: 00:00:00 | AY15: 00:00:00 | AZ15: 00:00:00 | BA15: 00:00:00 | BB15: 00:00:00 | BC15: 00:00:00 | BD15: 00:00:00 | BE15: 00:00:00 | BF15: 00:00:00 | BG15: 00:00:00 | BH15: 00:00:00 | BI15: 00:00:00 | BJ15: 00:00:00 | BK15: 00:00:00 | BL15: 00:00:00 | BM15: 00:00:00 | BN15: 00:00:00 | BO15: 00:00:00 | BP15: 00:00:00 | BQ15: 00:00:00 | BR15: 00:00:00 | BS15: 00:00:00 | BT15: 00:00:00 | BU15: 00:00:00 | BV15: 00:00:00 | BW15: 00:00:00 | BX15: 00:00:00 | BY15: 00:00:00 | BZ15: 00:00:00 | CA15: 00:00:00 | CB15: 00:00:00 | CC15: 00:00:00 | CD15: 00:00:00 | CE15: 00:00:00 | CF15: 00:00:00 | CG15: 00:00:00 | CH15: 00:00:00 | CI15: 00:00:00 | CJ15: 00:00:00 | CK15: 00:00:00 | CL15: 00:00:00 | CM15: 00:00:00 | CN15: 00:00:00 | CO15: 00:00:00 | CP15: 00:00:00 | CQ15: 00:00:00 | CR15: 00:00:00 | CS15: 00:00:00 | CT15: 00:00:00 | CU15: 00:00:00 | CV15: 00:00:00 | CW15: 00:00:00 | CX15: 00:00:00 | CY15: 00:00:00 | CZ15: 00:00:00 | DA15: 00:00:00 | DB15: 00:00:00 | DC15: 00:00:00 | DD15: 00:00:00 | DE15: 00:00:00 | DF15: 00:00:00 | DG15: 00:00:00 | DH15: 00:00:00 | DI15: 00:00:00 | DJ15: 00:00:00 | DK15: 00:00:00 | DL15: 00:00:00 | DM15: 00:00:00 | DN15: 00:00:00 | DO15: 00:00:00 | DP15: 00:00:00 | DQ15: 00:00:00 | DR15: 00:00:00 | DS15: 00:00:00 | DT15: 00:00:00 | DU15: 00:00:00 | DV15: 00:00:00 | DW15: 00:00:00 | DX15: 00:00:00 | DY15: 00:00:00 | DZ15: 00:00:00 | EA15: 00:00:00 | EB15: 00:00:00 | EC15: 00:00:00 | ED15: 00:00:00 | EE15: 00:00:00 | EF15: 00:00:00 | EG15: 00:00:00 | EH15: 00:00:00 | EI15: 00:00:00 | EJ15: 00:00:00 | EK15: 00:00:00 | EL15: 00:00:00 | EM15: 00:00:00 | EN15: 00:00:00 | EO15: 00:00:00 | EP15: 00:00:00 | EQ15: 00:00:00 | ER15: 00:00:00 | ES15: 00:00:00 | ET15: 00:00:00 | EU15: 00:00:00 | EV15: 00:00:00 | EW15: 00:00:00 | EX15: 00:00:00 | EY15: 00:00:00 | EZ15: 00:00:00 | FA15: 00:00:00 | FB15: 00:00:00 | FC15: 00:00:00 | FD15: 00:00:00 | FE15: 00:00:00 | FF15: 00:00:00 | FG15: 00:00:00 | FH15: 00:00:00 | FI15: 00:00:00 | FJ15: 00:00:00 | FK15: 00:00:00 | FL15: 00:00:00 | FM15: 00:00:00 | FN15: 00:00:00 | FO15: 00:00:00 | FP15: 00:00:00 | FQ15: 00:00:00 | FR15: 00:00:00 | FS15: 00:00:00 | FT15: 00:00:00 | FU15: 00:00:00 | FV15: 00:00:00 | FW15: 00:00:00 | FX15: 00:00:00 | FY15: 00:00:00 | FZ15: 00:00:00 | GA15: 00:00:00 | GB15: 00:00:00 | GC15: 00:00:00 | GD15: 00:00:00 | GE15: 00:00:00 | GF15: 00:00:00 | GG15: 00:00:00 | GH15: 00:00:00 | GI15: 00:00:00 | GJ15: 00:00:00 | GK15: 00:00:00 | GL15: 00:00:00 | GM15: 00:00:00 | GN15: 00:00:00 | GO15: 00:00:00 | GP15: 00:00:00 | GQ15: 00:00:00 | GR15: 00:00:00 | GS15: 00:00:00 | GT15: 00:00:00 | GU15: 00:00:00 | GV15: 00:00:00 | GW15: 00:00:00 | GX15: 00:00:00 | GY15: 00:00:00 | GZ15: 00:00:00 | HA15: 00:00:00 | HB15: 00:00:00 | HC15: 00:00:00 | HD15: 00:00:00 | HE15: 00:00:00 | HF15: 00:00:00 | HG15: 00:00:00 | HH15: 00:00:00 | HI15: 00:00:00 | HJ15: 00:00:00 | HK15: 00:00:00 | HL15: 00:00:00 | HM15: 00:00:00 | HN15: 00:00:00 | HO15: 00:00:00 | HP15: 00:00:00 | HQ15: 00:00:00 | HR15: 00:00:00 | HS15: 00:00:00 | HT15: 00:00:00 | HU15: 00:00:00 | HV15: 00:00:00 | HW15: 00:00:00 | HX15: 00:00:00 | HY15: 00:00:00 | HZ15: 00:00:00 | IA15: 00:00:00 | IB15: 00:00:00 | IC15: 00:00:00 | ID15: 00:00:00 | IE15: 00:00:00 | IF15: 00:00:00 | IG15: 00:00:00 | IH15: 00:00:00 | II15: 00:00:00 | IJ15: 00:00:00 | IK15: 00:00:00 | IL15: 00:00:00 | IM15: 00:00:00 | IN15: 00:00:00 | IO15: 00:00:00 | IP15: 00:00:00 | IQ15: 00:00:00 | IR15: 00:00:00 | IS15: 00:00:00 | IT15: 00:00:00 | IU15: 00:00:00 | IV15: 00:00:00 | IW15: 00:00:00 | IX15: 00:00:00 | IY15: 00:00:00 | IZ15: 00:00:00 | JA15: 00:00:00 | JB15: 00:00:00 | JC15: 00:00:00 | JD15: 00:00:00 | JE15: 00:00:00 | JF15: 00:00:00 | JG15: 00:00:00 | JH15: 00:00:00 | JI15: 00:00:00 | JJ15: 00:00:00 | JK15: 00:00:00 | JL15: 00:00:00 | JM15: 00:00:00 | JN15: 00:00:00 | JO15: 00:00:00 | JP15: 00:00:00 | JQ15: 00:00:00 | JR15: 00:00:00 | JS15: 00:00:00 | JT15: 00:00:00 | JU15: 00:00:00 | JV15: 00:00:00 | JW15: 00:00:00 | JX15: 00:00:00 | JY15: 00:00:00 | JZ15: 00:00:00 | KA15: 00:00:00 | KB15: 00:00:00 | KC15: 00:00:00 | KD15: 00:00:00 | KE15: 00:00:00 | KF15: 00:00:00 | KG15: 00:00:00 | KH15: 00:00:00 | KI15: 00:00:00 | KJ15: 00:00:00 | KK15: 00:00:00 | KL15: 00:00:00 | KM15: 00:00:00 | KN15: 00:00:00 | KO15: 00:00:00 | KP15: 00:00:00 | KQ15: 00:00:00 | KR15: 00:00:00 | KS15: 00:00:00 | KT15: 00:00:00 | KU15: 00:00:00 | KV15: 00:00:00 | KW15: 00:00:00 | KX15: 00:00:00 | KY15: 00:00:00 | KZ15: 00:00:00 | LA15: 00:00:00 | LB15: 00:00:00 | LC15: 00:00:00 | LD15: 00:00:00 | LE15: 00:00:00 | LF15: 00:00:00 | LG15: 00:00:00 | LH15: 00:00:00 | LI15: 00:00:00 | LJ15: 00:00:00 | LK15: 00:00:00 | LL15: 00:00:00 | LM15: 00:00:00 | LN15: 00:00:00 | LO15: 00:00:00 | LP15: 00:00:00 | LQ15: 00:00:00 | LR15: 00:00:00 | LS15: 00:00:00 | LT15: 00:00:00 | LU15: 00:00:00 | LV15: 00:00:00 | LW15: 00:00:00 | LX15: 00:00:00 | LY15: 00:00:00 | LZ15: 00:00:00 | MA15: 00:00:00 | MB15: 00:00:00 | MC15: 00:00:00 | MD15: 00:00:00 | ME15: 00:00:00 | MF15: 00:00:00 | MG15: 00:00:00 | MH15: 00:00:00 | MI15: 00:00:00 | MJ15: 00:00:00 | MK15: 00:00:00 | ML15: 00:00:00 | MM15: 00:00:00 | MN15: 00:00:00 | MO15: 00:00:00 | MP15: 00:00:00 | MQ15: 00:00:00 | MR15: 00:00:00 | MS15: 00:00:00 | MT15: 00:00:00 | MU15: 00:00:00 | MV15: 00:00:00 | MW15: 00:00:00 | MX15: 00:00:00
A16: Rate | B16: =SUM(C16:MX16) -> 0 | C16: =TRANSPOSE(Supporto!AM23:AM383) -> 0 | D16: 0 | E16: 0 | F16: 0 | G16: 0 | H16: 0 | I16: 0 | J16: 0 | K16: 0 | L16: 0 | M16: 0 | N16: 0 | O16: 0 | P16: 0 | Q16: 0 | R16: 0 | S16: 0 | T16: 0 | U16: 0 | V16: 0 | W16: 0 | X16: 0 | Y16: 0 | Z16: 0 | AA16: 0 | AB16: 0 | AC16: 0 | AD16: 0 | AE16: 0 | AF16: 0 | AG16: 0 | AH16: 0 | AI16: 0 | AJ16: 0 | AK16: 0 | AL16: 0 | AM16: 0 | AN16: 0 | AO16: 0 | AP16: 0 | AQ16: 0 | AR16: 0 | AS16: 0 | AT16: 0 | AU16: 0 | AV16: 0 | AW16: 0 | AX16: 0 | AY16: 0 | AZ16: 0 | BA16: 0 | BB16: 0 | BC16: 0 | BD16: 0 | BE16: 0 | BF16: 0 | BG16: 0 | BH16: 0 | BI16: 0 | BJ16: 0 | BK16: 0 | BL16: 0 | BM16: 0 | BN16: 0 | BO16: 0 | BP16: 0 | BQ16: 0 | BR16: 0 | BS16: 0 | BT16: 0 | BU16: 0 | BV16: 0 | BW16: 0 | BX16: 0 | BY16: 0 | BZ16: 0 | CA16: 0 | CB16: 0 | CC16: 0 | CD16: 0 | CE16: 0 | CF16: 0 | CG16: 0 | CH16: 0 | CI16: 0 | CJ16: 0 | CK16: 0 | CL16: 0 | CM16: 0 | CN16: 0 | CO16: 0 | CP16: 0 | CQ16: 0 | CR16: 0 | CS16: 0 | CT16: 0 | CU16: 0 | CV16: 0 | CW16: 0 | CX16: 0 | CY16: 0 | CZ16: 0 | DA16: 0 | DB16: 0 | DC16: 0 | DD16: 0 | DE16: 0 | DF16: 0 | DG16: 0 | DH16: 0 | DI16: 0 | DJ16: 0 | DK16: 0 | DL16: 0 | DM16: 0 | DN16: 0 | DO16: 0 | DP16: 0 | DQ16: 0 | DR16: 0 | DS16: 0 | DT16: 0 | DU16: 0 | DV16: 0 | DW16: 0 | DX16: 0 | DY16: 0 | DZ16: 0 | EA16: 0 | EB16: 0 | EC16: 0 | ED16: 0 | EE16: 0 | EF16: 0 | EG16: 0 | EH16: 0 | EI16: 0 | EJ16: 0 | EK16: 0 | EL16: 0 | EM16: 0 | EN16: 0 | EO16: 0 | EP16: 0 | EQ16: 0 | ER16: 0 | ES16: 0 | ET16: 0 | EU16: 0 | EV16: 0 | EW16: 0 | EX16: 0 | EY16: 0 | EZ16: 0 | FA16: 0 | FB16: 0 | FC16: 0 | FD16: 0 | FE16: 0 | FF16: 0 | FG16: 0 | FH16: 0 | FI16: 0 | FJ16: 0 | FK16: 0 | FL16: 0 | FM16: 0 | FN16: 0 | FO16: 0 | FP16: 0 | FQ16: 0 | FR16: 0 | FS16: 0 | FT16: 0 | FU16: 0 | FV16: 0 | FW16: 0 | FX16: 0 | FY16: 0 | FZ16: 0 | GA16: 0 | GB16: 0 | GC16: 0 | GD16: 0 | GE16: 0 | GF16: 0 | GG16: 0 | GH16: 0 | GI16: 0 | GJ16: 0 | GK16: 0 | GL16: 0 | GM16: 0 | GN16: 0 | GO16: 0 | GP16: 0 | GQ16: 0 | GR16: 0 | GS16: 0 | GT16: 0 | GU16: 0 | GV16: 0 | GW16: 0 | GX16: 0 | GY16: 0 | GZ16: 0 | HA16: 0 | HB16: 0 | HC16: 0 | HD16: 0 | HE16: 0 | HF16: 0 | HG16: 0 | HH16: 0 | HI16: 0 | HJ16: 0 | HK16: 0 | HL16: 0 | HM16: 0 | HN16: 0 | HO16: 0 | HP16: 0 | HQ16: 0 | HR16: 0 | HS16: 0 | HT16: 0 | HU16: 0 | HV16: 0 | HW16: 0 | HX16: 0 | HY16: 0 | HZ16: 0 | IA16: 0 | IB16: 0 | IC16: 0 | ID16: 0 | IE16: 0 | IF16: 0 | IG16: 0 | IH16: 0 | II16: 0 | IJ16: 0 | IK16: 0 | IL16: 0 | IM16: 0 | IN16: 0 | IO16: 0 | IP16: 0 | IQ16: 0 | IR16: 0 | IS16: 0 | IT16: 0 | IU16: 0 | IV16: 0 | IW16: 0 | IX16: 0 | IY16: 0 | IZ16: 0 | JA16: 0 | JB16: 0 | JC16: 0 | JD16: 0 | JE16: 0 | JF16: 0 | JG16: 0 | JH16: 0 | JI16: 0 | JJ16: 0 | JK16: 0 | JL16: 0 | JM16: 0 | JN16: 0 | JO16: 0 | JP16: 0 | JQ16: 0 | JR16: 0 | JS16: 0 | JT16: 0 | JU16: 0 | JV16: 0 | JW16: 0 | JX16: 0 | JY16: 0 | JZ16: 0 | KA16: 0 | KB16: 0 | KC16: 0 | KD16: 0 | KE16: 0 | KF16: 0 | KG16: 0 | KH16: 0 | KI16: 0 | KJ16: 0 | KK16: 0 | KL16: 0 | KM16: 0 | KN16: 0 | KO16: 0 | KP16: 0 | KQ16: 0 | KR16: 0 | KS16: 0 | KT16: 0 | KU16: 0 | KV16: 0 | KW16: 0 | KX16: 0 | KY16: 0 | KZ16: 0 | LA16: 0 | LB16: 0 | LC16: 0 | LD16: 0 | LE16: 0 | LF16: 0 | LG16: 0 | LH16: 0 | LI16: 0 | LJ16: 0 | LK16: 0 | LL16: 0 | LM16: 0 | LN16: 0 | LO16: 0 | LP16: 0 | LQ16: 0 | LR16: 0 | LS16: 0 | LT16: 0 | LU16: 0 | LV16: 0 | LW16: 0 | LX16: 0 | LY16: 0 | LZ16: 0 | MA16: 0 | MB16: 0 | MC16: 0 | MD16: 0 | ME16: 0 | MF16: 0 | MG16: 0 | MH16: 0 | MI16: 0 | MJ16: 0 | MK16: 0 | ML16: 0 | MM16: 0 | MN16: 0 | MO16: 0 | MP16: 0 | MQ16: 0 | MR16: 0 | MS16: 0 | MT16: 0 | MU16: 0 | MV16: 0 | MW16: 0 | MX16: 0
A17: Mutuo 6
A18: Date | C18: =TRANSPOSE(Supporto!AP23:AP383) -> 00:00:00 | D18: 00:00:00 | E18: 00:00:00 | F18: 00:00:00 | G18: 00:00:00 | H18: 00:00:00 | I18: 00:00:00 | J18: 00:00:00 | K18: 00:00:00 | L18: 00:00:00 | M18: 00:00:00 | N18: 00:00:00 | O18: 00:00:00 | P18: 00:00:00 | Q18: 00:00:00 | R18: 00:00:00 | S18: 00:00:00 | T18: 00:00:00 | U18: 00:00:00 | V18: 00:00:00 | W18: 00:00:00 | X18: 00:00:00 | Y18: 00:00:00 | Z18: 00:00:00 | AA18: 00:00:00 | AB18: 00:00:00 | AC18: 00:00:00 | AD18: 00:00:00 | AE18: 00:00:00 | AF18: 00:00:00 | AG18: 00:00:00 | AH18: 00:00:00 | AI18: 00:00:00 | AJ18: 00:00:00 | AK18: 00:00:00 | AL18: 00:00:00 | AM18: 00:00:00 | AN18: 00:00:00 | AO18: 00:00:00 | AP18: 00:00:00 | AQ18: 00:00:00 | AR18: 00:00:00 | AS18: 00:00:00 | AT18: 00:00:00 | AU18: 00:00:00 | AV18: 00:00:00 | AW18: 00:00:00 | AX18: 00:00:00 | AY18: 00:00:00 | AZ18: 00:00:00 | BA18: 00:00:00 | BB18: 00:00:00 | BC18: 00:00:00 | BD18: 00:00:00 | BE18: 00:00:00 | BF18: 00:00:00 | BG18: 00:00:00 | BH18: 00:00:00 | BI18: 00:00:00 | BJ18: 00:00:00 | BK18: 00:00:00 | BL18: 00:00:00 | BM18: 00:00:00 | BN18: 00:00:00 | BO18: 00:00:00 | BP18: 00:00:00 | BQ18: 00:00:00 | BR18: 00:00:00 | BS18: 00:00:00 | BT18: 00:00:00 | BU18: 00:00:00 | BV18: 00:00:00 | BW18: 00:00:00 | BX18: 00:00:00 | BY18: 00:00:00 | BZ18: 00:00:00 | CA18: 00:00:00 | CB18: 00:00:00 | CC18: 00:00:00 | CD18: 00:00:00 | CE18: 00:00:00 | CF18: 00:00:00 | CG18: 00:00:00 | CH18: 00:00:00 | CI18: 00:00:00 | CJ18: 00:00:00 | CK18: 00:00:00 | CL18: 00:00:00 | CM18: 00:00:00 | CN18: 00:00:00 | CO18: 00:00:00 | CP18: 00:00:00 | CQ18: 00:00:00 | CR18: 00:00:00 | CS18: 00:00:00 | CT18: 00:00:00 | CU18: 00:00:00 | CV18: 00:00:00 | CW18: 00:00:00 | CX18: 00:00:00 | CY18: 00:00:00 | CZ18: 00:00:00 | DA18: 00:00:00 | DB18: 00:00:00 | DC18: 00:00:00 | DD18: 00:00:00 | DE18: 00:00:00 | DF18: 00:00:00 | DG18: 00:00:00 | DH18: 00:00:00 | DI18: 00:00:00 | DJ18: 00:00:00 | DK18: 00:00:00 | DL18: 00:00:00 | DM18: 00:00:00 | DN18: 00:00:00 | DO18: 00:00:00 | DP18: 00:00:00 | DQ18: 00:00:00 | DR18: 00:00:00 | DS18: 00:00:00 | DT18: 00:00:00 | DU18: 00:00:00 | DV18: 00:00:00 | DW18: 00:00:00 | DX18: 00:00:00 | DY18: 00:00:00 | DZ18: 00:00:00 | EA18: 00:00:00 | EB18: 00:00:00 | EC18: 00:00:00 | ED18: 00:00:00 | EE18: 00:00:00 | EF18: 00:00:00 | EG18: 00:00:00 | EH18: 00:00:00 | EI18: 00:00:00 | EJ18: 00:00:00 | EK18: 00:00:00 | EL18: 00:00:00 | EM18: 00:00:00 | EN18: 00:00:00 | EO18: 00:00:00 | EP18: 00:00:00 | EQ18: 00:00:00 | ER18: 00:00:00 | ES18: 00:00:00 | ET18: 00:00:00 | EU18: 00:00:00 | EV18: 00:00:00 | EW18: 00:00:00 | EX18: 00:00:00 | EY18: 00:00:00 | EZ18: 00:00:00 | FA18: 00:00:00 | FB18: 00:00:00 | FC18: 00:00:00 | FD18: 00:00:00 | FE18: 00:00:00 | FF18: 00:00:00 | FG18: 00:00:00 | FH18: 00:00:00 | FI18: 00:00:00 | FJ18: 00:00:00 | FK18: 00:00:00 | FL18: 00:00:00 | FM18: 00:00:00 | FN18: 00:00:00 | FO18: 00:00:00 | FP18: 00:00:00 | FQ18: 00:00:00 | FR18: 00:00:00 | FS18: 00:00:00 | FT18: 00:00:00 | FU18: 00:00:00 | FV18: 00:00:00 | FW18: 00:00:00 | FX18: 00:00:00 | FY18: 00:00:00 | FZ18: 00:00:00 | GA18: 00:00:00 | GB18: 00:00:00 | GC18: 00:00:00 | GD18: 00:00:00 | GE18: 00:00:00 | GF18: 00:00:00 | GG18: 00:00:00 | GH18: 00:00:00 | GI18: 00:00:00 | GJ18: 00:00:00 | GK18: 00:00:00 | GL18: 00:00:00 | GM18: 00:00:00 | GN18: 00:00:00 | GO18: 00:00:00 | GP18: 00:00:00 | GQ18: 00:00:00 | GR18: 00:00:00 | GS18: 00:00:00 | GT18: 00:00:00 | GU18: 00:00:00 | GV18: 00:00:00 | GW18: 00:00:00 | GX18: 00:00:00 | GY18: 00:00:00 | GZ18: 00:00:00 | HA18: 00:00:00 | HB18: 00:00:00 | HC18: 00:00:00 | HD18: 00:00:00 | HE18: 00:00:00 | HF18: 00:00:00 | HG18: 00:00:00 | HH18: 00:00:00 | HI18: 00:00:00 | HJ18: 00:00:00 | HK18: 00:00:00 | HL18: 00:00:00 | HM18: 00:00:00 | HN18: 00:00:00 | HO18: 00:00:00 | HP18: 00:00:00 | HQ18: 00:00:00 | HR18: 00:00:00 | HS18: 00:00:00 | HT18: 00:00:00 | HU18: 00:00:00 | HV18: 00:00:00 | HW18: 00:00:00 | HX18: 00:00:00 | HY18: 00:00:00 | HZ18: 00:00:00 | IA18: 00:00:00 | IB18: 00:00:00 | IC18: 00:00:00 | ID18: 00:00:00 | IE18: 00:00:00 | IF18: 00:00:00 | IG18: 00:00:00 | IH18: 00:00:00 | II18: 00:00:00 | IJ18: 00:00:00 | IK18: 00:00:00 | IL18: 00:00:00 | IM18: 00:00:00 | IN18: 00:00:00 | IO18: 00:00:00 | IP18: 00:00:00 | IQ18: 00:00:00 | IR18: 00:00:00 | IS18: 00:00:00 | IT18: 00:00:00 | IU18: 00:00:00 | IV18: 00:00:00 | IW18: 00:00:00 | IX18: 00:00:00 | IY18: 00:00:00 | IZ18: 00:00:00 | JA18: 00:00:00 | JB18: 00:00:00 | JC18: 00:00:00 | JD18: 00:00:00 | JE18: 00:00:00 | JF18: 00:00:00 | JG18: 00:00:00 | JH18: 00:00:00 | JI18: 00:00:00 | JJ18: 00:00:00 | JK18: 00:00:00 | JL18: 00:00:00 | JM18: 00:00:00 | JN18: 00:00:00 | JO18: 00:00:00 | JP18: 00:00:00 | JQ18: 00:00:00 | JR18: 00:00:00 | JS18: 00:00:00 | JT18: 00:00:00 | JU18: 00:00:00 | JV18: 00:00:00 | JW18: 00:00:00 | JX18: 00:00:00 | JY18: 00:00:00 | JZ18: 00:00:00 | KA18: 00:00:00 | KB18: 00:00:00 | KC18: 00:00:00 | KD18: 00:00:00 | KE18: 00:00:00 | KF18: 00:00:00 | KG18: 00:00:00 | KH18: 00:00:00 | KI18: 00:00:00 | KJ18: 00:00:00 | KK18: 00:00:00 | KL18: 00:00:00 | KM18: 00:00:00 | KN18: 00:00:00 | KO18: 00:00:00 | KP18: 00:00:00 | KQ18: 00:00:00 | KR18: 00:00:00 | KS18: 00:00:00 | KT18: 00:00:00 | KU18: 00:00:00 | KV18: 00:00:00 | KW18: 00:00:00 | KX18: 00:00:00 | KY18: 00:00:00 | KZ18: 00:00:00 | LA18: 00:00:00 | LB18: 00:00:00 | LC18: 00:00:00 | LD18: 00:00:00 | LE18: 00:00:00 | LF18: 00:00:00 | LG18: 00:00:00 | LH18: 00:00:00 | LI18: 00:00:00 | LJ18: 00:00:00 | LK18: 00:00:00 | LL18: 00:00:00 | LM18: 00:00:00 | LN18: 00:00:00 | LO18: 00:00:00 | LP18: 00:00:00 | LQ18: 00:00:00 | LR18: 00:00:00 | LS18: 00:00:00 | LT18: 00:00:00 | LU18: 00:00:00 | LV18: 00:00:00 | LW18: 00:00:00 | LX18: 00:00:00 | LY18: 00:00:00 | LZ18: 00:00:00 | MA18: 00:00:00 | MB18: 00:00:00 | MC18: 00:00:00 | MD18: 00:00:00 | ME18: 00:00:00 | MF18: 00:00:00 | MG18: 00:00:00 | MH18: 00:00:00 | MI18: 00:00:00 | MJ18: 00:00:00 | MK18: 00:00:00 | ML18: 00:00:00 | MM18: 00:00:00 | MN18: 00:00:00 | MO18: 00:00:00 | MP18: 00:00:00 | MQ18: 00:00:00 | MR18: 00:00:00 | MS18: 00:00:00 | MT18: 00:00:00 | MU18: 00:00:00 | MV18: 00:00:00 | MW18: 00:00:00 | MX18: 00:00:00
A19: Rate | B19: =SUM(C19:MX19) -> 0 | C19: =TRANSPOSE(Supporto!AU23:AU383) -> 0 | D19: 0 | E19: 0 | F19: 0 | G19: 0 | H19: 0 | I19: 0 | J19: 0 | K19: 0 | L19: 0 | M19: 0 | N19: 0 | O19: 0 | P19: 0 | Q19: 0 | R19: 0 | S19: 0 | T19: 0 | U19: 0 | V19: 0 | W19: 0 | X19: 0 | Y19: 0 | Z19: 0 | AA19: 0 | AB19: 0 | AC19: 0 | AD19: 0 | AE19: 0 | AF19: 0 | AG19: 0 | AH19: 0 | AI19: 0 | AJ19: 0 | AK19: 0 | AL19: 0 | AM19: 0 | AN19: 0 | AO19: 0 | AP19: 0 | AQ19: 0 | AR19: 0 | AS19: 0 | AT19: 0 | AU19: 0 | AV19: 0 | AW19: 0 | AX19: 0 | AY19: 0 | AZ19: 0 | BA19: 0 | BB19: 0 | BC19: 0 | BD19: 0 | BE19: 0 | BF19: 0 | BG19: 0 | BH19: 0 | BI19: 0 | BJ19: 0 | BK19: 0 | BL19: 0 | BM19: 0 | BN19: 0 | BO19: 0 | BP19: 0 | BQ19: 0 | BR19: 0 | BS19: 0 | BT19: 0 | BU19: 0 | BV19: 0 | BW19: 0 | BX19: 0 | BY19: 0 | BZ19: 0 | CA19: 0 | CB19: 0 | CC19: 0 | CD19: 0 | CE19: 0 | CF19: 0 | CG19: 0 | CH19: 0 | CI19: 0 | CJ19: 0 | CK19: 0 | CL19: 0 | CM19: 0 | CN19: 0 | CO19: 0 | CP19: 0 | CQ19: 0 | CR19: 0 | CS19: 0 | CT19: 0 | CU19: 0 | CV19: 0 | CW19: 0 | CX19: 0 | CY19: 0 | CZ19: 0 | DA19: 0 | DB19: 0 | DC19: 0 | DD19: 0 | DE19: 0 | DF19: 0 | DG19: 0 | DH19: 0 | DI19: 0 | DJ19: 0 | DK19: 0 | DL19: 0 | DM19: 0 | DN19: 0 | DO19: 0 | DP19: 0 | DQ19: 0 | DR19: 0 | DS19: 0 | DT19: 0 | DU19: 0 | DV19: 0 | DW19: 0 | DX19: 0 | DY19: 0 | DZ19: 0 | EA19: 0 | EB19: 0 | EC19: 0 | ED19: 0 | EE19: 0 | EF19: 0 | EG19: 0 | EH19: 0 | EI19: 0 | EJ19: 0 | EK19: 0 | EL19: 0 | EM19: 0 | EN19: 0 | EO19: 0 | EP19: 0 | EQ19: 0 | ER19: 0 | ES19: 0 | ET19: 0 | EU19: 0 | EV19: 0 | EW19: 0 | EX19: 0 | EY19: 0 | EZ19: 0 | FA19: 0 | FB19: 0 | FC19: 0 | FD19: 0 | FE19: 0 | FF19: 0 | FG19: 0 | FH19: 0 | FI19: 0 | FJ19: 0 | FK19: 0 | FL19: 0 | FM19: 0 | FN19: 0 | FO19: 0 | FP19: 0 | FQ19: 0 | FR19: 0 | FS19: 0 | FT19: 0 | FU19: 0 | FV19: 0 | FW19: 0 | FX19: 0 | FY19: 0 | FZ19: 0 | GA19: 0 | GB19: 0 | GC19: 0 | GD19: 0 | GE19: 0 | GF19: 0 | GG19: 0 | GH19: 0 | GI19: 0 | GJ19: 0 | GK19: 0 | GL19: 0 | GM19: 0 | GN19: 0 | GO19: 0 | GP19: 0 | GQ19: 0 | GR19: 0 | GS19: 0 | GT19: 0 | GU19: 0 | GV19: 0 | GW19: 0 | GX19: 0 | GY19: 0 | GZ19: 0 | HA19: 0 | HB19: 0 | HC19: 0 | HD19: 0 | HE19: 0 | HF19: 0 | HG19: 0 | HH19: 0 | HI19: 0 | HJ19: 0 | HK19: 0 | HL19: 0 | HM19: 0 | HN19: 0 | HO19: 0 | HP19: 0 | HQ19: 0 | HR19: 0 | HS19: 0 | HT19: 0 | HU19: 0 | HV19: 0 | HW19: 0 | HX19: 0 | HY19: 0 | HZ19: 0 | IA19: 0 | IB19: 0 | IC19: 0 | ID19: 0 | IE19: 0 | IF19: 0 | IG19: 0 | IH19: 0 | II19: 0 | IJ19: 0 | IK19: 0 | IL19: 0 | IM19: 0 | IN19: 0 | IO19: 0 | IP19: 0 | IQ19: 0 | IR19: 0 | IS19: 0 | IT19: 0 | IU19: 0 | IV19: 0 | IW19: 0 | IX19: 0 | IY19: 0 | IZ19: 0 | JA19: 0 | JB19: 0 | JC19: 0 | JD19: 0 | JE19: 0 | JF19: 0 | JG19: 0 | JH19: 0 | JI19: 0 | JJ19: 0 | JK19: 0 | JL19: 0 | JM19: 0 | JN19: 0 | JO19: 0 | JP19: 0 | JQ19: 0 | JR19: 0 | JS19: 0 | JT19: 0 | JU19: 0 | JV19: 0 | JW19: 0 | JX19: 0 | JY19: 0 | JZ19: 0 | KA19: 0 | KB19: 0 | KC19: 0 | KD19: 0 | KE19: 0 | KF19: 0 | KG19: 0 | KH19: 0 | KI19: 0 | KJ19: 0 | KK19: 0 | KL19: 0 | KM19: 0 | KN19: 0 | KO19: 0 | KP19: 0 | KQ19: 0 | KR19: 0 | KS19: 0 | KT19: 0 | KU19: 0 | KV19: 0 | KW19: 0 | KX19: 0 | KY19: 0 | KZ19: 0 | LA19: 0 | LB19: 0 | LC19: 0 | LD19: 0 | LE19: 0 | LF19: 0 | LG19: 0 | LH19: 0 | LI19: 0 | LJ19: 0 | LK19: 0 | LL19: 0 | LM19: 0 | LN19: 0 | LO19: 0 | LP19: 0 | LQ19: 0 | LR19: 0 | LS19: 0 | LT19: 0 | LU19: 0 | LV19: 0 | LW19: 0 | LX19: 0 | LY19: 0 | LZ19: 0 | MA19: 0 | MB19: 0 | MC19: 0 | MD19: 0 | ME19: 0 | MF19: 0 | MG19: 0 | MH19: 0 | MI19: 0 | MJ19: 0 | MK19: 0 | ML19: 0 | MM19: 0 | MN19: 0 | MO19: 0 | MP19: 0 | MQ19: 0 | MR19: 0 | MS19: 0 | MT19: 0 | MU19: 0 | MV19: 0 | MW19: 0 | MX19: 0
A20: Mutuo 7
A21: Date | C21: =TRANSPOSE(Supporto!AX23:AX383) -> 00:00:00 | D21: 00:00:00 | E21: 00:00:00 | F21: 00:00:00 | G21: 00:00:00 | H21: 00:00:00 | I21: 00:00:00 | J21: 00:00:00 | K21: 00:00:00 | L21: 00:00:00 | M21: 00:00:00 | N21: 00:00:00 | O21: 00:00:00 | P21: 00:00:00 | Q21: 00:00:00 | R21: 00:00:00 | S21: 00:00:00 | T21: 00:00:00 | U21: 00:00:00 | V21: 00:00:00 | W21: 00:00:00 | X21: 00:00:00 | Y21: 00:00:00 | Z21: 00:00:00 | AA21: 00:00:00 | AB21: 00:00:00 | AC21: 00:00:00 | AD21: 00:00:00 | AE21: 00:00:00 | AF21: 00:00:00 | AG21: 00:00:00 | AH21: 00:00:00 | AI21: 00:00:00 | AJ21: 00:00:00 | AK21: 00:00:00 | AL21: 00:00:00 | AM21: 00:00:00 | AN21: 00:00:00 | AO21: 00:00:00 | AP21: 00:00:00 | AQ21: 00:00:00 | AR21: 00:00:00 | AS21: 00:00:00 | AT21: 00:00:00 | AU21: 00:00:00 | AV21: 00:00:00 | AW21: 00:00:00 | AX21: 00:00:00 | AY21: 00:00:00 | AZ21: 00:00:00 | BA21: 00:00:00 | BB21: 00:00:00 | BC21: 00:00:00 | BD21: 00:00:00 | BE21: 00:00:00 | BF21: 00:00:00 | BG21: 00:00:00 | BH21: 00:00:00 | BI21: 00:00:00 | BJ21: 00:00:00 | BK21: 00:00:00 | BL21: 00:00:00 | BM21: 00:00:00 | BN21: 00:00:00 | BO21: 00:00:00 | BP21: 00:00:00 | BQ21: 00:00:00 | BR21: 00:00:00 | BS21: 00:00:00 | BT21: 00:00:00 | BU21: 00:00:00 | BV21: 00:00:00 | BW21: 00:00:00 | BX21: 00:00:00 | BY21: 00:00:00 | BZ21: 00:00:00 | CA21: 00:00:00 | CB21: 00:00:00 | CC21: 00:00:00 | CD21: 00:00:00 | CE21: 00:00:00 | CF21: 00:00:00 | CG21: 00:00:00 | CH21: 00:00:00 | CI21: 00:00:00 | CJ21: 00:00:00 | CK21: 00:00:00 | CL21: 00:00:00 | CM21: 00:00:00 | CN21: 00:00:00 | CO21: 00:00:00 | CP21: 00:00:00 | CQ21: 00:00:00 | CR21: 00:00:00 | CS21: 00:00:00 | CT21: 00:00:00 | CU21: 00:00:00 | CV21: 00:00:00 | CW21: 00:00:00 | CX21: 00:00:00 | CY21: 00:00:00 | CZ21: 00:00:00 | DA21: 00:00:00 | DB21: 00:00:00 | DC21: 00:00:00 | DD21: 00:00:00 | DE21: 00:00:00 | DF21: 00:00:00 | DG21: 00:00:00 | DH21: 00:00:00 | DI21: 00:00:00 | DJ21: 00:00:00 | DK21: 00:00:00 | DL21: 00:00:00 | DM21: 00:00:00 | DN21: 00:00:00 | DO21: 00:00:00 | DP21: 00:00:00 | DQ21: 00:00:00 | DR21: 00:00:00 | DS21: 00:00:00 | DT21: 00:00:00 | DU21: 00:00:00 | DV21: 00:00:00 | DW21: 00:00:00 | DX21: 00:00:00 | DY21: 00:00:00 | DZ21: 00:00:00 | EA21: 00:00:00 | EB21: 00:00:00 | EC21: 00:00:00 | ED21: 00:00:00 | EE21: 00:00:00 | EF21: 00:00:00 | EG21: 00:00:00 | EH21: 00:00:00 | EI21: 00:00:00 | EJ21: 00:00:00 | EK21: 00:00:00 | EL21: 00:00:00 | EM21: 00:00:00 | EN21: 00:00:00 | EO21: 00:00:00 | EP21: 00:00:00 | EQ21: 00:00:00 | ER21: 00:00:00 | ES21: 00:00:00 | ET21: 00:00:00 | EU21: 00:00:00 | EV21: 00:00:00 | EW21: 00:00:00 | EX21: 00:00:00 | EY21: 00:00:00 | EZ21: 00:00:00 | FA21: 00:00:00 | FB21: 00:00:00 | FC21: 00:00:00 | FD21: 00:00:00 | FE21: 00:00:00 | FF21: 00:00:00 | FG21: 00:00:00 | FH21: 00:00:00 | FI21: 00:00:00 | FJ21: 00:00:00 | FK21: 00:00:00 | FL21: 00:00:00 | FM21: 00:00:00 | FN21: 00:00:00 | FO21: 00:00:00 | FP21: 00:00:00 | FQ21: 00:00:00 | FR21: 00:00:00 | FS21: 00:00:00 | FT21: 00:00:00 | FU21: 00:00:00 | FV21: 00:00:00 | FW21: 00:00:00 | FX21: 00:00:00 | FY21: 00:00:00 | FZ21: 00:00:00 | GA21: 00:00:00 | GB21: 00:00:00 | GC21: 00:00:00 | GD21: 00:00:00 | GE21: 00:00:00 | GF21: 00:00:00 | GG21: 00:00:00 | GH21: 00:00:00 | GI21: 00:00:00 | GJ21: 00:00:00 | GK21: 00:00:00 | GL21: 00:00:00 | GM21: 00:00:00 | GN21: 00:00:00 | GO21: 00:00:00 | GP21: 00:00:00 | GQ21: 00:00:00 | GR21: 00:00:00 | GS21: 00:00:00 | GT21: 00:00:00 | GU21: 00:00:00 | GV21: 00:00:00 | GW21: 00:00:00 | GX21: 00:00:00 | GY21: 00:00:00 | GZ21: 00:00:00 | HA21: 00:00:00 | HB21: 00:00:00 | HC21: 00:00:00 | HD21: 00:00:00 | HE21: 00:00:00 | HF21: 00:00:00 | HG21: 00:00:00 | HH21: 00:00:00 | HI21: 00:00:00 | HJ21: 00:00:00 | HK21: 00:00:00 | HL21: 00:00:00 | HM21: 00:00:00 | HN21: 00:00:00 | HO21: 00:00:00 | HP21: 00:00:00 | HQ21: 00:00:00 | HR21: 00:00:00 | HS21: 00:00:00 | HT21: 00:00:00 | HU21: 00:00:00 | HV21: 00:00:00 | HW21: 00:00:00 | HX21: 00:00:00 | HY21: 00:00:00 | HZ21: 00:00:00 | IA21: 00:00:00 | IB21: 00:00:00 | IC21: 00:00:00 | ID21: 00:00:00 | IE21: 00:00:00 | IF21: 00:00:00 | IG21: 00:00:00 | IH21: 00:00:00 | II21: 00:00:00 | IJ21: 00:00:00 | IK21: 00:00:00 | IL21: 00:00:00 | IM21: 00:00:00 | IN21: 00:00:00 | IO21: 00:00:00 | IP21: 00:00:00 | IQ21: 00:00:00 | IR21: 00:00:00 | IS21: 00:00:00 | IT21: 00:00:00 | IU21: 00:00:00 | IV21: 00:00:00 | IW21: 00:00:00 | IX21: 00:00:00 | IY21: 00:00:00 | IZ21: 00:00:00 | JA21: 00:00:00 | JB21: 00:00:00 | JC21: 00:00:00 | JD21: 00:00:00 | JE21: 00:00:00 | JF21: 00:00:00 | JG21: 00:00:00 | JH21: 00:00:00 | JI21: 00:00:00 | JJ21: 00:00:00 | JK21: 00:00:00 | JL21: 00:00:00 | JM21: 00:00:00 | JN21: 00:00:00 | JO21: 00:00:00 | JP21: 00:00:00 | JQ21: 00:00:00 | JR21: 00:00:00 | JS21: 00:00:00 | JT21: 00:00:00 | JU21: 00:00:00 | JV21: 00:00:00 | JW21: 00:00:00 | JX21: 00:00:00 | JY21: 00:00:00 | JZ21: 00:00:00 | KA21: 00:00:00 | KB21: 00:00:00 | KC21: 00:00:00 | KD21: 00:00:00 | KE21: 00:00:00 | KF21: 00:00:00 | KG21: 00:00:00 | KH21: 00:00:00 | KI21: 00:00:00 | KJ21: 00:00:00 | KK21: 00:00:00 | KL21: 00:00:00 | KM21: 00:00:00 | KN21: 00:00:00 | KO21: 00:00:00 | KP21: 00:00:00 | KQ21: 00:00:00 | KR21: 00:00:00 | KS21: 00:00:00 | KT21: 00:00:00 | KU21: 00:00:00 | KV21: 00:00:00 | KW21: 00:00:00 | KX21: 00:00:00 | KY21: 00:00:00 | KZ21: 00:00:00 | LA21: 00:00:00 | LB21: 00:00:00 | LC21: 00:00:00 | LD21: 00:00:00 | LE21: 00:00:00 | LF21: 00:00:00 | LG21: 00:00:00 | LH21: 00:00:00 | LI21: 00:00:00 | LJ21: 00:00:00 | LK21: 00:00:00 | LL21: 00:00:00 | LM21: 00:00:00 | LN21: 00:00:00 | LO21: 00:00:00 | LP21: 00:00:00 | LQ21: 00:00:00 | LR21: 00:00:00 | LS21: 00:00:00 | LT21: 00:00:00 | LU21: 00:00:00 | LV21: 00:00:00 | LW21: 00:00:00 | LX21: 00:00:00 | LY21: 00:00:00 | LZ21: 00:00:00 | MA21: 00:00:00 | MB21: 00:00:00 | MC21: 00:00:00 | MD21: 00:00:00 | ME21: 00:00:00 | MF21: 00:00:00 | MG21: 00:00:00 | MH21: 00:00:00 | MI21: 00:00:00 | MJ21: 00:00:00 | MK21: 00:00:00 | ML21: 00:00:00 | MM21: 00:00:00 | MN21: 00:00:00 | MO21: 00:00:00 | MP21: 00:00:00 | MQ21: 00:00:00 | MR21: 00:00:00 | MS21: 00:00:00 | MT21: 00:00:00 | MU21: 00:00:00 | MV21: 00:00:00 | MW21: 00:00:00 | MX21: 00:00:00
A22: Rate | B22: =SUM(C22:MX22) -> 0 | C22: =TRANSPOSE(Supporto!BC23:BC383) -> 0 | D22: 0 | E22: 0 | F22: 0 | G22: 0 | H22: 0 | I22: 0 | J22: 0 | K22: 0 | L22: 0 | M22: 0 | N22: 0 | O22: 0 | P22: 0 | Q22: 0 | R22: 0 | S22: 0 | T22: 0 | U22: 0 | V22: 0 | W22: 0 | X22: 0 | Y22: 0 | Z22: 0 | AA22: 0 | AB22: 0 | AC22: 0 | AD22: 0 | AE22: 0 | AF22: 0 | AG22: 0 | AH22: 0 | AI22: 0 | AJ22: 0 | AK22: 0 | AL22: 0 | AM22: 0 | AN22: 0 | AO22: 0 | AP22: 0 | AQ22: 0 | AR22: 0 | AS22: 0 | AT22: 0 | AU22: 0 | AV22: 0 | AW22: 0 | AX22: 0 | AY22: 0 | AZ22: 0 | BA22: 0 | BB22: 0 | BC22: 0 | BD22: 0 | BE22: 0 | BF22: 0 | BG22: 0 | BH22: 0 | BI22: 0 | BJ22: 0 | BK22: 0 | BL22: 0 | BM22: 0 | BN22: 0 | BO22: 0 | BP22: 0 | BQ22: 0 | BR22: 0 | BS22: 0 | BT22: 0 | BU22: 0 | BV22: 0 | BW22: 0 | BX22: 0 | BY22: 0 | BZ22: 0 | CA22: 0 | CB22: 0 | CC22: 0 | CD22: 0 | CE22: 0 | CF22: 0 | CG22: 0 | CH22: 0 | CI22: 0 | CJ22: 0 | CK22: 0 | CL22: 0 | CM22: 0 | CN22: 0 | CO22: 0 | CP22: 0 | CQ22: 0 | CR22: 0 | CS22: 0 | CT22: 0 | CU22: 0 | CV22: 0 | CW22: 0 | CX22: 0 | CY22: 0 | CZ22: 0 | DA22: 0 | DB22: 0 | DC22: 0 | DD22: 0 | DE22: 0 | DF22: 0 | DG22: 0 | DH22: 0 | DI22: 0 | DJ22: 0 | DK22: 0 | DL22: 0 | DM22: 0 | DN22: 0 | DO22: 0 | DP22: 0 | DQ22: 0 | DR22: 0 | DS22: 0 | DT22: 0 | DU22: 0 | DV22: 0 | DW22: 0 | DX22: 0 | DY22: 0 | DZ22: 0 | EA22: 0 | EB22: 0 | EC22: 0 | ED22: 0 | EE22: 0 | EF22: 0 | EG22: 0 | EH22: 0 | EI22: 0 | EJ22: 0 | EK22: 0 | EL22: 0 | EM22: 0 | EN22: 0 | EO22: 0 | EP22: 0 | EQ22: 0 | ER22: 0 | ES22: 0 | ET22: 0 | EU22: 0 | EV22: 0 | EW22: 0 | EX22: 0 | EY22: 0 | EZ22: 0 | FA22: 0 | FB22: 0 | FC22: 0 | FD22: 0 | FE22: 0 | FF22: 0 | FG22: 0 | FH22: 0 | FI22: 0 | FJ22: 0 | FK22: 0 | FL22: 0 | FM22: 0 | FN22: 0 | FO22: 0 | FP22: 0 | FQ22: 0 | FR22: 0 | FS22: 0 | FT22: 0 | FU22: 0 | FV22: 0 | FW22: 0 | FX22: 0 | FY22: 0 | FZ22: 0 | GA22: 0 | GB22: 0 | GC22: 0 | GD22: 0 | GE22: 0 | GF22: 0 | GG22: 0 | GH22: 0 | GI22: 0 | GJ22: 0 | GK22: 0 | GL22: 0 | GM22: 0 | GN22: 0 | GO22: 0 | GP22: 0 | GQ22: 0 | GR22: 0 | GS22: 0 | GT22: 0 | GU22: 0 | GV22: 0 | GW22: 0 | GX22: 0 | GY22: 0 | GZ22: 0 | HA22: 0 | HB22: 0 | HC22: 0 | HD22: 0 | HE22: 0 | HF22: 0 | HG22: 0 | HH22: 0 | HI22: 0 | HJ22: 0 | HK22: 0 | HL22: 0 | HM22: 0 | HN22: 0 | HO22: 0 | HP22: 0 | HQ22: 0 | HR22: 0 | HS22: 0 | HT22: 0 | HU22: 0 | HV22: 0 | HW22: 0 | HX22: 0 | HY22: 0 | HZ22: 0 | IA22: 0 | IB22: 0 | IC22: 0 | ID22: 0 | IE22: 0 | IF22: 0 | IG22: 0 | IH22: 0 | II22: 0 | IJ22: 0 | IK22: 0 | IL22: 0 | IM22: 0 | IN22: 0 | IO22: 0 | IP22: 0 | IQ22: 0 | IR22: 0 | IS22: 0 | IT22: 0 | IU22: 0 | IV22: 0 | IW22: 0 | IX22: 0 | IY22: 0 | IZ22: 0 | JA22: 0 | JB22: 0 | JC22: 0 | JD22: 0 | JE22: 0 | JF22: 0 | JG22: 0 | JH22: 0 | JI22: 0 | JJ22: 0 | JK22: 0 | JL22: 0 | JM22: 0 | JN22: 0 | JO22: 0 | JP22: 0 | JQ22: 0 | JR22: 0 | JS22: 0 | JT22: 0 | JU22: 0 | JV22: 0 | JW22: 0 | JX22: 0 | JY22: 0 | JZ22: 0 | KA22: 0 | KB22: 0 | KC22: 0 | KD22: 0 | KE22: 0 | KF22: 0 | KG22: 0 | KH22: 0 | KI22: 0 | KJ22: 0 | KK22: 0 | KL22: 0 | KM22: 0 | KN22: 0 | KO22: 0 | KP22: 0 | KQ22: 0 | KR22: 0 | KS22: 0 | KT22: 0 | KU22: 0 | KV22: 0 | KW22: 0 | KX22: 0 | KY22: 0 | KZ22: 0 | LA22: 0 | LB22: 0 | LC22: 0 | LD22: 0 | LE22: 0 | LF22: 0 | LG22: 0 | LH22: 0 | LI22: 0 | LJ22: 0 | LK22: 0 | LL22: 0 | LM22: 0 | LN22: 0 | LO22: 0 | LP22: 0 | LQ22: 0 | LR22: 0 | LS22: 0 | LT22: 0 | LU22: 0 | LV22: 0 | LW22: 0 | LX22: 0 | LY22: 0 | LZ22: 0 | MA22: 0 | MB22: 0 | MC22: 0 | MD22: 0 | ME22: 0 | MF22: 0 | MG22: 0 | MH22: 0 | MI22: 0 | MJ22: 0 | MK22: 0 | ML22: 0 | MM22: 0 | MN22: 0 | MO22: 0 | MP22: 0 | MQ22: 0 | MR22: 0 | MS22: 0 | MT22: 0 | MU22: 0 | MV22: 0 | MW22: 0 | MX22: 0
A23: Mutuo New
A24: Date | C24: =TRANSPOSE(Supporto!BF23:BF383) -> 2020-05-20 | D24: 2020-06-20 | E24: 2020-07-20 | F24: 2020-08-20 | G24: 2020-09-20 | H24: 2020-10-20 | I24: 2020-11-20 | J24: 2020-12-20 | K24: 2021-01-20 | L24: 2021-02-20 | M24: 2021-03-20 | N24: 2021-04-20 | O24: 2021-05-20 | P24: 2021-06-20 | Q24: 2021-07-20 | R24: 2021-08-20 | S24: 2021-09-20 | T24: 2021-10-20 | U24: 2021-11-20 | V24: 2021-12-20 | W24: 2022-01-20 | X24: 2022-02-20 | Y24: 2022-03-20 | Z24: 2022-04-20 | AA24: 2022-05-20 | AB24: 2022-06-20 | AC24: 2022-07-20 | AD24: 2022-08-20 | AE24: 2022-09-20 | AF24: 2022-10-20 | AG24: 2022-11-20 | AH24: 2022-12-20 | AI24: 2023-01-20 | AJ24: 2023-02-20 | AK24: 2023-03-20 | AL24: 2023-04-20 | AM24: 2023-05-20 | AN24: 2023-06-20 | AO24: 2023-07-20 | AP24: 2023-08-20 | AQ24: 2023-09-20 | AR24: 2023-10-20 | AS24: 2023-11-20 | AT24: 2023-12-20 | AU24: 2024-01-20 | AV24: 2024-02-20 | AW24: 2024-03-20 | AX24: 2024-04-20 | AY24: 2024-05-20 | AZ24: 2024-06-20 | BA24: 2024-07-20 | BB24: 2024-08-20 | BC24: 2024-09-20 | BD24: 2024-10-20 | BE24: 2024-11-20 | BF24: 2024-12-20 | BG24: 2025-01-20 | BH24: 2025-02-20 | BI24: 2025-03-20 | BJ24: 2025-04-20 | BK24: 2025-05-20 | BL24: 2025-06-20 | BM24: 2025-07-20 | BN24: 2025-08-20 | BO24: 2025-09-20 | BP24: 2025-10-20 | BQ24: 2025-11-20 | BR24: 2025-12-20 | BS24: 2026-01-20 | BT24: 2026-02-20 | BU24: 2026-03-20 | BV24: 2026-04-20 | BW24: 00:00:00 | BX24: 00:00:00 | BY24: 00:00:00 | BZ24: 00:00:00 | CA24: 00:00:00 | CB24: 00:00:00 | CC24: 00:00:00 | CD24: 00:00:00 | CE24: 00:00:00 | CF24: 00:00:00 | CG24: 00:00:00 | CH24: 00:00:00 | CI24: 00:00:00 | CJ24: 00:00:00 | CK24: 00:00:00 | CL24: 00:00:00 | CM24: 00:00:00 | CN24: 00:00:00 | CO24: 00:00:00 | CP24: 00:00:00 | CQ24: 00:00:00 | CR24: 00:00:00 | CS24: 00:00:00 | CT24: 00:00:00 | CU24: 00:00:00 | CV24: 00:00:00 | CW24: 00:00:00 | CX24: 00:00:00 | CY24: 00:00:00 | CZ24: 00:00:00 | DA24: 00:00:00 | DB24: 00:00:00 | DC24: 00:00:00 | DD24: 00:00:00 | DE24: 00:00:00 | DF24: 00:00:00 | DG24: 00:00:00 | DH24: 00:00:00 | DI24: 00:00:00 | DJ24: 00:00:00 | DK24: 00:00:00 | DL24: 00:00:00 | DM24: 00:00:00 | DN24: 00:00:00 | DO24: 00:00:00 | DP24: 00:00:00 | DQ24: 00:00:00 | DR24: 00:00:00 | DS24: 00:00:00 | DT24: 00:00:00 | DU24: 00:00:00 | DV24: 00:00:00 | DW24: 00:00:00 | DX24: 00:00:00 | DY24: 00:00:00 | DZ24: 00:00:00 | EA24: 00:00:00 | EB24: 00:00:00 | EC24: 00:00:00 | ED24: 00:00:00 | EE24: 00:00:00 | EF24: 00:00:00 | EG24: 00:00:00 | EH24: 00:00:00 | EI24: 00:00:00 | EJ24: 00:00:00 | EK24: 00:00:00 | EL24: 00:00:00 | EM24: 00:00:00 | EN24: 00:00:00 | EO24: 00:00:00 | EP24: 00:00:00 | EQ24: 00:00:00 | ER24: 00:00:00 | ES24: 00:00:00 | ET24: 00:00:00 | EU24: 00:00:00 | EV24: 00:00:00 | EW24: 00:00:00 | EX24: 00:00:00 | EY24: 00:00:00 | EZ24: 00:00:00 | FA24: 00:00:00 | FB24: 00:00:00 | FC24: 00:00:00 | FD24: 00:00:00 | FE24: 00:00:00 | FF24: 00:00:00 | FG24: 00:00:00 | FH24: 00:00:00 | FI24: 00:00:00 | FJ24: 00:00:00 | FK24: 00:00:00 | FL24: 00:00:00 | FM24: 00:00:00 | FN24: 00:00:00 | FO24: 00:00:00 | FP24: 00:00:00 | FQ24: 00:00:00 | FR24: 00:00:00 | FS24: 00:00:00 | FT24: 00:00:00 | FU24: 00:00:00 | FV24: 00:00:00 | FW24: 00:00:00 | FX24: 00:00:00 | FY24: 00:00:00 | FZ24: 00:00:00 | GA24: 00:00:00 | GB24: 00:00:00 | GC24: 00:00:00 | GD24: 00:00:00 | GE24: 00:00:00 | GF24: 00:00:00 | GG24: 00:00:00 | GH24: 00:00:00 | GI24: 00:00:00 | GJ24: 00:00:00 | GK24: 00:00:00 | GL24: 00:00:00 | GM24: 00:00:00 | GN24: 00:00:00 | GO24: 00:00:00 | GP24: 00:00:00 | GQ24: 00:00:00 | GR24: 00:00:00 | GS24: 00:00:00 | GT24: 00:00:00 | GU24: 00:00:00 | GV24: 00:00:00 | GW24: 00:00:00 | GX24: 00:00:00 | GY24: 00:00:00 | GZ24: 00:00:00 | HA24: 00:00:00 | HB24: 00:00:00 | HC24: 00:00:00 | HD24: 00:00:00 | HE24: 00:00:00 | HF24: 00:00:00 | HG24: 00:00:00 | HH24: 00:00:00 | HI24: 00:00:00 | HJ24: 00:00:00 | HK24: 00:00:00 | HL24: 00:00:00 | HM24: 00:00:00 | HN24: 00:00:00 | HO24: 00:00:00 | HP24: 00:00:00 | HQ24: 00:00:00 | HR24: 00:00:00 | HS24: 00:00:00 | HT24: 00:00:00 | HU24: 00:00:00 | HV24: 00:00:00 | HW24: 00:00:00 | HX24: 00:00:00 | HY24: 00:00:00 | HZ24: 00:00:00 | IA24: 00:00:00 | IB24: 00:00:00 | IC24: 00:00:00 | ID24: 00:00:00 | IE24: 00:00:00 | IF24: 00:00:00 | IG24: 00:00:00 | IH24: 00:00:00 | II24: 00:00:00 | IJ24: 00:00:00 | IK24: 00:00:00 | IL24: 00:00:00 | IM24: 00:00:00 | IN24: 00:00:00 | IO24: 00:00:00 | IP24: 00:00:00 | IQ24: 00:00:00 | IR24: 00:00:00 | IS24: 00:00:00 | IT24: 00:00:00 | IU24: 00:00:00 | IV24: 00:00:00 | IW24: 00:00:00 | IX24: 00:00:00 | IY24: 00:00:00 | IZ24: 00:00:00 | JA24: 00:00:00 | JB24: 00:00:00 | JC24: 00:00:00 | JD24: 00:00:00 | JE24: 00:00:00 | JF24: 00:00:00 | JG24: 00:00:00 | JH24: 00:00:00 | JI24: 00:00:00 | JJ24: 00:00:00 | JK24: 00:00:00 | JL24: 00:00:00 | JM24: 00:00:00 | JN24: 00:00:00 | JO24: 00:00:00 | JP24: 00:00:00 | JQ24: 00:00:00 | JR24: 00:00:00 | JS24: 00:00:00 | JT24: 00:00:00 | JU24: 00:00:00 | JV24: 00:00:00 | JW24: 00:00:00 | JX24: 00:00:00 | JY24: 00:00:00 | JZ24: 00:00:00 | KA24: 00:00:00 | KB24: 00:00:00 | KC24: 00:00:00 | KD24: 00:00:00 | KE24: 00:00:00 | KF24: 00:00:00 | KG24: 00:00:00 | KH24: 00:00:00 | KI24: 00:00:00 | KJ24: 00:00:00 | KK24: 00:00:00 | KL24: 00:00:00 | KM24: 00:00:00 | KN24: 00:00:00 | KO24: 00:00:00 | KP24: 00:00:00 | KQ24: 00:00:00 | KR24: 00:00:00 | KS24: 00:00:00 | KT24: 00:00:00 | KU24: 00:00:00 | KV24: 00:00:00 | KW24: 00:00:00 | KX24: 00:00:00 | KY24: 00:00:00 | KZ24: 00:00:00 | LA24: 00:00:00 | LB24: 00:00:00 | LC24: 00:00:00 | LD24: 00:00:00 | LE24: 00:00:00 | LF24: 00:00:00 | LG24: 00:00:00 | LH24: 00:00:00 | LI24: 00:00:00 | LJ24: 00:00:00 | LK24: 00:00:00 | LL24: 00:00:00 | LM24: 00:00:00 | LN24: 00:00:00 | LO24: 00:00:00 | LP24: 00:00:00 | LQ24: 00:00:00 | LR24: 00:00:00 | LS24: 00:00:00 | LT24: 00:00:00 | LU24: 00:00:00 | LV24: 00:00:00 | LW24: 00:00:00 | LX24: 00:00:00 | LY24: 00:00:00 | LZ24: 00:00:00 | MA24: 00:00:00 | MB24: 00:00:00 | MC24: 00:00:00 | MD24: 00:00:00 | ME24: 00:00:00 | MF24: 00:00:00 | MG24: 00:00:00 | MH24: 00:00:00 | MI24: 00:00:00 | MJ24: 00:00:00 | MK24: 00:00:00 | ML24: 00:00:00 | MM24: 00:00:00 | MN24: 00:00:00 | MO24: 00:00:00 | MP24: 00:00:00 | MQ24: 00:00:00 | MR24: 00:00:00 | MS24: 00:00:00 | MT24: 00:00:00 | MU24: 00:00:00 | MV24: 00:00:00 | MW24: 00:00:00 | MX24: 00:00:00
A25: Rate | B25: =SUM(C25:MX25) -> 18690.74959 | C25: =TRANSPOSE(Supporto!BK23:BK383) -> 27.70833333 | D25: 27.70833333 | E25: 27.70833333 | F25: 27.70833333 | G25: 27.70833333 | H25: 27.70833333 | I25: 27.70833333 | J25: 27.70833333 | K25: 27.70833333 | L25: 27.70833333 | M25: 27.70833333 | N25: 27.70833333 | O25: 305.9708265 | P25: 305.9708265 | Q25: 305.9708265 | R25: 305.9708265 | S25: 305.9708265 | T25: 305.9708265 | U25: 305.9708265 | V25: 305.9708265 | W25: 305.9708265 | X25: 305.9708265 | Y25: 305.9708265 | Z25: 305.9708265 | AA25: 305.9708265 | AB25: 305.9708265 | AC25: 305.9708265 | AD25: 305.9708265 | AE25: 305.9708265 | AF25: 305.9708265 | AG25: 305.9708265 | AH25: 305.9708265 | AI25: 305.9708265 | AJ25: 305.9708265 | AK25: 305.9708265 | AL25: 305.9708265 | AM25: 305.9708265 | AN25: 305.9708265 | AO25: 305.9708265 | AP25: 305.9708265 | AQ25: 305.9708265 | AR25: 305.9708265 | AS25: 305.9708265 | AT25: 305.9708265 | AU25: 305.9708265 | AV25: 305.9708265 | AW25: 305.9708265 | AX25: 305.9708265 | AY25: 305.9708265 | AZ25: 305.9708265 | BA25: 305.9708265 | BB25: 305.9708265 | BC25: 305.9708265 | BD25: 305.9708265 | BE25: 305.9708265 | BF25: 305.9708265 | BG25: 305.9708265 | BH25: 305.9708265 | BI25: 305.9708265 | BJ25: 305.9708265 | BK25: 305.9708265 | BL25: 305.9708265 | BM25: 305.9708265 | BN25: 305.9708265 | BO25: 305.9708265 | BP25: 305.9708265 | BQ25: 305.9708265 | BR25: 305.9708265 | BS25: 305.9708265 | BT25: 305.9708265 | BU25: 305.9708265 | BV25: 305.9708265 | BW25: 0 | BX25: 0 | BY25: 0 | BZ25: 0 | CA25: 0 | CB25: 0 | CC25: 0 | CD25: 0 | CE25: 0 | CF25: 0 | CG25: 0 | CH25: 0 | CI25: 0 | CJ25: 0 | CK25: 0 | CL25: 0 | CM25: 0 | CN25: 0 | CO25: 0 | CP25: 0 | CQ25: 0 | CR25: 0 | CS25: 0 | CT25: 0 | CU25: 0 | CV25: 0 | CW25: 0 | CX25: 0 | CY25: 0 | CZ25: 0 | DA25: 0 | DB25: 0 | DC25: 0 | DD25: 0 | DE25: 0 | DF25: 0 | DG25: 0 | DH25: 0 | DI25: 0 | DJ25: 0 | DK25: 0 | DL25: 0 | DM25: 0 | DN25: 0 | DO25: 0 | DP25: 0 | DQ25: 0 | DR25: 0 | DS25: 0 | DT25: 0 | DU25: 0 | DV25: 0 | DW25: 0 | DX25: 0 | DY25: 0 | DZ25: 0 | EA25: 0 | EB25: 0 | EC25: 0 | ED25: 0 | EE25: 0 | EF25: 0 | EG25: 0 | EH25: 0 | EI25: 0 | EJ25: 0 | EK25: 0 | EL25: 0 | EM25: 0 | EN25: 0 | EO25: 0 | EP25: 0 | EQ25: 0 | ER25: 0 | ES25: 0 | ET25: 0 | EU25: 0 | EV25: 0 | EW25: 0 | EX25: 0 | EY25: 0 | EZ25: 0 | FA25: 0 | FB25: 0 | FC25: 0 | FD25: 0 | FE25: 0 | FF25: 0 | FG25: 0 | FH25: 0 | FI25: 0 | FJ25: 0 | FK25: 0 | FL25: 0 | FM25: 0 | FN25: 0 | FO25: 0 | FP25: 0 | FQ25: 0 | FR25: 0 | FS25: 0 | FT25: 0 | FU25: 0 | FV25: 0 | FW25: 0 | FX25: 0 | FY25: 0 | FZ25: 0 | GA25: 0 | GB25: 0 | GC25: 0 | GD25: 0 | GE25: 0 | GF25: 0 | GG25: 0 | GH25: 0 | GI25: 0 | GJ25: 0 | GK25: 0 | GL25: 0 | GM25: 0 | GN25: 0 | GO25: 0 | GP25: 0 | GQ25: 0 | GR25: 0 | GS25: 0 | GT25: 0 | GU25: 0 | GV25: 0 | GW25: 0 | GX25: 0 | GY25: 0 | GZ25: 0 | HA25: 0 | HB25: 0 | HC25: 0 | HD25: 0 | HE25: 0 | HF25: 0 | HG25: 0 | HH25: 0 | HI25: 0 | HJ25: 0 | HK25: 0 | HL25: 0 | HM25: 0 | HN25: 0 | HO25: 0 | HP25: 0 | HQ25: 0 | HR25: 0 | HS25: 0 | HT25: 0 | HU25: 0 | HV25: 0 | HW25: 0 | HX25: 0 | HY25: 0 | HZ25: 0 | IA25: 0 | IB25: 0 | IC25: 0 | ID25: 0 | IE25: 0 | IF25: 0 | IG25: 0 | IH25: 0 | II25: 0 | IJ25: 0 | IK25: 0 | IL25: 0 | IM25: 0 | IN25: 0 | IO25: 0 | IP25: 0 | IQ25: 0 | IR25: 0 | IS25: 0 | IT25: 0 | IU25: 0 | IV25: 0 | IW25: 0 | IX25: 0 | IY25: 0 | IZ25: 0 | JA25: 0 | JB25: 0 | JC25: 0 | JD25: 0 | JE25: 0 | JF25: 0 | JG25: 0 | JH25: 0 | JI25: 0 | JJ25: 0 | JK25: 0 | JL25: 0 | JM25: 0 | JN25: 0 | JO25: 0 | JP25: 0 | JQ25: 0 | JR25: 0 | JS25: 0 | JT25: 0 | JU25: 0 | JV25: 0 | JW25: 0 | JX25: 0 | JY25: 0 | JZ25: 0 | KA25: 0 | KB25: 0 | KC25: 0 | KD25: 0 | KE25: 0 | KF25: 0 | KG25: 0 | KH25: 0 | KI25: 0 | KJ25: 0 | KK25: 0 | KL25: 0 | KM25: 0 | KN25: 0 | KO25: 0 | KP25: 0 | KQ25: 0 | KR25: 0 | KS25: 0 | KT25: 0 | KU25: 0 | KV25: 0 | KW25: 0 | KX25: 0 | KY25: 0 | KZ25: 0 | LA25: 0 | LB25: 0 | LC25: 0 | LD25: 0 | LE25: 0 | LF25: 0 | LG25: 0 | LH25: 0 | LI25: 0 | LJ25: 0 | LK25: 0 | LL25: 0 | LM25: 0 | LN25: 0 | LO25: 0 | LP25: 0 | LQ25: 0 | LR25: 0 | LS25: 0 | LT25: 0 | LU25: 0 | LV25: 0 | LW25: 0 | LX25: 0 | LY25: 0 | LZ25: 0 | MA25: 0 | MB25: 0 | MC25: 0 | MD25: 0 | ME25: 0 | MF25: 0 | MG25: 0 | MH25: 0 | MI25: 0 | MJ25: 0 | MK25: 0 | ML25: 0 | MM25: 0 | MN25: 0 | MO25: 0 | MP25: 0 | MQ25: 0 | MR25: 0 | MS25: 0 | MT25: 0 | MU25: 0 | MV25: 0 | MW25: 0 | MX25: 0
C27: 1° rata
A28: Mutuo 1 | C28: =IF(+C3=0,"vuoto",C3) -> 2020-05-01
A29: Mutuo 2 | C29: =IF(+C6=0,"vuoto",C6) -> 2020-11-01
A30: Mutuo 3 | C30: =IF(+C9=0,"vuoto",C9) -> 2020-04-01
A31: Mutuo 4 | C31: =IF(+C12=0,"vuoto",C12) -> 2020-04-01
A32: Mutuo 5 | C32: =IF(+C15=0,"vuoto",C15) -> vuoto
A33: Mutuo 6 | C33: =IF(+C18=0,"vuoto",C18) -> vuoto
A34: Mutuo 7 | C34: =IF(+C21=0,"vuoto",C21) -> vuoto
A35: Mutuo new | C35: =+C24 -> 2020-05-20
A36: 1° rata | C36: =MIN(C28:C35) -> 2020-04-01
E38: =1+D38 -> 1 | F38: =1+E38 -> 2 | G38: 3 | H38: 4 | I38: 5 | J38: 6 | K38: 7 | L38: 8 | M38: 9 | N38: 10 | O38: 11 | P38: 12 | Q38: 13 | R38: 14 | S38: 15 | T38: 16 | U38: 17 | V38: 18 | W38: 19 | X38: 20 | Y38: 21 | Z38: 22 | AA38: 23 | AB38: 24 | AC38: 25 | AD38: 26 | AE38: 27 | AF38: 28 | AG38: 29 | AH38: 30 | AI38: 31 | AJ38: 32 | AK38: 33 | AL38: 34 | AM38: 35 | AN38: 36 | AO38: 37 | AP38: 38 | AQ38: 39 | AR38: 40 | AS38: 41 | AT38: 42 | AU38: 43 | AV38: 44 | AW38: 45 | AX38: 46 | AY38: 47 | AZ38: 48 | BA38: 49 | BB38: 50 | BC38: 51 | BD38: 52 | BE38: 53 | BF38: 54 | BG38: 55 | BH38: 56 | BI38: 57 | BJ38: 58 | BK38: 59 | BL38: 60 | BM38: 61 | BN38: 62 | BO38: 63 | BP38: 64 | BQ38: 65 | BR38: =1+BQ38 -> 66 | BS38: 67 | BT38: 68 | BU38: 69 | BV38: 70 | BW38: 71 | BX38: 72 | BY38: 73 | BZ38: 74 | CA38: 75 | CB38: 76 | CC38: 77 | CD38: 78 | CE38: 79 | CF38: 80 | CG38: 81 | CH38: 82 | CI38: 83 | CJ38: 84 | CK38: 85 | CL38: 86 | CM38: 87 | CN38: 88 | CO38: 89 | CP38: 90 | CQ38: 91 | CR38: 92 | CS38: 93 | CT38: 94 | CU38: 95 | CV38: 96 | CW38: 97 | CX38: 98 | CY38: 99 | CZ38: 100 | DA38: 101 | DB38: 102 | DC38: 103 | DD38: 104 | DE38: 105 | DF38: 106 | DG38: 107 | DH38: 108 | DI38: 109 | DJ38: 110 | DK38: 111 | DL38: 112 | DM38: 113 | DN38: 114 | DO38: 115 | DP38: 116 | DQ38: 117 | DR38: 118 | DS38: 119 | DT38: 120 | DU38: 121 | DV38: 122 | DW38: 123 | DX38: 124 | DY38: 125 | DZ38: 126 | EA38: 127 | EB38: 128 | EC38: 129 | ED38: =1+EC38 -> 130 | EE38: 131 | EF38: 132 | EG38: 133 | EH38: 134 | EI38: 135 | EJ38: 136 | EK38: 137 | EL38: 138 | EM38: 139 | EN38: 140 | EO38: 141 | EP38: 142 | EQ38: 143 | ER38: 144 | ES38: 145 | ET38: 146 | EU38: 147 | EV38: 148 | EW38: 149 | EX38: 150 | EY38: 151 | EZ38: 152 | FA38: 153 | FB38: 154 | FC38: 155 | FD38: 156 | FE38: 157 | FF38: 158 | FG38: 159 | FH38: 160 | FI38: 161 | FJ38: 162 | FK38: 163 | FL38: 164 | FM38: 165 | FN38: 166 | FO38: 167 | FP38: 168 | FQ38: 169 | FR38: 170 | FS38: 171 | FT38: 172 | FU38: 173 | FV38: 174 | FW38: 175 | FX38: 176 | FY38: 177 | FZ38: 178 | GA38: 179 | GB38: 180 | GC38: 181 | GD38: 182 | GE38: 183 | GF38: 184 | GG38: 185 | GH38: 186 | GI38: 187 | GJ38: 188 | GK38: 189 | GL38: 190 | GM38: 191 | GN38: 192 | GO38: 193 | GP38: =1+GO38 -> 194 | GQ38: 195 | GR38: 196 | GS38: 197 | GT38: 198 | GU38: 199 | GV38: 200 | GW38: 201 | GX38: 202 | GY38: 203 | GZ38: 204 | HA38: 205 | HB38: 206 | HC38: 207 | HD38: 208 | HE38: 209 | HF38: 210 | HG38: 211 | HH38: 212 | HI38: 213 | HJ38: 214 | HK38: 215 | HL38: 216 | HM38: 217 | HN38: 218 | HO38: 219 | HP38: 220 | HQ38: 221 | HR38: 222 | HS38: 223 | HT38: 224 | HU38: 225 | HV38: 226 | HW38: 227 | HX38: 228 | HY38: 229 | HZ38: 230 | IA38: 231 | IB38: 232 | IC38: 233 | ID38: 234 | IE38: 235 | IF38: 236 | IG38: 237 | IH38: 238 | II38: 239 | IJ38: 240 | IK38: 241 | IL38: 242 | IM38: 243 | IN38: 244 | IO38: 245 | IP38: 246 | IQ38: 247 | IR38: 248 | IS38: 249 | IT38: 250 | IU38: 251 | IV38: 252 | IW38: 253 | IX38: 254 | IY38: 255 | IZ38: 256 | JA38: 257 | JB38: =1+JA38 -> 258 | JC38: 259 | JD38: 260 | JE38: 261 | JF38: 262 | JG38: 263 | JH38: 264 | JI38: 265 | JJ38: 266 | JK38: 267 | JL38: 268 | JM38: 269 | JN38: 270 | JO38: 271 | JP38: 272 | JQ38: 273 | JR38: 274 | JS38: 275 | JT38: 276 | JU38: 277 | JV38: 278 | JW38: 279 | JX38: 280 | JY38: 281 | JZ38: 282 | KA38: 283 | KB38: 284 | KC38: 285 | KD38: 286 | KE38: 287 | KF38: 288 | KG38: 289 | KH38: 290 | KI38: 291 | KJ38: 292 | KK38: 293 | KL38: 294 | KM38: 295 | KN38: 296 | KO38: 297 | KP38: 298 | KQ38: 299 | KR38: 300 | KS38: 301 | KT38: 302 | KU38: 303 | KV38: 304 | KW38: 305 | KX38: 306 | KY38: 307 | KZ38: 308 | LA38: 309 | LB38: 310 | LC38: 311 | LD38: 312 | LE38: 313 | LF38: 314 | LG38: 315 | LH38: 316 | LI38: 317 | LJ38: 318 | LK38: 319 | LL38: 320 | LM38: 321 | LN38: =1+LM38 -> 322 | LO38: 323 | LP38: 324 | LQ38: 325 | LR38: 326 | LS38: 327 | LT38: 328 | LU38: 329 | LV38: 330 | LW38: 331 | LX38: 332 | LY38: 333 | LZ38: 334 | MA38: 335 | MB38: 336 | MC38: 337 | MD38: 338 | ME38: 339 | MF38: 340 | MG38: 341 | MH38: 342 | MI38: 343 | MJ38: 344 | MK38: 345 | ML38: 346 | MM38: 347 | MN38: 348 | MO38: 349 | MP38: 350 | MQ38: 351 | MR38: 352 | MS38: 353 | MT38: 354 | MU38: 355 | MV38: 356 | MW38: 357 | MX38: 358 | MY38: 359
A39: Data | B39: Totale | D39: =+C36 -> 2020-04-01 | E39: =EDATE(D39,1) -> 2020-05-01 | F39: =EDATE(E39,1) -> 2020-06-01 | G39: 2020-07-01 | H39: 2020-08-01 | I39: 2020-09-01 | J39: 2020-10-01 | K39: 2020-11-01 | L39: 2020-12-01 | M39: 2021-01-01 | N39: 2021-02-01 | O39: 2021-03-01 | P39: 2021-04-01 | Q39: 2021-05-01 | R39: 2021-06-01 | S39: 2021-07-01 | T39: 2021-08-01 | U39: 2021-09-01 | V39: 2021-10-01 | W39: 2021-11-01 | X39: 2021-12-01 | Y39: 2022-01-01 | Z39: 2022-02-01 | AA39: 2022-03-01 | AB39: 2022-04-01 | AC39: 2022-05-01 | AD39: 2022-06-01 | AE39: 2022-07-01 | AF39: 2022-08-01 | AG39: 2022-09-01 | AH39: 2022-10-01 | AI39: 2022-11-01 | AJ39: 2022-12-01 | AK39: 2023-01-01 | AL39: 2023-02-01 | AM39: 2023-03-01 | AN39: 2023-04-01 | AO39: 2023-05-01 | AP39: 2023-06-01 | AQ39: 2023-07-01 | AR39: 2023-08-01 | AS39: 2023-09-01 | AT39: 2023-10-01 | AU39: 2023-11-01 | AV39: 2023-12-01 | AW39: 2024-01-01 | AX39: 2024-02-01 | AY39: 2024-03-01 | AZ39: 2024-04-01 | BA39: 2024-05-01 | BB39: 2024-06-01 | BC39: 2024-07-01 | BD39: 2024-08-01 | BE39: 2024-09-01 | BF39: 2024-10-01 | BG39: 2024-11-01 | BH39: 2024-12-01 | BI39: 2025-01-01 | BJ39: 2025-02-01 | BK39: 2025-03-01 | BL39: 2025-04-01 | BM39: 2025-05-01 | BN39: 2025-06-01 | BO39: 2025-07-01 | BP39: 2025-08-01 | BQ39: 2025-09-01 | BR39: =EDATE(BQ39,1) -> 2025-10-01 | BS39: 2025-11-01 | BT39: 2025-12-01 | BU39: 2026-01-01 | BV39: 2026-02-01 | BW39: 2026-03-01 | BX39: 2026-04-01 | BY39: 2026-05-01 | BZ39: 2026-06-01 | CA39: 2026-07-01 | CB39: 2026-08-01 | CC39: 2026-09-01 | CD39: 2026-10-01 | CE39: 2026-11-01 | CF39: 2026-12-01 | CG39: 2027-01-01 | CH39: 2027-02-01 | CI39: 2027-03-01 | CJ39: 2027-04-01 | CK39: 2027-05-01 | CL39: 2027-06-01 | CM39: 2027-07-01 | CN39: 2027-08-01 | CO39: 2027-09-01 | CP39: 2027-10-01 | CQ39: 2027-11-01 | CR39: 2027-12-01 | CS39: 2028-01-01 | CT39: 2028-02-01 | CU39: 2028-03-01 | CV39: 2028-04-01 | CW39: 2028-05-01 | CX39: 2028-06-01 | CY39: 2028-07-01 | CZ39: 2028-08-01 | DA39: 2028-09-01 | DB39: 2028-10-01 | DC39: 2028-11-01 | DD39: 2028-12-01 | DE39: 2029-01-01 | DF39: 2029-02-01 | DG39: 2029-03-01 | DH39: 2029-04-01 | DI39: 2029-05-01 | DJ39: 2029-06-01 | DK39: 2029-07-01 | DL39: 2029-08-01 | DM39: 2029-09-01 | DN39: 2029-10-01 | DO39: 2029-11-01 | DP39: 2029-12-01 | DQ39: 2030-01-01 | DR39: 2030-02-01 | DS39: 2030-03-01 | DT39: 2030-04-01 | DU39: 2030-05-01 | DV39: 2030-06-01 | DW39: 2030-07-01 | DX39: 2030-08-01 | DY39: 2030-09-01 | DZ39: 2030-10-01 | EA39: 2030-11-01 | EB39: 2030-12-01 | EC39: 2031-01-01 | ED39: =EDATE(EC39,1) -> 2031-02-01 | EE39: 2031-03-01 | EF39: 2031-04-01 | EG39: 2031-05-01 | EH39: 2031-06-01 | EI39: 2031-07-01 | EJ39: 2031-08-01 | EK39: 2031-09-01 | EL39: 2031-10-01 | EM39: 2031-11-01 | EN39: 2031-12-01 | EO39: 2032-01-01 | EP39: 2032-02-01 | EQ39: 2032-03-01 | ER39: 2032-04-01 | ES39: 2032-05-01 | ET39: 2032-06-01 | EU39: 2032-07-01 | EV39: 2032-08-01 | EW39: 2032-09-01 | EX39: 2032-10-01 | EY39: 2032-11-01 | EZ39: 2032-12-01 | FA39: 2033-01-01 | FB39: 2033-02-01 | FC39: 2033-03-01 | FD39: 2033-04-01 | FE39: 2033-05-01 | FF39: 2033-06-01 | FG39: 2033-07-01 | FH39: 2033-08-01 | FI39: 2033-09-01 | FJ39: 2033-10-01 | FK39: 2033-11-01 | FL39: 2033-12-01 | FM39: 2034-01-01 | FN39: 2034-02-01 | FO39: 2034-03-01 | FP39: 2034-04-01 | FQ39: 2034-05-01 | FR39: 2034-06-01 | FS39: 2034-07-01 | FT39: 2034-08-01 | FU39: 2034-09-01 | FV39: 2034-10-01 | FW39: 2034-11-01 | FX39: 2034-12-01 | FY39: 2035-01-01 | FZ39: 2035-02-01 | GA39: 2035-03-01 | GB39: 2035-04-01 | GC39: 2035-05-01 | GD39: 2035-06-01 | GE39: 2035-07-01 | GF39: 2035-08-01 | GG39: 2035-09-01 | GH39: 2035-10-01 | GI39: 2035-11-01 | GJ39: 2035-12-01 | GK39: 2036-01-01 | GL39: 2036-02-01 | GM39: 2036-03-01 | GN39: 2036-04-01 | GO39: 2036-05-01 | GP39: =EDATE(GO39,1) -> 2036-06-01 | GQ39: 2036-07-01 | GR39: 2036-08-01 | GS39: 2036-09-01 | GT39: 2036-10-01 | GU39: 2036-11-01 | GV39: 2036-12-01 | GW39: 2037-01-01 | GX39: 2037-02-01 | GY39: 2037-03-01 | GZ39: 2037-04-01 | HA39: 2037-05-01 | HB39: 2037-06-01 | HC39: 2037-07-01 | HD39: 2037-08-01 | HE39: 2037-09-01 | HF39: 2037-10-01 | HG39: 2037-11-01 | HH39: 2037-12-01 | HI39: 2038-01-01 | HJ39: 2038-02-01 | HK39: 2038-03-01 | HL39: 2038-04-01 | HM39: 2038-05-01 | HN39: 2038-06-01 | HO39: 2038-07-01 | HP39: 2038-08-01 | HQ39: 2038-09-01 | HR39: 2038-10-01 | HS39: 2038-11-01 | HT39: 2038-12-01 | HU39: 2039-01-01 | HV39: 2039-02-01 | HW39: 2039-03-01 | HX39: 2039-04-01 | HY39: 2039-05-01 | HZ39: 2039-06-01 | IA39: 2039-07-01 | IB39: 2039-08-01 | IC39: 2039-09-01 | ID39: 2039-10-01 | IE39: 2039-11-01 | IF39: 2039-12-01 | IG39: 2040-01-01 | IH39: 2040-02-01 | II39: 2040-03-01 | IJ39: 2040-04-01 | IK39: 2040-05-01 | IL39: 2040-06-01 | IM39: 2040-07-01 | IN39: 2040-08-01 | IO39: 2040-09-01 | IP39: 2040-10-01 | IQ39: 2040-11-01 | IR39: 2040-12-01 | IS39: 2041-01-01 | IT39: 2041-02-01 | IU39: 2041-03-01 | IV39: 2041-04-01 | IW39: 2041-05-01 | IX39: 2041-06-01 | IY39: 2041-07-01 | IZ39: 2041-08-01 | JA39: 2041-09-01 | JB39: =EDATE(JA39,1) -> 2041-10-01 | JC39: 2041-11-01 | JD39: 2041-12-01 | JE39: 2042-01-01 | JF39: 2042-02-01 | JG39: 2042-03-01 | JH39: 2042-04-01 | JI39: 2042-05-01 | JJ39: 2042-06-01 | JK39: 2042-07-01 | JL39: 2042-08-01 | JM39: 2042-09-01 | JN39: 2042-10-01 | JO39: 2042-11-01 | JP39: 2042-12-01 | JQ39: 2043-01-01 | JR39: 2043-02-01 | JS39: 2043-03-01 | JT39: 2043-04-01 | JU39: 2043-05-01 | JV39: 2043-06-01 | JW39: 2043-07-01 | JX39: 2043-08-01 | JY39: 2043-09-01 | JZ39: 2043-10-01 | KA39: 2043-11-01 | KB39: 2043-12-01 | KC39: 2044-01-01 | KD39: 2044-02-01 | KE39: 2044-03-01 | KF39: 2044-04-01 | KG39: 2044-05-01 | KH39: 2044-06-01 | KI39: 2044-07-01 | KJ39: 2044-08-01 | KK39: 2044-09-01 | KL39: 2044-10-01 | KM39: 2044-11-01 | KN39: 2044-12-01 | KO39: 2045-01-01 | KP39: 2045-02-01 | KQ39: 2045-03-01 | KR39: 2045-04-01 | KS39: 2045-05-01 | KT39: 2045-06-01 | KU39: 2045-07-01 | KV39: 2045-08-01 | KW39: 2045-09-01 | KX39: 2045-10-01 | KY39: 2045-11-01 | KZ39: 2045-12-01 | LA39: 2046-01-01 | LB39: 2046-02-01 | LC39: 2046-03-01 | LD39: 2046-04-01 | LE39: 2046-05-01 | LF39: 2046-06-01 | LG39: 2046-07-01 | LH39: 2046-08-01 | LI39: 2046-09-01 | LJ39: 2046-10-01 | LK39: 2046-11-01 | LL39: 2046-12-01 | LM39: 2047-01-01 | LN39: =EDATE(LM39,1) -> 2047-02-01 | LO39: 2047-03-01 | LP39: 2047-04-01 | LQ39: 2047-05-01 | LR39: 2047-06-01 | LS39: 2047-07-01 | LT39: 2047-08-01 | LU39: 2047-09-01 | LV39: 2047-10-01 | LW39: 2047-11-01 | LX39: 2047-12-01 | LY39: 2048-01-01 | LZ39: 2048-02-01 | MA39: 2048-03-01 | MB39: 2048-04-01 | MC39: 2048-05-01 | MD39: 2048-06-01 | ME39: 2048-07-01 | MF39: 2048-08-01 | MG39: 2048-09-01 | MH39: 2048-10-01 | MI39: 2048-11-01 | MJ39: 2048-12-01 | MK39: 2049-01-01 | ML39: 2049-02-01 | MM39: 2049-03-01 | MN39: 2049-04-01 | MO39: 2049-05-01 | MP39: 2049-06-01 | MQ39: 2049-07-01 | MR39: 2049-08-01 | MS39: 2049-09-01 | MT39: 2049-10-01 | MU39: 2049-11-01 | MV39: 2049-12-01 | MW39: 2050-01-01 | MX39: 2050-02-01 | MY39: 2050-03-01
A40: Mutuo 1 | B40: =SUM(D40:MY40) -> 1560.281178 | C40: =IF(B40=B4,"Ok","Ko") -> Ok | D40: =IFERROR(SUMIFS($C$4:$MX$4,$C$3:$MX$3,"="&D39),0) -> 0 | E40: =IFERROR(SUMIFS($C$4:$MX$4,$C$3:$MX$3,"="&E39),0) -> 195.0351472 | F40: =IFERROR(SUMIFS($C$4:$MX$4,$C$3:$MX$3,"="&F39),0) -> 195.0351472 | G40: 195.0351472 | H40: 195.0351472 | I40: 195.0351472 | J40: 195.0351472 | K40: 195.0351472 | L40: 195.0351472 | M40: 0 | N40: 0 | O40: 0 | P40: 0 | Q40: 0 | R40: 0 | S40: 0 | T40: 0 | U40: 0 | V40: 0 | W40: 0 | X40: 0 | Y40: 0 | Z40: 0 | AA40: 0 | AB40: 0 | AC40: 0 | AD40: 0 | AE40: 0 | AF40: 0 | AG40: 0 | AH40: 0 | AI40: 0 | AJ40: 0 | AK40: 0 | AL40: 0 | AM40: 0 | AN40: 0 | AO40: 0 | AP40: 0 | AQ40: 0 | AR40: 0 | AS40: 0 | AT40: 0 | AU40: 0 | AV40: 0 | AW40: 0 | AX40: 0 | AY40: 0 | AZ40: 0 | BA40: 0 | BB40: 0 | BC40: 0 | BD40: 0 | BE40: 0 | BF40: 0 | BG40: 0 | BH40: 0 | BI40: 0 | BJ40: 0 | BK40: 0 | BL40: 0 | BM40: 0 | BN40: 0 | BO40: 0 | BP40: 0 | BQ40: 0 | BR40: =IFERROR(SUMIFS($C$4:$MX$4,$C$3:$MX$3,"="&BR39),0) -> 0 | BS40: 0 | BT40: 0 | BU40: 0 | BV40: 0 | BW40: 0 | BX40: 0 | BY40: 0 | BZ40: 0 | CA40: 0 | CB40: 0 | CC40: 0 | CD40: 0 | CE40: 0 | CF40: 0 | CG40: 0 | CH40: 0 | CI40: 0 | CJ40: 0 | CK40: 0 | CL40: 0 | CM40: 0 | CN40: 0 | CO40: 0 | CP40: 0 | CQ40: 0 | CR40: 0 | CS40: 0 | CT40: 0 | CU40: 0 | CV40: 0 | CW40: 0 | CX40: 0 | CY40: 0 | CZ40: 0 | DA40: 0 | DB40: 0 | DC40: 0 | DD40: 0 | DE40: 0 | DF40: 0 | DG40: 0 | DH40: 0 | DI40: 0 | DJ40: 0 | DK40: 0 | DL40: 0 | DM40: 0 | DN40: 0 | DO40: 0 | DP40: 0 | DQ40: 0 | DR40: 0 | DS40: 0 | DT40: 0 | DU40: 0 | DV40: 0 | DW40: 0 | DX40: 0 | DY40: 0 | DZ40: 0 | EA40: 0 | EB40: 0 | EC40: 0 | ED40: =IFERROR(SUMIFS($C$4:$MX$4,$C$3:$MX$3,"="&ED39),0) -> 0 | EE40: 0 | EF40: 0 | EG40: 0 | EH40: 0 | EI40: 0 | EJ40: 0 | EK40: 0 | EL40: 0 | EM40: 0 | EN40: 0 | EO40: 0 | EP40: 0 | EQ40: 0 | ER40: 0 | ES40: 0 | ET40: 0 | EU40: 0 | EV40: 0 | EW40: 0 | EX40: 0 | EY40: 0 | EZ40: 0 | FA40: 0 | FB40: 0 | FC40: 0 | FD40: 0 | FE40: 0 | FF40: 0 | FG40: 0 | FH40: 0 | FI40: 0 | FJ40: 0 | FK40: 0 | FL40: 0 | FM40: 0 | FN40: 0 | FO40: 0 | FP40: 0 | FQ40: 0 | FR40: 0 | FS40: 0 | FT40: 0 | FU40: 0 | FV40: 0 | FW40: 0 | FX40: 0 | FY40: 0 | FZ40: 0 | GA40: 0 | GB40: 0 | GC40: 0 | GD40: 0 | GE40: 0 | GF40: 0 | GG40: 0 | GH40: 0 | GI40: 0 | GJ40: 0 | GK40: 0 | GL40: 0 | GM40: 0 | GN40: 0 | GO40: 0 | GP40: =IFERROR(SUMIFS($C$4:$MX$4,$C$3:$MX$3,"="&GP39),0) -> 0 | GQ40: 0 | GR40: 0 | GS40: 0 | GT40: 0 | GU40: 0 | GV40: 0 | GW40: 0 | GX40: 0 | GY40: 0 | GZ40: 0 | HA40: 0 | HB40: 0 | HC40: 0 | HD40: 0 | HE40: 0 | HF40: 0 | HG40: 0 | HH40: 0 | HI40: 0 | HJ40: 0 | HK40: 0 | HL40: 0 | HM40: 0 | HN40: 0 | HO40: 0 | HP40: 0 | HQ40: 0 | HR40: 0 | HS40: 0 | HT40: 0 | HU40: 0 | HV40: 0 | HW40: 0 | HX40: 0 | HY40: 0 | HZ40: 0 | IA40: 0 | IB40: 0 | IC40: 0 | ID40: 0 | IE40: 0 | IF40: 0 | IG40: 0 | IH40: 0 | II40: 0 | IJ40: 0 | IK40: 0 | IL40: 0 | IM40: 0 | IN40: 0 | IO40: 0 | IP40: 0 | IQ40: 0 | IR40: 0 | IS40: 0 | IT40: 0 | IU40: 0 | IV40: 0 | IW40: 0 | IX40: 0 | IY40: 0 | IZ40: 0 | JA40: 0 | JB40: =IFERROR(SUMIFS($C$4:$MX$4,$C$3:$MX$3,"="&JB39),0) -> 0 | JC40: 0 | JD40: 0 | JE40: 0 | JF40: 0 | JG40: 0 | JH40: 0 | JI40: 0 | JJ40: 0 | JK40: 0 | JL40: 0 | JM40: 0 | JN40: 0 | JO40: 0 | JP40: 0 | JQ40: 0 | JR40: 0 | JS40: 0 | JT40: 0 | JU40: 0 | JV40: 0 | JW40: 0 | JX40: 0 | JY40: 0 | JZ40: 0 | KA40: 0 | KB40: 0 | KC40: 0 | KD40: 0 | KE40: 0 | KF40: 0 | KG40: 0 | KH40: 0 | KI40: 0 | KJ40: 0 | KK40: 0 | KL40: 0 | KM40: 0 | KN40: 0 | KO40: 0 | KP40: 0 | KQ40: 0 | KR40: 0 | KS40: 0 | KT40: 0 | KU40: 0 | KV40: 0 | KW40: 0 | KX40: 0 | KY40: 0 | KZ40: 0 | LA40: 0 | LB40: 0 | LC40: 0 | LD40: 0 | LE40: 0 | LF40: 0 | LG40: 0 | LH40: 0 | LI40: 0 | LJ40: 0 | LK40: 0 | LL40: 0 | LM40: 0 | LN40: =IFERROR(SUMIFS($C$4:$MX$4,$C$3:$MX$3,"="&LN39),0) -> 0 | LO40: 0 | LP40: 0 | LQ40: 0 | LR40: 0 | LS40: 0 | LT40: 0 | LU40: 0 | LV40: 0 | LW40: 0 | LX40: 0 | LY40: 0 | LZ40: 0 | MA40: 0 | MB40: 0 | MC40: 0 | MD40: 0 | ME40: 0 | MF40: 0 | MG40: 0 | MH40: 0 | MI40: 0 | MJ40: 0 | MK40: 0 | ML40: 0 | MM40: 0 | MN40: 0 | MO40: 0 | MP40: 0 | MQ40: 0 | MR40: 0 | MS40: 0 | MT40: 0 | MU40: 0 | MV40: 0 | MW40: 0 | MX40: 0 | MY40: 0
A41: Mutuo 2 | B41: =SUM(D41:MY41) -> 3395.652921 | C41: =IF(B41=B7,"Ok","Ko") -> Ok | D41: =IFERROR(SUMIFS($C$7:$MX$7,$C$6:$MX$6,"="&D39),0) -> 0 | E41: =IFERROR(SUMIFS($C$7:$MX$7,$C$6:$MX$6,"="&E39),0) -> 0 | F41: 0 | G41: 0 | H41: 0 | I41: 0 | J41: 0 | K41: 282.9710768 | L41: 0 | M41: 0 | N41: 282.9710768 | O41: 0 | P41: 0 | Q41: 282.9710768 | R41: 0 | S41: 0 | T41: 282.9710768 | U41: 0 | V41: 0 | W41: 282.9710768 | X41: 0 | Y41: 0 | Z41: 282.9710768 | AA41: 0 | AB41: 0 | AC41: 282.9710768 | AD41: 0 | AE41: 0 | AF41: 282.9710768 | AG41: 0 | AH41: 0 | AI41: 282.9710768 | AJ41: 0 | AK41: 0 | AL41: 282.9710768 | AM41: 0 | AN41: 0 | AO41: 282.9710768 | AP41: 0 | AQ41: 0 | AR41: 282.9710768 | AS41: 0 | AT41: 0 | AU41: 0 | AV41: 0 | AW41: 0 | AX41: 0 | AY41: 0 | AZ41: 0 | BA41: 0 | BB41: 0 | BC41: 0 | BD41: 0 | BE41: 0 | BF41: 0 | BG41: 0 | BH41: 0 | BI41: 0 | BJ41: 0 | BK41: 0 | BL41: 0 | BM41: 0 | BN41: 0 | BO41: 0 | BP41: 0 | BQ41: =IFERROR(SUMIFS($C$7:$MX$7,$C$6:$MX$6,"="&BQ39),0) -> 0 | BR41: 0 | BS41: 0 | BT41: 0 | BU41: 0 | BV41: 0 | BW41: 0 | BX41: 0 | BY41: 0 | BZ41: 0 | CA41: 0 | CB41: 0 | CC41: 0 | CD41: 0 | CE41: 0 | CF41: 0 | CG41: 0 | CH41: 0 | CI41: 0 | CJ41: 0 | CK41: 0 | CL41: 0 | CM41: 0 | CN41: 0 | CO41: 0 | CP41: 0 | CQ41: 0 | CR41: 0 | CS41: 0 | CT41: 0 | CU41: 0 | CV41: 0 | CW41: 0 | CX41: 0 | CY41: 0 | CZ41: 0 | DA41: 0 | DB41: 0 | DC41: 0 | DD41: 0 | DE41: 0 | DF41: 0 | DG41: 0 | DH41: 0 | DI41: 0 | DJ41: 0 | DK41: 0 | DL41: 0 | DM41: 0 | DN41: 0 | DO41: 0 | DP41: 0 | DQ41: 0 | DR41: 0 | DS41: 0 | DT41: 0 | DU41: 0 | DV41: 0 | DW41: 0 | DX41: 0 | DY41: 0 | DZ41: 0 | EA41: 0 | EB41: 0 | EC41: =IFERROR(SUMIFS($C$7:$MX$7,$C$6:$MX$6,"="&EC39),0) -> 0 | ED41: 0 | EE41: 0 | EF41: 0 | EG41: 0 | EH41: 0 | EI41: 0 | EJ41: 0 | EK41: 0 | EL41: 0 | EM41: 0 | EN41: 0 | EO41: 0 | EP41: 0 | EQ41: 0 | ER41: 0 | ES41: 0 | ET41: 0 | EU41: 0 | EV41: 0 | EW41: 0 | EX41: 0 | EY41: 0 | EZ41: 0 | FA41: 0 | FB41: 0 | FC41: 0 | FD41: 0 | FE41: 0 | FF41: 0 | FG41: 0 | FH41: 0 | FI41: 0 | FJ41: 0 | FK41: 0 | FL41: 0 | FM41: 0 | FN41: 0 | FO41: 0 | FP41: 0 | FQ41: 0 | FR41: 0 | FS41: 0 | FT41: 0 | FU41: 0 | FV41: 0 | FW41: 0 | FX41: 0 | FY41: 0 | FZ41: 0 | GA41: 0 | GB41: 0 | GC41: 0 | GD41: 0 | GE41: 0 | GF41: 0 | GG41: 0 | GH41: 0 | GI41: 0 | GJ41: 0 | GK41: 0 | GL41: 0 | GM41: 0 | GN41: 0 | GO41: =IFERROR(SUMIFS($C$7:$MX$7,$C$6:$MX$6,"="&GO39),0) -> 0 | GP41: 0 | GQ41: 0 | GR41: 0 | GS41: 0 | GT41: 0 | GU41: 0 | GV41: 0 | GW41: 0 | GX41: 0 | GY41: 0 | GZ41: 0 | HA41: 0 | HB41: 0 | HC41: 0 | HD41: 0 | HE41: 0 | HF41: 0 | HG41: 0 | HH41: 0 | HI41: 0 | HJ41: 0 | HK41: 0 | HL41: 0 | HM41: 0 | HN41: 0 | HO41: 0 | HP41: 0 | HQ41: 0 | HR41: 0 | HS41: 0 | HT41: 0 | HU41: 0 | HV41: 0 | HW41: 0 | HX41: 0 | HY41: 0 | HZ41: 0 | IA41: 0 | IB41: 0 | IC41: 0 | ID41: 0 | IE41: 0 | IF41: 0 | IG41: 0 | IH41: 0 | II41: 0 | IJ41: 0 | IK41: 0 | IL41: 0 | IM41: 0 | IN41: 0 | IO41: 0 | IP41: 0 | IQ41: 0 | IR41: 0 | IS41: 0 | IT41: 0 | IU41: 0 | IV41: 0 | IW41: 0 | IX41: 0 | IY41: 0 | IZ41: 0 | JA41: =IFERROR(SUMIFS($C$7:$MX$7,$C$6:$MX$6,"="&JA39),0) -> 0 | JB41: 0 | JC41: 0 | JD41: 0 | JE41: 0 | JF41: 0 | JG41: 0 | JH41: 0 | JI41: 0 | JJ41: 0 | JK41: 0 | JL41: 0 | JM41: 0 | JN41: 0 | JO41: 0 | JP41: 0 | JQ41: 0 | JR41: 0 | JS41: 0 | JT41: 0 | JU41: 0 | JV41: 0 | JW41: 0 | JX41: 0 | JY41: 0 | JZ41: 0 | KA41: 0 | KB41: 0 | KC41: 0 | KD41: 0 | KE41: 0 | KF41: 0 | KG41: 0 | KH41: 0 | KI41: 0 | KJ41: 0 | KK41: 0 | KL41: 0 | KM41: 0 | KN41: 0 | KO41: 0 | KP41: 0 | KQ41: 0 | KR41: 0 | KS41: 0 | KT41: 0 | KU41: 0 | KV41: 0 | KW41: 0 | KX41: 0 | KY41: 0 | KZ41: 0 | LA41: 0 | LB41: 0 | LC41: 0 | LD41: 0 | LE41: 0 | LF41: 0 | LG41: 0 | LH41: 0 | LI41: 0 | LJ41: 0 | LK41: 0 | LL41: 0 | LM41: =IFERROR(SUMIFS($C$7:$MX$7,$C$6:$MX$6,"="&LM39),0) -> 0 | LN41: 0 | LO41: 0 | LP41: 0 | LQ41: 0 | LR41: 0 | LS41: 0 | LT41: 0 | LU41: 0 | LV41: 0 | LW41: 0 | LX41: 0 | LY41: 0 | LZ41: 0 | MA41: 0 | MB41: 0 | MC41: 0 | MD41: 0 | ME41: 0 | MF41: 0 | MG41: 0 | MH41: 0 | MI41: 0 | MJ41: 0 | MK41: 0 | ML41: 0 | MM41: 0 | MN41: 0 | MO41: 0 | MP41: 0 | MQ41: 0 | MR41: 0 | MS41: 0 | MT41: 0 | MU41: 0 | MV41: 0 | MW41: 0 | MX41: 0 | MY41: 0
A42: Mutuo 3 | B42: 18942.30668 | C42: =IF(B42=B10,"Ok","Ko") -> Ok | D42: =IFERROR(SUMIFS($C$10:$MX$10,$C$9:$MX$9,"="&D39),0) -> 28.38979167 | E42: =IFERROR(SUMIFS($C$10:$MX$10,$C$9:$MX$9,"="&E39),0) -> 28.38979167 | F42: 28.38979167 | G42: 28.38979167 | H42: 28.38979167 | I42: 28.38979167 | J42: 782.1653304 | K42: 782.1653304 | L42: 782.1653304 | M42: 782.1653304 | N42: 782.1653304 | O42: 782.1653304 | P42: 782.1653304 | Q42: 782.1653304 | R42: 782.1653304 | S42: 782.1653304 | T42: 782.1653304 | U42: 782.1653304 | V42: 782.1653304 | W42: 782.1653304 | X42: 782.1653304 | Y42: 782.1653304 | Z42: 782.1653304 | AA42: 782.1653304 | AB42: 782.1653304 | AC42: 782.1653304 | AD42: 782.1653304 | AE42: 782.1653304 | AF42: 782.1653304 | AG42: 782.1653304 | AH42: 0 | AI42: 0 | AJ42: 0 | AK42: 0 | AL42: 0 | AM42: 0 | AN42: 0 | AO42: 0 | AP42: 0 | AQ42: 0 | AR42: 0 | AS42: 0 | AT42: 0 | AU42: 0 | AV42: 0 | AW42: 0 | AX42: 0 | AY42: 0 | AZ42: 0 | BA42: 0 | BB42: 0 | BC42: 0 | BD42: 0 | BE42: 0 | BF42: 0 | BG42: 0 | BH42: 0 | BI42: 0 | BJ42: 0 | BK42: 0 | BL42: 0 | BM42: 0 | BN42: 0 | BO42: 0 | BP42: 0 | BQ42: =IFERROR(SUMIFS($C$10:$MX$10,$C$9:$MX$9,"="&BQ39),0) -> 0 | BR42: 0 | BS42: 0 | BT42: 0 | BU42: 0 | BV42: 0 | BW42: 0 | BX42: 0 | BY42: 0 | BZ42: 0 | CA42: 0 | CB42: 0 | CC42: 0 | CD42: 0 | CE42: 0 | CF42: 0 | CG42: 0 | CH42: 0 | CI42: 0 | CJ42: 0 | CK42: 0 | CL42: 0 | CM42: 0 | CN42: 0 | CO42: 0 | CP42: 0 | CQ42: 0 | CR42: 0 | CS42: 0 | CT42: 0 | CU42: 0 | CV42: 0 | CW42: 0 | CX42: 0 | CY42: 0 | CZ42: 0 | DA42: 0 | DB42: 0 | DC42: 0 | DD42: 0 | DE42: 0 | DF42: 0 | DG42: 0 | DH42: 0 | DI42: 0 | DJ42: 0 | DK42: 0 | DL42: 0 | DM42: 0 | DN42: 0 | DO42: 0 | DP42: 0 | DQ42: 0 | DR42: 0 | DS42: 0 | DT42: 0 | DU42: 0 | DV42: 0 | DW42: 0 | DX42: 0 | DY42: 0 | DZ42: 0 | EA42: 0 | EB42: 0 | EC42: =IFERROR(SUMIFS($C$10:$MX$10,$C$9:$MX$9,"="&EC39),0) -> 0 | ED42: 0 | EE42: 0 | EF42: 0 | EG42: 0 | EH42: 0 | EI42: 0 | EJ42: 0 | EK42: 0 | EL42: 0 | EM42: 0 | EN42: 0 | EO42: 0 | EP42: 0 | EQ42: 0 | ER42: 0 | ES42: 0 | ET42: 0 | EU42: 0 | EV42: 0 | EW42: 0 | EX42: 0 | EY42: 0 | EZ42: 0 | FA42: 0 | FB42: 0 | FC42: 0 | FD42: 0 | FE42: 0 | FF42: 0 | FG42: 0 | FH42: 0 | FI42: 0 | FJ42: 0 | FK42: 0 | FL42: 0 | FM42: 0 | FN42: 0 | FO42: 0 | FP42: 0 | FQ42: 0 | FR42: 0 | FS42: 0 | FT42: 0 | FU42: 0 | FV42: 0 | FW42: 0 | FX42: 0 | FY42: 0 | FZ42: 0 | GA42: 0 | GB42: 0 | GC42: 0 | GD42: 0 | GE42: 0 | GF42: 0 | GG42: 0 | GH42: 0 | GI42: 0 | GJ42: 0 | GK42: 0 | GL42: 0 | GM42: 0 | GN42: 0 | GO42: =IFERROR(SUMIFS($C$10:$MX$10,$C$9:$MX$9,"="&GO39),0) -> 0 | GP42: 0 | GQ42: 0 | GR42: 0 | GS42: 0 | GT42: 0 | GU42: 0 | GV42: 0 | GW42: 0 | GX42: 0 | GY42: 0 | GZ42: 0 | HA42: 0 | HB42: 0 | HC42: 0 | HD42: 0 | HE42: 0 | HF42: 0 | HG42: 0 | HH42: 0 | HI42: 0 | HJ42: 0 | HK42: 0 | HL42: 0 | HM42: 0 | HN42: 0 | HO42: 0 | HP42: 0 | HQ42: 0 | HR42: 0 | HS42: 0 | HT42: 0 | HU42: 0 | HV42: 0 | HW42: 0 | HX42: 0 | HY42: 0 | HZ42: 0 | IA42: 0 | IB42: 0 | IC42: 0 | ID42: 0 | IE42: 0 | IF42: 0 | IG42: 0 | IH42: 0 | II42: 0 | IJ42: 0 | IK42: 0 | IL42: 0 | IM42: 0 | IN42: 0 | IO42: 0 | IP42: 0 | IQ42: 0 | IR42: 0 | IS42: 0 | IT42: 0 | IU42: 0 | IV42: 0 | IW42: 0 | IX42: 0 | IY42: 0 | IZ42: 0 | JA42: =IFERROR(SUMIFS($C$10:$MX$10,$C$9:$MX$9,"="&JA39),0) -> 0 | JB42: 0 | JC42: 0 | JD42: 0 | JE42: 0 | JF42: 0 | JG42: 0 | JH42: 0 | JI42: 0 | JJ42: 0 | JK42: 0 | JL42: 0 | JM42: 0 | JN42: 0 | JO42: 0 | JP42: 0 | JQ42: 0 | JR42: 0 | JS42: 0 | JT42: 0 | JU42: 0 | JV42: 0 | JW42: 0 | JX42: 0 | JY42: 0 | JZ42: 0 | KA42: 0 | KB42: 0 | KC42: 0 | KD42: 0 | KE42: 0 | KF42: 0 | KG42: 0 | KH42: 0 | KI42: 0 | KJ42: 0 | KK42: 0 | KL42: 0 | KM42: 0 | KN42: 0 | KO42: 0 | KP42: 0 | KQ42: 0 | KR42: 0 | KS42: 0 | KT42: 0 | KU42: 0 | KV42: 0 | KW42: 0 | KX42: 0 | KY42: 0 | KZ42: 0 | LA42: 0 | LB42: 0 | LC42: 0 | LD42: 0 | LE42: 0 | LF42: 0 | LG42: 0 | LH42: 0 | LI42: 0 | LJ42: 0 | LK42: 0 | LL42: 0 | LM42: =IFERROR(SUMIFS($C$10:$MX$10,$C$9:$MX$9,"="&LM39),0) -> 0 | LN42: 0 | LO42: 0 | LP42: 0 | LQ42: 0 | LR42: 0 | LS42: 0 | LT42: 0 | LU42: 0 | LV42: 0 | LW42: 0 | LX42: 0 | LY42: 0 | LZ42: 0 | MA42: 0 | MB42: 0 | MC42: 0 | MD42: 0 | ME42: 0 | MF42: 0 | MG42: 0 | MH42: 0 | MI42: 0 | MJ42: 0 | MK42: 0 | ML42: 0 | MM42: 0 | MN42: 0 | MO42: 0 | MP42: 0 | MQ42: 0 | MR42: 0 | MS42: 0 | MT42: 0 | MU42: 0 | MV42: 0 | MW42: 0 | MX42: 0 | MY42: 0
A43: Mutuo 4 | B43: 16747.54855 | C43: =IF(B43=B13,"Ok","Ko") -> Ko | D43: =IFERROR(SUMIFS($C$13:$MX$13,$C$12:$MX$12,"="&D39),0) -> 38.262875 | E43: =IFERROR(SUMIFS($C$13:$MX$13,$C$12:$MX$12,"="&E39),0) -> 38.262875 | F43: 38.262875 | G43: 38.262875 | H43: 38.262875 | I43: 38.262875 | J43: 485.8226852 | K43: 485.8226852 | L43: 485.8226852 | M43: 485.8226852 | N43: 485.8226852 | O43: 485.8226852 | P43: 485.8226852 | Q43: 485.8226852 | R43: 485.8226852 | S43: 485.8226852 | T43: 485.8226852 | U43: 485.8226852 | V43: 485.8226852 | W43: 485.8226852 | X43: 485.8226852 | Y43: 485.8226852 | Z43: 485.8226852 | AA43: 485.8226852 | AB43: 485.8226852 | AC43: 485.8226852 | AD43: 485.8226852 | AE43: 485.8226852 | AF43: 485.8226852 | AG43: 485.8226852 | AH43: 485.8226852 | AI43: 485.8226852 | AJ43: 485.8226852 | AK43: 485.8226852 | AL43: 485.8226852 | AM43: 485.8226852 | AN43: 485.8226852 | AO43: 485.8226852 | AP43: 485.8226852 | AQ43: 485.8226852 | AR43: 0 | AS43: 0 | AT43: 0 | AU43: 0 | AV43: 0 | AW43: 0 | AX43: 0 | AY43: 0 | AZ43: 0 | BA43: 0 | BB43: 0 | BC43: 0 | BD43: 0 | BE43: 0 | BF43: 0 | BG43: 0 | BH43: 0 | BI43: 0 | BJ43: 0 | BK43: 0 | BL43: 0 | BM43: 0 | BN43: 0 | BO43: 0 | BP43: 0 | BQ43: =IFERROR(SUMIFS($C$13:$MX$13,$C$12:$MX$12,"="&BQ39),0) -> 0 | BR43: 0 | BS43: 0 | BT43: 0 | BU43: 0 | BV43: 0 | BW43: 0 | BX43: 0 | BY43: 0 | BZ43: 0 | CA43: 0 | CB43: 0 | CC43: 0 | CD43: 0 | CE43: 0 | CF43: 0 | CG43: 0 | CH43: 0 | CI43: 0 | CJ43: 0 | CK43: 0 | CL43: 0 | CM43: 0 | CN43: 0 | CO43: 0 | CP43: 0 | CQ43: 0 | CR43: 0 | CS43: 0 | CT43: 0 | CU43: 0 | CV43: 0 | CW43: 0 | CX43: 0 | CY43: 0 | CZ43: 0 | DA43: 0 | DB43: 0 | DC43: 0 | DD43: 0 | DE43: 0 | DF43: 0 | DG43: 0 | DH43: 0 | DI43: 0 | DJ43: 0 | DK43: 0 | DL43: 0 | DM43: 0 | DN43: 0 | DO43: 0 | DP43: 0 | DQ43: 0 | DR43: 0 | DS43: 0 | DT43: 0 | DU43: 0 | DV43: 0 | DW43: 0 | DX43: 0 | DY43: 0 | DZ43: 0 | EA43: 0 | EB43: 0 | EC43: =IFERROR(SUMIFS($C$13:$MX$13,$C$12:$MX$12,"="&EC39),0) -> 0 | ED43: 0 | EE43: 0 | EF43: 0 | EG43: 0 | EH43: 0 | EI43: 0 | EJ43: 0 | EK43: 0 | EL43: 0 | EM43: 0 | EN43: 0 | EO43: 0 | EP43: 0 | EQ43: 0 | ER43: 0 | ES43: 0 | ET43: 0 | EU43: 0 | EV43: 0 | EW43: 0 | EX43: 0 | EY43: 0 | EZ43: 0 | FA43: 0 | FB43: 0 | FC43: 0 | FD43: 0 | FE43: 0 | FF43: 0 | FG43: 0 | FH43: 0 | FI43: 0 | FJ43: 0 | FK43: 0 | FL43: 0 | FM43: 0 | FN43: 0 | FO43: 0 | FP43: 0 | FQ43: 0 | FR43: 0 | FS43: 0 | FT43: 0 | FU43: 0 | FV43: 0 | FW43: 0 | FX43: 0 | FY43: 0 | FZ43: 0 | GA43: 0 | GB43: 0 | GC43: 0 | GD43: 0 | GE43: 0 | GF43: 0 | GG43: 0 | GH43: 0 | GI43: 0 | GJ43: 0 | GK43: 0 | GL43: 0 | GM43: 0 | GN43: 0 | GO43: =IFERROR(SUMIFS($C$13:$MX$13,$C$12:$MX$12,"="&GO39),0) -> 0 | GP43: 0 | GQ43: 0 | GR43: 0 | GS43: 0 | GT43: 0 | GU43: 0 | GV43: 0 | GW43: 0 | GX43: 0 | GY43: 0 | GZ43: 0 | HA43: 0 | HB43: 0 | HC43: 0 | HD43: 0 | HE43: 0 | HF43: 0 | HG43: 0 | HH43: 0 | HI43: 0 | HJ43: 0 | HK43: 0 | HL43: 0 | HM43: 0 | HN43: 0 | HO43: 0 | HP43: 0 | HQ43: 0 | HR43: 0 | HS43: 0 | HT43: 0 | HU43: 0 | HV43: 0 | HW43: 0 | HX43: 0 | HY43: 0 | HZ43: 0 | IA43: 0 | IB43: 0 | IC43: 0 | ID43: 0 | IE43: 0 | IF43: 0 | IG43: 0 | IH43: 0 | II43: 0 | IJ43: 0 | IK43: 0 | IL43: 0 | IM43: 0 | IN43: 0 | IO43: 0 | IP43: 0 | IQ43: 0 | IR43: 0 | IS43: 0 | IT43: 0 | IU43: 0 | IV43: 0 | IW43: 0 | IX43: 0 | IY43: 0 | IZ43: 0 | JA43: =IFERROR(SUMIFS($C$13:$MX$13,$C$12:$MX$12,"="&JA39),0) -> 0 | JB43: 0 | JC43: 0 | JD43: 0 | JE43: 0 | JF43: 0 | JG43: 0 | JH43: 0 | JI43: 0 | JJ43: 0 | JK43: 0 | JL43: 0 | JM43: 0 | JN43: 0 | JO43: 0 | JP43: 0 | JQ43: 0 | JR43: 0 | JS43: 0 | JT43: 0 | JU43: 0 | JV43: 0 | JW43: 0 | JX43: 0 | JY43: 0 | JZ43: 0 | KA43: 0 | KB43: 0 | KC43: 0 | KD43: 0 | KE43: 0 | KF43: 0 | KG43: 0 | KH43: 0 | KI43: 0 | KJ43: 0 | KK43: 0 | KL43: 0 | KM43: 0 | KN43: 0 | KO43: 0 | KP43: 0 | KQ43: 0 | KR43: 0 | KS43: 0 | KT43: 0 | KU43: 0 | KV43: 0 | KW43: 0 | KX43: 0 | KY43: 0 | KZ43: 0 | LA43: 0 | LB43: 0 | LC43: 0 | LD43: 0 | LE43: 0 | LF43: 0 | LG43: 0 | LH43: 0 | LI43: 0 | LJ43: 0 | LK43: 0 | LL43: 0 | LM43: =IFERROR(SUMIFS($C$13:$MX$13,$C$12:$MX$12,"="&LM39),0) -> 0 | LN43: 0 | LO43: 0 | LP43: 0 | LQ43: 0 | LR43: 0 | LS43: 0 | LT43: 0 | LU43: 0 | LV43: 0 | LW43: 0 | LX43: 0 | LY43: 0 | LZ43: 0 | MA43: 0 | MB43: 0 | MC43: 0 | MD43: 0 | ME43: 0 | MF43: 0 | MG43: 0 | MH43: 0 | MI43: 0 | MJ43: 0 | MK43: 0 | ML43: 0 | MM43: 0 | MN43: 0 | MO43: 0 | MP43: 0 | MQ43: 0 | MR43: 0 | MS43: 0 | MT43: 0 | MU43: 0 | MV43: 0 | MW43: 0 | MX43: 0 | MY43: 0
A44: Mutuo 5 | B44: 0 | C44: =IF(B44=B16,"Ok","Ko") -> Ok | D44: =IFERROR(SUMIFS($C$16:$MX$16,$C$15:$MX$15,"="&D39),0) -> 0 | E44: =IFERROR(SUMIFS($C$16:$MX$16,$C$15:$MX$15,"="&E39),0) -> 0 | F44: 0 | G44: 0 | H44: 0 | I44: 0 | J44: 0 | K44: 0 | L44: 0 | M44: 0 | N44: 0 | O44: 0 | P44: 0 | Q44: 0 | R44: 0 | S44: 0 | T44: 0 | U44: 0 | V44: 0 | W44: 0 | X44: 0 | Y44: 0 | Z44: 0 | AA44: 0 | AB44: 0 | AC44: 0 | AD44: 0 | AE44: 0 | AF44: 0 | AG44: 0 | AH44: 0 | AI44: 0 | AJ44: 0 | AK44: 0 | AL44: 0 | AM44: 0 | AN44: 0 | AO44: 0 | AP44: 0 | AQ44: 0 | AR44: 0 | AS44: 0 | AT44: 0 | AU44: 0 | AV44: 0 | AW44: 0 | AX44: 0 | AY44: 0 | AZ44: 0 | BA44: 0 | BB44: 0 | BC44: 0 | BD44: 0 | BE44: 0 | BF44: 0 | BG44: 0 | BH44: 0 | BI44: 0 | BJ44: 0 | BK44: 0 | BL44: 0 | BM44: 0 | BN44: 0 | BO44: 0 | BP44: 0 | BQ44: =IFERROR(SUMIFS($C$16:$MX$16,$C$15:$MX$15,"="&BQ39),0) -> 0 | BR44: 0 | BS44: 0 | BT44: 0 | BU44: 0 | BV44: 0 | BW44: 0 | BX44: 0 | BY44: 0 | BZ44: 0 | CA44: 0 | CB44: 0 | CC44: 0 | CD44: 0 | CE44: 0 | CF44: 0 | CG44: 0 | CH44: 0 | CI44: 0 | CJ44: 0 | CK44: 0 | CL44: 0 | CM44: 0 | CN44: 0 | CO44: 0 | CP44: 0 | CQ44: 0 | CR44: 0 | CS44: 0 | CT44: 0 | CU44: 0 | CV44: 0 | CW44: 0 | CX44: 0 | CY44: 0 | CZ44: 0 | DA44: 0 | DB44: 0 | DC44: 0 | DD44: 0 | DE44: 0 | DF44: 0 | DG44: 0 | DH44: 0 | DI44: 0 | DJ44: 0 | DK44: 0 | DL44: 0 | DM44: 0 | DN44: 0 | DO44: 0 | DP44: 0 | DQ44: 0 | DR44: 0 | DS44: 0 | DT44: 0 | DU44: 0 | DV44: 0 | DW44: 0 | DX44: 0 | DY44: 0 | DZ44: 0 | EA44: 0 | EB44: 0 | EC44: =IFERROR(SUMIFS($C$16:$MX$16,$C$15:$MX$15,"="&EC39),0) -> 0 | ED44: 0 | EE44: 0 | EF44: 0 | EG44: 0 | EH44: 0 | EI44: 0 | EJ44: 0 | EK44: 0 | EL44: 0 | EM44: 0 | EN44: 0 | EO44: 0 | EP44: 0 | EQ44: 0 | ER44: 0 | ES44: 0 | ET44: 0 | EU44: 0 | EV44: 0 | EW44: 0 | EX44: 0 | EY44: 0 | EZ44: 0 | FA44: 0 | FB44: 0 | FC44: 0 | FD44: 0 | FE44: 0 | FF44: 0 | FG44: 0 | FH44: 0 | FI44: 0 | FJ44: 0 | FK44: 0 | FL44: 0 | FM44: 0 | FN44: 0 | FO44: 0 | FP44: 0 | FQ44: 0 | FR44: 0 | FS44: 0 | FT44: 0 | FU44: 0 | FV44: 0 | FW44: 0 | FX44: 0 | FY44: 0 | FZ44: 0 | GA44: 0 | GB44: 0 | GC44: 0 | GD44: 0 | GE44: 0 | GF44: 0 | GG44: 0 | GH44: 0 | GI44: 0 | GJ44: 0 | GK44: 0 | GL44: 0 | GM44: 0 | GN44: 0 | GO44: =IFERROR(SUMIFS($C$16:$MX$16,$C$15:$MX$15,"="&GO39),0) -> 0 | GP44: 0 | GQ44: 0 | GR44: 0 | GS44: 0 | GT44: 0 | GU44: 0 | GV44: 0 | GW44: 0 | GX44: 0 | GY44: 0 | GZ44: 0 | HA44: 0 | HB44: 0 | HC44: 0 | HD44: 0 | HE44: 0 | HF44: 0 | HG44: 0 | HH44: 0 | HI44: 0 | HJ44: 0 | HK44: 0 | HL44: 0 | HM44: 0 | HN44: 0 | HO44: 0 | HP44: 0 | HQ44: 0 | HR44: 0 | HS44: 0 | HT44: 0 | HU44: 0 | HV44: 0 | HW44: 0 | HX44: 0 | HY44: 0 | HZ44: 0 | IA44: 0 | IB44: 0 | IC44: 0 | ID44: 0 | IE44: 0 | IF44: 0 | IG44: 0 | IH44: 0 | II44: 0 | IJ44: 0 | IK44: 0 | IL44: 0 | IM44: 0 | IN44: 0 | IO44: 0 | IP44: 0 | IQ44: 0 | IR44: 0 | IS44: 0 | IT44: 0 | IU44: 0 | IV44: 0 | IW44: 0 | IX44: 0 | IY44: 0 | IZ44: 0 | JA44: =IFERROR(SUMIFS($C$16:$MX$16,$C$15:$MX$15,"="&JA39),0) -> 0 | JB44: 0 | JC44: 0 | JD44: 0 | JE44: 0 | JF44: 0 | JG44: 0 | JH44: 0 | JI44: 0 | JJ44: 0 | JK44: 0 | JL44: 0 | JM44: 0 | JN44: 0 | JO44: 0 | JP44: 0 | JQ44: 0 | JR44: 0 | JS44: 0 | JT44: 0 | JU44: 0 | JV44: 0 | JW44: 0 | JX44: 0 | JY44: 0 | JZ44: 0 | KA44: 0 | KB44: 0 | KC44: 0 | KD44: 0 | KE44: 0 | KF44: 0 | KG44: 0 | KH44: 0 | KI44: 0 | KJ44: 0 | KK44: 0 | KL44: 0 | KM44: 0 | KN44: 0 | KO44: 0 | KP44: 0 | KQ44: 0 | KR44: 0 | KS44: 0 | KT44: 0 | KU44: 0 | KV44: 0 | KW44: 0 | KX44: 0 | KY44: 0 | KZ44: 0 | LA44: 0 | LB44: 0 | LC44: 0 | LD44: 0 | LE44: 0 | LF44: 0 | LG44: 0 | LH44: 0 | LI44: 0 | LJ44: 0 | LK44: 0 | LL44: 0 | LM44: =IFERROR(SUMIFS($C$16:$MX$16,$C$15:$MX$15,"="&LM39),0) -> 0 | LN44: 0 | LO44: 0 | LP44: 0 | LQ44: 0 | LR44: 0 | LS44: 0 | LT44: 0 | LU44: 0 | LV44: 0 | LW44: 0 | LX44: 0 | LY44: 0 | LZ44: 0 | MA44: 0 | MB44: 0 | MC44: 0 | MD44: 0 | ME44: 0 | MF44: 0 | MG44: 0 | MH44: 0 | MI44: 0 | MJ44: 0 | MK44: 0 | ML44: 0 | MM44: 0 | MN44: 0 | MO44: 0 | MP44: 0 | MQ44: 0 | MR44: 0 | MS44: 0 | MT44: 0 | MU44: 0 | MV44: 0 | MW44: 0 | MX44: 0 | MY44: 0
A45: Mutuo 6 | B45: 0 | C45: =IF(B45=B19,"Ok","Ko") -> Ok | D45: =IFERROR(SUMIFS($C$19:$MX$19,$C$18:$MX$18,"="&D39),0) -> 0 | E45: =IFERROR(SUMIFS($C$19:$MX$19,$C$18:$MX$18,"="&E39),0) -> 0 | F45: 0 | G45: 0 | H45: 0 | I45: 0 | J45: 0 | K45: 0 | L45: 0 | M45: 0 | N45: 0 | O45: 0 | P45: 0 | Q45: 0 | R45: 0 | S45: 0 | T45: 0 | U45: 0 | V45: 0 | W45: 0 | X45: 0 | Y45: 0 | Z45: 0 | AA45: 0 | AB45: 0 | AC45: 0 | AD45: 0 | AE45: 0 | AF45: 0 | AG45: 0 | AH45: 0 | AI45: 0 | AJ45: 0 | AK45: 0 | AL45: 0 | AM45: 0 | AN45: 0 | AO45: 0 | AP45: 0 | AQ45: 0 | AR45: 0 | AS45: 0 | AT45: 0 | AU45: 0 | AV45: 0 | AW45: 0 | AX45: 0 | AY45: 0 | AZ45: 0 | BA45: 0 | BB45: 0 | BC45: 0 | BD45: 0 | BE45: 0 | BF45: 0 | BG45: 0 | BH45: 0 | BI45: 0 | BJ45: 0 | BK45: 0 | BL45: 0 | BM45: 0 | BN45: 0 | BO45: 0 | BP45: 0 | BQ45: =IFERROR(SUMIFS($C$19:$MX$19,$C$18:$MX$18,"="&BQ39),0) -> 0 | BR45: 0 | BS45: 0 | BT45: 0 | BU45: 0 | BV45: 0 | BW45: 0 | BX45: 0 | BY45: 0 | BZ45: 0 | CA45: 0 | CB45: 0 | CC45: 0 | CD45: 0 | CE45: 0 | CF45: 0 | CG45: 0 | CH45: 0 | CI45: 0 | CJ45: 0 | CK45: 0 | CL45: 0 | CM45: 0 | CN45: 0 | CO45: 0 | CP45: 0 | CQ45: 0 | CR45: 0 | CS45: 0 | CT45: 0 | CU45: 0 | CV45: 0 | CW45: 0 | CX45: 0 | CY45: 0 | CZ45: 0 | DA45: 0 | DB45: 0 | DC45: 0 | DD45: 0 | DE45: 0 | DF45: 0 | DG45: 0 | DH45: 0 | DI45: 0 | DJ45: 0 | DK45: 0 | DL45: 0 | DM45: 0 | DN45: 0 | DO45: 0 | DP45: 0 | DQ45: 0 | DR45: 0 | DS45: 0 | DT45: 0 | DU45: 0 | DV45: 0 | DW45: 0 | DX45: 0 | DY45: 0 | DZ45: 0 | EA45: 0 | EB45: 0 | EC45: =IFERROR(SUMIFS($C$19:$MX$19,$C$18:$MX$18,"="&EC39),0) -> 0 | ED45: 0 | EE45: 0 | EF45: 0 | EG45: 0 | EH45: 0 | EI45: 0 | EJ45: 0 | EK45: 0 | EL45: 0 | EM45: 0 | EN45: 0 | EO45: 0 | EP45: 0 | EQ45: 0 | ER45: 0 | ES45: 0 | ET45: 0 | EU45: 0 | EV45: 0 | EW45: 0 | EX45: 0 | EY45: 0 | EZ45: 0 | FA45: 0 | FB45: 0 | FC45: 0 | FD45: 0 | FE45: 0 | FF45: 0 | FG45: 0 | FH45: 0 | FI45: 0 | FJ45: 0 | FK45: 0 | FL45: 0 | FM45: 0 | FN45: 0 | FO45: 0 | FP45: 0 | FQ45: 0 | FR45: 0 | FS45: 0 | FT45: 0 | FU45: 0 | FV45: 0 | FW45: 0 | FX45: 0 | FY45: 0 | FZ45: 0 | GA45: 0 | GB45: 0 | GC45: 0 | GD45: 0 | GE45: 0 | GF45: 0 | GG45: 0 | GH45: 0 | GI45: 0 | GJ45: 0 | GK45: 0 | GL45: 0 | GM45: 0 | GN45: 0 | GO45: =IFERROR(SUMIFS($C$19:$MX$19,$C$18:$MX$18,"="&GO39),0) -> 0 | GP45: 0 | GQ45: 0 | GR45: 0 | GS45: 0 | GT45: 0 | GU45: 0 | GV45: 0 | GW45: 0 | GX45: 0 | GY45: 0 | GZ45: 0 | HA45: 0 | HB45: 0 | HC45: 0 | HD45: 0 | HE45: 0 | HF45: 0 | HG45: 0 | HH45: 0 | HI45: 0 | HJ45: 0 | HK45: 0 | HL45: 0 | HM45: 0 | HN45: 0 | HO45: 0 | HP45: 0 | HQ45: 0 | HR45: 0 | HS45: 0 | HT45: 0 | HU45: 0 | HV45: 0 | HW45: 0 | HX45: 0 | HY45: 0 | HZ45: 0 | IA45: 0 | IB45: 0 | IC45: 0 | ID45: 0 | IE45: 0 | IF45: 0 | IG45: 0 | IH45: 0 | II45: 0 | IJ45: 0 | IK45: 0 | IL45: 0 | IM45: 0 | IN45: 0 | IO45: 0 | IP45: 0 | IQ45: 0 | IR45: 0 | IS45: 0 | IT45: 0 | IU45: 0 | IV45: 0 | IW45: 0 | IX45: 0 | IY45: 0 | IZ45: 0 | JA45: =IFERROR(SUMIFS($C$19:$MX$19,$C$18:$MX$18,"="&JA39),0) -> 0 | JB45: 0 | JC45: 0 | JD45: 0 | JE45: 0 | JF45: 0 | JG45: 0 | JH45: 0 | JI45: 0 | JJ45: 0 | JK45: 0 | JL45: 0 | JM45: 0 | JN45: 0 | JO45: 0 | JP45: 0 | JQ45: 0 | JR45: 0 | JS45: 0 | JT45: 0 | JU45: 0 | JV45: 0 | JW45: 0 | JX45: 0 | JY45: 0 | JZ45: 0 | KA45: 0 | KB45: 0 | KC45: 0 | KD45: 0 | KE45: 0 | KF45: 0 | KG45: 0 | KH45: 0 | KI45: 0 | KJ45: 0 | KK45: 0 | KL45: 0 | KM45: 0 | KN45: 0 | KO45: 0 | KP45: 0 | KQ45: 0 | KR45: 0 | KS45: 0 | KT45: 0 | KU45: 0 | KV45: 0 | KW45: 0 | KX45: 0 | KY45: 0 | KZ45: 0 | LA45: 0 | LB45: 0 | LC45: 0 | LD45: 0 | LE45: 0 | LF45: 0 | LG45: 0 | LH45: 0 | LI45: 0 | LJ45: 0 | LK45: 0 | LL45: 0 | LM45: =IFERROR(SUMIFS($C$19:$MX$19,$C$18:$MX$18,"="&LM39),0) -> 0 | LN45: 0 | LO45: 0 | LP45: 0 | LQ45: 0 | LR45: 0 | LS45: 0 | LT45: 0 | LU45: 0 | LV45: 0 | LW45: 0 | LX45: 0 | LY45: 0 | LZ45: 0 | MA45: 0 | MB45: 0 | MC45: 0 | MD45: 0 | ME45: 0 | MF45: 0 | MG45: 0 | MH45: 0 | MI45: 0 | MJ45: 0 | MK45: 0 | ML45: 0 | MM45: 0 | MN45: 0 | MO45: 0 | MP45: 0 | MQ45: 0 | MR45: 0 | MS45: 0 | MT45: 0 | MU45: 0 | MV45: 0 | MW45: 0 | MX45: 0 | MY45: 0
A46: Mutuo 7 | B46: 0 | C46: =IF(B46=B22,"Ok","Ko") -> Ok | D46: =IFERROR(SUMIFS($C$22:$MX$22,$C$21:$MX$21,"="&D39),0) -> 0 | E46: =IFERROR(SUMIFS($C$22:$MX$22,$C$21:$MX$21,"="&E39),0) -> 0 | F46: 0 | G46: 0 | H46: 0 | I46: 0 | J46: 0 | K46: 0 | L46: 0 | M46: 0 | N46: 0 | O46: 0 | P46: 0 | Q46: 0 | R46: 0 | S46: 0 | T46: 0 | U46: 0 | V46: 0 | W46: 0 | X46: 0 | Y46: 0 | Z46: 0 | AA46: 0 | AB46: 0 | AC46: 0 | AD46: 0 | AE46: 0 | AF46: 0 | AG46: 0 | AH46: 0 | AI46: 0 | AJ46: 0 | AK46: 0 | AL46: 0 | AM46: 0 | AN46: 0 | AO46: 0 | AP46: 0 | AQ46: 0 | AR46: 0 | AS46: 0 | AT46: 0 | AU46: 0 | AV46: 0 | AW46: 0 | AX46: 0 | AY46: 0 | AZ46: 0 | BA46: 0 | BB46: 0 | BC46: 0 | BD46: 0 | BE46: 0 | BF46: 0 | BG46: 0 | BH46: 0 | BI46: 0 | BJ46: 0 | BK46: 0 | BL46: 0 | BM46: 0 | BN46: 0 | BO46: 0 | BP46: 0 | BQ46: =IFERROR(SUMIFS($C$22:$MX$22,$C$21:$MX$21,"="&BQ39),0) -> 0 | BR46: 0 | BS46: 0 | BT46: 0 | BU46: 0 | BV46: 0 | BW46: 0 | BX46: 0 | BY46: 0 | BZ46: 0 | CA46: 0 | CB46: 0 | CC46: 0 | CD46: 0 | CE46: 0 | CF46: 0 | CG46: 0 | CH46: 0 | CI46: 0 | CJ46: 0 | CK46: 0 | CL46: 0 | CM46: 0 | CN46: 0 | CO46: 0 | CP46: 0 | CQ46: 0 | CR46: 0 | CS46: 0 | CT46: 0 | CU46: 0 | CV46: 0 | CW46: 0 | CX46: 0 | CY46: 0 | CZ46: 0 | DA46: 0 | DB46: 0 | DC46: 0 | DD46: 0 | DE46: 0 | DF46: 0 | DG46: 0 | DH46: 0 | DI46: 0 | DJ46: 0 | DK46: 0 | DL46: 0 | DM46: 0 | DN46: 0 | DO46: 0 | DP46: 0 | DQ46: 0 | DR46: 0 | DS46: 0 | DT46: 0 | DU46: 0 | DV46: 0 | DW46: 0 | DX46: 0 | DY46: 0 | DZ46: 0 | EA46: 0 | EB46: 0 | EC46: =IFERROR(SUMIFS($C$22:$MX$22,$C$21:$MX$21,"="&EC39),0) -> 0 | ED46: 0 | EE46: 0 | EF46: 0 | EG46: 0 | EH46: 0 | EI46: 0 | EJ46: 0 | EK46: 0 | EL46: 0 | EM46: 0 | EN46: 0 | EO46: 0 | EP46: 0 | EQ46: 0 | ER46: 0 | ES46: 0 | ET46: 0 | EU46: 0 | EV46: 0 | EW46: 0 | EX46: 0 | EY46: 0 | EZ46: 0 | FA46: 0 | FB46: 0 | FC46: 0 | FD46: 0 | FE46: 0 | FF46: 0 | FG46: 0 | FH46: 0 | FI46: 0 | FJ46: 0 | FK46: 0 | FL46: 0 | FM46: 0 | FN46: 0 | FO46: 0 | FP46: 0 | FQ46: 0 | FR46: 0 | FS46: 0 | FT46: 0 | FU46: 0 | FV46: 0 | FW46: 0 | FX46: 0 | FY46: 0 | FZ46: 0 | GA46: 0 | GB46: 0 | GC46: 0 | GD46: 0 | GE46: 0 | GF46: 0 | GG46: 0 | GH46: 0 | GI46: 0 | GJ46: 0 | GK46: 0 | GL46: 0 | GM46: 0 | GN46: 0 | GO46: =IFERROR(SUMIFS($C$22:$MX$22,$C$21:$MX$21,"="&GO39),0) -> 0 | GP46: 0 | GQ46: 0 | GR46: 0 | GS46: 0 | GT46: 0 | GU46: 0 | GV46: 0 | GW46: 0 | GX46: 0 | GY46: 0 | GZ46: 0 | HA46: 0 | HB46: 0 | HC46: 0 | HD46: 0 | HE46: 0 | HF46: 0 | HG46: 0 | HH46: 0 | HI46: 0 | HJ46: 0 | HK46: 0 | HL46: 0 | HM46: 0 | HN46: 0 | HO46: 0 | HP46: 0 | HQ46: 0 | HR46: 0 | HS46: 0 | HT46: 0 | HU46: 0 | HV46: 0 | HW46: 0 | HX46: 0 | HY46: 0 | HZ46: 0 | IA46: 0 | IB46: 0 | IC46: 0 | ID46: 0 | IE46: 0 | IF46: 0 | IG46: 0 | IH46: 0 | II46: 0 | IJ46: 0 | IK46: 0 | IL46: 0 | IM46: 0 | IN46: 0 | IO46: 0 | IP46: 0 | IQ46: 0 | IR46: 0 | IS46: 0 | IT46: 0 | IU46: 0 | IV46: 0 | IW46: 0 | IX46: 0 | IY46: 0 | IZ46: 0 | JA46: =IFERROR(SUMIFS($C$22:$MX$22,$C$21:$MX$21,"="&JA39),0) -> 0 | JB46: 0 | JC46: 0 | JD46: 0 | JE46: 0 | JF46: 0 | JG46: 0 | JH46: 0 | JI46: 0 | JJ46: 0 | JK46: 0 | JL46: 0 | JM46: 0 | JN46: 0 | JO46: 0 | JP46: 0 | JQ46: 0 | JR46: 0 | JS46: 0 | JT46: 0 | JU46: 0 | JV46: 0 | JW46: 0 | JX46: 0 | JY46: 0 | JZ46: 0 | KA46: 0 | KB46: 0 | KC46: 0 | KD46: 0 | KE46: 0 | KF46: 0 | KG46: 0 | KH46: 0 | KI46: 0 | KJ46: 0 | KK46: 0 | KL46: 0 | KM46: 0 | KN46: 0 | KO46: 0 | KP46: 0 | KQ46: 0 | KR46: 0 | KS46: 0 | KT46: 0 | KU46: 0 | KV46: 0 | KW46: 0 | KX46: 0 | KY46: 0 | KZ46: 0 | LA46: 0 | LB46: 0 | LC46: 0 | LD46: 0 | LE46: 0 | LF46: 0 | LG46: 0 | LH46: 0 | LI46: 0 | LJ46: 0 | LK46: 0 | LL46: 0 | LM46: =IFERROR(SUMIFS($C$22:$MX$22,$C$21:$MX$21,"="&LM39),0) -> 0 | LN46: 0 | LO46: 0 | LP46: 0 | LQ46: 0 | LR46: 0 | LS46: 0 | LT46: 0 | LU46: 0 | LV46: 0 | LW46: 0 | LX46: 0 | LY46: 0 | LZ46: 0 | MA46: 0 | MB46: 0 | MC46: 0 | MD46: 0 | ME46: 0 | MF46: 0 | MG46: 0 | MH46: 0 | MI46: 0 | MJ46: 0 | MK46: 0 | ML46: 0 | MM46: 0 | MN46: 0 | MO46: 0 | MP46: 0 | MQ46: 0 | MR46: 0 | MS46: 0 | MT46: 0 | MU46: 0 | MV46: 0 | MW46: 0 | MX46: 0 | MY46: 0
A47: Mutuo new | B47: 18690.74959 | C47: =IF(B47=B25,"Ok","Ko") -> Ok | D47: =IFERROR(SUMIFS($C$25:$MX$25,$C$24:$MX$24,"="&D39),0) -> 0 | E47: =+C25 -> 27.70833333 | F47: =+D25 -> 27.70833333 | G47: 27.70833333 | H47: 27.70833333 | I47: 27.70833333 | J47: 27.70833333 | K47: 27.70833333 | L47: 27.70833333 | M47: 27.70833333 | N47: 27.70833333 | O47: 27.70833333 | P47: 27.70833333 | Q47: 305.9708265 | R47: 305.9708265 | S47: 305.9708265 | T47: 305.9708265 | U47: 305.9708265 | V47: 305.9708265 | W47: 305.9708265 | X47: 305.9708265 | Y47: 305.9708265 | Z47: 305.9708265 | AA47: 305.9708265 | AB47: 305.9708265 | AC47: 305.9708265 | AD47: 305.9708265 | AE47: 305.9708265 | AF47: 305.9708265 | AG47: 305.9708265 | AH47: 305.9708265 | AI47: 305.9708265 | AJ47: 305.9708265 | AK47: 305.9708265 | AL47: 305.9708265 | AM47: 305.9708265 | AN47: 305.9708265 | AO47: 305.9708265 | AP47: 305.9708265 | AQ47: 305.9708265 | AR47: 305.9708265 | AS47: 305.9708265 | AT47: 305.9708265 | AU47: 305.9708265 | AV47: 305.9708265 | AW47: 305.9708265 | AX47: 305.9708265 | AY47: 305.9708265 | AZ47: 305.9708265 | BA47: 305.9708265 | BB47: 305.9708265 | BC47: 305.9708265 | BD47: 305.9708265 | BE47: 305.9708265 | BF47: 305.9708265 | BG47: 305.9708265 | BH47: 305.9708265 | BI47: 305.9708265 | BJ47: 305.9708265 | BK47: 305.9708265 | BL47: 305.9708265 | BM47: 305.9708265 | BN47: 305.9708265 | BO47: 305.9708265 | BP47: 305.9708265 | BQ47: 305.9708265 | BR47: =+BP25 -> 305.9708265 | BS47: 305.9708265 | BT47: 305.9708265 | BU47: 305.9708265 | BV47: 305.9708265 | BW47: 305.9708265 | BX47: 305.9708265 | BY47: 0 | BZ47: 0 | CA47: 0 | CB47: 0 | CC47: 0 | CD47: 0 | CE47: 0 | CF47: 0 | CG47: 0 | CH47: 0 | CI47: 0 | CJ47: 0 | CK47: 0 | CL47: 0 | CM47: 0 | CN47: 0 | CO47: 0 | CP47: 0 | CQ47: 0 | CR47: 0 | CS47: 0 | CT47: 0 | CU47: 0 | CV47: 0 | CW47: 0 | CX47: 0 | CY47: 0 | CZ47: 0 | DA47: 0 | DB47: 0 | DC47: 0 | DD47: 0 | DE47: 0 | DF47: 0 | DG47: 0 | DH47: 0 | DI47: 0 | DJ47: 0 | DK47: 0 | DL47: 0 | DM47: 0 | DN47: 0 | DO47: 0 | DP47: 0 | DQ47: 0 | DR47: 0 | DS47: 0 | DT47: 0 | DU47: 0 | DV47: 0 | DW47: 0 | DX47: 0 | DY47: 0 | DZ47: 0 | EA47: 0 | EB47: 0 | EC47: 0 | ED47: =+EB25 -> 0 | EE47: 0 | EF47: 0 | EG47: 0 | EH47: 0 | EI47: 0 | EJ47: 0 | EK47: 0 | EL47: 0 | EM47: 0 | EN47: 0 | EO47: 0 | EP47: 0 | EQ47: 0 | ER47: 0 | ES47: 0 | ET47: 0 | EU47: 0 | EV47: 0 | EW47: 0 | EX47: 0 | EY47: 0 | EZ47: 0 | FA47: 0 | FB47: 0 | FC47: 0 | FD47: 0 | FE47: 0 | FF47: 0 | FG47: 0 | FH47: 0 | FI47: 0 | FJ47: 0 | FK47: 0 | FL47: 0 | FM47: 0 | FN47: 0 | FO47: 0 | FP47: 0 | FQ47: 0 | FR47: 0 | FS47: 0 | FT47: 0 | FU47: 0 | FV47: 0 | FW47: 0 | FX47: 0 | FY47: 0 | FZ47: 0 | GA47: 0 | GB47: 0 | GC47: 0 | GD47: 0 | GE47: 0 | GF47: 0 | GG47: 0 | GH47: 0 | GI47: 0 | GJ47: 0 | GK47: 0 | GL47: 0 | GM47: 0 | GN47: 0 | GO47: 0 | GP47: =+GN25 -> 0 | GQ47: 0 | GR47: 0 | GS47: 0 | GT47: 0 | GU47: 0 | GV47: 0 | GW47: 0 | GX47: 0 | GY47: 0 | GZ47: 0 | HA47: 0 | HB47: 0 | HC47: 0 | HD47: 0 | HE47: 0 | HF47: 0 | HG47: 0 | HH47: 0 | HI47: 0 | HJ47: 0 | HK47: 0 | HL47: 0 | HM47: 0 | HN47: 0 | HO47: 0 | HP47: 0 | HQ47: 0 | HR47: 0 | HS47: 0 | HT47: 0 | HU47: 0 | HV47: 0 | HW47: 0 | HX47: 0 | HY47: 0 | HZ47: 0 | IA47: 0 | IB47: 0 | IC47: 0 | ID47: 0 | IE47: 0 | IF47: 0 | IG47: 0 | IH47: 0 | II47: 0 | IJ47: 0 | IK47: 0 | IL47: 0 | IM47: 0 | IN47: 0 | IO47: 0 | IP47: 0 | IQ47: 0 | IR47: 0 | IS47: 0 | IT47: 0 | IU47: 0 | IV47: 0 | IW47: 0 | IX47: 0 | IY47: 0 | IZ47: 0 | JA47: 0 | JB47: =+IZ25 -> 0 | JC47: 0 | JD47: 0 | JE47: 0 | JF47: 0 | JG47: 0 | JH47: 0 | JI47: 0 | JJ47: 0 | JK47: 0 | JL47: 0 | JM47: 0 | JN47: 0 | JO47: 0 | JP47: 0 | JQ47: 0 | JR47: 0 | JS47: 0 | JT47: 0 | JU47: 0 | JV47: 0 | JW47: 0 | JX47: 0 | JY47: 0 | JZ47: 0 | KA47: 0 | KB47: 0 | KC47: 0 | KD47: 0 | KE47: 0 | KF47: 0 | KG47: 0 | KH47: 0 | KI47: 0 | KJ47: 0 | KK47: 0 | KL47: 0 | KM47: 0 | KN47: 0 | KO47: 0 | KP47: 0 | KQ47: 0 | KR47: 0 | KS47: 0 | KT47: 0 | KU47: 0 | KV47: 0 | KW47: 0 | KX47: 0 | KY47: 0 | KZ47: 0 | LA47: 0 | LB47: 0 | LC47: 0 | LD47: 0 | LE47: 0 | LF47: 0 | LG47: 0 | LH47: 0 | LI47: 0 | LJ47: 0 | LK47: 0 | LL47: 0 | LM47: 0 | LN47: =+LL25 -> 0 | LO47: 0 | LP47: 0 | LQ47: 0 | LR47: 0 | LS47: 0 | LT47: 0 | LU47: 0 | LV47: 0 | LW47: 0 | LX47: 0 | LY47: 0 | LZ47: 0 | MA47: 0 | MB47: 0 | MC47: 0 | MD47: 0 | ME47: 0 | MF47: 0 | MG47: 0 | MH47: 0 | MI47: 0 | MJ47: 0 | MK47: 0 | ML47: 0 | MM47: 0 | MN47: 0 | MO47: 0 | MP47: 0 | MQ47: 0 | MR47: 0 | MS47: 0 | MT47: 0 | MU47: 0 | MV47: 0 | MW47: 0 | MX47: 0 | MY47: 0
A48: Totale | E48: =SUM(E40:E47) -> 289.3961472 | F48: =SUM(F40:F47) -> 289.3961472 | G48: 289.3961472 | H48: 289.3961472 | I48: 289.3961472 | J48: 1490.731496 | K48: 1773.702573 | L48: 1490.731496 | M48: 1295.696349 | N48: 1578.667426 | O48: 1295.696349 | P48: 1295.696349 | Q48: 1856.929919 | R48: 1573.958842 | S48: 1573.958842 | T48: 1856.929919 | U48: 1573.958842 | V48: 1573.958842 | W48: 1856.929919 | X48: 1573.958842 | Y48: 1573.958842 | Z48: 1856.929919 | AA48: 1573.958842 | AB48: 1573.958842 | AC48: 1856.929919 | AD48: 1573.958842 | AE48: 1573.958842 | AF48: 1856.929919 | AG48: 1573.958842 | AH48: 791.7935116 | AI48: 1074.764588 | AJ48: 791.7935116 | AK48: 791.7935116 | AL48: 1074.764588 | AM48: 791.7935116 | AN48: 791.7935116 | AO48: 1074.764588 | AP48: 791.7935116 | AQ48: 791.7935116 | AR48: 588.9419033 | AS48: 305.9708265 | AT48: 305.9708265 | AU48: 305.9708265 | AV48: 305.9708265 | AW48: 305.9708265 | AX48: 305.9708265 | AY48: 305.9708265 | AZ48: 305.9708265 | BA48: 305.9708265 | BB48: 305.9708265 | BC48: 305.9708265 | BD48: 305.9708265 | BE48: 305.9708265 | BF48: 305.9708265 | BG48: 305.9708265 | BH48: 305.9708265 | BI48: 305.9708265 | BJ48: 305.9708265 | BK48: 305.9708265 | BL48: 305.9708265 | BM48: 305.9708265 | BN48: 305.9708265 | BO48: 305.9708265 | BP48: 305.9708265 | BQ48: 305.9708265 | BR48: =SUM(BR40:BR47) -> 305.9708265 | BS48: 305.9708265 | BT48: 305.9708265 | BU48: 305.9708265 | BV48: 305.9708265 | BW48: 305.9708265 | BX48: 305.9708265 | BY48: 0 | BZ48: 0 | CA48: 0 | CB48: 0 | CC48: 0 | CD48: 0 | CE48: 0 | CF48: 0 | CG48: 0 | CH48: 0 | CI48: 0 | CJ48: 0 | CK48: 0 | CL48: 0 | CM48: 0 | CN48: 0 | CO48: 0 | CP48: 0 | CQ48: 0 | CR48: 0 | CS48: 0 | CT48: 0 | CU48: 0 | CV48: 0 | CW48: 0 | CX48: 0 | CY48: 0 | CZ48: 0 | DA48: 0 | DB48: 0 | DC48: 0 | DD48: 0 | DE48: 0 | DF48: 0 | DG48: 0 | DH48: 0 | DI48: 0 | DJ48: 0 | DK48: 0 | DL48: 0 | DM48: 0 | DN48: 0 | DO48: 0 | DP48: 0 | DQ48: 0 | DR48: 0 | DS48: 0 | DT48: 0 | DU48: 0 | DV48: 0 | DW48: 0 | DX48: 0 | DY48: 0 | DZ48: 0 | EA48: 0 | EB48: 0 | EC48: 0 | ED48: =SUM(ED40:ED47) -> 0 | EE48: 0 | EF48: 0 | EG48: 0 | EH48: 0 | EI48: 0 | EJ48: 0 | EK48: 0 | EL48: 0 | EM48: 0 | EN48: 0 | EO48: 0 | EP48: 0 | EQ48: 0 | ER48: 0 | ES48: 0 | ET48: 0 | EU48: 0 | EV48: 0 | EW48: 0 | EX48: 0 | EY48: 0 | EZ48: 0 | FA48: 0 | FB48: 0 | FC48: 0 | FD48: 0 | FE48: 0 | FF48: 0 | FG48: 0 | FH48: 0 | FI48: 0 | FJ48: 0 | FK48: 0 | FL48: 0 | FM48: 0 | FN48: 0 | FO48: 0 | FP48: 0 | FQ48: 0 | FR48: 0 | FS48: 0 | FT48: 0 | FU48: 0 | FV48: 0 | FW48: 0 | FX48: 0 | FY48: 0 | FZ48: 0 | GA48: 0 | GB48: 0 | GC48: 0 | GD48: 0 | GE48: 0 | GF48: 0 | GG48: 0 | GH48: 0 | GI48: 0 | GJ48: 0 | GK48: 0 | GL48: 0 | GM48: 0 | GN48: 0 | GO48: 0 | GP48: =SUM(GP40:GP47) -> 0 | GQ48: 0 | GR48: 0 | GS48: 0 | GT48: 0 | GU48: 0 | GV48: 0 | GW48: 0 | GX48: 0 | GY48: 0 | GZ48: 0 | HA48: 0 | HB48: 0 | HC48: 0 | HD48: 0 | HE48: 0 | HF48: 0 | HG48: 0 | HH48: 0 | HI48: 0 | HJ48: 0 | HK48: 0 | HL48: 0 | HM48: 0 | HN48: 0 | HO48: 0 | HP48: 0 | HQ48: 0 | HR48: 0 | HS48: 0 | HT48: 0 | HU48: 0 | HV48: 0 | HW48: 0 | HX48: 0 | HY48: 0 | HZ48: 0 | IA48: 0 | IB48: 0 | IC48: 0 | ID48: 0 | IE48: 0 | IF48: 0 | IG48: 0 | IH48: 0 | II48: 0 | IJ48: 0 | IK48: 0 | IL48: 0 | IM48: 0 | IN48: 0 | IO48: 0 | IP48: 0 | IQ48: 0 | IR48: 0 | IS48: 0 | IT48: 0 | IU48: 0 | IV48: 0 | IW48: 0 | IX48: 0 | IY48: 0 | IZ48: 0 | JA48: 0 | JB48: =SUM(JB40:JB47) -> 0 | JC48: 0 | JD48: 0 | JE48: 0 | JF48: 0 | JG48: 0 | JH48: 0 | JI48: 0 | JJ48: 0 | JK48: 0 | JL48: 0 | JM48: 0 | JN48: 0 | JO48: 0 | JP48: 0 | JQ48: 0 | JR48: 0 | JS48: 0 | JT48: 0 | JU48: 0 | JV48: 0 | JW48: 0 | JX48: 0 | JY48: 0 | JZ48: 0 | KA48: 0 | KB48: 0 | KC48: 0 | KD48: 0 | KE48: 0 | KF48: 0 | KG48: 0 | KH48: 0 | KI48: 0 | KJ48: 0 | KK48: 0 | KL48: 0 | KM48: 0 | KN48: 0 | KO48: 0 | KP48: 0 | KQ48: 0 | KR48: 0 | KS48: 0 | KT48: 0 | KU48: 0 | KV48: 0 | KW48: 0 | KX48: 0 | KY48: 0 | KZ48: 0 | LA48: 0 | LB48: 0 | LC48: 0 | LD48: 0 | LE48: 0 | LF48: 0 | LG48: 0 | LH48: 0 | LI48: 0 | LJ48: 0 | LK48: 0 | LL48: 0 | LM48: 0 | LN48: =SUM(LN40:LN47) -> 0 | LO48: 0 | LP48: 0 | LQ48: 0 | LR48: 0 | LS48: 0 | LT48: 0 | LU48: 0 | LV48: 0 | LW48: 0 | LX48: 0 | LY48: 0 | LZ48: 0 | MA48: 0 | MB48: 0 | MC48: 0 | MD48: 0 | ME48: 0 | MF48: 0 | MG48: 0 | MH48: 0 | MI48: 0 | MJ48: 0 | MK48: 0 | ML48: 0 | MM48: 0 | MN48: 0 | MO48: 0 | MP48: 0 | MQ48: 0 | MR48: 0 | MS48: 0 | MT48: 0 | MU48: 0 | MV48: 0 | MW48: 0 | MX48: 0 | MY48: 0

Sheet Supporto distribuzione (hidden)
A1: =+'1) Debiti finanziari'!A1 -> Denominazione richiedente | C1: =+'1) Debiti finanziari'!C1 -> Rossi Mario SRl | I1: Fatturato | K1: =+'3) Analisi flussi di cassa'!C6 -> 127451
A2: =+'1) Debiti finanziari'!A2 -> Data compilazione | C2: =+'1) Debiti finanziari'!D2 -> 2020-04-20 | I2: Debiti finanziari | K2: =+'1) Debiti finanziari'!I13+'2) Richiesta finanziamento'!J8 -> 56338
I3: Incidenza sul fatturato | K3: =+K2/K1 -> 0.4420365474
A5: Servizio del debito
A6: Anni | C6: Anno 1 | D6: Anno 2 | E6: Anno 3 | F6: Anno 4 | G6: Anno 5 | H6: Totale
A7: Mesi | C7: 12 | D7: =12+C7 -> 24 | E7: =12+D7 -> 36 | F7: =12+E7 -> 48 | G7: =12+F7 -> 60
A8: Rate | C8: =SUMIFS('Supporto mutui'!E48:MY48,'Supporto mutui'!E38:MY38,"<="&C7) -> 11667.90277 | D8: =SUMIFS('Supporto mutui'!$E$48:$MY$48,'Supporto mutui'!$E$38:$MY$38,">"&C7,'Supporto mutui'!$E$38:$MY$38,"<="&D7) -> 20019.39041 | E8: =SUMIFS('Supporto mutui'!$E$48:$MY$48,'Supporto mutui'!$E$38:$MY$38,">"&D7,'Supporto mutui'!$E$38:$MY$38,"<="&E7) -> 14544.2331 | F8: =SUMIFS('Supporto mutui'!$E$48:$MY$48,'Supporto mutui'!$E$38:$MY$38,">"&E7,'Supporto mutui'!$E$38:$MY$38,"<="&F7) -> 5695.060127 | G8: =SUMIFS('Supporto mutui'!$E$48:$MY$48,'Supporto mutui'!$E$38:$MY$38,">"&F7,'Supporto mutui'!$E$38:$MY$38,"<="&G7) -> 3671.649918 | H8: =SUM(C8:G8) -> 55598.23633
A9: Oneri fin.ri fidi a breve | C9: =+'1) Debiti finanziari'!E24 -> 2580 | D9: =+C9 -> 2580 | E9: =+D9 -> 2580 | F9: =+E9 -> 2580 | G9: =+F9 -> 2580 | H9: =IF(SUM('Supporto mutui'!E48:BL48)=H8,"Ok","Ko") -> Ok
A10: Totale | C10: =+C9+C8 -> 14247.90277 | D10: =+D9+D8 -> 22599.39041 | E10: =+E9+E8 -> 17124.2331 | F10: =+F9+F8 -> 8275.060127 | G10: =+G9+G8 -> 6251.649918
A13: Variazione fatturato v/2019 | B13: Cassa operativa libera | C13: Servizio debito 1° anno | D13: Differenza | E13: DSCR | F13: Servizio debito 2° anno | G13: Differenza | H13: DSCR
A14: =TRANSPOSE('3) Analisi flussi di cassa'!G5:K5) -> 0.15 | B14: =TRANSPOSE('3) Analisi flussi di cassa'!G24:K24) -> 15083.64746 | C14: =+C10 -> 14247.90277 | D14: =+B14-C14 -> 835.744682 | E14: =+$B14/C14 -> 1.058657382 | F14: =+D10 -> 22599.39041 | G14: =+$B14-F14 -> -7515.742956 | H14: =+$B14/F14 -> 0.6674360317
A15: -0.05 | B15: 17932.7315 | C15: =+C14 -> 14247.90277 | D15: =+B15-C15 -> 3684.828726 | E15: =+$B15/C15 -> 1.258622534 | F15: =+F14 -> 22599.39041 | G15: =+$B15-F15 -> -4666.658912 | H15: =+$B15/F15 -> 0.7935050978
A16: 0 | B16: 20921.11575 | C16: 14247.90277 | D16: =+B16-C16 -> 6673.212976 | E16: =+$B16/C16 -> 1.468364578 | F16: 22599.39041 | G16: =+$B16-F16 -> -1678.274662 | H16: =+$B16/F16 -> 0.9257380561
A17: 0.01 | B17: 23909.5 | C17: 14247.90277 | D17: =+B17-C17 -> 9661.597226 | E17: =+$B17/C17 -> 1.678106622 | F17: 22599.39041 | G17: =+$B17-F17 -> 1310.109588 | H17: =+$B17/F17 -> 1.057971014
A18: 0.02 | B18: 23909.5 | C18: 14247.90277 | D18: =+B18-C18 -> 9661.597226 | E18: =+$B18/C18 -> 1.678106622 | F18: 22599.39041 | G18: =+$B18-F18 -> 1310.109588 | H18: =+$B18/F18 -> 1.057971014
C19: Giudizio: | E19: =IF(E18>='4) Analisi sostenibilità debito'!$B$33,"Buona",IF(E18>='4) Analisi sostenibilità debito'!$B$34,"positiva ma debole",IF(E18>='4) Analisi sostenibilità debito'!$B$35,"carente","gravemente carente"))) -> Buona | F19: Giudizio: | H19: =IF(H18>='4) Analisi sostenibilità debito'!$B$33,"Buona",IF(H18>='4) Analisi sostenibilità debito'!$B$34,"positiva ma debole",IF(H18>='4) Analisi sostenibilità debito'!$B$35,"carente","gravemente carente"))) -> positiva ma debole
A21: Variazione fatturato v/2019 | B21: Cassa operativa libera | C21: Servizio debito 3° anno | D21: Differenza | E21: DSCR | F21: Servizio debito 4° anno | G21: Differenza | H21: DSCR | I21: Servizio debito 5° anno | J21: Differenza | K21: DSCR
A22: =+A14 -> 0.15 | B22: 15083.64746 | C22: =+E10 -> 17124.2331 | D22: =+B22-C22 -> -2040.585643 | E22: =+$B22/C22 -> 0.8808363778 | F22: =+F10 -> 8275.060127 | G22: =+$B22-F22 -> 6808.587329 | H22: =+$B22/F22 -> 1.822784031 | I22: =+G10 -> 6251.649918 | J22: =+$B22-I22 -> 8831.997538 | K22: =+$B22/I22 -> 2.41274666
A23: -0.05 | B23: 17932.7315 | C23: =+C22 -> 17124.2331 | D23: =+B23-C23 -> 808.498401 | E23: =+$B23/C23 -> 1.0472137 | F23: =+F22 -> 8275.060127 | G23: =+$B23-F23 -> 9657.671373 | H23: =+$B23/F23 -> 2.167081716 | I23: =+I22 -> 6251.649918 | J23: =+$B23-I23 -> 11681.08158 | K23: =+$B23/I23 -> 2.868479799
A24: 0 | B24: 20921.11575 | C24: 17124.2331 | D24: =+B24-C24 -> 3796.882651 | E24: =+$B24/C24 -> 1.221725705 | F24: =+F23 -> 8275.060127 | G24: =+$B24-F24 -> 12646.05562 | H24: =+$B24/F24 -> 2.52821314 | I24: =+I23 -> 6251.649918 | J24: =+$B24-I24 -> 14669.46583 | K24: =+$B24/I24 -> 3.346495089
A25: 0.01 | B25: 23909.5 | C25: 17124.2331 | D25: =+B25-C25 -> 6785.266901 | E25: =+$B25/C25 -> 1.39623771 | F25: =+F24 -> 8275.060127 | G25: =+$B25-F25 -> 15634.43987 | H25: =+$B25/F25 -> 2.889344565 | I25: =+I24 -> 6251.649918 | J25: =+$B25-I25 -> 17657.85008 | K25: =+$B25/I25 -> 3.82451038
A26: 0.02 | B26: 23909.5 | C26: 17124.2331 | D26: =+B26-C26 -> 6785.266901 | E26: =+$B26/C26 -> 1.39623771 | F26: =+F25 -> 8275.060127 | G26: =+$B26-F26 -> 15634.43987 | H26: =+$B26/F26 -> 2.889344565 | I26: =+I25 -> 6251.649918 | J26: =+$B26-I26 -> 17657.85008 | K26: =+$B26/I26 -> 3.82451038
C27: Giudizio: | E27: =IF(E26>='4) Analisi sostenibilità debito'!$B$33,"Buona",IF(E26>='4) Analisi sostenibilità debito'!$B$34,"positiva ma debole",IF(E26>='4) Analisi sostenibilità debito'!$B$35,"carente","gravemente carente"))) -> Buona | F27: Giudizio: | H27: =IF(H26>='4) Analisi sostenibilità debito'!$B$33,"Buona",IF(H26>='4) Analisi sostenibilità debito'!$B$34,"positiva ma debole",IF(H26>='4) Analisi sostenibilità debito'!$B$35,"carente","gravemente carente"))) -> Buona | I27: Giudizio: | K27: =IF(K26>='4) Analisi sostenibilità debito'!$B$33,"Buona",IF(K26>='4) Analisi sostenibilità debito'!$B$34,"positiva ma debole",IF(K26>='4) Analisi sostenibilità debito'!$B$35,"carente","gravemente carente"))) -> Buona

Sheet Supporto (hidden)
A1: Mutuo in moratoria | D1: =IF('1) Debiti finanziari'!$C$6="","No",'1) Debiti finanziari'!$C$6) -> No | E1: Mutuo 1 | I1: Mutuo in moratoria | L1: =IF('1) Debiti finanziari'!$C$7="","No",'1) Debiti finanziari'!$C$7) -> Sospeso capitale e interessi | M1: Mutuo 2 | Q1: Mutuo in moratoria | T1: =IF('1) Debiti finanziari'!$C$8="","No",'1) Debiti finanziari'!$C$8) -> Sospeso solo il capitale | U1: Mutuo 3 | Y1: Mutuo in moratoria | AB1: =IF('1) Debiti finanziari'!$C$9="","No",'1) Debiti finanziari'!$C$9) -> Sospeso solo il capitale | AC1: Mutuo 4 | AG1: Mutuo in moratoria | AJ1: =IF('1) Debiti finanziari'!$C$10="","No",'1) Debiti finanziari'!$C$10) -> No | AK1: Mutuo 5 | AO1: Mutuo in moratoria | AR1: =IF('1) Debiti finanziari'!$C$11="","No",'1) Debiti finanziari'!$C$11) -> No | AS1: Mutuo 6 | AW1: Mutuo in moratoria | AZ1: =IF('1) Debiti finanziari'!$C$12="","No",'1) Debiti finanziari'!$C$12) -> No | BA1: Mutuo 7 | BE1: Mutuo new | BH1: =IF('1) Debiti finanziari'!$C$12="","No",'1) Debiti finanziari'!$C$12) -> No | BI1: Mutuo New | BL1: Migliore | BN1: Check consolidi
A2: Capitale | D2: =IF(Supporto!BN2=TRUE,0,+'1) Debiti finanziari'!I6) -> 1540 | I2: Capitale | L2: =+IF(Supporto!BN3=TRUE,0,'1) Debiti finanziari'!I7) -> 3142 | Q2: Capitale | T2: =IF(Supporto!BN4=TRUE,0,+'1) Debiti finanziari'!I8) -> 18415 | Y2: Capitale | AB2: =IF(Supporto!BN5=TRUE,0,+'1) Debiti finanziari'!I9) -> 15741 | AG2: Capitale | AJ2: =IF(Supporto!BN6=TRUE,0,+'1) Debiti finanziari'!I10) -> 0 | AO2: Capitale | AR2: =IF(Supporto!BN7=TRUE,0,+'1) Debiti finanziari'!I11) -> 0 | AW2: Capitale | AZ2: =IF(Supporto!BN8=TRUE,0,+'1) Debiti finanziari'!I12) -> 0 | BE2: Capitale | BH2: =+'2) Richiesta finanziamento'!J8 -> 17500 | BL2: Probabile | BN2: FALSE
A3: Riscatto leasing | D3: =IF(Supporto!BN2=TRUE,0,+'1) Debiti finanziari'!$J$6) -> 0 | E3: =+D3*D10*D19/12 -> 0 | F3: Interessi rata | I3: Riscatto leasing | L3: =IF(Supporto!BN3=TRUE,0,+'1) Debiti finanziari'!J7) -> 0 | M3: =+L3*L10*L19/12 -> 0 | N3: Interessi rata | Q3: Riscatto leasing | T3: =IF(Supporto!BN4=TRUE,0,+'1) Debiti finanziari'!J8) -> 0 | U3: =+T3*T10*T19/12 -> 0 | V3: Interessi rata | Y3: Riscatto leasing | AB3: =IF(Supporto!BN5=TRUE,0,+'1) Debiti finanziari'!J9) -> 3000 | AC3: =+AB3*AB10*AB19/12 -> 6.125 | AD3: Interessi rata | AG3: Riscatto leasing | AJ3: =IF(Supporto!BN6=TRUE,0,+'1) Debiti finanziari'!J10) -> 0 | AK3: =+AJ3*AJ10*AJ19/12 -> 0 | AL3: Interessi rata | AO3: Riscatto leasing | AR3: =IF(Supporto!BN7=TRUE,0,+'1) Debiti finanziari'!J11) -> 0 | AS3: =+AR3*AR10*AR19/12 -> 0 | AT3: Interessi rata | AW3: Riscatto leasing | AZ3: =IF(Supporto!BN8=TRUE,0,+'1) Debiti finanziari'!J12) -> 0 | BA3: =+AZ3*AZ10*AZ19/12 -> 0 | BB3: Interessi rata | BE3: Riscatto leasing | BH3: =+'1) Debiti finanziari'!$J$6 -> 0 | BL3: Peggiore | BN3: FALSE
A4: Importo rata moratoria | D4: =IF(D1="Sospeso solo il capitale",D2*D10/12*D19,0) -> 0 | I4: Importo rata moratoria | L4: =IF(L1="Sospeso solo il capitale",L2*L10/12*L19,0) -> 0 | Q4: Importo rata moratoria | T4: =IF(T1="Sospeso solo il capitale",T2*T10/12*T19,0) -> 28.38979167 | Y4: Importo rata moratoria | AB4: =IF(AB1="Sospeso solo il capitale",AB2*AB10/12*AB19,0) -> 32.137875 | AG4: Importo rata moratoria | AJ4: =IF(AJ1="Sospeso solo il capitale",AJ2*AJ10/12*AJ19,0) -> 0 | AO4: Importo rata moratoria | AR4: =IF(AR1="Sospeso solo il capitale",AR2*AR10/12*AR19,0) -> 0 | AW4: Importo rata moratoria | AZ4: =IF(AZ1="Sospeso solo il capitale",AZ2*AZ10/12*AZ19,0) -> 0 | BE4: Importo rata moratoria | BH4: =+'2) Richiesta finanziamento'!O8 -> 27.70833333 | BN4: FALSE
A5: Importo rata ammortamento | D5: =IFERROR(-PMT(D10/D17,D15,D2),0) -> 195.0351472 | I5: Importo rata ammortamento | L5: =IFERROR(-PMT(L10/L17,L15,L2),0) -> 278.0617018 | Q5: Importo rata ammortamento | T5: =IFERROR(-PMT(T10/T17,T15,T2),0) -> 782.1653304 | Y5: Importo rata ammortamento | AB5: =IFERROR(-PMT(AB10/AB17,AB15,AB2),0) -> 479.6976852 | AG5: Importo rata ammortamento | AJ5: =IFERROR(-PMT(AJ10/AJ17,AJ15,AJ2),0) -> 0 | AO5: Importo rata ammortamento | AR5: =IFERROR(-PMT(AR10/AR17,AR15,AR2),0) -> 0 | AW5: Importo rata ammortamento | AZ5: =IFERROR(-PMT(AZ10/AZ17,AZ15,AZ2),0) -> 0 | BE5: Importo rata ammortamento | BH5: =+'2) Richiesta finanziamento'!O9 -> 305.9708265 | BN5: FALSE
A6: Data ultima rata piena pagata | D6: =IF('1) Debiti finanziari'!$F$6="","",'1) Debiti finanziari'!$F$6) -> 2020-04-01 | I6: Data ultima rata piena pagata | L6: =IF('1) Debiti finanziari'!$F$7="","",'1) Debiti finanziari'!$F$7) -> 2020-02-01 | Q6: Data ultima rata piena pagata | T6: =IF('1) Debiti finanziari'!$F$8="","",'1) Debiti finanziari'!$F$8) -> 2020-03-01 | Y6: Data ultima rata piena pagata | AB6: =IF('1) Debiti finanziari'!$F$9="","",'1) Debiti finanziari'!$F$9) -> 2020-03-01 | AG6: Data ultima rata piena pagata | AJ6: =IF('1) Debiti finanziari'!$F$10="","",'1) Debiti finanziari'!$F$10) ->  | AO6: Data ultima rata piena pagata | AR6: =IF('1) Debiti finanziari'!$F$11="","",'1) Debiti finanziari'!$F$11) ->  | AW6: Data ultima rata piena pagata | AZ6: =IF('1) Debiti finanziari'!$F$12="","",'1) Debiti finanziari'!$F$12) ->  | BE6: Tasso | BH6: =+'2) Richiesta finanziamento'!H12 -> 0.019 | BN6: FALSE
A7: Data prossima rata in moratoria da pagare | D7: =IF(D1="Sospeso solo il capitale",EDATE(D6,D19),"n.s.") -> n.s. | I7: Data prossima rata in moratoria da pagare | L7: =IF(L1="Sospeso solo il capitale",EDATE(L6,L19),"n.s.") -> n.s. | Q7: Data prossima rata in moratoria da pagare | T7: =IF(T1="Sospeso solo il capitale",EDATE(T6,T19),"n.s.") -> 2020-04-01 | Y7: Data prossima rata in moratoria da pagare | AB7: =IF(AB1="Sospeso solo il capitale",EDATE(AB6,AB19),"n.s.") -> 2020-04-01 | AG7: Data prossima rata in moratoria da pagare | AJ7: =IF(AJ1="Sospeso solo il capitale",EDATE(AJ6,AJ19),"n.s.") -> n.s. | AO7: Data prossima rata in moratoria da pagare | AR7: =IF(AR1="Sospeso solo il capitale",EDATE(AR6,AR19),"n.s.") -> n.s. | AW7: Data prossima rata in moratoria da pagare | AZ7: =IF(AZ1="Sospeso solo il capitale",EDATE(AZ6,AZ19),"n.s.") -> n.s. | BE7: Numero rate in moratoria | BH7: =+'2) Richiesta finanziamento'!J9 -> 12 | BN7: FALSE
A8: Data prossima rata piena da pagare | D8: =+'1) Debiti finanziari'!G6 -> 2020-05-01 | I8: Data prossima rata piena da pagare | L8: =+'1) Debiti finanziari'!G7 -> 2020-11-01 | Q8: Data prossima rata piena da pagare | T8: =+'1) Debiti finanziari'!G8 -> 2020-10-01 | Y8: Data prossima rata piena da pagare | AB8: =+'1) Debiti finanziari'!G9 -> 2020-10-01 | AG8: Data prossima rata piena da pagare | AJ8: =+'1) Debiti finanziari'!G10 -> 00:00:00 | AO8: Data prossima rata piena da pagare | AR8: =+'1) Debiti finanziari'!G11 -> 00:00:00 | AW8: Data prossima rata piena da pagare | AZ8: =+'1) Debiti finanziari'!G12 -> 00:00:00 | BE8: Numero rate di ammortamento | BH8: =+'2) Richiesta finanziamento'!J10 -> 60 | BN8: FALSE
A9: Data ultima rata del mutuo | D9: =+'1) Debiti finanziari'!H6 -> 2020-12-01 | I9: Data ultima rata del mutuo | L9: =+'1) Debiti finanziari'!H7 -> 2023-10-01 | Q9: Data ultima rata del mutuo | T9: =+'1) Debiti finanziari'!H8 -> 2022-09-01 | Y9: Data ultima rata del mutuo | AB9: =+'1) Debiti finanziari'!H9 -> 2023-07-01 | AG9: Data ultima rata del mutuo | AJ9: =+'1) Debiti finanziari'!H10 -> 00:00:00 | AO9: Data ultima rata del mutuo | AR9: =+'1) Debiti finanziari'!H11 -> 00:00:00 | AW9: Data ultima rata del mutuo | AZ9: =+'1) Debiti finanziari'!H12 -> 00:00:00 | BE9: Numero rate totali da pagare | BH9: =+'2) Richiesta finanziamento'!J11 -> 72
A10: Tasso | D10: =+'1) Debiti finanziari'!D6 -> 0.035 | I10: Tasso | L10: =+'1) Debiti finanziari'!D7 -> 0.0375 | Q10: Tasso | T10: =+'1) Debiti finanziari'!D8 -> 0.0185 | Y10: Tasso | AB10: =+'1) Debiti finanziari'!D9 -> 0.0245 | AG10: Tasso | AJ10: =+'1) Debiti finanziari'!D10 -> 0 | AO10: Tasso | AR10: =+'1) Debiti finanziari'!D11 -> 0 | AW10: Tasso | AZ10: =+'1) Debiti finanziari'!D12 -> 0 | BE10: Numero rate per anno | BH10: 12
A11: Giorni interessi da dilazionare | D11: =IF(D1="Sospeso capitale e interessi",DAYS360(D6,D8,1)-(30*D19),0) -> 0 | I11: Giorni interessi da dilazionare | L11: =IF(L1="Sospeso capitale e interessi",DAYS360(L6,L8,1)-(30*L19),0) -> 180 | Q11: Giorni interessi da dilazionare | T11: =IF(T1="Sospeso capitale e interessi",DAYS360(T6,T8,1)-(30*T19),0) -> 0 | Y11: Giorni interessi da dilazionare | AB11: =IF(AB1="Sospeso capitale e interessi",DAYS360(AB6,AB8,1)-(30*AB19),0) -> 0 | AG11: Giorni interessi da dilazionare | AJ11: =IF(AJ1="Sospeso capitale e interessi",DAYS360(AJ6,AJ8,1)-(30*AJ19),0) -> 0 | AO11: Giorni interessi da dilazionare | AR11: =IF(AR1="Sospeso capitale e interessi",DAYS360(AR6,AR8,1)-(30*AR19),0) -> 0 | AW11: Giorni interessi da dilazionare | AZ11: =IF(AZ1="Sospeso capitale e interessi",DAYS360(AZ6,AZ8,1)-(30*AZ19),0) -> 0 | BE11: Periodicità | BH11: Mensile
A12: Interessi moratoria da dilazionare | D12: =IF(D1="Sospeso capitale e interessi",D2*D10*D11/360+E3*D14,0) -> 0 | I12: Interessi moratoria da dilazionare | L12: =IF(L1="Sospeso capitale e interessi",L2*L10*L11/360+M3*L14,0) -> 58.9125 | Q12: Interessi moratoria da dilazionare | T12: =IF(T1="Sospeso capitale e interessi",T2*T10*T11/360+U3*T14,0) -> 0 | Y12: Interessi moratoria da dilazionare | AB12: =IF(AB1="Sospeso capitale e interessi",AB2*AB10*AB11/360+AC3*AB14,0) -> 0 | AG12: Interessi moratoria da dilazionare | AJ12: =IF(AJ1="Sospeso capitale e interessi",AJ2*AJ10*AJ11/360+AK3*AJ14,0) -> 0 | AO12: Interessi moratoria da dilazionare | AR12: =IF(AR1="Sospeso capitale e interessi",AR2*AR10*AR11/360+AS3*AR14,0) -> 0 | AW12: Interessi moratoria da dilazionare | AZ12: =IF(AZ1="Sospeso capitale e interessi",AZ2*AZ10*AZ11/360+BA3*AZ14,0) -> 0 | BE12: Mesi per rata | BH12: =IFERROR(VLOOKUP(BH11,'1) Debiti finanziari'!$Q$6:$R$11,2,0),0) -> 1
A13: Quota int. moratori su rata amm.to | D13: =IFERROR(+D12/D15,0) -> 0 | I13: Quota int. moratori su rata amm.to | L13: =IFERROR(+L12/L15,0) -> 4.909375 | Q13: Quota int. moratori su rata amm.to | T13: =IFERROR(+T12/T15,0) -> 0 | Y13: Quota int. moratori su rata amm.to | AB13: =IFERROR(+AB12/AB15,0) -> 0 | AG13: Quota int. moratori su rata amm.to | AJ13: =IFERROR(+AJ12/AJ15,0) -> 0 | AO13: Quota int. moratori su rata amm.to | AR13: =IFERROR(+AR12/AR15,0) -> 0 | AW13: Quota int. moratori su rata amm.to | AZ13: =IFERROR(+AZ12/AZ15,0) -> 0
A14: Numero rate in moratoria | D14: =IF(D1="No",0,(DAYS360(D6,D8,1)/30/D19)-1) -> 0 | I14: Numero rate in moratoria | L14: =IF(L1="No",0,(DAYS360(L6,L8,1)/30/L19)-1) -> 2 | Q14: Numero rate in moratoria | T14: =IF(T1="No",0,(DAYS360(T6,T8,1)/30/T19)-1) -> 6 | Y14: Numero rate in moratoria | AB14: =IF(AB1="No",0,(DAYS360(AB6,AB8,1)/30/AB19)-1) -> 6 | AG14: Numero rate in moratoria | AJ14: =IF(AJ1="No",0,(DAYS360(AJ6,AJ8,1)/30/AJ19)-1) -> 0 | AO14: Numero rate in moratoria | AR14: =IF(AR1="No",0,(DAYS360(AR6,AR8,1)/30/AR19)-1) -> 0 | AW14: Numero rate in moratoria | AZ14: =IF(AZ1="No",0,(DAYS360(AZ6,AZ8,1)/30/AZ19)-1) -> 0
A15: Numero rate di ammortamento | D15: =IFERROR(((DAYS360(D8,D9,1)/30)+1)/D19,0) -> 8 | I15: Numero rate di ammortamento | L15: =IFERROR(((DAYS360(L8,L9,1)/30)+1)/L19,0) -> 12 | Q15: Numero rate di ammortamento | T15: =IFERROR(((DAYS360(T8,T9,1)/30)+1)/T19,0) -> 24 | Y15: Numero rate di ammortamento | AB15: =IFERROR(((DAYS360(AB8,AB9,1)/30)+1)/AB19,0) -> 34 | AG15: Numero rate di ammortamento | AJ15: =IFERROR(((DAYS360(AJ8,AJ9,1)/30)+1)/AJ19,0) -> 0 | AO15: Numero rate di ammortamento | AR15: =IFERROR(((DAYS360(AR8,AR9,1)/30)+1)/AR19,0) -> 0 | AW15: Numero rate di ammortamento | AZ15: =IFERROR(((DAYS360(AZ8,AZ9,1)/30)+1)/AZ19,0) -> 0
A16: Numero rate totali da pagare | D16: =+D15+IF(D1="Sospeso capitale e interessi",0,D14) -> 8 | I16: Numero rate totali da pagare | L16: =+L15+IF(L1="Sospeso capitale e interessi",0,L14) -> 12 | Q16: Numero rate totali da pagare | T16: =+T15+IF(T1="Sospeso capitale e interessi",0,T14) -> 30 | Y16: Numero rate totali da pagare | AB16: =+AB15+IF(AB1="Sospeso capitale e interessi",0,AB14) -> 40 | AG16: Numero rate totali da pagare | AJ16: =+AJ15+IF(AJ1="Sospeso capitale e interessi",0,AJ14) -> 0 | AO16: Numero rate totali da pagare | AR16: =+AR15+IF(AR1="Sospeso capitale e interessi",0,AR14) -> 0 | AW16: Numero rate totali da pagare | AZ16: =+AZ15+IF(AZ1="Sospeso capitale e interessi",0,AZ14) -> 0
A17: Numero rate per anno | D17: =IFERROR(+VLOOKUP(D18,'1) Debiti finanziari'!$Q$6:$S$11,3,0),0) -> 12 | I17: Numero rate per anno | L17: =IFERROR(+VLOOKUP(L18,'1) Debiti finanziari'!$Q$6:$S$11,3,0),0) -> 4 | Q17: Numero rate per anno | T17: =IFERROR(+VLOOKUP(T18,'1) Debiti finanziari'!$Q$6:$S$11,3,0),0) -> 12 | Y17: Numero rate per anno | AB17: =IFERROR(+VLOOKUP(AB18,'1) Debiti finanziari'!$Q$6:$S$11,3,0),0) -> 12 | AG17: Numero rate per anno | AJ17: =IFERROR(+VLOOKUP(AJ18,'1) Debiti finanziari'!$Q$6:$S$11,3,0),0) -> 0 | AO17: Numero rate per anno | AR17: =IFERROR(+VLOOKUP(AR18,'1) Debiti finanziari'!$Q$6:$S$11,3,0),0) -> 0 | AW17: Numero rate per anno | AZ17: =IFERROR(+VLOOKUP(AZ18,'1) Debiti finanziari'!$Q$6:$S$11,3,0),0) -> 0
A18: Periodicità | D18: =+'1) Debiti finanziari'!E6 -> Mensile | I18: Periodicità | L18: =+'1) Debiti finanziari'!E7 -> Trimestrale | Q18: Periodicità | T18: =+'1) Debiti finanziari'!E8 -> Mensile | Y18: Periodicità | AB18: =+'1) Debiti finanziari'!E9 -> Mensile | AG18: Periodicità | AJ18: =+'1) Debiti finanziari'!E10 -> 0 | AO18: Periodicità | AR18: =+'1) Debiti finanziari'!E11 -> 0 | AW18: Periodicità | AZ18: =+'1) Debiti finanziari'!E12 -> 0
A19: Mesi per rata | D19: =IFERROR(VLOOKUP(D18,'1) Debiti finanziari'!$Q$6:$R$11,2,0),0) -> 1 | I19: Mesi per rata | L19: =IFERROR(VLOOKUP(L18,'1) Debiti finanziari'!$Q$6:$R$11,2,0),0) -> 3 | Q19: Mesi per rata | T19: =IFERROR(VLOOKUP(T18,'1) Debiti finanziari'!$Q$6:$R$11,2,0),0) -> 1 | Y19: Mesi per rata | AB19: =IFERROR(VLOOKUP(AB18,'1) Debiti finanziari'!$Q$6:$R$11,2,0),0) -> 1 | AG19: Mesi per rata | AJ19: =IFERROR(VLOOKUP(AJ18,'1) Debiti finanziari'!$Q$6:$R$11,2,0),0) -> 0 | AO19: Mesi per rata | AR19: =IFERROR(VLOOKUP(AR18,'1) Debiti finanziari'!$Q$6:$R$11,2,0),0) -> 0 | AW19: Mesi per rata | AZ19: =IFERROR(VLOOKUP(AZ18,'1) Debiti finanziari'!$Q$6:$R$11,2,0),0) -> 0
A21: Progr. | B21: Data | C21: Debito | D21: Capitale | E21: Interessi | F21: Int. Morat / Riscatto | G21: Rata | I21: Progr. | J21: Data | K21: Debito | L21: Capitale | M21: Interessi | N21: Int. Morat / Riscatto | O21: Rata | Q21: Progr. | R21: Data | S21: Debito | T21: Capitale | U21: Interessi | V21: Int. Morat / Riscatto | W21: Rata | Y21: Progr. | Z21: Data | AA21: Debito | AB21: Capitale | AC21: Interessi | AD21: Int. Morat / Riscatto | AE21: Rata | AG21: Progr. | AH21: Data | AI21: Debito | AJ21: Capitale | AK21: Interessi | AL21: Int. Morat / Riscatto | AM21: Rata | AO21: Progr. | AP21: Data | AQ21: Debito | AR21: Capitale | AS21: Interessi | AT21: Int. Morat / Riscatto | AU21: Rata | AW21: Progr. | AX21: Data | AY21: Debito | AZ21: Capitale | BA21: Interessi | BB21: Int. Morat / Riscatto | BC21: Rata | BE21: Progr. | BF21: Data | BG21: Debito | BH21: Capitale | BI21: Interessi | BJ21: Int. Morat / Riscatto | BK21: Rata
A22: 0 | C22: =+D$2 -> 1540 | I22: 0 | K22: =+L$2 -> 3142 | Q22: 0 | S22: =+T$2 -> 18415 | Y22: 0 | AA22: =+AB$2 -> 15741 | AG22: 0 | AI22: =+AJ$2 -> 0 | AO22: 0 | AQ22: =+AR$2 -> 0 | AW22: 0 | AY22: =+AZ$2 -> 0 | BE22: 0 | BG22: =+'2) Richiesta finanziamento'!H16 -> 17500 | BH22: =+'2) Richiesta finanziamento'!I16 -> 0 | BI22: =+'2) Richiesta finanziamento'!J16 -> 0 | BK22: =+'2) Richiesta finanziamento'!K16 -> 0
A23: =IF(B23=0,0,1) -> 1 | B23: =IF(D$1="Sospeso solo il capitale",D$7,D$8) -> 2020-05-01 | C23: =IF(A23=0,0,C22-D23) -> 1349.456519 | D23: =IF(A23=0,0,+G23-E23-F23) -> 190.5434806 | E23: =IF(A23=0,0,+C22*D$10*D$19/12) -> 4.491666667 | F23: =IF(A23=0,0,+D$13+E$3) -> 0 | G23: =IF(A23=0,0,IF(B23>=D$8,D$5,D$4)+F23)+IF(A22=D$16,D$3,0) -> 195.0351472 | I23: =IF(J23=0,0,1) -> 1 | J23: =IF(L$1="Sospeso solo il capitale",L$7,L$8) -> 2020-11-01 | K23: =IF(I23=0,0,K22-L23) -> 2893.394548 | L23: =IF(I23=0,0,+O23-M23-N23) -> 248.6054518 | M23: =IF(I23=0,0,+K22*L$10*L$19/12) -> 29.45625 | N23: =IF(I23=0,0,+L$13+M$3) -> 4.909375 | O23: =IF(I23=0,0,IF(J23>=L$8,L$5,L$4)+N23)+IF(I22=L$16,L$3,0) -> 282.9710768 | Q23: =IF(R23=0,0,1) -> 1 | R23: =IF(T$1="Sospeso solo il capitale",T$7,T$8) -> 2020-04-01 | S23: =IF(Q23=0,0,S22-T23) -> 18415 | T23: =IF(Q23=0,0,+W23-U23-V23) -> 0 | U23: =IF(Q23=0,0,+S22*T$10*T$19/12) -> 28.38979167 | V23: =IF(Q23=0,0,+T$13+U$3) -> 0 | W23: =IF(Q23=0,0,IF(R23>=T$8,T$5,T$4)+V23)+IF(Q22=T$16,T$3,0) -> 28.38979167 | Y23: =IF(Z23=0,0,1) -> 1 | Z23: =IF(AB$1="Sospeso solo il capitale",AB$7,AB$8) -> 2020-04-01 | AA23: =IF(Y23=0,0,AA22-AB23) -> 15741 | AB23: =IF(Y23=0,0,+AE23-AC23-AD23) -> 0 | AC23: =IF(Y23=0,0,+AA22*AB$10*AB$19/12) -> 32.137875 | AD23: =IF(Y23=0,0,+AB$13+AC$3) -> 6.125 | AE23: =IF(Y23=0,0,IF(Z23>=AB$8,AB$5,AB$4)+AD23)+IF(Y22=AB$16,AB$3,0) -> 38.262875 | AG23: =IF(AH23=0,0,1) -> 0 | AH23: =IF(AJ$1="Sospeso solo il capitale",AJ$7,AJ$8) -> 00:00:00 | AI23: =IF(AG23=0,0,AI22-AJ23) -> 0 | AJ23: =IF(AG23=0,0,+AM23-AK23-AL23) -> 0 | AK23: =IF(AG23=0,0,+AI22*AJ$10*AJ$19/12) -> 0 | AL23: =IF(AG23=0,0,+AJ$13+AK$3) -> 0 | AM23: =IF(AG23=0,0,IF(AH23>=AJ$8,AJ$5,AJ$4)+AL23)+IF(AG22=AJ$16,AJ$3,0) -> 0 | AO23: =IF(AP23=0,0,1) -> 0 | AP23: =IF(AR$1="Sospeso solo il capitale",AR$7,AR$8) -> 00:00:00 | AQ23: =IF(AO23=0,0,AQ22-AR23) -> 0 | AR23: =IF(AO23=0,0,+AU23-AS23-AT23) -> 0 | AS23: =IF(AO23=0,0,+AQ22*AR$10*AR$19/12) -> 0 | AT23: =IF(AO23=0,0,+AR$13+AS$3) -> 0 | AU23: =IF(AO23=0,0,IF(AP23>=AR$8,AR$5,AR$4)+AT23)+IF(AO22=AR$16,AR$3,0) -> 0 | AW23: =IF(AX23=0,0,1) -> 0 | AX23: =IF(AZ$1="Sospeso solo il capitale",AZ$7,AZ$8) -> 00:00:00 | AY23: =IF(AW23=0,0,AY22-AZ23) -> 0 | AZ23: =IF(AW23=0,0,+BC23-BA23-BB23) -> 0 | BA23: =IF(AW23=0,0,+AY22*AZ$10*AZ$19/12) -> 0 | BB23: =IF(AW23=0,0,+AZ$13+BA$3) -> 0 | BC23: =IF(AW23=0,0,IF(AX23>=AZ$8,AZ$5,AZ$4)+BB23)+IF(AW22=AZ$16,AZ$3,0) -> 0 | BE23: =1+BE22 -> 1 | BF23: =+'2) Richiesta finanziamento'!G17 -> 2020-05-20 | BG23: =+'2) Richiesta finanziamento'!H17 -> 17500 | BH23: =+'2) Richiesta finanziamento'!I17 -> 0 | BI23: =+'2) Richiesta finanziamento'!J17 -> 27.70833333 | BK23: =+'2) Richiesta finanziamento'!K17 -> 27.70833333
A24: =IF(OR(A23=0,A23+1>D$16),0,A23+1) -> 2 | B24: =IF(A24=0,0,EDATE(B23,D$19)) -> 2020-06-01 | C24: =IF(A24=0,0,C23-D24) -> 1158.357287 | D24: =IF(A24=0,0,+G24-E24-F24) -> 191.0992324 | E24: =IF(A24=0,0,+C23*D$10*D$19/12) -> 3.935914848 | F24: =IF(A24=0,0,+D$13+E$3) -> 0 | G24: =IF(A24=0,0,IF(B24>=D$8,D$5,D$4)+F24)+IF(A23=D$16,D$3,0) -> 195.0351472 | I24: =IF(OR(I23=0,I23+1>L$16),0,I23+1) -> 2 | J24: =IF(I24=0,0,EDATE(J23,L$19)) -> 2021-02-01 | K24: =IF(I24=0,0,K23-L24) -> 2642.45842 | L24: =IF(I24=0,0,+O24-M24-N24) -> 250.9361279 | M24: =IF(I24=0,0,+K23*L$10*L$19/12) -> 27.12557389 | N24: =IF(I24=0,0,+L$13+M$3) -> 4.909375 | O24: =IF(I24=0,0,IF(J24>=L$8,L$5,L$4)+N24)+IF(I23=L$16,L$3,0) -> 282.9710768 | Q24: =IF(OR(Q23=0,Q23+1>T$16),0,Q23+1) -> 2 | R24: =IF(Q24=0,0,EDATE(R23,T$19)) -> 2020-05-01 | S24: =IF(Q24=0,0,S23-T24) -> 18415 | T24: =IF(Q24=0,0,+W24-U24-V24) -> 0 | U24: =IF(Q24=0,0,+S23*T$10*T$19/12) -> 28.38979167 | V24: =IF(Q24=0,0,+T$13+U$3) -> 0 | W24: =IF(Q24=0,0,IF(R24>=T$8,T$5,T$4)+V24)+IF(Q23=T$16,T$3,0) -> 28.38979167 | Y24: =IF(OR(Y23=0,Y23+1>AB$16),0,Y23+1) -> 2 | Z24: =IF(Y24=0,0,EDATE(Z23,AB$19)) -> 2020-05-01 | AA24: =IF(Y24=0,0,AA23-AB24) -> 15741 | AB24: =IF(Y24=0,0,+AE24-AC24-AD24) -> 0 | AC24: =IF(Y24=0,0,+AA23*AB$10*AB$19/12) -> 32.137875 | AD24: =IF(Y24=0,0,+AB$13+AC$3) -> 6.125 | AE24: =IF(Y24=0,0,IF(Z24>=AB$8,AB$5,AB$4)+AD24)+IF(Y23=AB$16,AB$3,0) -> 38.262875 | AG24: =IF(OR(AG23=0,AG23+1>AJ$16),0,AG23+1) -> 0 | AH24: =IF(AG24=0,0,EDATE(AH23,AJ$19)) -> 00:00:00 | AI24: =IF(AG24=0,0,AI23-AJ24) -> 0 | AJ24: =IF(AG24=0,0,+AM24-AK24-AL24) -> 0 | AK24: =IF(AG24=0,0,+AI23*AJ$10*AJ$19/12) -> 0 | AL24: =IF(AG24=0,0,+AJ$13+AK$3) -> 0 | AM24: =IF(AG24=0,0,IF(AH24>=AJ$8,AJ$5,AJ$4)+AL24)+IF(AG23=AJ$16,AJ$3,0) -> 0 | AO24: =IF(OR(AO23=0,AO23+1>AR$16),0,AO23+1) -> 0 | AP24: =IF(AO24=0,0,EDATE(AP23,AR$19)) -> 00:00:00 | AQ24: =IF(AO24=0,0,AQ23-AR24) -> 0 | AR24: =IF(AO24=0,0,+AU24-AS24-AT24) -> 0 | AS24: =IF(AO24=0,0,+AQ23*AR$10*AR$19/12) -> 0 | AT24: =IF(AO24=0,0,+AR$13+AS$3) -> 0 | AU24: =IF(AO24=0,0,IF(AP24>=AR$8,AR$5,AR$4)+AT24)+IF(AO23=AR$16,AR$3,0) -> 0 | AW24: =IF(OR(AW23=0,AW23+1>AZ$16),0,AW23+1) -> 0 | AX24: =IF(AW24=0,0,EDATE(AX23,AZ$19)) -> 00:00:00 | AY24: =IF(AW24=0,0,AY23-AZ24) -> 0 | AZ24: =IF(AW24=0,0,+BC24-BA24-BB24) -> 0 | BA24: =IF(AW24=0,0,+AY23*AZ$10*AZ$19/12) -> 0 | BB24: =IF(AW24=0,0,+AZ$13+BA$3) -> 0 | BC24: =IF(AW24=0,0,IF(AX24>=AZ$8,AZ$5,AZ$4)+BB24)+IF(AW23=AZ$16,AZ$3,0) -> 0 | BE24: =1+BE23 -> 2 | BF24: =+'2) Richiesta finanziamento'!G18 -> 2020-06-20 | BG24: =+'2) Richiesta finanziamento'!H18 -> 17500 | BH24: =+'2) Richiesta finanziamento'!I18 -> 0 | BI24: =+'2) Richiesta finanziamento'!J18 -> 27.70833333 | BK24: =+'2) Richiesta finanziamento'!K18 -> 27.70833333
A25: =IF(OR(A24=0,A24+1>D$16),0,A24+1) -> 3 | B25: =IF(A25=0,0,EDATE(B24,D$19)) -> 2020-07-01 | C25: 966.7006819 | D25: 191.6566052 | E25: 3.378542087 | F25: 0 | G25: 195.0351472 | I25: =IF(OR(I24=0,I24+1>L$16),0,I24+1) -> 3 | J25: =IF(I25=0,0,EDATE(J24,L$19)) -> 2021-05-01 | K25: 2389.169766 | L25: 253.2886541 | M25: 24.77304769 | N25: 4.909375 | O25: 282.9710768 | Q25: =IF(OR(Q24=0,Q24+1>T$16),0,Q24+1) -> 3 | R25: =IF(Q25=0,0,EDATE(R24,T$19)) -> 2020-06-01 | S25: 18415 | T25: 0 | U25: 28.38979167 | V25: 0 | W25: 28.38979167 | Y25: =IF(OR(Y24=0,Y24+1>AB$16),0,Y24+1) -> 3 | Z25: =IF(Y25=0,0,EDATE(Z24,AB$19)) -> 2020-06-01 | AA25: 15741 | AB25: 0 | AC25: 32.137875 | AD25: 6.125 | AE25: 38.262875 | AG25: =IF(OR(AG24=0,AG24+1>AJ$16),0,AG24+1) -> 0 | AH25: =IF(AG25=0,0,EDATE(AH24,AJ$19)) -> 00:00:00 | AI25: 0 | AJ25: 0 | AK25: 0 | AL25: 0 | AM25: 0 | AO25: =IF(OR(AO24=0,AO24+1>AR$16),0,AO24+1) -> 0 | AP25: =IF(AO25=0,0,EDATE(AP24,AR$19)) -> 00:00:00 | AQ25: 0 | AR25: 0 | AS25: 0 | AT25: 0 | AU25: 0 | AW25: =IF(OR(AW24=0,AW24+1>AZ$16),0,AW24+1) -> 0 | AX25: =IF(AW25=0,0,EDATE(AX24,AZ$19)) -> 00:00:00 | AY25: 0 | AZ25: 0 | BA25: 0 | BB25: 0 | BC25: 0 | BE25: 3 | BF25: =+'2) Richiesta finanziamento'!G19 -> 2020-07-20 | BG25: =+'2) Richiesta finanziamento'!H19 -> 17500 | BH25: =+'2) Richiesta finanziamento'!I19 -> 0 | BI25: =+'2) Richiesta finanziamento'!J19 -> 27.70833333 | BK25: =+'2) Richiesta finanziamento'!K19 -> 27.70833333
A26: 4 | B26: 2020-08-01 | C26: 774.4850783 | D26: 192.2156036 | E26: 2.819543656 | F26: 0 | G26: 195.0351472 | I26: 4 | J26: 2021-08-01 | K26: 2133.506531 | L26: 255.6632352 | M26: 22.39846656 | N26: 4.909375 | O26: 282.9710768 | Q26: 4 | R26: 2020-07-01 | S26: 18415 | T26: 0 | U26: 28.38979167 | V26: 0 | W26: 28.38979167 | Y26: 4 | Z26: 2020-07-01 | AA26: 15741 | AB26: 0 | AC26: 32.137875 | AD26: 6.125 | AE26: 38.262875 | AG26: 0 | AH26: 00:00:00 | AI26: 0 | AJ26: 0 | AK26: 0 | AL26: 0 | AM26: 0 | AO26: 0 | AP26: 00:00:00 | AQ26: 0 | AR26: 0 | AS26: 0 | AT26: 0 | AU26: 0 | AW26: 0 | AX26: 00:00:00 | AY26: 0 | AZ26: 0 | BA26: 0 | BB26: 0 | BC26: 0 | BE26: 4 | BF26: =+'2) Richiesta finanziamento'!G20 -> 2020-08-20 | BG26: =+'2) Richiesta finanziamento'!H20 -> 17500 | BH26: =+'2) Richiesta finanziamento'!I20 -> 0 | BI26: =+'2) Richiesta finanziamento'!J20 -> 27.70833333 | BK26: =+'2) Richiesta finanziamento'!K20 -> 27.70833333
A27: 5 | B27: 2020-09-01 | C27: 581.7088459 | D27: 192.7762324 | E27: 2.258914812 | F27: 0 | G27: 195.0351472 | I27: 5 | J27: 2021-11-01 | K27: 1875.446453 | L27: 258.0600781 | M27: 20.00162373 | N27: 4.909375 | O27: 282.9710768 | Q27: 5 | R27: 2020-08-01 | S27: 18415 | T27: 0 | U27: 28.38979167 | V27: 0 | W27: 28.38979167 | Y27: 5 | Z27: 2020-08-01 | AA27: 15741 | AB27: 0 | AC27: 32.137875 | AD27: 6.125 | AE27: 38.262875 | AG27: 0 | AH27: 00:00:00 | AI27: 0 | AJ27: 0 | AK27: 0 | AL27: 0 | AM27: 0 | AO27: 0 | AP27: 00:00:00 | AQ27: 0 | AR27: 0 | AS27: 0 | AT27: 0 | AU27: 0 | AW27: 0 | AX27: 00:00:00 | AY27: 0 | AZ27: 0 | BA27: 0 | BB27: 0 | BC27: 0 | BE27: 5 | BF27: =+'2) Richiesta finanziamento'!G21 -> 2020-09-20 | BG27: =+'2) Richiesta finanziamento'!H21 -> 17500 | BH27: =+'2) Richiesta finanziamento'!I21 -> 0 | BI27: =+'2) Richiesta finanziamento'!J21 -> 27.70833333 | BK27: =+'2) Richiesta finanziamento'!K21 -> 27.70833333
A28: 6 | B28: 2020-10-01 | C28: 388.3703494 | D28: 193.3384964 | E28: 1.6966508 | F28: 0 | G28: 195.0351472 | I28: 6 | J28: 2022-02-01 | K28: 1614.967062 | L28: 260.4793913 | M28: 17.5823105 | N28: 4.909375 | O28: 282.9710768 | Q28: 6 | R28: 2020-09-01 | S28: 18415 | T28: 0 | U28: 28.38979167 | V28: 0 | W28: 28.38979167 | Y28: 6 | Z28: 2020-09-01 | AA28: 15741 | AB28: 0 | AC28: 32.137875 | AD28: 6.125 | AE28: 38.262875 | AG28: 0 | AH28: 00:00:00 | AI28: 0 | AJ28: 0 | AK28: 0 | AL28: 0 | AM28: 0 | AO28: 0 | AP28: 00:00:00 | AQ28: 0 | AR28: 0 | AS28: 0 | AT28: 0 | AU28: 0 | AW28: 0 | AX28: 00:00:00 | AY28: 0 | AZ28: 0 | BA28: 0 | BB28: 0 | BC28: 0 | BE28: 6 | BF28: =+'2) Richiesta finanziamento'!G22 -> 2020-10-20 | BG28: =+'2) Richiesta finanziamento'!H22 -> 17500 | BH28: =+'2) Richiesta finanziamento'!I22 -> 0 | BI28: =+'2) Richiesta finanziamento'!J22 -> 27.70833333 | BK28: =+'2) Richiesta finanziamento'!K22 -> 27.70833333
A29: 7 | B29: 2020-11-01 | C29: 194.4679491 | D29: 193.9024004 | E29: 1.132746853 | F29: 0 | G29: 195.0351472 | I29: 7 | J29: 2022-05-01 | K29: 1352.045676 | L29: 262.9213856 | M29: 15.1403162 | N29: 4.909375 | O29: 282.9710768 | Q29: 7 | R29: 2020-10-01 | S29: 17661.22446 | T29: 753.7755388 | U29: 28.38979167 | V29: 0 | W29: 782.1653304 | Y29: 7 | Z29: 2020-10-01 | AA29: 15293.44019 | AB29: 447.5598102 | AC29: 32.137875 | AD29: 6.125 | AE29: 485.8226852 | AG29: 0 | AH29: 00:00:00 | AI29: 0 | AJ29: 0 | AK29: 0 | AL29: 0 | AM29: 0 | AO29: 0 | AP29: 00:00:00 | AQ29: 0 | AR29: 0 | AS29: 0 | AT29: 0 | AU29: 0 | AW29: 0 | AX29: 00:00:00 | AY29: 0 | AZ29: 0 | BA29: 0 | BB29: 0 | BC29: 0 | BE29: 7 | BF29: =+'2) Richiesta finanziamento'!G23 -> 2020-11-20 | BG29: =+'2) Richiesta finanziamento'!H23 -> 17500 | BH29: =+'2) Richiesta finanziamento'!I23 -> 0 | BI29: =+'2) Richiesta finanziamento'!J23 -> 27.70833333 | BK29: =+'2) Richiesta finanziamento'!K23 -> 27.70833333
A30: 8 | B30: 2020-12-01 | C30: -2.842170943e-14 | D30: 194.4679491 | E30: 0.5671981847 | F30: 0 | G30: 195.0351472 | I30: 8 | J30: 2022-08-01 | K30: 1086.659402 | L30: 265.3862736 | M30: 12.67542821 | N30: 4.909375 | O30: 282.9710768 | Q30: 8 | R30: 2020-11-01 | S30: 16906.28685 | T30: 754.9376094 | U30: 27.22772104 | V30: 0 | W30: 782.1653304 | Y30: 8 | Z30: 2020-11-01 | AA30: 14844.96661 | AB30: 448.4735781 | AC30: 31.22410705 | AD30: 6.125 | AE30: 485.8226852 | AG30: 0 | AH30: 00:00:00 | AI30: 0 | AJ30: 0 | AK30: 0 | AL30: 0 | AM30: 0 | AO30: 0 | AP30: 00:00:00 | AQ30: 0 | AR30: 0 | AS30: 0 | AT30: 0 | AU30: 0 | AW30: 0 | AX30: 00:00:00 | AY30: 0 | AZ30: 0 | BA30: 0 | BB30: 0 | BC30: 0 | BE30: 8 | BF30: =+'2) Richiesta finanziamento'!G24 -> 2020-12-20 | BG30: =+'2) Richiesta finanziamento'!H24 -> 17500 | BH30: =+'2) Richiesta finanziamento'!I24 -> 0 | BI30: =+'2) Richiesta finanziamento'!J24 -> 27.70833333 | BK30: =+'2) Richiesta finanziamento'!K24 -> 27.70833333
A31: 0 | B31: 00:00:00 | C31: 0 | D31: 0 | E31: 0 | F31: 0 | G31: 0 | I31: 9 | J31: 2022-11-01 | K31: 818.7851326 | L31: 267.8742699 | M31: 10.1874319 | N31: 4.909375 | O31: 282.9710768 | Q31: 9 | R31: 2020-12-01 | S31: 16150.18538 | T31: 756.1014715 | U31: 26.0638589 | V31: 0 | W31: 782.1653304 | Y31: 9 | Z31: 2020-12-01 | AA31: 14395.5774 | AB31: 449.3892117 | AC31: 30.3084735 | AD31: 6.125 | AE31: 485.8226852 | AG31: 0 | AH31: 00:00:00 | AI31: 0 | AJ31: 0 | AK31: 0 | AL31: 0 | AM31: 0 | AO31: 0 | AP31: 00:00:00 | AQ31: 0 | AR31: 0 | AS31: 0 | AT31: 0 | AU31: 0 | AW31: 0 | AX31: 00:00:00 | AY31: 0 | AZ31: 0 | BA31: 0 | BB31: 0 | BC31: 0 | BE31: 9 | BF31: =+'2) Richiesta finanziamento'!G25 -> 2021-01-20 | BG31: =+'2) Richiesta finanziamento'!H25 -> 17500 | BH31: =+'2) Richiesta finanziamento'!I25 -> 0 | BI31: =+'2) Richiesta finanziamento'!J25 -> 27.70833333 | BK31: =+'2) Richiesta finanziamento'!K25 -> 27.70833333
A32: 0 | B32: 00:00:00 | C32: 0 | D32: 0 | E32: 0 | F32: 0 | G32: 0 | I32: 10 | J32: 2023-02-01 | K32: 548.3995414 | L32: 270.3855912 | M32: 7.676110618 | N32: 4.909375 | O32: 282.9710768 | Q32: 10 | R32: 2021-01-01 | S32: 15392.91825 | T32: 757.267128 | U32: 24.89820246 | V32: 0 | W32: 782.1653304 | Y32: 10 | Z32: 2021-01-01 | AA32: 13945.27069 | AB32: 450.3067146 | AC32: 29.39097053 | AD32: 6.125 | AE32: 485.8226852 | AG32: 0 | AH32: 00:00:00 | AI32: 0 | AJ32: 0 | AK32: 0 | AL32: 0 | AM32: 0 | AO32: 0 | AP32: 00:00:00 | AQ32: 0 | AR32: 0 | AS32: 0 | AT32: 0 | AU32: 0 | AW32: 0 | AX32: 00:00:00 | AY32: 0 | AZ32: 0 | BA32: 0 | BB32: 0 | BC32: 0 | BE32: 10 | BF32: =+'2) Richiesta finanziamento'!G26 -> 2021-02-20 | BG32: =+'2) Richiesta finanziamento'!H26 -> 17500 | BH32: =+'2) Richiesta finanziamento'!I26 -> 0 | BI32: =+'2) Richiesta finanziamento'!J26 -> 27.70833333 | BK32: =+'2) Richiesta finanziamento'!K26 -> 27.70833333
A33: 0 | B33: 00:00:00 | C33: 0 | D33: 0 | E33: 0 | F33: 0 | G33: 0 | I33: 11 | J33: 2023-05-01 | K33: 275.4790854 | L33: 272.9204561 | M33: 5.141245701 | N33: 4.909375 | O33: 282.9710768 | Q33: 11 | R33: 2021-02-01 | S33: 14634.48367 | T33: 758.4345815 | U33: 23.73074897 | V33: 0 | W33: 782.1653304 | Y33: 11 | Z33: 2021-02-01 | AA33: 13494.04459 | AB33: 451.2260908 | AC33: 28.47159432 | AD33: 6.125 | AE33: 485.8226852 | AG33: 0 | AH33: 00:00:00 | AI33: 0 | AJ33: 0 | AK33: 0 | AL33: 0 | AM33: 0 | AO33: 0 | AP33: 00:00:00 | AQ33: 0 | AR33: 0 | AS33: 0 | AT33: 0 | AU33: 0 | AW33: 0 | AX33: 00:00:00 | AY33: 0 | AZ33: 0 | BA33: 0 | BB33: 0 | BC33: 0 | BE33: 11 | BF33: =+'2) Richiesta finanziamento'!G27 -> 2021-03-20 | BG33: =+'2) Richiesta finanziamento'!H27 -> 17500 | BH33: =+'2) Richiesta finanziamento'!I27 -> 0 | BI33: =+'2) Richiesta finanziamento'!J27 -> 27.70833333 | BK33: =+'2) Richiesta finanziamento'!K27 -> 27.70833333
A34: 0 | B34: 00:00:00 | C34: 0 | D34: 0 | E34: 0 | F34: 0 | G34: 0 | I34: 12 | J34: 2023-08-01 | K34: 1.136868377e-13 | L34: 275.4790854 | M34: 2.582616425 | N34: 4.909375 | O34: 282.9710768 | Q34: 12 | R34: 2021-03-01 | S34: 13874.87984 | T34: 759.6038348 | U34: 22.56149566 | V34: 0 | W34: 782.1653304 | Y34: 12 | Z34: 2021-03-01 | AA34: 13041.89725 | AB34: 452.1473441 | AC34: 27.55034105 | AD34: 6.125 | AE34: 485.8226852 | AG34: 0 | AH34: 00:00:00 | AI34: 0 | AJ34: 0 | AK34: 0 | AL34: 0 | AM34: 0 | AO34: 0 | AP34: 00:00:00 | AQ34: 0 | AR34: 0 | AS34: 0 | AT34: 0 | AU34: 0 | AW34: 0 | AX34: 00:00:00 | AY34: 0 | AZ34: 0 | BA34: 0 | BB34: 0 | BC34: 0 | BE34: 12 | BF34: =+'2) Richiesta finanziamento'!G28 -> 2021-04-20 | BG34: =+'2) Richiesta finanziamento'!H28 -> 17500 | BH34: =+'2) Richiesta finanziamento'!I28 -> 0 | BI34: =+'2) Richiesta finanziamento'!J28 -> 27.70833333 | BK34: =+'2) Richiesta finanziamento'!K28 -> 27.70833333
A35: 0 | B35: 00:00:00 | C35: 0 | D35: 0 | E35: 0 | F35: 0 | G35: 0 | I35: 0 | J35: 00:00:00 | K35: 0 | L35: 0 | M35: 0 | N35: 0 | O35: 0 | Q35: 13 | R35: 2021-04-01 | S35: 13114.10495 | T35: 760.7748907 | U35: 21.39043975 | V35: 0 | W35: 782.1653304 | Y35: 13 | Z35: 2021-04-01 | AA35: 12588.82677 | AB35: 453.0704783 | AC35: 26.62720689 | AD35: 6.125 | AE35: 485.8226852 | AG35: 0 | AH35: 00:00:00 | AI35: 0 | AJ35: 0 | AK35: 0 | AL35: 0 | AM35: 0 | AO35: 0 | AP35: 00:00:00 | AQ35: 0 | AR35: 0 | AS35: 0 | AT35: 0 | AU35: 0 | AW35: 0 | AX35: 00:00:00 | AY35: 0 | AZ35: 0 | BA35: 0 | BB35: 0 | BC35: 0 | BE35: 13 | BF35: =+'2) Richiesta finanziamento'!G29 -> 2021-05-20 | BG35: =+'2) Richiesta finanziamento'!H29 -> 17221.73751 | BH35: =+'2) Richiesta finanziamento'!I29 -> 278.2624931 | BI35: =+'2) Richiesta finanziamento'!J29 -> 27.70833333 | BK35: =+'2) Richiesta finanziamento'!K29 -> 305.9708265
A36: 0 | B36: 00:00:00 | C36: 0 | D36: 0 | E36: 0 | F36: 0 | G36: 0 | I36: 0 | J36: 00:00:00 | K36: 0 | L36: 0 | M36: 0 | N36: 0 | O36: 0 | Q36: 14 | R36: 2021-05-01 | S36: 12352.15719 | T36: 761.947752 | U36: 20.21757846 | V36: 0 | W36: 782.1653304 | Y36: 14 | Z36: 2021-05-01 | AA36: 12134.83128 | AB36: 453.9954972 | AC36: 25.70218799 | AD36: 6.125 | AE36: 485.8226852 | AG36: 0 | AH36: 00:00:00 | AI36: 0 | AJ36: 0 | AK36: 0 | AL36: 0 | AM36: 0 | AO36: 0 | AP36: 00:00:00 | AQ36: 0 | AR36: 0 | AS36: 0 | AT36: 0 | AU36: 0 | AW36: 0 | AX36: 00:00:00 | AY36: 0 | AZ36: 0 | BA36: 0 | BB36: 0 | BC36: 0 | BE36: 14 | BF36: =+'2) Richiesta finanziamento'!G30 -> 2021-06-20 | BG36: =+'2) Richiesta finanziamento'!H30 -> 16943.03443 | BH36: =+'2) Richiesta finanziamento'!I30 -> 278.7030754 | BI36: =+'2) Richiesta finanziamento'!J30 -> 27.26775105 | BK36: =+'2) Richiesta finanziamento'!K30 -> 305.9708265
A37: 0 | B37: 00:00:00 | C37: 0 | D37: 0 | E37: 0 | F37: 0 | G37: 0 | I37: 0 | J37: 00:00:00 | K37: 0 | L37: 0 | M37: 0 | N37: 0 | O37: 0 | Q37: 15 | R37: 2021-06-01 | S37: 11589.03477 | T37: 763.1224214 | U37: 19.04290901 | V37: 0 | W37: 782.1653304 | Y37: 15 | Z37: 2021-06-01 | AA37: 11679.90887 | AB37: 454.9224046 | AC37: 24.77528052 | AD37: 6.125 | AE37: 485.8226852 | AG37: 0 | AH37: 00:00:00 | AI37: 0 | AJ37: 0 | AK37: 0 | AL37: 0 | AM37: 0 | AO37: 0 | AP37: 00:00:00 | AQ37: 0 | AR37: 0 | AS37: 0 | AT37: 0 | AU37: 0 | AW37: 0 | AX37: 00:00:00 | AY37: 0 | AZ37: 0 | BA37: 0 | BB37: 0 | BC37: 0 | BE37: 15 | BF37: =+'2) Richiesta finanziamento'!G31 -> 2021-07-20 | BG37: =+'2) Richiesta finanziamento'!H31 -> 16663.89008 | BH37: =+'2) Richiesta finanziamento'!I31 -> 279.1443553 | BI37: =+'2) Richiesta finanziamento'!J31 -> 26.82647118 | BK37: =+'2) Richiesta finanziamento'!K31 -> 305.9708265
A38: 0 | B38: 00:00:00 | C38: 0 | D38: 0 | E38: 0 | F38: 0 | G38: 0 | I38: 0 | J38: 00:00:00 | K38: 0 | L38: 0 | M38: 0 | N38: 0 | O38: 0 | Q38: 16 | R38: 2021-07-01 | S38: 10824.73587 | T38: 764.2989018 | U38: 17.86642861 | V38: 0 | W38: 782.1653304 | Y38: 16 | Z38: 2021-07-01 | AA38: 11224.05767 | AB38: 455.8512045 | AC38: 23.84648061 | AD38: 6.125 | AE38: 485.8226852 | AG38: 0 | AH38: 00:00:00 | AI38: 0 | AJ38: 0 | AK38: 0 | AL38: 0 | AM38: 0 | AO38: 0 | AP38: 00:00:00 | AQ38: 0 | AR38: 0 | AS38: 0 | AT38: 0 | AU38: 0 | AW38: 0 | AX38: 00:00:00 | AY38: 0 | AZ38: 0 | BA38: 0 | BB38: 0 | BC38: 0 | BE38: 16 | BF38: =+'2) Richiesta finanziamento'!G32 -> 2021-08-20 | BG38: =+'2) Richiesta finanziamento'!H32 -> 16384.30374 | BH38: =+'2) Richiesta finanziamento'!I32 -> 279.5863339 | BI38: =+'2) Richiesta finanziamento'!J32 -> 26.38449262 | BK38: =+'2) Richiesta finanziamento'!K32 -> 305.9708265
A39: 0 | B39: 00:00:00 | C39: 0 | D39: 0 | E39: 0 | F39: 0 | G39: 0 | I39: 0 | J39: 00:00:00 | K39: 0 | L39: 0 | M39: 0 | N39: 0 | O39: 0 | Q39: 17 | R39: 2021-08-01 | S39: 10059.25867 | T39: 765.477196 | U39: 16.68813447 | V39: 0 | W39: 782.1653304 | Y39: 17 | Z39: 2021-08-01 | AA39: 10767.27577 | AB39: 456.7819008 | AC39: 22.9157844 | AD39: 6.125 | AE39: 485.8226852 | AG39: 0 | AH39: 00:00:00 | AI39: 0 | AJ39: 0 | AK39: 0 | AL39: 0 | AM39: 0 | AO39: 0 | AP39: 00:00:00 | AQ39: 0 | AR39: 0 | AS39: 0 | AT39: 0 | AU39: 0 | AW39: 0 | AX39: 00:00:00 | AY39: 0 | AZ39: 0 | BA39: 0 | BB39: 0 | BC39: 0 | BE39: 17 | BF39: =+'2) Richiesta finanziamento'!G33 -> 2021-09-20 | BG39: =+'2) Richiesta finanziamento'!H33 -> 16104.27473 | BH39: =+'2) Richiesta finanziamento'!I33 -> 280.0290122 | BI39: =+'2) Richiesta finanziamento'!J33 -> 25.94181426 | BK39: =+'2) Richiesta finanziamento'!K33 -> 305.9708265
A40: 0 | B40: 00:00:00 | C40: 0 | D40: 0 | E40: 0 | F40: 0 | G40: 0 | I40: 0 | J40: 00:00:00 | K40: 0 | L40: 0 | M40: 0 | N40: 0 | O40: 0 | Q40: 18 | R40: 2021-09-01 | S40: 9292.601368 | T40: 766.6573066 | U40: 15.50802379 | V40: 0 | W40: 782.1653304 | Y40: 18 | Z40: 2021-09-01 | AA40: 10309.56127 | AB40: 457.7144971 | AC40: 21.98318802 | AD40: 6.125 | AE40: 485.8226852 | AG40: 0 | AH40: 00:00:00 | AI40: 0 | AJ40: 0 | AK40: 0 | AL40: 0 | AM40: 0 | AO40: 0 | AP40: 00:00:00 | AQ40: 0 | AR40: 0 | AS40: 0 | AT40: 0 | AU40: 0 | AW40: 0 | AX40: 00:00:00 | AY40: 0 | AZ40: 0 | BA40: 0 | BB40: 0 | BC40: 0 | BE40: 18 | BF40: =+'2) Richiesta finanziamento'!G34 -> 2021-10-20 | BG40: =+'2) Richiesta finanziamento'!H34 -> 15823.80234 | BH40: =+'2) Richiesta finanziamento'!I34 -> 280.4723915 | BI40: =+'2) Richiesta finanziamento'!J34 -> 25.49843499 | BK40: =+'2) Richiesta finanziamento'!K34 -> 305.9708265
A41: 0 | B41: 00:00:00 | C41: 0 | D41: 0 | E41: 0 | F41: 0 | G41: 0 | I41: 0 | J41: 00:00:00 | K41: 0 | L41: 0 | M41: 0 | N41: 0 | O41: 0 | Q41: 19 | R41: 2021-10-01 | S41: 8524.762131 | T41: 767.8392367 | U41: 14.32609378 | V41: 0 | W41: 782.1653304 | Y41: 19 | Z41: 2021-10-01 | AA41: 9850.91227 | AB41: 458.6489976 | AC41: 21.04868759 | AD41: 6.125 | AE41: 485.8226852 | AG41: 0 | AH41: 00:00:00 | AI41: 0 | AJ41: 0 | AK41: 0 | AL41: 0 | AM41: 0 | AO41: 0 | AP41: 00:00:00 | AQ41: 0 | AR41: 0 | AS41: 0 | AT41: 0 | AU41: 0 | AW41: 0 | AX41: 00:00:00 | AY41: 0 | AZ41: 0 | BA41: 0 | BB41: 0 | BC41: 0 | BE41: 19 | BF41: =+'2) Richiesta finanziamento'!G35 -> 2021-11-20 | BG41: =+'2) Richiesta finanziamento'!H35 -> 15542.88587 | BH41: =+'2) Richiesta finanziamento'!I35 -> 280.9164728 | BI41: =+'2) Richiesta finanziamento'!J35 -> 25.0543537 | BK41: =+'2) Richiesta finanziamento'!K35 -> 305.9708265
A42: 0 | B42: 00:00:00 | C42: 0 | D42: 0 | E42: 0 | F42: 0 | G42: 0 | I42: 0 | J42: 00:00:00 | K42: 0 | L42: 0 | M42: 0 | N42: 0 | O42: 0 | Q42: 20 | R42: 2021-11-01 | S42: 7755.739142 | T42: 769.0229888 | U42: 13.14234162 | V42: 0 | W42: 782.1653304 | Y42: 20 | Z42: 2021-11-01 | AA42: 9391.326864 | AB42: 459.5854059 | AC42: 20.11227922 | AD42: 6.125 | AE42: 485.8226852 | AG42: 0 | AH42: 00:00:00 | AI42: 0 | AJ42: 0 | AK42: 0 | AL42: 0 | AM42: 0 | AO42: 0 | AP42: 00:00:00 | AQ42: 0 | AR42: 0 | AS42: 0 | AT42: 0 | AU42: 0 | AW42: 0 | AX42: 00:00:00 | AY42: 0 | AZ42: 0 | BA42: 0 | BB42: 0 | BC42: 0 | BE42: 20 | BF42: =+'2) Richiesta finanziamento'!G36 -> 2021-12-20 | BG42: =+'2) Richiesta finanziamento'!H36 -> 15261.52461 | BH42: =+'2) Richiesta finanziamento'!I36 -> 281.3612572 | BI42: =+'2) Richiesta finanziamento'!J36 -> 24.60956929 | BK42: =+'2) Richiesta finanziamento'!K36 -> 305.9708265
A43: 0 | B43: 00:00:00 | C43: 0 | D43: 0 | E43: 0 | F43: 0 | G43: 0 | I43: 0 | J43: 00:00:00 | K43: 0 | L43: 0 | M43: 0 | N43: 0 | O43: 0 | Q43: 21 | R43: 2021-12-01 | S43: 6985.530576 | T43: 770.2085659 | U43: 11.95676451 | V43: 0 | W43: 782.1653304 | Y43: 21 | Z43: 2021-12-01 | AA43: 8930.803138 | AB43: 460.5237261 | AC43: 19.17395901 | AD43: 6.125 | AE43: 485.8226852 | AG43: 0 | AH43: 00:00:00 | AI43: 0 | AJ43: 0 | AK43: 0 | AL43: 0 | AM43: 0 | AO43: 0 | AP43: 00:00:00 | AQ43: 0 | AR43: 0 | AS43: 0 | AT43: 0 | AU43: 0 | AW43: 0 | AX43: 00:00:00 | AY43: 0 | AZ43: 0 | BA43: 0 | BB43: 0 | BC43: 0 | BE43: 21 | BF43: =+'2) Richiesta finanziamento'!G37 -> 2022-01-20 | BG43: =+'2) Richiesta finanziamento'!H37 -> 14979.71786 | BH43: =+'2) Richiesta finanziamento'!I37 -> 281.8067459 | BI43: =+'2) Richiesta finanziamento'!J37 -> 24.16408063 | BK43: =+'2) Richiesta finanziamento'!K37 -> 305.9708265
A44: 0 | B44: 00:00:00 | C44: 0 | D44: 0 | E44: 0 | F44: 0 | G44: 0 | I44: 0 | J44: 00:00:00 | K44: 0 | L44: 0 | M44: 0 | N44: 0 | O44: 0 | Q44: 22 | R44: 2022-01-01 | S44: 6214.134605 | T44: 771.3959708 | U44: 10.76935964 | V44: 0 | W44: 782.1653304 | Y44: 22 | Z44: 2022-01-01 | AA44: 8469.339176 | AB44: 461.4639621 | AC44: 18.23372307 | AD44: 6.125 | AE44: 485.8226852 | AG44: 0 | AH44: 00:00:00 | AI44: 0 | AJ44: 0 | AK44: 0 | AL44: 0 | AM44: 0 | AO44: 0 | AP44: 00:00:00 | AQ44: 0 | AR44: 0 | AS44: 0 | AT44: 0 | AU44: 0 | AW44: 0 | AX44: 00:00:00 | AY44: 0 | AZ44: 0 | BA44: 0 | BB44: 0 | BC44: 0 | BE44: 22 | BF44: =+'2) Richiesta finanziamento'!G38 -> 2022-02-20 | BG44: =+'2) Richiesta finanziamento'!H38 -> 14697.46492 | BH44: =+'2) Richiesta finanziamento'!I38 -> 282.2529399 | BI44: =+'2) Richiesta finanziamento'!J38 -> 23.71788662 | BK44: =+'2) Richiesta finanziamento'!K38 -> 305.9708265
A45: 0 | B45: 00:00:00 | C45: 0 | D45: 0 | E45: 0 | F45: 0 | G45: 0 | I45: 0 | J45: 00:00:00 | K45: 0 | L45: 0 | M45: 0 | N45: 0 | O45: 0 | Q45: 23 | R45: 2022-02-01 | S45: 5441.549399 | T45: 772.5852062 | U45: 9.580124183 | V45: 0 | W45: 782.1653304 | Y45: 23 | Z45: 2022-02-01 | AA45: 8006.933059 | AB45: 462.4061177 | AC45: 17.29156748 | AD45: 6.125 | AE45: 485.8226852 | AG45: 0 | AH45: 00:00:00 | AI45: 0 | AJ45: 0 | AK45: 0 | AL45: 0 | AM45: 0 | AO45: 0 | AP45: 00:00:00 | AQ45: 0 | AR45: 0 | AS45: 0 | AT45: 0 | AU45: 0 | AW45: 0 | AX45: 00:00:00 | AY45: 0 | AZ45: 0 | BA45: 0 | BB45: 0 | BC45: 0 | BE45: 23 | BF45: =+'2) Richiesta finanziamento'!G39 -> 2022-03-20 | BG45: =+'2) Richiesta finanziamento'!H39 -> 14414.76508 | BH45: =+'2) Richiesta finanziamento'!I39 -> 282.6998404 | BI45: =+'2) Richiesta finanziamento'!J39 -> 23.27098613 | BK45: =+'2) Richiesta finanziamento'!K39 -> 305.9708265
A46: 0 | B46: 00:00:00 | C46: 0 | D46: 0 | E46: 0 | F46: 0 | G46: 0 | I46: 0 | J46: 00:00:00 | K46: 0 | L46: 0 | M46: 0 | N46: 0 | O46: 0 | Q46: 24 | R46: 2022-03-01 | S46: 4667.773124 | T46: 773.7762751 | U46: 8.389055324 | V46: 0 | W46: 782.1653304 | Y46: 24 | Z46: 2022-03-01 | AA46: 7543.582862 | AB46: 463.3501968 | AC46: 16.34748833 | AD46: 6.125 | AE46: 485.8226852 | AG46: 0 | AH46: 00:00:00 | AI46: 0 | AJ46: 0 | AK46: 0 | AL46: 0 | AM46: 0 | AO46: 0 | AP46: 00:00:00 | AQ46: 0 | AR46: 0 | AS46: 0 | AT46: 0 | AU46: 0 | AW46: 0 | AX46: 00:00:00 | AY46: 0 | AZ46: 0 | BA46: 0 | BB46: 0 | BC46: 0 | BE46: 24 | BF46: =+'2) Richiesta finanziamento'!G40 -> 2022-04-20 | BG46: =+'2) Richiesta finanziamento'!H40 -> 14131.61763 | BH46: =+'2) Richiesta finanziamento'!I40 -> 283.1474484 | BI46: =+'2) Richiesta finanziamento'!J40 -> 22.82337805 | BK46: =+'2) Richiesta finanziamento'!K40 -> 305.9708265
A47: 0 | B47: 00:00:00 | C47: 0 | D47: 0 | E47: 0 | F47: 0 | G47: 0 | I47: 0 | J47: 00:00:00 | K47: 0 | L47: 0 | M47: 0 | N47: 0 | O47: 0 | Q47: 25 | R47: 2022-04-01 | S47: 3892.803944 | T47: 774.9691802 | U47: 7.196150233 | V47: 0 | W47: 782.1653304 | Y47: 25 | Z47: 2022-04-01 | AA47: 7079.286658 | AB47: 464.2962035 | AC47: 15.40148168 | AD47: 6.125 | AE47: 485.8226852 | AG47: 0 | AH47: 00:00:00 | AI47: 0 | AJ47: 0 | AK47: 0 | AL47: 0 | AM47: 0 | AO47: 0 | AP47: 00:00:00 | AQ47: 0 | AR47: 0 | AS47: 0 | AT47: 0 | AU47: 0 | AW47: 0 | AX47: 00:00:00 | AY47: 0 | AZ47: 0 | BA47: 0 | BB47: 0 | BC47: 0 | BE47: 25 | BF47: =+'2) Richiesta finanziamento'!G41 -> 2022-05-20 | BG47: =+'2) Richiesta finanziamento'!H41 -> 13848.02187 | BH47: =+'2) Richiesta finanziamento'!I41 -> 283.5957652 | BI47: =+'2) Richiesta finanziamento'!J41 -> 22.37506125 | BK47: =+'2) Richiesta finanziamento'!K41 -> 305.9708265
A48: 0 | B48: 00:00:00 | C48: 0 | D48: 0 | E48: 0 | F48: 0 | G48: 0 | I48: 0 | J48: 00:00:00 | K48: 0 | L48: 0 | M48: 0 | N48: 0 | O48: 0 | Q48: 26 | R48: 2022-05-01 | S48: 3116.64002 | T48: 776.1639244 | U48: 6.00140608 | V48: 0 | W48: 782.1653304 | Y48: 26 | Z48: 2022-05-01 | AA48: 6614.042517 | AB48: 465.2441416 | AC48: 14.45354359 | AD48: 6.125 | AE48: 485.8226852 | AG48: 0 | AH48: 00:00:00 | AI48: 0 | AJ48: 0 | AK48: 0 | AL48: 0 | AM48: 0 | AO48: 0 | AP48: 00:00:00 | AQ48: 0 | AR48: 0 | AS48: 0 | AT48: 0 | AU48: 0 | AW48: 0 | AX48: 00:00:00 | AY48: 0 | AZ48: 0 | BA48: 0 | BB48: 0 | BC48: 0 | BE48: 26 | BF48: =+'2) Richiesta finanziamento'!G42 -> 2022-06-20 | BG48: =+'2) Richiesta finanziamento'!H42 -> 13563.97708 | BH48: =+'2) Richiesta finanziamento'!I42 -> 284.0447919 | BI48: =+'2) Richiesta finanziamento'!J42 -> 21.92603463 | BK48: =+'2) Richiesta finanziamento'!K42 -> 305.9708265
A49: 0 | B49: 00:00:00 | C49: 0 | D49: 0 | E49: 0 | F49: 0 | G49: 0 | I49: 0 | J49: 00:00:00 | K49: 0 | L49: 0 | M49: 0 | N49: 0 | O49: 0 | Q49: 27 | R49: 2022-06-01 | S49: 2339.279509 | T49: 777.3605104 | U49: 4.80482003 | V49: 0 | W49: 782.1653304 | Y49: 27 | Z49: 2022-06-01 | AA49: 6147.848502 | AB49: 466.194015 | AC49: 13.50367014 | AD49: 6.125 | AE49: 485.8226852 | AG49: 0 | AH49: 00:00:00 | AI49: 0 | AJ49: 0 | AK49: 0 | AL49: 0 | AM49: 0 | AO49: 0 | AP49: 00:00:00 | AQ49: 0 | AR49: 0 | AS49: 0 | AT49: 0 | AU49: 0 | AW49: 0 | AX49: 00:00:00 | AY49: 0 | AZ49: 0 | BA49: 0 | BB49: 0 | BC49: 0 | BE49: 27 | BF49: =+'2) Richiesta finanziamento'!G43 -> 2022-07-20 | BG49: =+'2) Richiesta finanziamento'!H43 -> 13279.48255 | BH49: =+'2) Richiesta finanziamento'!I43 -> 284.4945294 | BI49: =+'2) Richiesta finanziamento'!J43 -> 21.47629704 | BK49: =+'2) Richiesta finanziamento'!K43 -> 305.9708265
A50: 0 | B50: 00:00:00 | C50: 0 | D50: 0 | E50: 0 | F50: 0 | G50: 0 | I50: 0 | J50: 00:00:00 | K50: 0 | L50: 0 | M50: 0 | N50: 0 | O50: 0 | Q50: 28 | R50: 2022-07-01 | S50: 1560.720568 | T50: 778.5589412 | U50: 3.606389243 | V50: 0 | W50: 782.1653304 | Y50: 28 | Z50: 2022-07-01 | AA50: 5680.702674 | AB50: 467.1458278 | AC50: 12.55185736 | AD50: 6.125 | AE50: 485.8226852 | AG50: 0 | AH50: 00:00:00 | AI50: 0 | AJ50: 0 | AK50: 0 | AL50: 0 | AM50: 0 | AO50: 0 | AP50: 00:00:00 | AQ50: 0 | AR50: 0 | AS50: 0 | AT50: 0 | AU50: 0 | AW50: 0 | AX50: 00:00:00 | AY50: 0 | AZ50: 0 | BA50: 0 | BB50: 0 | BC50: 0 | BE50: 28 | BF50: =+'2) Richiesta finanziamento'!G44 -> 2022-08-20 | BG50: =+'2) Richiesta finanziamento'!H44 -> 12994.53757 | BH50: =+'2) Richiesta finanziamento'!I44 -> 284.9449791 | BI50: =+'2) Richiesta finanziamento'!J44 -> 21.02584737 | BK50: =+'2) Richiesta finanziamento'!K44 -> 305.9708265
A51: 0 | B51: 00:00:00 | C51: 0 | D51: 0 | E51: 0 | F51: 0 | G51: 0 | I51: 0 | J51: 00:00:00 | K51: 0 | L51: 0 | M51: 0 | N51: 0 | O51: 0 | Q51: 29 | R51: 2022-08-01 | S51: 780.9613484 | T51: 779.7592196 | U51: 2.406110876 | V51: 0 | W51: 782.1653304 | Y51: 29 | Z51: 2022-08-01 | AA51: 5212.60309 | AB51: 468.0995839 | AC51: 11.59810129 | AD51: 6.125 | AE51: 485.8226852 | AG51: 0 | AH51: 00:00:00 | AI51: 0 | AJ51: 0 | AK51: 0 | AL51: 0 | AM51: 0 | AO51: 0 | AP51: 00:00:00 | AQ51: 0 | AR51: 0 | AS51: 0 | AT51: 0 | AU51: 0 | AW51: 0 | AX51: 00:00:00 | AY51: 0 | AZ51: 0 | BA51: 0 | BB51: 0 | BC51: 0 | BE51: 29 | BF51: =+'2) Richiesta finanziamento'!G45 -> 2022-09-20 | BG51: =+'2) Richiesta finanziamento'!H45 -> 12709.14143 | BH51: =+'2) Richiesta finanziamento'!I45 -> 285.396142 | BI51: =+'2) Richiesta finanziamento'!J45 -> 20.57468448 | BK51: =+'2) Richiesta finanziamento'!K45 -> 305.9708265
A52: 0 | B52: 00:00:00 | C52: 0 | D52: 0 | E52: 0 | F52: 0 | G52: 0 | I52: 0 | J52: 00:00:00 | K52: 0 | L52: 0 | M52: 0 | N52: 0 | O52: 0 | Q52: 30 | R52: 2022-09-01 | S52: -6.025402399e-12 | T52: 780.9613484 | U52: 1.203982079 | V52: 0 | W52: 782.1653304 | Y52: 30 | Z52: 2022-09-01 | AA52: 4743.547803 | AB52: 469.0552872 | AC52: 10.64239798 | AD52: 6.125 | AE52: 485.8226852 | AG52: 0 | AH52: 00:00:00 | AI52: 0 | AJ52: 0 | AK52: 0 | AL52: 0 | AM52: 0 | AO52: 0 | AP52: 00:00:00 | AQ52: 0 | AR52: 0 | AS52: 0 | AT52: 0 | AU52: 0 | AW52: 0 | AX52: 00:00:00 | AY52: 0 | AZ52: 0 | BA52: 0 | BB52: 0 | BC52: 0 | BE52: 30 | BF52: =+'2) Richiesta finanziamento'!G46 -> 2022-10-20 | BG52: =+'2) Richiesta finanziamento'!H46 -> 12423.29341 | BH52: =+'2) Richiesta finanziamento'!I46 -> 285.8480192 | BI52: =+'2) Richiesta finanziamento'!J46 -> 20.12280726 | BK52: =+'2) Richiesta finanziamento'!K46 -> 305.9708265
A53: 0 | B53: 00:00:00 | C53: 0 | D53: 0 | E53: 0 | F53: 0 | G53: 0 | I53: 0 | J53: 00:00:00 | K53: 0 | L53: 0 | M53: 0 | N53: 0 | O53: 0 | Q53: 0 | R53: 00:00:00 | S53: 0 | T53: 0 | U53: 0 | V53: 0 | W53: 0 | Y53: 31 | Z53: 2022-10-01 | AA53: 4273.534861 | AB53: 470.0129417 | AC53: 9.684743431 | AD53: 6.125 | AE53: 485.8226852 | AG53: 0 | AH53: 00:00:00 | AI53: 0 | AJ53: 0 | AK53: 0 | AL53: 0 | AM53: 0 | AO53: 0 | AP53: 00:00:00 | AQ53: 0 | AR53: 0 | AS53: 0 | AT53: 0 | AU53: 0 | AW53: 0 | AX53: 00:00:00 | AY53: 0 | AZ53: 0 | BA53: 0 | BB53: 0 | BC53: 0 | BE53: 31 | BF53: =+'2) Richiesta finanziamento'!G47 -> 2022-11-20 | BG53: =+'2) Richiesta finanziamento'!H47 -> 12136.9928 | BH53: =+'2) Richiesta finanziamento'!I47 -> 286.3006119 | BI53: =+'2) Richiesta finanziamento'!J47 -> 19.67021456 | BK53: =+'2) Richiesta finanziamento'!K47 -> 305.9708265
A54: 0 | B54: 00:00:00 | C54: 0 | D54: 0 | E54: 0 | F54: 0 | G54: 0 | I54: 0 | J54: 00:00:00 | K54: 0 | L54: 0 | M54: 0 | N54: 0 | O54: 0 | Q54: 0 | R54: 00:00:00 | S54: 0 | T54: 0 | U54: 0 | V54: 0 | W54: 0 | Y54: 32 | Z54: 2022-11-01 | AA54: 3802.56231 | AB54: 470.9725515 | AC54: 8.725133675 | AD54: 6.125 | AE54: 485.8226852 | AG54: 0 | AH54: 00:00:00 | AI54: 0 | AJ54: 0 | AK54: 0 | AL54: 0 | AM54: 0 | AO54: 0 | AP54: 00:00:00 | AQ54: 0 | AR54: 0 | AS54: 0 | AT54: 0 | AU54: 0 | AW54: 0 | AX54: 00:00:00 | AY54: 0 | AZ54: 0 | BA54: 0 | BB54: 0 | BC54: 0 | BE54: 32 | BF54: =+'2) Richiesta finanziamento'!G48 -> 2022-12-20 | BG54: =+'2) Richiesta finanziamento'!H48 -> 11850.23887 | BH54: =+'2) Richiesta finanziamento'!I48 -> 286.7539212 | BI54: =+'2) Richiesta finanziamento'!J48 -> 19.21690526 | BK54: =+'2) Richiesta finanziamento'!K48 -> 305.9708265
A55: 0 | B55: 00:00:00 | C55: 0 | D55: 0 | E55: 0 | F55: 0 | G55: 0 | I55: 0 | J55: 00:00:00 | K55: 0 | L55: 0 | M55: 0 | N55: 0 | O55: 0 | Q55: 0 | R55: 00:00:00 | S55: 0 | T55: 0 | U55: 0 | V55: 0 | W55: 0 | Y55: 33 | Z55: 2022-12-01 | AA55: 3330.628189 | AB55: 471.9341204 | AC55: 7.763564715 | AD55: 6.125 | AE55: 485.8226852 | AG55: 0 | AH55: 00:00:00 | AI55: 0 | AJ55: 0 | AK55: 0 | AL55: 0 | AM55: 0 | AO55: 0 | AP55: 00:00:00 | AQ55: 0 | AR55: 0 | AS55: 0 | AT55: 0 | AU55: 0 | AW55: 0 | AX55: 00:00:00 | AY55: 0 | AZ55: 0 | BA55: 0 | BB55: 0 | BC55: 0 | BE55: 33 | BF55: =+'2) Richiesta finanziamento'!G49 -> 2023-01-20 | BG55: =+'2) Richiesta finanziamento'!H49 -> 11563.03093 | BH55: =+'2) Richiesta finanziamento'!I49 -> 287.2079483 | BI55: =+'2) Richiesta finanziamento'!J49 -> 18.76287822 | BK55: =+'2) Richiesta finanziamento'!K49 -> 305.9708265
A56: 0 | B56: 00:00:00 | C56: 0 | D56: 0 | E56: 0 | F56: 0 | G56: 0 | I56: 0 | J56: 00:00:00 | K56: 0 | L56: 0 | M56: 0 | N56: 0 | O56: 0 | Q56: 0 | R56: 00:00:00 | S56: 0 | T56: 0 | U56: 0 | V56: 0 | W56: 0 | Y56: 34 | Z56: 2023-01-01 | AA56: 2857.730537 | AB56: 472.8976526 | AC56: 6.800032553 | AD56: 6.125 | AE56: 485.8226852 | AG56: 0 | AH56: 00:00:00 | AI56: 0 | AJ56: 0 | AK56: 0 | AL56: 0 | AM56: 0 | AO56: 0 | AP56: 00:00:00 | AQ56: 0 | AR56: 0 | AS56: 0 | AT56: 0 | AU56: 0 | AW56: 0 | AX56: 00:00:00 | AY56: 0 | AZ56: 0 | BA56: 0 | BB56: 0 | BC56: 0 | BE56: 34 | BF56: =+'2) Richiesta finanziamento'!G50 -> 2023-02-20 | BG56: =+'2) Richiesta finanziamento'!H50 -> 11275.36823 | BH56: =+'2) Richiesta finanziamento'!I50 -> 287.6626942 | BI56: =+'2) Richiesta finanziamento'!J50 -> 18.3081323 | BK56: =+'2) Richiesta finanziamento'!K50 -> 305.9708265
A57: 0 | B57: 00:00:00 | C57: 0 | D57: 0 | E57: 0 | F57: 0 | G57: 0 | I57: 0 | J57: 00:00:00 | K57: 0 | L57: 0 | M57: 0 | N57: 0 | O57: 0 | Q57: 0 | R57: 00:00:00 | S57: 0 | T57: 0 | U57: 0 | V57: 0 | W57: 0 | Y57: 35 | Z57: 2023-02-01 | AA57: 2383.867385 | AB57: 473.863152 | AC57: 5.834533179 | AD57: 6.125 | AE57: 485.8226852 | AG57: 0 | AH57: 00:00:00 | AI57: 0 | AJ57: 0 | AK57: 0 | AL57: 0 | AM57: 0 | AO57: 0 | AP57: 00:00:00 | AQ57: 0 | AR57: 0 | AS57: 0 | AT57: 0 | AU57: 0 | AW57: 0 | AX57: 00:00:00 | AY57: 0 | AZ57: 0 | BA57: 0 | BB57: 0 | BC57: 0 | BE57: 35 | BF57: =+'2) Richiesta finanziamento'!G51 -> 2023-03-20 | BG57: =+'2) Richiesta finanziamento'!H51 -> 10987.25007 | BH57: =+'2) Richiesta finanziamento'!I51 -> 288.1181601 | BI57: =+'2) Richiesta finanziamento'!J51 -> 17.85266637 | BK57: =+'2) Richiesta finanziamento'!K51 -> 305.9708265
A58: 0 | B58: 00:00:00 | C58: 0 | D58: 0 | E58: 0 | F58: 0 | G58: 0 | I58: 0 | J58: 00:00:00 | K58: 0 | L58: 0 | M58: 0 | N58: 0 | O58: 0 | Q58: 0 | R58: 00:00:00 | S58: 0 | T58: 0 | U58: 0 | V58: 0 | W58: 0 | Y58: 36 | Z58: 2023-03-01 | AA58: 1909.036762 | AB58: 474.8306226 | AC58: 4.867062577 | AD58: 6.125 | AE58: 485.8226852 | AG58: 0 | AH58: 00:00:00 | AI58: 0 | AJ58: 0 | AK58: 0 | AL58: 0 | AM58: 0 | AO58: 0 | AP58: 00:00:00 | AQ58: 0 | AR58: 0 | AS58: 0 | AT58: 0 | AU58: 0 | AW58: 0 | AX58: 00:00:00 | AY58: 0 | AZ58: 0 | BA58: 0 | BB58: 0 | BC58: 0 | BE58: 36 | BF58: =+'2) Richiesta finanziamento'!G52 -> 2023-04-20 | BG58: =+'2) Richiesta finanziamento'!H52 -> 10698.67572 | BH58: =+'2) Richiesta finanziamento'!I52 -> 288.5743472 | BI58: =+'2) Richiesta finanziamento'!J52 -> 17.39647928 | BK58: =+'2) Richiesta finanziamento'!K52 -> 305.9708265
A59: 0 | B59: 00:00:00 | C59: 0 | D59: 0 | E59: 0 | F59: 0 | G59: 0 | I59: 0 | J59: 00:00:00 | K59: 0 | L59: 0 | M59: 0 | N59: 0 | O59: 0 | Q59: 0 | R59: 00:00:00 | S59: 0 | T59: 0 | U59: 0 | V59: 0 | W59: 0 | Y59: 37 | Z59: 2023-04-01 | AA59: 1433.236694 | AB59: 475.8000684 | AC59: 3.897616722 | AD59: 6.125 | AE59: 485.8226852 | AG59: 0 | AH59: 00:00:00 | AI59: 0 | AJ59: 0 | AK59: 0 | AL59: 0 | AM59: 0 | AO59: 0 | AP59: 00:00:00 | AQ59: 0 | AR59: 0 | AS59: 0 | AT59: 0 | AU59: 0 | AW59: 0 | AX59: 00:00:00 | AY59: 0 | AZ59: 0 | BA59: 0 | BB59: 0 | BC59: 0 | BE59: 37 | BF59: =+'2) Richiesta finanziamento'!N16 -> 2023-05-20 | BG59: =+'2) Richiesta finanziamento'!O16 -> 10409.64447 | BH59: =+'2) Richiesta finanziamento'!P16 -> 289.0312566 | BI59: =+'2) Richiesta finanziamento'!Q16 -> 16.9395699 | BK59: =+'2) Richiesta finanziamento'!R16 -> 305.9708265
A60: 0 | B60: 00:00:00 | C60: 0 | D60: 0 | E60: 0 | F60: 0 | G60: 0 | I60: 0 | J60: 00:00:00 | K60: 0 | L60: 0 | M60: 0 | N60: 0 | O60: 0 | Q60: 0 | R60: 00:00:00 | S60: 0 | T60: 0 | U60: 0 | V60: 0 | W60: 0 | Y60: 38 | Z60: 2023-05-01 | AA60: 956.4651999 | AB60: 476.7714936 | AC60: 2.926191583 | AD60: 6.125 | AE60: 485.8226852 | AG60: 0 | AH60: 00:00:00 | AI60: 0 | AJ60: 0 | AK60: 0 | AL60: 0 | AM60: 0 | AO60: 0 | AP60: 00:00:00 | AQ60: 0 | AR60: 0 | AS60: 0 | AT60: 0 | AU60: 0 | AW60: 0 | AX60: 00:00:00 | AY60: 0 | AZ60: 0 | BA60: 0 | BB60: 0 | BC60: 0 | BE60: 38 | BF60: =+'2) Richiesta finanziamento'!N17 -> 2023-06-20 | BG60: =+'2) Richiesta finanziamento'!O17 -> 10120.15558 | BH60: =+'2) Richiesta finanziamento'!P17 -> 289.4888894 | BI60: =+'2) Richiesta finanziamento'!Q17 -> 16.48193707 | BK60: =+'2) Richiesta finanziamento'!R17 -> 305.9708265
A61: 0 | B61: 00:00:00 | C61: 0 | D61: 0 | E61: 0 | F61: 0 | G61: 0 | I61: 0 | J61: 00:00:00 | K61: 0 | L61: 0 | M61: 0 | N61: 0 | O61: 0 | Q61: 0 | R61: 00:00:00 | S61: 0 | T61: 0 | U61: 0 | V61: 0 | W61: 0 | Y61: 39 | Z61: 2023-06-01 | AA61: 478.7202979 | AB61: 477.744902 | AC61: 1.952783117 | AD61: 6.125 | AE61: 485.8226852 | AG61: 0 | AH61: 00:00:00 | AI61: 0 | AJ61: 0 | AK61: 0 | AL61: 0 | AM61: 0 | AO61: 0 | AP61: 00:00:00 | AQ61: 0 | AR61: 0 | AS61: 0 | AT61: 0 | AU61: 0 | AW61: 0 | AX61: 00:00:00 | AY61: 0 | AZ61: 0 | BA61: 0 | BB61: 0 | BC61: 0 | BE61: 39 | BF61: =+'2) Richiesta finanziamento'!N18 -> 2023-07-20 | BG61: =+'2) Richiesta finanziamento'!O18 -> 9830.208332 | BH61: =+'2) Richiesta finanziamento'!P18 -> 289.9472468 | BI61: =+'2) Richiesta finanziamento'!Q18 -> 16.02357967 | BK61: =+'2) Richiesta finanziamento'!R18 -> 305.9708265
A62: 0 | B62: 00:00:00 | C62: 0 | D62: 0 | E62: 0 | F62: 0 | G62: 0 | I62: 0 | J62: 00:00:00 | K62: 0 | L62: 0 | M62: 0 | N62: 0 | O62: 0 | Q62: 0 | R62: 00:00:00 | S62: 0 | T62: 0 | U62: 0 | V62: 0 | W62: 0 | Y62: 40 | Z62: 2023-07-01 | AA62: -5.229594535e-12 | AB62: 478.7202979 | AC62: 0.9773872748 | AD62: 6.125 | AE62: 485.8226852 | AG62: 0 | AH62: 00:00:00 | AI62: 0 | AJ62: 0 | AK62: 0 | AL62: 0 | AM62: 0 | AO62: 0 | AP62: 00:00:00 | AQ62: 0 | AR62: 0 | AS62: 0 | AT62: 0 | AU62: 0 | AW62: 0 | AX62: 00:00:00 | AY62: 0 | AZ62: 0 | BA62: 0 | BB62: 0 | BC62: 0 | BE62: 40 | BF62: =+'2) Richiesta finanziamento'!N19 -> 2023-08-20 | BG62: =+'2) Richiesta finanziamento'!O19 -> 9539.802002 | BH62: =+'2) Richiesta finanziamento'!P19 -> 290.40633 | BI62: =+'2) Richiesta finanziamento'!Q19 -> 15.56449652 | BK62: =+'2) Richiesta finanziamento'!R19 -> 305.9708265
A63: 0 | B63: 00:00:00 | C63: 0 | D63: 0 | E63: 0 | F63: 0 | G63: 0 | I63: 0 | J63: 00:00:00 | K63: 0 | L63: 0 | M63: 0 | N63: 0 | O63: 0 | Q63: 0 | R63: 00:00:00 | S63: 0 | T63: 0 | U63: 0 | V63: 0 | W63: 0 | Y63: 0 | Z63: 00:00:00 | AA63: 0 | AB63: 0 | AC63: 0 | AD63: 0 | AE63: 3000 | AG63: 0 | AH63: 00:00:00 | AI63: 0 | AJ63: 0 | AK63: 0 | AL63: 0 | AM63: 0 | AO63: 0 | AP63: 00:00:00 | AQ63: 0 | AR63: 0 | AS63: 0 | AT63: 0 | AU63: 0 | AW63: 0 | AX63: 00:00:00 | AY63: 0 | AZ63: 0 | BA63: 0 | BB63: 0 | BC63: 0 | BE63: 41 | BF63: =+'2) Richiesta finanziamento'!N20 -> 2023-09-20 | BG63: =+'2) Richiesta finanziamento'!O20 -> 9248.935862 | BH63: =+'2) Richiesta finanziamento'!P20 -> 290.86614 | BI63: =+'2) Richiesta finanziamento'!Q20 -> 15.1046865 | BK63: =+'2) Richiesta finanziamento'!R20 -> 305.9708265
A64: 0 | B64: 00:00:00 | C64: 0 | D64: 0 | E64: 0 | F64: 0 | G64: 0 | I64: 0 | J64: 00:00:00 | K64: 0 | L64: 0 | M64: 0 | N64: 0 | O64: 0 | Q64: 0 | R64: 00:00:00 | S64: 0 | T64: 0 | U64: 0 | V64: 0 | W64: 0 | Y64: 0 | Z64: 00:00:00 | AA64: 0 | AB64: 0 | AC64: 0 | AD64: 0 | AE64: 0 | AG64: 0 | AH64: 00:00:00 | AI64: 0 | AJ64: 0 | AK64: 0 | AL64: 0 | AM64: 0 | AO64: 0 | AP64: 00:00:00 | AQ64: 0 | AR64: 0 | AS64: 0 | AT64: 0 | AU64: 0 | AW64: 0 | AX64: 00:00:00 | AY64: 0 | AZ64: 0 | BA64: 0 | BB64: 0 | BC64: 0 | BE64: 42 | BF64: =+'2) Richiesta finanziamento'!N21 -> 2023-10-20 | BG64: =+'2) Richiesta finanziamento'!O21 -> 8957.609184 | BH64: =+'2) Richiesta finanziamento'!P21 -> 291.326678 | BI64: =+'2) Richiesta finanziamento'!Q21 -> 14.64414845 | BK64: =+'2) Richiesta finanziamento'!R21 -> 305.9708265
A65: 0 | B65: 00:00:00 | C65: 0 | D65: 0 | E65: 0 | F65: 0 | G65: 0 | I65: 0 | J65: 00:00:00 | K65: 0 | L65: 0 | M65: 0 | N65: 0 | O65: 0 | Q65: 0 | R65: 00:00:00 | S65: 0 | T65: 0 | U65: 0 | V65: 0 | W65: 0 | Y65: 0 | Z65: 00:00:00 | AA65: 0 | AB65: 0 | AC65: 0 | AD65: 0 | AE65: 0 | AG65: 0 | AH65: 00:00:00 | AI65: 0 | AJ65: 0 | AK65: 0 | AL65: 0 | AM65: 0 | AO65: 0 | AP65: 00:00:00 | AQ65: 0 | AR65: 0 | AS65: 0 | AT65: 0 | AU65: 0 | AW65: 0 | AX65: 00:00:00 | AY65: 0 | AZ65: 0 | BA65: 0 | BB65: 0 | BC65: 0 | BE65: 43 | BF65: =+'2) Richiesta finanziamento'!N22 -> 2023-11-20 | BG65: =+'2) Richiesta finanziamento'!O22 -> 8665.821238 | BH65: =+'2) Richiesta finanziamento'!P22 -> 291.7879453 | BI65: =+'2) Richiesta finanziamento'!Q22 -> 14.18288121 | BK65: =+'2) Richiesta finanziamento'!R22 -> 305.9708265
A66: 0 | B66: 00:00:00 | C66: 0 | D66: 0 | E66: 0 | F66: 0 | G66: 0 | I66: 0 | J66: 00:00:00 | K66: 0 | L66: 0 | M66: 0 | N66: 0 | O66: 0 | Q66: 0 | R66: 00:00:00 | S66: 0 | T66: 0 | U66: 0 | V66: 0 | W66: 0 | Y66: 0 | Z66: 00:00:00 | AA66: 0 | AB66: 0 | AC66: 0 | AD66: 0 | AE66: 0 | AG66: 0 | AH66: 00:00:00 | AI66: 0 | AJ66: 0 | AK66: 0 | AL66: 0 | AM66: 0 | AO66: 0 | AP66: 00:00:00 | AQ66: 0 | AR66: 0 | AS66: 0 | AT66: 0 | AU66: 0 | AW66: 0 | AX66: 00:00:00 | AY66: 0 | AZ66: 0 | BA66: 0 | BB66: 0 | BC66: 0 | BE66: 44 | BF66: =+'2) Richiesta finanziamento'!N23 -> 2023-12-20 | BG66: =+'2) Richiesta finanziamento'!O23 -> 8373.571295 | BH66: =+'2) Richiesta finanziamento'!P23 -> 292.2499429 | BI66: =+'2) Richiesta finanziamento'!Q23 -> 13.72088363 | BK66: =+'2) Richiesta finanziamento'!R23 -> 305.9708265
A67: 0 | B67: 00:00:00 | C67: 0 | D67: 0 | E67: 0 | F67: 0 | G67: 0 | I67: 0 | J67: 00:00:00 | K67: 0 | L67: 0 | M67: 0 | N67: 0 | O67: 0 | Q67: 0 | R67: 00:00:00 | S67: 0 | T67: 0 | U67: 0 | V67: 0 | W67: 0 | Y67: 0 | Z67: 00:00:00 | AA67: 0 | AB67: 0 | AC67: 0 | AD67: 0 | AE67: 0 | AG67: 0 | AH67: 00:00:00 | AI67: 0 | AJ67: 0 | AK67: 0 | AL67: 0 | AM67: 0 | AO67: 0 | AP67: 00:00:00 | AQ67: 0 | AR67: 0 | AS67: 0 | AT67: 0 | AU67: 0 | AW67: 0 | AX67: 00:00:00 | AY67: 0 | AZ67: 0 | BA67: 0 | BB67: 0 | BC67: 0 | BE67: 45 | BF67: =+'2) Richiesta finanziamento'!N24 -> 2024-01-20 | BG67: =+'2) Richiesta finanziamento'!O24 -> 8080.858623 | BH67: =+'2) Richiesta finanziamento'!P24 -> 292.7126719 | BI67: =+'2) Richiesta finanziamento'!Q24 -> 13.25815455 | BK67: =+'2) Richiesta finanziamento'!R24 -> 305.9708265
A68: 0 | B68: 00:00:00 | C68: 0 | D68: 0 | E68: 0 | F68: 0 | G68: 0 | I68: 0 | J68: 00:00:00 | K68: 0 | L68: 0 | M68: 0 | N68: 0 | O68: 0 | Q68: 0 | R68: 00:00:00 | S68: 0 | T68: 0 | U68: 0 | V68: 0 | W68: 0 | Y68: 0 | Z68: 00:00:00 | AA68: 0 | AB68: 0 | AC68: 0 | AD68: 0 | AE68: 0 | AG68: 0 | AH68: 00:00:00 | AI68: 0 | AJ68: 0 | AK68: 0 | AL68: 0 | AM68: 0 | AO68: 0 | AP68: 00:00:00 | AQ68: 0 | AR68: 0 | AS68: 0 | AT68: 0 | AU68: 0 | AW68: 0 | AX68: 00:00:00 | AY68: 0 | AZ68: 0 | BA68: 0 | BB68: 0 | BC68: 0 | BE68: 46 | BF68: =+'2) Richiesta finanziamento'!N25 -> 2024-02-20 | BG68: =+'2) Richiesta finanziamento'!O25 -> 7787.68249 | BH68: =+'2) Richiesta finanziamento'!P25 -> 293.1761337 | BI68: =+'2) Richiesta finanziamento'!Q25 -> 12.79469282 | BK68: =+'2) Richiesta finanziamento'!R25 -> 305.9708265
A69: 0 | B69: 00:00:00 | C69: 0 | D69: 0 | E69: 0 | F69: 0 | G69: 0 | I69: 0 | J69: 00:00:00 | K69: 0 | L69: 0 | M69: 0 | N69: 0 | O69: 0 | Q69: 0 | R69: 00:00:00 | S69: 0 | T69: 0 | U69: 0 | V69: 0 | W69: 0 | Y69: 0 | Z69: 00:00:00 | AA69: 0 | AB69: 0 | AC69: 0 | AD69: 0 | AE69: 0 | AG69: 0 | AH69: 00:00:00 | AI69: 0 | AJ69: 0 | AK69: 0 | AL69: 0 | AM69: 0 | AO69: 0 | AP69: 00:00:00 | AQ69: 0 | AR69: 0 | AS69: 0 | AT69: 0 | AU69: 0 | AW69: 0 | AX69: 00:00:00 | AY69: 0 | AZ69: 0 | BA69: 0 | BB69: 0 | BC69: 0 | BE69: 47 | BF69: =+'2) Richiesta finanziamento'!N26 -> 2024-03-20 | BG69: =+'2) Richiesta finanziamento'!O26 -> 7494.042161 | BH69: =+'2) Richiesta finanziamento'!P26 -> 293.6403292 | BI69: =+'2) Richiesta finanziamento'!Q26 -> 12.33049728 | BK69: =+'2) Richiesta finanziamento'!R26 -> 305.9708265
A70: 0 | B70: 00:00:00 | C70: 0 | D70: 0 | E70: 0 | F70: 0 | G70: 0 | I70: 0 | J70: 00:00:00 | K70: 0 | L70: 0 | M70: 0 | N70: 0 | O70: 0 | Q70: 0 | R70: 00:00:00 | S70: 0 | T70: 0 | U70: 0 | V70: 0 | W70: 0 | Y70: 0 | Z70: 00:00:00 | AA70: 0 | AB70: 0 | AC70: 0 | AD70: 0 | AE70: 0 | AG70: 0 | AH70: 00:00:00 | AI70: 0 | AJ70: 0 | AK70: 0 | AL70: 0 | AM70: 0 | AO70: 0 | AP70: 00:00:00 | AQ70: 0 | AR70: 0 | AS70: 0 | AT70: 0 | AU70: 0 | AW70: 0 | AX70: 00:00:00 | AY70: 0 | AZ70: 0 | BA70: 0 | BB70: 0 | BC70: 0 | BE70: 48 | BF70: =+'2) Richiesta finanziamento'!N27 -> 2024-04-20 | BG70: =+'2) Richiesta finanziamento'!O27 -> 7199.936901 | BH70: =+'2) Richiesta finanziamento'!P27 -> 294.1052597 | BI70: =+'2) Richiesta finanziamento'!Q27 -> 11.86556675 | BK70: =+'2) Richiesta finanziamento'!R27 -> 305.9708265
A71: 0 | B71: 00:00:00 | C71: 0 | D71: 0 | E71: 0 | F71: 0 | G71: 0 | I71: 0 | J71: 00:00:00 | K71: 0 | L71: 0 | M71: 0 | N71: 0 | O71: 0 | Q71: 0 | R71: 00:00:00 | S71: 0 | T71: 0 | U71: 0 | V71: 0 | W71: 0 | Y71: 0 | Z71: 00:00:00 | AA71: 0 | AB71: 0 | AC71: 0 | AD71: 0 | AE71: 0 | AG71: 0 | AH71: 00:00:00 | AI71: 0 | AJ71: 0 | AK71: 0 | AL71: 0 | AM71: 0 | AO71: 0 | AP71: 00:00:00 | AQ71: 0 | AR71: 0 | AS71: 0 | AT71: 0 | AU71: 0 | AW71: 0 | AX71: 00:00:00 | AY71: 0 | AZ71: 0 | BA71: 0 | BB71: 0 | BC71: 0 | BE71: 49 | BF71: =+'2) Richiesta finanziamento'!N28 -> 2024-05-20 | BG71: =+'2) Richiesta finanziamento'!O28 -> 6905.365975 | BH71: =+'2) Richiesta finanziamento'!P28 -> 294.5709264 | BI71: =+'2) Richiesta finanziamento'!Q28 -> 11.39990009 | BK71: =+'2) Richiesta finanziamento'!R28 -> 305.9708265
A72: 0 | B72: 00:00:00 | C72: 0 | D72: 0 | E72: 0 | F72: 0 | G72: 0 | I72: 0 | J72: 00:00:00 | K72: 0 | L72: 0 | M72: 0 | N72: 0 | O72: 0 | Q72: 0 | R72: 00:00:00 | S72: 0 | T72: 0 | U72: 0 | V72: 0 | W72: 0 | Y72: 0 | Z72: 00:00:00 | AA72: 0 | AB72: 0 | AC72: 0 | AD72: 0 | AE72: 0 | AG72: 0 | AH72: 00:00:00 | AI72: 0 | AJ72: 0 | AK72: 0 | AL72: 0 | AM72: 0 | AO72: 0 | AP72: 00:00:00 | AQ72: 0 | AR72: 0 | AS72: 0 | AT72: 0 | AU72: 0 | AW72: 0 | AX72: 00:00:00 | AY72: 0 | AZ72: 0 | BA72: 0 | BB72: 0 | BC72: 0 | BE72: 50 | BF72: =+'2) Richiesta finanziamento'!N29 -> 2024-06-20 | BG72: =+'2) Richiesta finanziamento'!O29 -> 6610.328644 | BH72: =+'2) Richiesta finanziamento'!P29 -> 295.0373304 | BI72: =+'2) Richiesta finanziamento'!Q29 -> 10.93349613 | BK72: =+'2) Richiesta finanziamento'!R29 -> 305.9708265
A73: 0 | B73: 00:00:00 | C73: 0 | D73: 0 | E73: 0 | F73: 0 | G73: 0 | I73: 0 | J73: 00:00:00 | K73: 0 | L73: 0 | M73: 0 | N73: 0 | O73: 0 | Q73: 0 | R73: 00:00:00 | S73: 0 | T73: 0 | U73: 0 | V73: 0 | W73: 0 | Y73: 0 | Z73: 00:00:00 | AA73: 0 | AB73: 0 | AC73: 0 | AD73: 0 | AE73: 0 | AG73: 0 | AH73: 00:00:00 | AI73: 0 | AJ73: 0 | AK73: 0 | AL73: 0 | AM73: 0 | AO73: 0 | AP73: 00:00:00 | AQ73: 0 | AR73: 0 | AS73: 0 | AT73: 0 | AU73: 0 | AW73: 0 | AX73: 00:00:00 | AY73: 0 | AZ73: 0 | BA73: 0 | BB73: 0 | BC73: 0 | BE73: 51 | BF73: =+'2) Richiesta finanziamento'!N30 -> 2024-07-20 | BG73: =+'2) Richiesta finanziamento'!O30 -> 6314.824171 | BH73: =+'2) Richiesta finanziamento'!P30 -> 295.5044728 | BI73: =+'2) Richiesta finanziamento'!Q30 -> 10.46635369 | BK73: =+'2) Richiesta finanziamento'!R30 -> 305.9708265
A74: 0 | B74: 00:00:00 | C74: 0 | D74: 0 | E74: 0 | F74: 0 | G74: 0 | I74: 0 | J74: 00:00:00 | K74: 0 | L74: 0 | M74: 0 | N74: 0 | O74: 0 | Q74: 0 | R74: 00:00:00 | S74: 0 | T74: 0 | U74: 0 | V74: 0 | W74: 0 | Y74: 0 | Z74: 00:00:00 | AA74: 0 | AB74: 0 | AC74: 0 | AD74: 0 | AE74: 0 | AG74: 0 | AH74: 00:00:00 | AI74: 0 | AJ74: 0 | AK74: 0 | AL74: 0 | AM74: 0 | AO74: 0 | AP74: 00:00:00 | AQ74: 0 | AR74: 0 | AS74: 0 | AT74: 0 | AU74: 0 | AW74: 0 | AX74: 00:00:00 | AY74: 0 | AZ74: 0 | BA74: 0 | BB74: 0 | BC74: 0 | BE74: 52 | BF74: =+'2) Richiesta finanziamento'!N31 -> 2024-08-20 | BG74: =+'2) Richiesta finanziamento'!O31 -> 6018.851816 | BH74: =+'2) Richiesta finanziamento'!P31 -> 295.9723549 | BI74: =+'2) Richiesta finanziamento'!Q31 -> 9.998471605 | BK74: =+'2) Richiesta finanziamento'!R31 -> 305.9708265
A75: 0 | B75: 00:00:00 | C75: 0 | D75: 0 | E75: 0 | F75: 0 | G75: 0 | I75: 0 | J75: 00:00:00 | K75: 0 | L75: 0 | M75: 0 | N75: 0 | O75: 0 | Q75: 0 | R75: 00:00:00 | S75: 0 | T75: 0 | U75: 0 | V75: 0 | W75: 0 | Y75: 0 | Z75: 00:00:00 | AA75: 0 | AB75: 0 | AC75: 0 | AD75: 0 | AE75: 0 | AG75: 0 | AH75: 00:00:00 | AI75: 0 | AJ75: 0 | AK75: 0 | AL75: 0 | AM75: 0 | AO75: 0 | AP75: 00:00:00 | AQ75: 0 | AR75: 0 | AS75: 0 | AT75: 0 | AU75: 0 | AW75: 0 | AX75: 00:00:00 | AY75: 0 | AZ75: 0 | BA75: 0 | BB75: 0 | BC75: 0 | BE75: 53 | BF75: =+'2) Richiesta finanziamento'!N32 -> 2024-09-20 | BG75: =+'2) Richiesta finanziamento'!O32 -> 5722.410839 | BH75: =+'2) Richiesta finanziamento'!P32 -> 296.4409778 | BI75: =+'2) Richiesta finanziamento'!Q32 -> 9.529848709 | BK75: =+'2) Richiesta finanziamento'!R32 -> 305.9708265
A76: 0 | B76: 00:00:00 | C76: 0 | D76: 0 | E76: 0 | F76: 0 | G76: 0 | I76: 0 | J76: 00:00:00 | K76: 0 | L76: 0 | M76: 0 | N76: 0 | O76: 0 | Q76: 0 | R76: 00:00:00 | S76: 0 | T76: 0 | U76: 0 | V76: 0 | W76: 0 | Y76: 0 | Z76: 00:00:00 | AA76: 0 | AB76: 0 | AC76: 0 | AD76: 0 | AE76: 0 | AG76: 0 | AH76: 00:00:00 | AI76: 0 | AJ76: 0 | AK76: 0 | AL76: 0 | AM76: 0 | AO76: 0 | AP76: 00:00:00 | AQ76: 0 | AR76: 0 | AS76: 0 | AT76: 0 | AU76: 0 | AW76: 0 | AX76: 00:00:00 | AY76: 0 | AZ76: 0 | BA76: 0 | BB76: 0 | BC76: 0 | BE76: 54 | BF76: =+'2) Richiesta finanziamento'!N33 -> 2024-10-20 | BG76: =+'2) Richiesta finanziamento'!O33 -> 5425.500496 | BH76: =+'2) Richiesta finanziamento'!P33 -> 296.9103427 | BI76: =+'2) Richiesta finanziamento'!Q33 -> 9.060483828 | BK76: =+'2) Richiesta finanziamento'!R33 -> 305.9708265
A77: 0 | B77: 00:00:00 | C77: 0 | D77: 0 | E77: 0 | F77: 0 | G77: 0 | I77: 0 | J77: 00:00:00 | K77: 0 | L77: 0 | M77: 0 | N77: 0 | O77: 0 | Q77: 0 | R77: 00:00:00 | S77: 0 | T77: 0 | U77: 0 | V77: 0 | W77: 0 | Y77: 0 | Z77: 00:00:00 | AA77: 0 | AB77: 0 | AC77: 0 | AD77: 0 | AE77: 0 | AG77: 0 | AH77: 00:00:00 | AI77: 0 | AJ77: 0 | AK77: 0 | AL77: 0 | AM77: 0 | AO77: 0 | AP77: 00:00:00 | AQ77: 0 | AR77: 0 | AS77: 0 | AT77: 0 | AU77: 0 | AW77: 0 | AX77: 00:00:00 | AY77: 0 | AZ77: 0 | BA77: 0 | BB77: 0 | BC77: 0 | BE77: 55 | BF77: =+'2) Richiesta finanziamento'!N34 -> 2024-11-20 | BG77: =+'2) Richiesta finanziamento'!O34 -> 5128.120045 | BH77: =+'2) Richiesta finanziamento'!P34 -> 297.3804507 | BI77: =+'2) Richiesta finanziamento'!Q34 -> 8.590375785 | BK77: =+'2) Richiesta finanziamento'!R34 -> 305.9708265
A78: 0 | B78: 00:00:00 | C78: 0 | D78: 0 | E78: 0 | F78: 0 | G78: 0 | I78: 0 | J78: 00:00:00 | K78: 0 | L78: 0 | M78: 0 | N78: 0 | O78: 0 | Q78: 0 | R78: 00:00:00 | S78: 0 | T78: 0 | U78: 0 | V78: 0 | W78: 0 | Y78: 0 | Z78: 00:00:00 | AA78: 0 | AB78: 0 | AC78: 0 | AD78: 0 | AE78: 0 | AG78: 0 | AH78: 00:00:00 | AI78: 0 | AJ78: 0 | AK78: 0 | AL78: 0 | AM78: 0 | AO78: 0 | AP78: 00:00:00 | AQ78: 0 | AR78: 0 | AS78: 0 | AT78: 0 | AU78: 0 | AW78: 0 | AX78: 00:00:00 | AY78: 0 | AZ78: 0 | BA78: 0 | BB78: 0 | BC78: 0 | BE78: 56 | BF78: =+'2) Richiesta finanziamento'!N35 -> 2024-12-20 | BG78: =+'2) Richiesta finanziamento'!O35 -> 4830.268742 | BH78: =+'2) Richiesta finanziamento'!P35 -> 297.8513031 | BI78: =+'2) Richiesta finanziamento'!Q35 -> 8.119523405 | BK78: =+'2) Richiesta finanziamento'!R35 -> 305.9708265
A79: 0 | B79: 00:00:00 | C79: 0 | D79: 0 | E79: 0 | F79: 0 | G79: 0 | I79: 0 | J79: 00:00:00 | K79: 0 | L79: 0 | M79: 0 | N79: 0 | O79: 0 | Q79: 0 | R79: 00:00:00 | S79: 0 | T79: 0 | U79: 0 | V79: 0 | W79: 0 | Y79: 0 | Z79: 00:00:00 | AA79: 0 | AB79: 0 | AC79: 0 | AD79: 0 | AE79: 0 | AG79: 0 | AH79: 00:00:00 | AI79: 0 | AJ79: 0 | AK79: 0 | AL79: 0 | AM79: 0 | AO79: 0 | AP79: 00:00:00 | AQ79: 0 | AR79: 0 | AS79: 0 | AT79: 0 | AU79: 0 | AW79: 0 | AX79: 00:00:00 | AY79: 0 | AZ79: 0 | BA79: 0 | BB79: 0 | BC79: 0 | BE79: 57 | BF79: =+'2) Richiesta finanziamento'!N36 -> 2025-01-20 | BG79: =+'2) Richiesta finanziamento'!O36 -> 4531.945841 | BH79: =+'2) Richiesta finanziamento'!P36 -> 298.322901 | BI79: =+'2) Richiesta finanziamento'!Q36 -> 7.647925509 | BK79: =+'2) Richiesta finanziamento'!R36 -> 305.9708265
A80: 0 | B80: 00:00:00 | C80: 0 | D80: 0 | E80: 0 | F80: 0 | G80: 0 | I80: 0 | J80: 00:00:00 | K80: 0 | L80: 0 | M80: 0 | N80: 0 | O80: 0 | Q80: 0 | R80: 00:00:00 | S80: 0 | T80: 0 | U80: 0 | V80: 0 | W80: 0 | Y80: 0 | Z80: 00:00:00 | AA80: 0 | AB80: 0 | AC80: 0 | AD80: 0 | AE80: 0 | AG80: 0 | AH80: 00:00:00 | AI80: 0 | AJ80: 0 | AK80: 0 | AL80: 0 | AM80: 0 | AO80: 0 | AP80: 00:00:00 | AQ80: 0 | AR80: 0 | AS80: 0 | AT80: 0 | AU80: 0 | AW80: 0 | AX80: 00:00:00 | AY80: 0 | AZ80: 0 | BA80: 0 | BB80: 0 | BC80: 0 | BE80: 58 | BF80: =+'2) Richiesta finanziamento'!N37 -> 2025-02-20 | BG80: =+'2) Richiesta finanziamento'!O37 -> 4233.150596 | BH80: =+'2) Richiesta finanziamento'!P37 -> 298.7952456 | BI80: =+'2) Richiesta finanziamento'!Q37 -> 7.175580915 | BK80: =+'2) Richiesta finanziamento'!R37 -> 305.9708265
A81: 0 | B81: 00:00:00 | C81: 0 | D81: 0 | E81: 0 | F81: 0 | G81: 0 | I81: 0 | J81: 00:00:00 | K81: 0 | L81: 0 | M81: 0 | N81: 0 | O81: 0 | Q81: 0 | R81: 00:00:00 | S81: 0 | T81: 0 | U81: 0 | V81: 0 | W81: 0 | Y81: 0 | Z81: 00:00:00 | AA81: 0 | AB81: 0 | AC81: 0 | AD81: 0 | AE81: 0 | AG81: 0 | AH81: 00:00:00 | AI81: 0 | AJ81: 0 | AK81: 0 | AL81: 0 | AM81: 0 | AO81: 0 | AP81: 00:00:00 | AQ81: 0 | AR81: 0 | AS81: 0 | AT81: 0 | AU81: 0 | AW81: 0 | AX81: 00:00:00 | AY81: 0 | AZ81: 0 | BA81: 0 | BB81: 0 | BC81: 0 | BE81: 59 | BF81: =+'2) Richiesta finanziamento'!N38 -> 2025-03-20 | BG81: =+'2) Richiesta finanziamento'!O38 -> 3933.882258 | BH81: =+'2) Richiesta finanziamento'!P38 -> 299.268338 | BI81: =+'2) Richiesta finanziamento'!Q38 -> 6.702488443 | BK81: =+'2) Richiesta finanziamento'!R38 -> 305.9708265
A82: 0 | B82: 00:00:00 | C82: 0 | D82: 0 | E82: 0 | F82: 0 | G82: 0 | I82: 0 | J82: 00:00:00 | K82: 0 | L82: 0 | M82: 0 | N82: 0 | O82: 0 | Q82: 0 | R82: 00:00:00 | S82: 0 | T82: 0 | U82: 0 | V82: 0 | W82: 0 | Y82: 0 | Z82: 00:00:00 | AA82: 0 | AB82: 0 | AC82: 0 | AD82: 0 | AE82: 0 | AG82: 0 | AH82: 00:00:00 | AI82: 0 | AJ82: 0 | AK82: 0 | AL82: 0 | AM82: 0 | AO82: 0 | AP82: 00:00:00 | AQ82: 0 | AR82: 0 | AS82: 0 | AT82: 0 | AU82: 0 | AW82: 0 | AX82: 00:00:00 | AY82: 0 | AZ82: 0 | BA82: 0 | BB82: 0 | BC82: 0 | BE82: 60 | BF82: =+'2) Richiesta finanziamento'!N39 -> 2025-04-20 | BG82: =+'2) Richiesta finanziamento'!O39 -> 3634.140078 | BH82: =+'2) Richiesta finanziamento'!P39 -> 299.7421796 | BI82: =+'2) Richiesta finanziamento'!Q39 -> 6.228646908 | BK82: =+'2) Richiesta finanziamento'!R39 -> 305.9708265
A83: 0 | B83: 00:00:00 | C83: 0 | D83: 0 | E83: 0 | F83: 0 | G83: 0 | I83: 0 | J83: 00:00:00 | K83: 0 | L83: 0 | M83: 0 | N83: 0 | O83: 0 | Q83: 0 | R83: 00:00:00 | S83: 0 | T83: 0 | U83: 0 | V83: 0 | W83: 0 | Y83: 0 | Z83: 00:00:00 | AA83: 0 | AB83: 0 | AC83: 0 | AD83: 0 | AE83: 0 | AG83: 0 | AH83: 00:00:00 | AI83: 0 | AJ83: 0 | AK83: 0 | AL83: 0 | AM83: 0 | AO83: 0 | AP83: 00:00:00 | AQ83: 0 | AR83: 0 | AS83: 0 | AT83: 0 | AU83: 0 | AW83: 0 | AX83: 00:00:00 | AY83: 0 | AZ83: 0 | BA83: 0 | BB83: 0 | BC83: 0 | BE83: 61 | BF83: =+'2) Richiesta finanziamento'!N40 -> 2025-05-20 | BG83: =+'2) Richiesta finanziamento'!O40 -> 3333.923307 | BH83: =+'2) Richiesta finanziamento'!P40 -> 300.2167714 | BI83: =+'2) Richiesta finanziamento'!Q40 -> 5.754055124 | BK83: =+'2) Richiesta finanziamento'!R40 -> 305.9708265
A84: 0 | B84: 00:00:00 | C84: 0 | D84: 0 | E84: 0 | F84: 0 | G84: 0 | I84: 0 | J84: 00:00:00 | K84: 0 | L84: 0 | M84: 0 | N84: 0 | O84: 0 | Q84: 0 | R84: 00:00:00 | S84: 0 | T84: 0 | U84: 0 | V84: 0 | W84: 0 | Y84: 0 | Z84: 00:00:00 | AA84: 0 | AB84: 0 | AC84: 0 | AD84: 0 | AE84: 0 | AG84: 0 | AH84: 00:00:00 | AI84: 0 | AJ84: 0 | AK84: 0 | AL84: 0 | AM84: 0 | AO84: 0 | AP84: 00:00:00 | AQ84: 0 | AR84: 0 | AS84: 0 | AT84: 0 | AU84: 0 | AW84: 0 | AX84: 00:00:00 | AY84: 0 | AZ84: 0 | BA84: 0 | BB84: 0 | BC84: 0 | BE84: 62 | BF84: =+'2) Richiesta finanziamento'!N41 -> 2025-06-20 | BG84: =+'2) Richiesta finanziamento'!O41 -> 3033.231192 | BH84: =+'2) Richiesta finanziamento'!P41 -> 300.6921146 | BI84: =+'2) Richiesta finanziamento'!Q41 -> 5.278711902 | BK84: =+'2) Richiesta finanziamento'!R41 -> 305.9708265
A85: 0 | B85: 00:00:00 | C85: 0 | D85: 0 | E85: 0 | F85: 0 | G85: 0 | I85: 0 | J85: 00:00:00 | K85: 0 | L85: 0 | M85: 0 | N85: 0 | O85: 0 | Q85: 0 | R85: 00:00:00 | S85: 0 | T85: 0 | U85: 0 | V85: 0 | W85: 0 | Y85: 0 | Z85: 00:00:00 | AA85: 0 | AB85: 0 | AC85: 0 | AD85: 0 | AE85: 0 | AG85: 0 | AH85: 00:00:00 | AI85: 0 | AJ85: 0 | AK85: 0 | AL85: 0 | AM85: 0 | AO85: 0 | AP85: 00:00:00 | AQ85: 0 | AR85: 0 | AS85: 0 | AT85: 0 | AU85: 0 | AW85: 0 | AX85: 00:00:00 | AY85: 0 | AZ85: 0 | BA85: 0 | BB85: 0 | BC85: 0 | BE85: 63 | BF85: =+'2) Richiesta finanziamento'!N42 -> 2025-07-20 | BG85: =+'2) Richiesta finanziamento'!O42 -> 2732.062982 | BH85: =+'2) Richiesta finanziamento'!P42 -> 301.1682104 | BI85: =+'2) Richiesta finanziamento'!Q42 -> 4.802616054 | BK85: =+'2) Richiesta finanziamento'!R42 -> 305.9708265
A86: 0 | B86: 00:00:00 | C86: 0 | D86: 0 | E86: 0 | F86: 0 | G86: 0 | I86: 0 | J86: 00:00:00 | K86: 0 | L86: 0 | M86: 0 | N86: 0 | O86: 0 | Q86: 0 | R86: 00:00:00 | S86: 0 | T86: 0 | U86: 0 | V86: 0 | W86: 0 | Y86: 0 | Z86: 00:00:00 | AA86: 0 | AB86: 0 | AC86: 0 | AD86: 0 | AE86: 0 | AG86: 0 | AH86: 00:00:00 | AI86: 0 | AJ86: 0 | AK86: 0 | AL86: 0 | AM86: 0 | AO86: 0 | AP86: 00:00:00 | AQ86: 0 | AR86: 0 | AS86: 0 | AT86: 0 | AU86: 0 | AW86: 0 | AX86: 00:00:00 | AY86: 0 | AZ86: 0 | BA86: 0 | BB86: 0 | BC86: 0 | BE86: 64 | BF86: =+'2) Richiesta finanziamento'!N43 -> 2025-08-20 | BG86: =+'2) Richiesta finanziamento'!O43 -> 2430.417922 | BH86: =+'2) Richiesta finanziamento'!P43 -> 301.6450601 | BI86: =+'2) Richiesta finanziamento'!Q43 -> 4.325766388 | BK86: =+'2) Richiesta finanziamento'!R43 -> 305.9708265
A87: 0 | B87: 00:00:00 | C87: 0 | D87: 0 | E87: 0 | F87: 0 | G87: 0 | I87: 0 | J87: 00:00:00 | K87: 0 | L87: 0 | M87: 0 | N87: 0 | O87: 0 | Q87: 0 | R87: 00:00:00 | S87: 0 | T87: 0 | U87: 0 | V87: 0 | W87: 0 | Y87: 0 | Z87: 00:00:00 | AA87: 0 | AB87: 0 | AC87: 0 | AD87: 0 | AE87: 0 | AG87: 0 | AH87: 00:00:00 | AI87: 0 | AJ87: 0 | AK87: 0 | AL87: 0 | AM87: 0 | AO87: 0 | AP87: 00:00:00 | AQ87: 0 | AR87: 0 | AS87: 0 | AT87: 0 | AU87: 0 | AW87: 0 | AX87: 00:00:00 | AY87: 0 | AZ87: 0 | BA87: 0 | BB87: 0 | BC87: 0 | BE87: 65 | BF87: =+'2) Richiesta finanziamento'!N44 -> 2025-09-20 | BG87: =+'2) Richiesta finanziamento'!O44 -> 2128.295257 | BH87: =+'2) Richiesta finanziamento'!P44 -> 302.1226648 | BI87: =+'2) Richiesta finanziamento'!Q44 -> 3.848161709 | BK87: =+'2) Richiesta finanziamento'!R44 -> 305.9708265
A88: 0 | B88: 00:00:00 | C88: =IF(A88=0,0,C87-D88) -> 0 | D88: =IF(A88=0,0,+G88-E88-F88) -> 0 | E88: =IF(A88=0,0,+C87*D$10*D$19/12) -> 0 | F88: =IF(A88=0,0,+D$13+E$3) -> 0 | G88: =IF(A88=0,0,IF(B88>=D$8,D$5,D$4)+F88)+IF(A87=D$16,D$3,0) -> 0 | I88: 0 | J88: 00:00:00 | K88: =IF(I88=0,0,K87-L88) -> 0 | L88: =IF(I88=0,0,+O88-M88-N88) -> 0 | M88: =IF(I88=0,0,+K87*L$10*L$19/12) -> 0 | N88: =IF(I88=0,0,+L$13+M$3) -> 0 | O88: =IF(I88=0,0,IF(J88>=L$8,L$5,L$4)+N88)+IF(I87=L$16,L$3,0) -> 0 | Q88: 0 | R88: 00:00:00 | S88: =IF(Q88=0,0,S87-T88) -> 0 | T88: =IF(Q88=0,0,+W88-U88-V88) -> 0 | U88: =IF(Q88=0,0,+S87*T$10*T$19/12) -> 0 | V88: =IF(Q88=0,0,+T$13+U$3) -> 0 | W88: =IF(Q88=0,0,IF(R88>=T$8,T$5,T$4)+V88)+IF(Q87=T$16,T$3,0) -> 0 | Y88: 0 | Z88: 00:00:00 | AA88: =IF(Y88=0,0,AA87-AB88) -> 0 | AB88: =IF(Y88=0,0,+AE88-AC88-AD88) -> 0 | AC88: =IF(Y88=0,0,+AA87*AB$10*AB$19/12) -> 0 | AD88: =IF(Y88=0,0,+AB$13+AC$3) -> 0 | AE88: =IF(Y88=0,0,IF(Z88>=AB$8,AB$5,AB$4)+AD88)+IF(Y87=AB$16,AB$3,0) -> 0 | AG88: 0 | AH88: 00:00:00 | AI88: =IF(AG88=0,0,AI87-AJ88) -> 0 | AJ88: =IF(AG88=0,0,+AM88-AK88-AL88) -> 0 | AK88: =IF(AG88=0,0,+AI87*AJ$10*AJ$19/12) -> 0 | AL88: =IF(AG88=0,0,+AJ$13+AK$3) -> 0 | AM88: =IF(AG88=0,0,IF(AH88>=AJ$8,AJ$5,AJ$4)+AL88)+IF(AG87=AJ$16,AJ$3,0) -> 0 | AO88: 0 | AP88: 00:00:00 | AQ88: =IF(AO88=0,0,AQ87-AR88) -> 0 | AR88: =IF(AO88=0,0,+AU88-AS88-AT88) -> 0 | AS88: =IF(AO88=0,0,+AQ87*AR$10*AR$19/12) -> 0 | AT88: =IF(AO88=0,0,+AR$13+AS$3) -> 0 | AU88: =IF(AO88=0,0,IF(AP88>=AR$8,AR$5,AR$4)+AT88)+IF(AO87=AR$16,AR$3,0) -> 0 | AW88: 0 | AX88: 00:00:00 | AY88: =IF(AW88=0,0,AY87-AZ88) -> 0 | AZ88: =IF(AW88=0,0,+BC88-BA88-BB88) -> 0 | BA88: =IF(AW88=0,0,+AY87*AZ$10*AZ$19/12) -> 0 | BB88: =IF(AW88=0,0,+AZ$13+BA$3) -> 0 | BC88: =IF(AW88=0,0,IF(AX88>=AZ$8,AZ$5,AZ$4)+BB88)+IF(AW87=AZ$16,AZ$3,0) -> 0 | BE88: =1+BE87 -> 66 | BF88: =+'2) Richiesta finanziamento'!N45 -> 2025-10-20 | BG88: =+'2) Richiesta finanziamento'!O45 -> 1825.694231 | BH88: =+'2) Richiesta finanziamento'!P45 -> 302.6010257 | BI88: =+'2) Richiesta finanziamento'!Q45 -> 3.369800823 | BK88: =+'2) Richiesta finanziamento'!R45 -> 305.9708265
A89: =IF(OR(A88=0,A88+1>D$16),0,A88+1) -> 0 | B89: =IF(A89=0,0,EDATE(B88,D$19)) -> 00:00:00 | C89: 0 | D89: 0 | E89: 0 | F89: 0 | G89: 0 | I89: =IF(OR(I88=0,I88+1>L$16),0,I88+1) -> 0 | J89: =IF(I89=0,0,EDATE(J88,L$19)) -> 00:00:00 | K89: 0 | L89: 0 | M89: 0 | N89: 0 | O89: 0 | Q89: =IF(OR(Q88=0,Q88+1>T$16),0,Q88+1) -> 0 | R89: =IF(Q89=0,0,EDATE(R88,T$19)) -> 00:00:00 | S89: 0 | T89: 0 | U89: 0 | V89: 0 | W89: 0 | Y89: =IF(OR(Y88=0,Y88+1>AB$16),0,Y88+1) -> 0 | Z89: =IF(Y89=0,0,EDATE(Z88,AB$19)) -> 00:00:00 | AA89: 0 | AB89: 0 | AC89: 0 | AD89: 0 | AE89: 0 | AG89: =IF(OR(AG88=0,AG88+1>AJ$16),0,AG88+1) -> 0 | AH89: =IF(AG89=0,0,EDATE(AH88,AJ$19)) -> 00:00:00 | AI89: 0 | AJ89: 0 | AK89: 0 | AL89: 0 | AM89: 0 | AO89: =IF(OR(AO88=0,AO88+1>AR$16),0,AO88+1) -> 0 | AP89: =IF(AO89=0,0,EDATE(AP88,AR$19)) -> 00:00:00 | AQ89: 0 | AR89: 0 | AS89: 0 | AT89: 0 | AU89: 0 | AW89: =IF(OR(AW88=0,AW88+1>AZ$16),0,AW88+1) -> 0 | AX89: =IF(AW89=0,0,EDATE(AX88,AZ$19)) -> 00:00:00 | AY89: 0 | AZ89: 0 | BA89: 0 | BB89: 0 | BC89: 0 | BE89: 67 | BF89: =+'2) Richiesta finanziamento'!N46 -> 2025-11-20 | BG89: =+'2) Richiesta finanziamento'!O46 -> 1522.614087 | BH89: =+'2) Richiesta finanziamento'!P46 -> 303.0801439 | BI89: =+'2) Richiesta finanziamento'!Q46 -> 2.890682533 | BK89: =+'2) Richiesta finanziamento'!R46 -> 305.9708265
